Workbook

Sheet Entry sheet
B2: BESPOKE PERFORMANCE CALCULATOR
B4: Performance will be calculated to:
B5: =FL_Dates!B3 -> 31/03/2026
B7: Please enter the product charge to be assumed in the performance, e.g.0.45%
D8: 0.01
B10: Funds
B17: Governed Range
B18: Portfolios
B24: Lifestyles

Sheet EUC Details (hidden)
C2: USER INSTRUCTION STEPS
B3: Step | C3: Name | D3: Details
B4: 1 | C4: Refresh T dates | D4: refresh T-dates spreadsheet - tab 'FL_Dates'
B5: 2 | C5: Update T dates within the lipper file and save
B6: 3 | C6: Refresh data in 'Sheet1 - Table(1)
B7: 4 | C7: Rebates check | D7: Ensure rebates and TER year are correct in 'Rebates, document names, codes' tab
B8: 5 | C8: Update watchlist / TERs if applicable
B9: 6 | C9: Sense check Pension (PDF) sheet | D9: Any fund need removed or added? Any funds now have enough data to remove the overide caveate in column W, this will also require the relevant cells pdf sheets to be unmerged. Check checks in columns AJ to AK, should be none flagging.
C11: Sheet | D11: Description This describes the user instruction steps - Description of functionality and action required as well as any input or output checks
C12: FMC_INVEX_TER FMC_INVEX_TER_LIFE FMC_INVEX_TER_SELECT Watchlist Funds | D12: Description of Functionality: Sheets contain raw inputs for charges and number of quarters on watchlist. Lookups on left hand side of tabs are used as part of structuring for pdf creator sheets. Any fund being added to docs must be added here, and the order must reflect the order in which you want the funds to show in these docs
C13: Sheet1 - Table (1) | D13: Description of Functionality: Sheet contains lipper data and link to refresh.
C14: Adj Sheet1 - Table (1) | D14: Description of Functionality: The purpose of this worksheet is to adjust the lipper performance data based on selected rebate. Life funds and pension funds get a different rebate and the calculations are based on lipper ids using vlookups. For any new funds new rows must be added and columns A,B and C must be upadted manually. Funds being removed then rows can just be deleted..
C15: Chartdata_APS_USE | D15: Description of Functionality: The purpose of this worksheet is to generate the GRIP allocation graphic which is used as part of the pdf output.
C16: Pension (PDF) | D16: Description of Functionality: The purpose of this worksheet is to collate and stage the data for the pension funds before being pulled into the Pension, pension select and pension watchlist pdf creator tabs. Columns A to F are manual inputs and must be upadted as required when lipper ids and fund name changes occur. Columns G to V pull the relavant performance and also contain some hard coded data points such as management style and launch date. Column W contains a comment which will be used in the pdfs instead of the performance figures of the same row, the reason for this is when funds do not have benchmark perormance or enough data points. Columns Y contains reference to the relevant notes on the pdfs for each fund.
C17: Life GP GRIPS Target_Cash Target_Drawdown Target_Annuity | D17: Description of Functionality: The purpose of these tabs is to stage the calcs used within the relevant pdf tabs. These use basic lookups. Generally these tabs should not need changing or adjusting as portfolios and lifestyles are unlikely to change regaularly if ever.
C18: Results Full to test TAA | D18: Description of Functionality: The purpose of this worksheet is to change % rebalance allocations into funds flows and to aggregate this up to fund level for the whole governed range. Cells B5:Y24 pull % rebalance to new 'test' TAA figures from the individual calculations sheets using vllookup and indirect functions. Cells B29:U48 calculates the fund flows at portfolio level. The calculations is as follows: % rebalance allocations per portfolio x Latest Governed Ramge AuM from impact report (from inputs cell C5) x Latest Governed Range Split from Portfolio Analyser accounting for growth since calculation (from inputs cells F80:F99) Cells V29:V48 totalsrebalance flows at fund level. Note: Managedy strategies are not included within the totaling of fund flows. This is because the impact report figure will include the AuM from managed strategies but th eportfolio analyser split does not account for managed strategies. This means the managed strategies AuM will be accounted for within the rest of the portfolios implicitly.
C19: Results Full to TAA shock | D19: Description of Functionality: The purpose of this worksheet is to change % rebalance allocations into funds flows and to aggregate this up to fund level for the whole governed range. Cells B5:Y24 pull % rebalance to current TAA with shock figures from the individual calculations sheets using vllookup and indirect functions. Cells B29:U48 calculates the fund flows at portfolio level. The calculations is as follows: % rebalance allocations per portfolio x Latest Governed Ramge AuM from impact report (from inputs cell C5) x Latest Governed Range Split from Portfolio Analyser accounting for growth since calculation (from inputs cells F80:F99) Cells V29:V48 totalsrebalance flows at fund level. Note: Managedy strategies are not included within the totaling of fund flows. This is because the impact report figure will include the AuM from managed strategies but th eportfolio analyser split does not account for managed strategies. This means the managed strategies AuM will be accounted for within the rest of the portfolios implicitly.
C20: Results Full Test TAA shock | D20: Description of Functionality: The purpose of this worksheet is to change % rebalance allocations into funds flows and to aggregate this up to fund level for the whole governed range. Cells B5:Y24 pull % rebalance to new 'test' TAA with shock figures from the individual calculations sheets using vllookup and indirect functions. Cells B29:U48 calculates the fund flows at portfolio level. The calculations is as follows: % rebalance allocations per portfolio x Latest Governed Ramge AuM from impact report (from inputs cell C5) x Latest Governed Range Split from Portfolio Analyser accounting for growth since calculation (from inputs cells F80:F99) Cells V29:V48 totalsrebalance flows at fund level. Note: Managedy strategies are not included within the totaling of fund flows. This is because the impact report figure will include the AuM from managed strategies but th eportfolio analyser split does not account for managed strategies. This means the managed strategies AuM will be accounted for within the rest of the portfolios implicitly.
C21: FL_Dates | D21: Description of Functionality: Conatins basic calculation for T dates.
C22: Rebates, document names, codes | D22: Description of Functionality: The sheet contains the correct names and codes to be used for each pdf document as well as the rebate inputs used to manipulate the performance figures. There is also a macro button which runs through the pdf sheets and prints them to pdf.
C23: paras | D23: Description of Functionality: This sheet contains the caveats which are used within the pdf creator tabs
C24: Pension (PDF) PDFCreator New Select PDFCraetor Pension Fund Watchlist | D24: Description of Functionality: These sheets are used to set and print the Pension, Select and watchlist pdfs. Data is pulled for each fund based on the fund name in column C, and the column lookup which is hidden in above the first lot of funds, e.g. for pension pdf it is row 189. The fund name in column C is set based on the lookup in column B. The lookup in column B references the FMC_INVEX sheets. New fund etc can be added but the correct lookups for the fund name must be in place within the Pension (PDF) and FMC_INEX tabs.
C25: Target_... GP GRIP Life Default | D25: Description of Functionality: These sheets are used to set and print the other pdfs, e.g. lifestyle, GP, GRIP … These sheets are more basic in their setup as they are unlikely to change much in terms of structure. Basic vlookups are used throughout.

Sheet Cover Sheet (hidden)
B2: End User Computing (EUC) control sheet
B4: i) EUC Details: | J4: Impact (Potential magnitude of EUC in line with Group Risk Assessment Criteria) | K4: EUC Grading Matrix
J5: Severe | K5: Medium | L5: Medium | M5: High | N5: High
B6: Name of EUC: Enter the generic name of the EUC together with file extension | C6: Monthly Performance Stats (IB) | J6: High | K6: Medium | L6: Medium | M6: Medium | N6: High
B7: Purpose of EUC: I.e. control over a named process or to produce output for a named report or subsequent named EUC / process | C7: Spreadsheet is used for producing the monthly investment bulletin pdfs. Included within the spreadsheet is the ability to apply a rebate to the calculations which will in affect show gross performance. | J7: Moderate | K7: Low | L7: Medium | M7: Medium | N7: Medium
B8: Master Location: Where is the master copy of the EUC stored? (Should not be drive letter) | C8: Investment marketing S:/ Investment Marketing\BAU\IB IBmonthyear_AllData | J8: Low | K8: Low | L8: Low | M8: Low | N8: Medium
B9: Approver committee / person (incl. role) | E9: Date of EUC approved for initial use: | J9: Very Low | K9: Low | L9: Low | M9: Low | N9: Low
B10: Control Assessor (incl. role) Name of person who has reviewed the control suite and provided commentary in control summary section. | C10: Niall Aitken (Investment Actuary) | E10: Date of EUC Control Assessment: | F10: 2020-04-30 | J10: Complexity of EUC | K10: Low | L10: Moderate | M10: Intermediate | N10: Advanced
B11: Level 2 Process Name: | C11: Proposition Delivery and Management | E11: EUC ID:
B13: ii) Master Version Control
B15: Version Number | C15: Date modified | D15: Updated by (Surname, Forename) | E15: Owner approved (Surname, Forename) | F15: Comments - summary of changes made
B16: v1.0 | C16: 30.04.2015 | D16: Smithson, Rik | F16: Intial EUC version created
B17: v2.0 | C17: 01.05.2015 | D17: Smithson, Rik
B18: v2.1 | C18: 06.05.2015 | D18: Smithson, Rik
B19: v2.2 | C19: 07.05.2015 | D19: Smithson, Rik
B20: v2.3 | C20: 11.05.2015 | D20: Smithson, Rik
B21: v2.4 | C21: 08.07.2015 | D21: Smithson, Rik
B22: v2.5 | C22: 03.08.2015 | D22: Smithson, Rik
B23: v2.6 | C23: 09.05.2016 | D23: Smithson, Rik
B24: v.3.0 | C24: 29.06.2021 | D24: Carter, Helen | E24: Hamill, Ryan | F24: Changes for ability to include a rebate. Also made changes for consistency in docs - details on 'Updates req'd for 1% adj' tab
B25: V.4.0 | C25: 16.07.2021 | D25: Carter, Helen | F25: GP final figures are meant to be annualised - formula for adj updated Life TERs corrected
B26: V.5.0 | C26: 2021-08-16 | D26: Hamill, Ryan | F26: Upaded core calculations and lookups to run using vlookups and index formulae. Built in checks to through PDF tabs and added in further detail for EUC purposes.
B27: V.5.1 | C27: 2021-12-20 | D27: Hamill, Ryan | F27: Updated EUC details and added Audit tab.
B29: iii) Input Details
B31: Worksheet Name | C31: Source Document | E31: Network Location | G31: Received from
B32: FMC_INVEX_TER | G32: Investment Marketing Team (Internal)
B33: Lipper Table 'Sheet 1 - Table (1)' | C33: Lipper Performance Management | E33: S:\investment marketing\BAU\IB\New IB Performance.lwbk | G33: Investment Marketing Team (Internal)
B34: GRIP Allocations | C34: From investment marketing | G34: Investment Marketing Team (Internal)
B35: Watchlist Funds | C35: IAC spreadsheet | E35: S:\Investment Marketing\IAC\Meetings\2021\2021 Q1 () | G35: Investment Marketing Team (Internal)
B40: iv) Risk Assessment
B41: Select the appropriate rating for impact and complexity and the risk assessment will autofill; give a brief description of the nature and values driven by the EUC, not just a restatement of the impact and complexity scores. Group Risk Assessment Criteria should be referred to for impact ratings unless otherwise agreed, Complexity Rating criteria can be found in the EUC Policy.
B43: Impact Rating: (Impact rating is calculated based on the highest impact assessment.) | C43: Low
B44: Complexity score : | C44: Advanced
B45: Risk Assessment: | C45: =IFERROR(INDEX(K5:N9,MATCH(C43,J5:J9,0),MATCH(C44,K10:N10,0)),"") -> Medium
B46: Rationale | C46: Advanced complexity as uses complex vba code and uses multiple calculation sheets.
B48: v) EUC Controls Summary
B50: Control category | C50: Requirements | E50: Required (Y/N) | F50: Description / Comments
B51: Inventory | C51: The EUCS Inventory must record: • The EUCS Categorisation; • Storage location; • EUCS Department Owner and EUCS Manager; • Date identified and assessed; • Process it supports; • Whether it contains personal data; and • Confirmation that all required controls as set out in this policy have been implemented. | E51: =IF(OR($C$45="Low",$C$45="Medium",$C$45="High"),"Y","") -> Y | F51: EUC is detailed on the Inventory which is stored in the following location: \\royallondongroup.com\depts\MKT\SPECIAL\Investment Marketing\EUC
B52: Documentation | C52: Documentation must be provided detailing how to operate and maintain the EUCS and the associated formulas, macros, scripts. This ensures that the EUCS can be re-created should they become corrupted, deleted or lost. The procedure document must also be provided detailing the purpose of the EUCS and direction on how to use to avoid inappropriate use and subsequent output errors. | E52: =IF($C$45="Low","N",IF(OR($C$45="Medium",$C$45="High"),"Y","")) -> Y | F52: An overview of the functionality of the spreadsheet is included in the 'EUC Details' worksheet.
B53: Version control | C53: A clear version record must be maintained on the EUCS detailing: • When the change was made; • What the change was; • Who made the change; and • Who approved the change. | E53: Y | F53: Comprehensive version control is held in this work sheet.
B54: Access security | C54: The EUCS must be held in a suitable location which provides access to those who require it and restricts access to those who do not require access. Reference must be made to the Data Policy in terms of data classification and associated control requirements for data protection. EUCS with restricted access must adhere to the Joiners, Movers, Leavers process with 6 monthly reviews of access rights undertaken to ensure the security access of the EUCS remains intact. | E54: Y | F54: Spreadsheet stored in a secure drive \\SCPRDGRSMPWS01\Prophetaccess\MKTAct\Investment Actuarial\Calculation Spreadsheets or Databases\Portfolio Drift
B55: Input and output | C55: As a minimum the source of inputs should be validated to ensure the inputs are being received from the correct location. Depending on the complexity of the input data, quality checking of input data should be considered to provide further assurance over the accuracy of the data. | E55: Y | F55: Inputs pulled automatically from lipper or updated annually by end user at which time sense checking is carried out.
C56: As a minimum quality assurance should be conducted on the output data from the EUCS to ensure the data remains accurate. The amount and frequency of quality assurance should be in proportion to the level of risk associated with the EUCS. | E56: Y | F56: Outputs spot checked by end user upon output of pdfs..
B57: Protection of Key Formulae & functions | C57: Password protection of key fields and formulas which if incorrect could cause significant impact on the overall EUCS must be implemented. | E57: Y | F57: Password protection enabled.
B58: Change management | C58: Approval must be sought from the relevant risk committee for High Risk EUCS. business areas must follow aspects of a standard development lifecycle including; documentation of business requirements, software requirements, use of a development environment, testing and user acceptance, change control and review of the EUCS Categorisation. | E58: =IF($C$45="High","Y",IF(OR($C$45="Medium",$C$45="Low"),"N","")) -> N
B59: Storage / Backups | C59: Suitable backup arrangements must be in place for the EUCS to ensure the EUCS can be restored if accidently lost. In addition the EUCS must be held in a location where there is sufficient file storage to supporting the ongoing use of the EUCS. | E59: =IF($C$45="Low","N",IF(OR($C$45="Medium",$C$45="High"),"Y","")) -> Y | F59: Historic versions of the EUC are stored which could be referred to as backups. In addition as the file is saved on the server, it is automatically backed up by GTC.
B60: BC / DR | C60: The EUCS must be classified in line with Business Continuity and Disaster Recovery requirements with appropriate provision provided in line with Business Continuity and Disaster Recovery Management policy i.e. where the EUCS is considered a critical application it should be tested as part of the DR testing programme. | E60: =IF($C$45="High","Y",IF(OR($C$45="Medium",$C$45="Low"),"N","")) -> N
J62: Cell Shading - Actuarial Standard and considered best practice (non-mandatory)
J63: Manual Inputs | K63: Manual input cells.
J64: Formulae Cells | K64: Cells containing formulae (protected)
J65: Exceptions | K65: Any exceptions - formulae driven (Protected)
J66: Auto Populated | K66: Cells populated by macro (Protected)
J67: Links | K67: Cells containing a link to another workbook (Protected)
J68: Instruction or Documentation | K68: Cells that are not relevant (Protected)
J69: Heading/Titles | K69: Cosmetic - No data (Protected)
J70: Heading/Titles | K70: Use any shades of purple (Protected)

Sheet Audit (hidden)
B2: Control
B4: Date | C4: Completed by | D4: Stakeholder | E4: Final Approver | F4: Comments
B5: 2024-01-08 | C5: Stephen Herald | D5: Rik Smithson | E5: Kris Kirk
B6: 2024-02-08 | C6: Stephen Herald | D6: Scott Clark | E6: Kris Kirk
B7: 2024-03-08 | C7: Stephen Herald | D7: Scott Clark | E7: Kris Kirk
B8: 2024-04-08 | C8: Stephen Herald | D8: Rik Smithson | E8: Kris Kirk
B9: 2024-05-08 | C9: Scott Clark | D9: Rik Smithson | E9: Kris Kirk
B10: 2024-06-08 | C10: Scott Clark | D10: Rik Smithson | E10: Kris Kirk
B11: 2024-07-08 | C11: Scott Clark | D11: Kris Kirk | E11: Rik Smithson
B12: 2024-08-08 | C12: Scott Clark | D12: Kris Kirk | E12: Rik Smithson
B13: 2024-09-08 | C13: Scott Clark | D13: Kris Kirk | E13: Rik Smithson
B14: 2024-10-08 | C14: Scott Clark | D14: Stephen Herald | E14: Kris Kirk
B15: 2024-11-08 | C15: Scott Clark | D15: Rik Smithson | E15: Kris Kirk
B16: 2024-12-08 | C16: Scott Clark | D16: Kris Kirk | E16: Rik Smithson
B17: 2025-03-10 | C17: Rebecca | F17: Updated names and lipper IDs for TLS's in dark green tabs
B18: 2025-05-09 | C18: Nicole Fergie | D18: Megan Khaliq | E18: Kris Kirk
B19: 2025-06-10 | C19: Nicole Fergie | D19: Scott Clark | E19: Kris Kirk
B20: 2025-07-08 | C20: Megan Khaliq | D20: Scott Clark | E20: Rebecca Clark
B21: 2025-08-01 | C21: Megan Khaliq | F21: Updated names, Lipper IDs and glidepaths for SGR 2.5
B23: 2025-10-08 | C23: Megan Khaliq | D23: Rebecca Clark | E23: Scott Clark
B24: 2025-11-11 | C24: Rebecca Clark | D24: Megan Khaliq | E24: Kris Kirk
B25: 2025-12-08 | C25: Megan Khaliq | D25: Nicole Fergie | E25: Rebecca Clark | F25: Also updated fund list for changes in November.

Sheet FMC_INVEX_TER (hidden)
A1: 2024 Calendar Year DATA | C1: Source: | D1: S:\Investment Marketing\TER\2025\Annual Update\TER Manipulator v2.6_311224 data_rik.xlsx
C2: Last Updated: | D2: 2025-04-08
B3: Deposit | C3: 18 | D3: 19 | E3: 20
B5: Fund Name | C5: FMC | D5: Additional expenses | E5: TER
A6: Deposit_1 | B6: RLS Deposit | C6: 0.01 | D6: 0 | E6: 0.01
B8: Government & Corporate Bond
B10: Fund Name | C10: FMC | D10: Additional expenses | E10: TER
A11: Government & Corporate Bonds_1 | B11: RLS Annuity | C11: 0.01 | D11: 0 | E11: 0.01
A12: Government & Corporate Bonds_2 | B12: RLS Corporate Bond | C12: 0.01 | D12: 0 | E12: 0.01
A13: Government & Corporate Bonds_3 | B13: RLS Ethical Bond | C13: 0.01 | D13: 0 | E13: 0.01
A14: Government & Corporate Bonds_4 | B14: RLS Fixed Interest | C14: 0.01 | D14: 0 | E14: 0.01
A15: Government & Corporate Bonds_5 | B15: RLS Global Corporate Bond | C15: 0.01 | D15: 0 | E15: 0.01
A16: Government & Corporate Bonds_6 | B16: RLS Global High Yield Bond | C16: 0.01 | D16: 0 | E16: 0.01
A17: Government & Corporate Bonds_7 | B17: RLS Global Index Linked | C17: 0.01 | D17: 0 | E17: 0.01
A18: Government & Corporate Bonds_8 | B18: RLS UK Index Linked | C18: 0.01 | D18: 0 | E18: 0.01
A19: Government & Corporate Bonds_9 | B19: RLS Global Government Bond | C19: 0.01 | D19: 0 | E19: 0.01
A20: Government & Corporate Bonds_10 | B20: RLS Long (15yr) Corporate Bond | C20: 0.01 | D20: 0 | E20: 0.01
A21: Government & Corporate Bonds_11 | B21: RLS Long (15yr) Gilt | C21: 0.01 | D21: 0 | E21: 0.01
A22: Government & Corporate Bonds_12 | B22: RLS Long (15yr) Index Linked | C22: 0.01 | D22: 0 | E22: 0.01
A23: Government & Corporate Bonds_13 | B23: RLS Medium (10yr) Corporate Bond | C23: 0.01 | D23: 0 | E23: 0.01
A24: Government & Corporate Bonds_14 | B24: RLS Medium (10yr) Gilt | C24: 0.01 | D24: 0 | E24: 0.01
A25: Government & Corporate Bonds_15 | B25: RLS Medium (10yr) Index Linked | C25: 0.01 | D25: 0 | E25: 0.01
A26: Government & Corporate Bonds_16 | B26: RLS Short (5yr) Corporate Bond | C26: 0.01 | D26: 0 | E26: 0.01
A27: Government & Corporate Bonds_17 | B27: RLS Short (5yr) Gilt | C27: 0.01 | D27: 0 | E27: 0.01
A28: Government & Corporate Bonds_18 | B28: RLS Short (5yr) Index Linked | C28: 0.01 | D28: 0 | E28: 0.01
A29: Government & Corporate Bonds_19 | B29: RLS Short Duration Global High Yield | C29: 0.01 | D29: 0 | E29: 0.01
A30: Government & Corporate Bonds_20 | B30: RLS Short Duration Global Index Linked | C30: 0.01 | D30: 0 | E30: 0.01
A31: Government & Corporate Bonds_21 | B31: RLS Short Duration UK Corporate Bond | C31: 0.01 | D31: 0 | E31: 0.01
A32: Government & Corporate Bonds_22 | B32: RLS Short Duration UK Government Bond | C32: 0.01 | D32: 0 | E32: 0.01
A33: Government & Corporate Bonds_23 | B33: RLS Sterling Extra Yield Bond | C33: 0.01 | D33: 0 | E33: 0.01
A34: Government & Corporate Bonds_24 | B34: RLS Sustainable Corporate Bond Trust | C34: 0.01 | D34: 0 | E34: 0.01
A35: Government & Corporate Bonds_25 | B35: RLS UK Corporate Bond | C35: 0.01 | D35: 0 | E35: 0.01
A36: Government & Corporate Bonds_26 | B36: RLS UK Government Bond | C36: 0.01 | D36: 0 | E36: 0.01
A37: Government & Corporate Bonds_27 | B37: RLS/Baillie Gifford High Yield Bond | C37: 0.013 | D37: 0.0002 | E37: 0.0132
A38: Government & Corporate Bonds_28 | B38: RLS/BlackRock Long Gilt Index | C38: 0.01 | D38: 0 | E38: 0.01
A39: Government & Corporate Bonds_29 | B39: RLS/BlackRock Over 5 years Index linked Gilt Index | C39: 0.01 | D39: 0 | E39: 0.01
A40: Government & Corporate Bonds_30 | B40: RLS/BlackRock UK All Stocks Corporate Bond Index | C40: 0.01 | D40: 0 | E40: 0.01
A41: Government & Corporate Bonds_31 | B41: RLS/Fidelity Moneybuilder Corporate Bond | C41: 0.0125 | D41: 0.0015 | E41: 0.014
A42: Government & Corporate Bonds_32 | B42: RLS/Fidelity Strategic Bond | C42: 0.0135 | D42: 0.0012 | E42: 0.0147
A43: Government & Corporate Bonds_33 | B43: RLS/Invesco Corporate Bond | C43: 0.0145 | D43: 0 | E43: 0.0145
A44: Government & Corporate Bonds_34 | B44: RLS/Invesco Global Bond | C44: 0.0157 | D44: 0 | E44: 0.0157
A45: Government & Corporate Bonds_35 | B45: RLS/Invesco Monthly Income Plus | C45: 0.0162 | D45: 0 | E45: 0.0162
A46: Government & Corporate Bonds_36 | B46: RLS/Ninety One Emerging Markets Blended Debt | C46: 0.017 | D46: 0.0018 | E46: 0.0188
A47: Government & Corporate Bonds_37 | B47: RLS/M&G Corporate Bond | C47: 0.016 | D47: 0 | E47: 0.016
A48: Government & Corporate Bonds_38 | B48: RLS/M&G Optimal Income | C48: 0.0173 | D48: 0 | E48: 0.0173
A49: Government & Corporate Bonds_39 | B49: RLS/M&G Strategic Corporate Bond | C49: 0.016 | D49: 0 | E49: 0.016
A50: Government & Corporate Bonds_40 | B50: RLS Global Sustainable Credit | C50: 0.01 | D50: 0 | E50: 0.01
A51: Government & Corporate Bonds_41 | B51: RLS Sustainable Short Duration Corporate Bond | C51: 0.01 | D51: 0 | E51: 0.01
B53: Property
B55: Fund Name | C55: FMC | D55: Additional expenses | E55: TER
A56: Property_1 | B56: RLP Property | C56: 0.01 | D56: 0 | E56: 0.01
A57: Property_2 | B57: RLS/Schroder Global Cities Real Estate | C57: 0.017 | D57: 0.0015 | E57: 0.0185
B59: Mixed Asset
B61: Fund Name | C61: FMC | D61: Additional expenses | E61: TER
A62: Mixed Asset_1 | B62: RLP Adventurous Managed | C62: 0.01 | D62: 0 | E62: 0.01
A63: Mixed Asset_2 | B63: RLP Defensive Managed | C63: 0.01 | D63: 0 | E63: 0.01
A64: Mixed Asset_3 | B64: RLP Managed | C64: 0.01 | D64: 0 | E64: 0.01
A65: Mixed Asset_4 | B65: RLP Governed Portfolio Defensive | C65: 0.01 | D65: 0 | E65: 0.01
A66: Mixed Asset_5 | B66: RLP Governed Portfolio Conservative | C66: 0.01 | D66: 0 | E66: 0.01
A67: Mixed Asset_6 | B67: RLP Governed Portfolio Moderate | C67: 0.01 | D67: 0 | E67: 0.01
A68: Mixed Asset_7 | B68: RLP Governed Portfolio Growth | C68: 0.01 | D68: 0 | E68: 0.01
A69: Mixed Asset_8 | B69: RLP Governed Portfolio Enhanced | C69: 0.01 | D69: 0 | E69: 0.01
A70: Mixed Asset_9 | B70: RLP Governed Portfolio Dynamic | C70: 0.01 | D70: 0 | E70: 0.01
A71: Mixed Asset_10 | B71: RLP Governed Portfolio Total Equity | C71: 0.01 | D71: 0 | E71: 0.01
A72: Mixed Asset_11 | B72: RLP GRIP 1 | C72: 0.01 | D72: 0 | E72: 0.01
A73: Mixed Asset_12 | B73: RLP GRIP 2 | C73: 0.01 | D73: 0 | E73: 0.01
A74: Mixed Asset_13 | B74: RLP GRIP 3 | C74: 0.01 | D74: 0 | E74: 0.01
A75: Mixed Asset_14 | B75: RLP GRIP 4 | C75: 0.01 | D75: 0 | E75: 0.01
A76: Mixed Asset_15 | B76: RLP GRIP 5 | C76: 0.01 | D76: 0 | E76: 0.01
A77: Mixed Asset_16 | B77: RLS Sustainable Diversified Trust | C77: 0.01 | D77: 0 | E77: 0.01
A78: Mixed Asset_17 | B78: RLS Sustainable Managed Growth Trust | C78: 0.01 | D78: 0 | E78: 0.01
A79: Mixed Asset_18 | B79: RLS Sustainable World Trust | C79: 0.01 | D79: 0 | E79: 0.01
A80: Mixed Asset_19 | B80: RLS/BlackRock Consensus 85 | C80: 0.01 | D80: 0 | E80: 0.01
A81: Mixed Asset_20 | B81: RLS/Invesco Distribution | C81: 0.0172 | D81: 0 | E81: 0.0172
A82: Mixed Asset_21 | B82: RLS/Ninety One Global Income Opportunities | C82: 0.01575 | D82: 0.0015 | E82: 0.01725
A83: Mixed Asset_22 | B83: RLS/Jupiter Merlin Balanced Portfolio | C83: 0.017 | D83: 0.0075 | E83: 0.0245
A84: Mixed Asset_23 | B84: RLS/Jupiter Merlin Growth Portfolio | C84: 0.017 | D84: 0.0081 | E84: 0.0251
A85: Mixed Asset_24 | B85: RLS/Jupiter Merlin Income Portfolio | C85: 0.017 | D85: 0.0065 | E85: 0.0235
A86: Mixed Asset_25 | B86: RLS/Liontrust Balanced | C86: 0.017 | D86: 0.001 | E86: 0.018
A87: Mixed Asset_26 | B87: RLS/Liontrust Global Alpha | C87: 0.0195 | D87: 0.0008 | E87: 0.0203
A88: Mixed Asset_27 | B88: RLS/BNY Mellon Multi-Asset Balanced | C88: 0.0145 | D88: 0.0011 | E88: 0.0156
A89: Mixed Asset_28 | B89: RLS/BNY Mellon Multi-Asset Growth | C89: 0.0145 | D89: 0.001 | E89: 0.0155
A90: Mixed Asset_29 | B90: RLS/Rathbone Enhanced Growth | C90: 0.0145 | D90: 0.0009 | E90: 0.0154
A91: Mixed Asset_30 | B91: RLS/Rathbone Strategic Growth | C91: 0.0145 | D91: 0.0006 | E91: 0.0151
A92: Mixed Asset_31 | B92: RLS/Rathbone Total Return | C92: 0.0145 | D92: 0.0007 | E92: 0.0152
A93: Mixed Asset_32 | B93: RLS/Schroder Managed Balanced | C93: 0.0135 | D93: 0.0009 | E93: 0.0144
A94: Mixed Asset_33 | B94: RLS Sustainable Growth | C94: 0.01 | D94: 0 | E94: 0.01
B96: UK Equity
B98: Fund Name | C98: FMC | D98: Additional expenses | E98: TER
A99: UK Equity_1 | B99: RLS Equity Income | C99: 0.01 | D99: 0 | E99: 0.01
A100: UK Equity_2 | B100: RLS UK Equity | C100: 0.01 | D100: 0 | E100: 0.01
A101: UK Equity_3 | B101: RLS Sustainable Leaders | C101: 0.01 | D101: 0 | E101: 0.01
A102: UK Equity_4 | B102: RLS UK Mid Cap | C102: 0.01 | D102: 0 | E102: 0.01
A103: UK Equity_5 | B103: RLS UK Smaller Companies | C103: 0.01 | D103: 0 | E103: 0.01
A104: UK Equity_6 | B104: RLS UK Opportunities | C104: 0.01 | D104: 0 | E104: 0.01
A105: UK Equity_7 | B105: RLS/Baillie Gifford UK Equity | C105: 0.0137 | D105: 0.0003 | E105: 0.014
A106: UK Equity_8 | B106: RLP/BlackRock ACS UK Equity Index | C106: 0.01 | D106: 0 | E106: 0.01
A107: UK Equity_9 | B107: RLS/Dimensional UK Core Equity | C107: 0.011 | D107: 0.0007 | E107: 0.0117
A108: UK Equity_10 | B108: RLS/BlackRock UK Equity | C108: 0.0135 | D108: 0.0002 | E108: 0.0137
A109: UK Equity_11 | B109: RLS/Schroder UK Multi-Cap Income | C109: 0.0135 | D109: 0.0026 | E109: 0.0161
A110: UK Equity_12 | B110: RLS/Fidelity UK Select | C110: 0.017 | D110: 0.0006 | E110: 0.0176
A111: UK Equity_13 | B111: RLS/Invesco UK Equity High Income | C111: 0.0182 | D111: 0 | E111: 0.0182
A112: UK Equity_14 | B112: RLS/Ninety One UK Special Situations | C112: 0.017 | D112: 0.001 | E112: 0.018
A113: UK Equity_15 | B113: RLS/M&G Recovery | C113: 0.018 | D113: 0 | E113: 0.018
A114: UK Equity_16 | B114: RLS/Schroder Income Maximiser | C114: 0.017 | D114: 0.0016 | E114: 0.0186
A115: UK Equity_17 | B115: RLS UK Equity Core Plus (JPM UK Dynamic) | C115: 0.0165 | D115: 0.0014 | E115: 0.0179
A116: UK Equity_18 | B116: RLS UK Equity Core Plus (Artemis Income) | C116: 0.017 | D116: 0.0005 | E116: 0.0175
A117: UK Equity_19 | B117: RLS UK Equity Specialist (Baillie Gifford UK Equity Alpha) | C117: 0.015 | D117: 0 | E117: 0.015
A118: UK Equity_20 | B118: RLS UK Equity Specialist (Fidelity UK Opportunities) | C118: 0.0134 | D118: 0.0028 | E118: 0.0162
A119: UK Equity_21 | B119: RLS UK Income Core Plus (Artemis Income) | C119: 0.017 | D119: 0.0005 | E119: 0.0175
A120: UK Equity_22 | B120: RLS UK Income Core Plus (Fidelity UK Equity Income) | C120: 0.013 | D120: 0.0017 | E120: 0.0147
A121: UK Equity_23 | B121: RLS UK Mid Cap Specialist (FTF Martin Currie UK Midcap) | C121: 0.017 | D121: 0.0007 | E121: 0.0177
A122: UK Equity_24 | B122: RLS UK Small Cap Specialist (Artemis UK Smaller Companies) | C122: 0.017 | D122: 0.0009 | E122: 0.0179
B124: US Equity
B126: Fund Name | C126: FMC | D126: Additional expenses | E126: TER
A127: US Equity_1 | B127: RLP American Tilt | C127: 0.01 | D127: 0 | E127: 0.01
A128: US Equity_2 | B128: RLP/BlackRock ACS US Equity Index | C128: 0.01 | D128: 0 | E128: 0.01
A129: US Equity_3 | B129: RLS/FTF Royce US Smaller Companies | C129: 0.017 | D129: 0.0007 | E129: 0.0177
A130: US Equity_4 | B130: RLS/Liontrust US Opportunities | C130: 0.017 | D130: 0.0012 | E130: 0.0182
A131: US Equity_5 | B131: RLS/Schroder US Mid Cap | C131: 0.017 | D131: 0.0016 | E131: 0.0186
A132: US Equity_6 | B132: RLS US Core Plus (Jupiter North American Equity) | C132: 0.017 | D132: 0.002 | E132: 0.019
B134: European Equity
B136: Fund Name | C136: FMC | D136: Additional expenses | E136: TER
A137: European Equity_1 | B137: RLS European | C137: 0.01 | D137: 0 | E137: 0.01
A138: European Equity_2 | B138: RLP/BlackRock ACS European Equity Index | C138: 0.01 | D138: 0 | E138: 0.01
A139: European Equity_3 | B139: RLS/Schroder European Recovery | C139: 0.017 | D139: 0.0021 | E139: 0.0191
A140: European Equity_4 | B140: RLS Europe Core Plus (Fidelity European Blended) | C140: 0.017 | D140: 0.0017 | E140: 0.0187
A141: European Equity_5 | B141: RLS Europe Specialist (Columbia Threadneedle European Select) | C141: 0.017 | D141: 0.0004 | E141: 0.0174
A142: European Equity_6 | B142: RLS/Jupiter European Special Situations | C142: 0.017 | D142: 0.0024 | E142: 0.0194
B144: Asian Equity
B146: Fund Name | C146: FMC | D146: Additional expenses | E146: TER
A147: Asian Equity_1 | B147: RLS Far East (Ex Japan) Tilt | C147: 0.01 | D147: 0 | E147: 0.01
A148: Asian Equity_2 | B148: RLP Japan Tilt | C148: 0.01 | D148: 0 | E148: 0.01
A149: Asian Equity_3 | B149: RLP Pacific Tilt | C149: 0.01 | D149: 0 | E149: 0.01
A150: Asian Equity_4 | B150: RLS/Fidelity Asia | C150: 0.017 | D150: 0.0018 | E150: 0.0188
A151: Asian Equity_5 | B151: RLS Asia Pacific Specialist (Stewart Investors Asia Pacific Leaders) | C151: 0.018 | D151: 0 | E151: 0.018
A152: Asian Equity_6 | B152: RLS Asia Pacific Core Plus (Invesco Asian) | C152: 0.0185 | D152: 0 | E152: 0.0185
A153: Asian Equity_7 | B153: RLP/BlackRock ACS Japanese Equity Index | C153: 0.01 | D153: 0 | E153: 0.01
A154: Asian Equity_8 | B154: RLS/BlackRock Pacific Rim Equity Index | C154: 0.01 | D154: 0 | E154: 0.01
A155: Asian Equity_9 | B155: RLS Japan Core Plus (Baillie Gifford Japanese Income Growth) | C155: 0.0157 | D155: 0.0002 | E155: 0.0159
A156: Asian Equity_10 | B156: RLS Japan Specialist (Baillie Gifford Japanese) | C156: 0.0157 | D156: 0.0002 | E156: 0.0159
B158: Global Equity
B160: Fund Name | C160: FMC | D160: Additional expenses | E160: TER
A161: Global Equity_1 | B161: RLP Global Equity | C161: 0.01 | D161: 0 | E161: 0.01
A162: Global Equity_2 | B162: RLS Global Equity Blend | C162: 0.01 | D162: 0 | E162: 0.01
A163: Global Equity_3 | B163: RLS Global Equity Diversified | C163: 0.01 | D163: 0 | E163: 0.01
A164: Global Equity_4 | B164: RLS Global Equity Select | C164: 0.01 | D164: 0 | E164: 0.01
A165: Global Equity_5 | B165: RLP Global Managed | C165: 0.01 | D165: 0 | E165: 0.01
A166: Global Equity_6 | B166: RLS Global Sustainable Equity | C166: 0.01 | D166: 0 | E166: 0.01
A167: Global Equity_7 | B167: RLP Worldwide | C167: 0.01 | D167: 0 | E167: 0.01
A168: Global Equity_8 | B168: RLS/Baillie Gifford UK & Worldwide Equity | C168: 0.014 | D168: 0.0004 | E168: 0.0144
A169: Global Equity_9 | B169: RLP/BlackRock ACS Global Blend | C169: 0.01 | D169: 0 | E169: 0.01
A170: Global Equity_10 | B170: RLP/BlackRock ACS Global Equity Index (50:50) | C170: 0.01 | D170: 0 | E170: 0.01
A171: Global Equity_11 | B171: RLP/BlackRock ACS Global Equity Index (60:40) | C171: 0.01 | D171: 0 | E171: 0.01
A172: Global Equity_12 | B172: RLP/BlackRock ACS World (ex UK) Equity Index | C172: 0.01 | D172: 0 | E172: 0.01
A173: Global Equity_13 | B173: RLS/Dimensional Global Core Equity | C173: 0.0117 | D173: 0.0004 | E173: 0.0121
A174: Global Equity_14 | B174: RLS/Dimensional Global Targeted Value | C174: 0.0135 | D174: 0.0004 | E174: 0.0139
A175: Global Equity_15 | B175: RLS/Fidelity Special Situations Blended | C175: 0.017 | D175: 0.0017 | E175: 0.0187
A176: Global Equity_16 | B176: RLS/First Sentier Global Listed Infrastructure | C176: 0.017 | D176: 0.0005 | E176: 0.0175
A177: Global Equity_17 | B177: RLS Global Blend Core Plus (RLS Global Growth) | C177: 0.0171 | D177: 0 | E177: 0.0171
A178: Global Equity_18 | B178: RLS Global Managed Equity Specialist (Invesco Global Equity) | C178: 0.0172 | D178: 0 | E178: 0.0172
A179: Global Equity_19 | B179: RLS Global Managed Equity Specialist (Ninety One Global Strategic Equity) | C179: 0.017 | D179: 0.0013 | E179: 0.0183
A180: Global Equity_20 | B180: RLS/HSBC Islamic Global Equity Index | C180: 0.0125 | D180: 0 | E180: 0.0125
A181: Global Equity_21 | B181: RLS/Jupiter Ecology | C181: 0.017 | D181: 0.0005 | E181: 0.0175
A182: Global Equity_22 | B182: RLS/Jupiter Merlin Worldwide Portfolio | C182: 0.017 | D182: 0.0084 | E182: 0.0254
A183: Global Equity_23 | B183: RLS/M&G Global Themes | C183: 0.0181 | D183: 0 | E183: 0.0181
A184: Global Equity_24 | B184: RLS/M&G Global Dividend | C184: 0.0161 | D184: 0 | E184: 0.0161
A185: Global Equity_25 | B185: RLS/Liontrust Global Innovation | C185: 0.017 | D185: 0.0012 | E185: 0.0182
A186: Global Equity_26 | B186: RLS/BNY Mellon Global Income | C186: 0.017 | D186: 0.0011 | E186: 0.0181
A187: Global Equity_27 | B187: RLS/Sarasin Food & Agriculture Opportunities | C187: 0.017 | D187: 0.0023 | E187: 0.0193
A188: Global Equity_28 | B188: RLS Global Equity Transitions | C188: 0.01 | D188: 0 | E188: 0.01
B190: Emerging Market Equity
B192: Fund Name | C192: FMC | D192: Additional expenses | E192: TER
A193: Emerging Market Equity_1 | B193: RLS/BlackRock Emerging Markets Tracker | C193: 0.0114 | D193: 0 | E193: 0.0114
A194: Emerging Market Equity_2 | B194: RLS/Dimensional Emerging Markets Core Equity | C194: 0.0131 | D194: 0.0009 | E194: 0.014
A195: Emerging Market Equity_3 | B195: RLS Emerging Markets Equity Tilt | C195: 0.01 | D195: 0 | E195: 0.01
A196: Emerging Market Equity_4 | B196: RLS Emerging Markets Specialist (First Sentier FSSA Global Emerging Markets Focus) | C196: 0.015 | D196: 0.0005 | E196: 0.0155
A197: Emerging Market Equity_5 | B197: RLS Emerging Markets Core Plus (Artemis SmartGARP Emerging Markets Equity) | C197: 0.017 | D197: 0.0008 | E197: 0.0178
A198: Emerging Market Equity_6 | B198: RLS/Fidelity Responsible Emerging Markets Equity | C198: 0.017 | D198: 0.0015 | E198: 0.0185
A199: Emerging Market Equity_7 | B199: RLS/Henderson China Opportunities | C199: 0.017 | D199: 0.0025 | E199: 0.0195
A200: Emerging Market Equity_8 | B200: RLS/JPMorgan Emerging Europe Equity | C200: 0.017 | D200: 0.0015 | E200: 0.0185
A201: Emerging Market Equity_9 | B201: RLS/Jupiter India | C201: 0.017 | D201: 0.0024 | E201: 0.0194
A202: Emerging Market Equity_10 | B202: RLS/Columbia Threadneedle Latin America | C202: 0.017 | D202: 0.002 | E202: 0.019
B204: Specialist
B206: Fund Name | C206: FMC | D206: Additional expenses | E206: TER
A207: Specialist_1 | B207: RLS Absolute Return Government Bond | C207: 0.01 | D207: 0 | E207: 0.01
A208: Specialist_2 | B208: RLS Short Term Fixed Income | C208: 0.01 | D208: 0 | E208: 0.01
A209: Specialist_3 | B209: RLS Commodity | C209: 0.01 | D209: 0 | E209: 0.01
A210: Specialist_4 | B210: RLS Short Term Fixed Income Enhanced | C210: 0.01 | D210: 0 | E210: 0.01
A211: Specialist_5 | B211: RLS Multi Asset Strategies | C211: 0.01 | D211: 0 | E211: 0.01
A212: Specialist_6 | B212: RLS/BlackRock Gold & General | C212: 0.0183 | D212: 0.0017 | E212: 0.02
A213: Specialist_7 | B213: RLS/Ninety One Global Environment | C213: 0.017 | D213: 0.001 | E213: 0.018
A214: Specialist_8 | B214: RLS/JPMorgan Global Macro ESG | C214: 0.0155 | D214: 0.0015 | E214: 0.017
A215: Specialist_9 | B215: RLS/JPMorgan Natural Resources | C215: 0.017 | D215: 0.0008 | E215: 0.0178
A216: Specialist_10 | B216: RLS/Jupiter Financial Opportunities | C216: 0.017 | D216: 0.0023 | E216: 0.0193
A217: Specialist_11 | B217: RLS/BNY Mellon Real Return | C217: 0.017 | D217: 0.0011 | E217: 0.0181
A218: Specialist_12 | B218: RLS/abrdn Diversified Growth and Income | C218: 0.0145 | D218: 0.002 | E218: 0.0165
A219: Specialist_13 | B219: RLS Global Mezzanine ABS | C219: 0.01 | D219: 0 | E219: 0.01
A220: Specialist_14 | B220: RLS Global Senior ABS | C220: 0.01 | D220: 0 | E220: 0.01

Sheet FMC_INVEX_TER_SELECT (hidden)
C1: Source: | D1: S:\Investment Marketing\TER\2025\Annual Update\TER Manipulator v2.6_311224 data_rik.xlsx
C2: Last Updated: | D2: 2025-04-08
B3: Deposit | C3: 18 | D3: 19 | E3: 20
B5: Fund Name | C5: FMC | D5: Additional expenses | E5: TER
A6: Deposit_Y_1 | B6: RLS Deposit | C6: 0.01 | D6: 0 | E6: 0.01
B8: Government & Corporate Bond
B10: Fund Name | C10: FMC | D10: Additional expenses | E10: TER
A11: Government & Corporate Bonds_Y_1 | B11: RLS Annuity | C11: 0.01 | D11: 0 | E11: 0.01
A12: Government & Corporate Bonds_Y_2 | B12: RLS Corporate Bond | C12: 0.01 | D12: 0 | E12: 0.01
A13: Government & Corporate Bonds_Y_3 | B13: RLS Ethical Bond | C13: 0.01 | D13: 0 | E13: 0.01
A14: Government & Corporate Bonds_Y_4 | B14: RLS Fixed Interest | C14: 0.01 | D14: 0 | E14: 0.01
A15: Government & Corporate Bonds_Y_5 | B15: RLS Global Corporate Bond | C15: 0.01 | D15: 0 | E15: 0.01
A16: Government & Corporate Bonds_Y_6 | B16: RLS Global High Yield Bond | C16: 0.01 | D16: 0 | E16: 0.01
A17: Government & Corporate Bonds_Y_7 | B17: RLS Global Index Linked | C17: 0.01 | D17: 0 | E17: 0.01
A18: Government & Corporate Bonds_Y_8 | B18: RLS UK Index Linked | C18: 0.01 | D18: 0 | E18: 0.01
A19: Government & Corporate Bonds_Y_9 | B19: RLS Global Government Bond | C19: 0.01 | D19: 0 | E19: 0.01
A20: Government & Corporate Bonds_Y_10 | B20: RLS Long (15yr) Corporate Bond | C20: 0.01 | D20: 0 | E20: 0.01
A21: Government & Corporate Bonds_Y_11 | B21: RLS Long (15yr) Gilt | C21: 0.01 | D21: 0 | E21: 0.01
A22: Government & Corporate Bonds_Y_12 | B22: RLS Long (15yr) Index Linked | C22: 0.01 | D22: 0 | E22: 0.01
A23: Government & Corporate Bonds_Y_13 | B23: RLS Medium (10yr) Corporate Bond | C23: 0.01 | D23: 0 | E23: 0.01
A24: Government & Corporate Bonds_Y_14 | B24: RLS Medium (10yr) Gilt | C24: 0.01 | D24: 0 | E24: 0.01
A25: Government & Corporate Bonds_Y_15 | B25: RLS Medium (10yr) Index Linked | C25: 0.01 | D25: 0 | E25: 0.01
A26: Government & Corporate Bonds_Y_16 | B26: RLS Short (5yr) Corporate Bond | C26: 0.01 | D26: 0 | E26: 0.01
A27: Government & Corporate Bonds_Y_17 | B27: RLS Short (5yr) Gilt | C27: 0.01 | D27: 0 | E27: 0.01
A28: Government & Corporate Bonds_Y_18 | B28: RLS Short (5yr) Index Linked | C28: 0.01 | D28: 0 | E28: 0.01
A29: Government & Corporate Bonds_Y_19 | B29: RLS Short Duration Global High Yield | C29: 0.01 | D29: 0 | E29: 0.01
A30: Government & Corporate Bonds_Y_20 | B30: RLS Short Duration Global Index Linked | C30: 0.01 | D30: 0 | E30: 0.01
A31: Government & Corporate Bonds_Y_21 | B31: RLS Short Duration UK Corporate Bond | C31: 0.01 | D31: 0 | E31: 0.01
A32: Government & Corporate Bonds_Y_22 | B32: RLS Short Duration UK Government Bond | C32: 0.01 | D32: 0 | E32: 0.01
A33: Government & Corporate Bonds_Y_23 | B33: RLS Sterling Extra Yield Bond | C33: 0.01 | D33: 0 | E33: 0.01
A34: Government & Corporate Bonds_Y_24 | B34: RLS Sustainable Corporate Bond Trust | C34: 0.01 | D34: 0 | E34: 0.01
A35: Government & Corporate Bonds_Y_25 | B35: RLS UK Corporate Bond | C35: 0.01 | D35: 0 | E35: 0.01
A36: Government & Corporate Bonds_Y_26 | B36: RLS UK Government Bond | C36: 0.01 | D36: 0 | E36: 0.01
A37: Government & Corporate Bonds_Y_27 | B37: RLS/BlackRock Long Gilt Index | C37: 0.01 | D37: 0 | E37: 0.01
A38: Government & Corporate Bonds_Y_28 | B38: RLS/BlackRock Over 5 years Index linked Gilt Index | C38: 0.01 | D38: 0 | E38: 0.01
A39: Government & Corporate Bonds_Y_29 | B39: RLS/BlackRock UK All Stocks Corporate Bond Index | C39: 0.01 | D39: 0 | E39: 0.01
A40: Government & Corporate Bonds_Y_30 | B40: RLS Global Sustainable Credit | C40: 0.01 | D40: 0 | E40: 0.01
A41: Government & Corporate Bonds_Y_31 | B41: RLS Sustainable Short Duration Corporate Bond | C41: 0.01 | D41: 0 | E41: 0.01
B43: Property
B45: Fund Name | C45: FMC | D45: Additional expenses | E45: TER
A46: Property_Y_1 | B46: RLP Property | C46: 0.01 | D46: 0 | E46: 0.01
B48: Mixed Asset
B50: Fund Name | C50: FMC | D50: Additional expenses | E50: TER
A51: Mixed Asset_Y_1 | B51: RLP Adventurous Managed | C51: 0.01 | D51: 0 | E51: 0.01
A52: Mixed Asset_Y_2 | B52: RLP Defensive Managed | C52: 0.01 | D52: 0 | E52: 0.01
A53: Mixed Asset_Y_3 | B53: RLP Managed | C53: 0.01 | D53: 0 | E53: 0.01
A54: Mixed Asset_Y_4 | B54: RLP Governed Portfolio Defensive | C54: 0.01 | D54: 0 | E54: 0.01
A55: Mixed Asset_Y_5 | B55: RLP Governed Portfolio Conservative | C55: 0.01 | D55: 0 | E55: 0.01
A56: Mixed Asset_Y_6 | B56: RLP Governed Portfolio Moderate | C56: 0.01 | D56: 0 | E56: 0.01
A57: Mixed Asset_Y_7 | B57: RLP Governed Portfolio Growth | C57: 0.01 | D57: 0 | E57: 0.01
A58: Mixed Asset_Y_8 | B58: RLP Governed Portfolio Enhanced | C58: 0.01 | D58: 0 | E58: 0.01
A59: Mixed Asset_Y_9 | B59: RLP Governed Portfolio Dynamic | C59: 0.01 | D59: 0 | E59: 0.01
A60: Mixed Asset_Y_10 | B60: RLP Governed Portfolio Total Equity | C60: 0.01 | D60: 0 | E60: 0.01
A61: Mixed Asset_Y_11 | B61: RLP GRIP 1 | C61: 0.01 | D61: 0 | E61: 0.01
A62: Mixed Asset_Y_12 | B62: RLP GRIP 2 | C62: 0.01 | D62: 0 | E62: 0.01
A63: Mixed Asset_Y_13 | B63: RLP GRIP 3 | C63: 0.01 | D63: 0 | E63: 0.01
A64: Mixed Asset_Y_14 | B64: RLP GRIP 4 | C64: 0.01 | D64: 0 | E64: 0.01
A65: Mixed Asset_Y_15 | B65: RLP GRIP 5 | C65: 0.01 | D65: 0 | E65: 0.01
A66: Mixed Asset_Y_16 | B66: RLS Sustainable Diversified Trust | C66: 0.01 | D66: 0 | E66: 0.01
A67: Mixed Asset_Y_17 | B67: RLS Sustainable Managed Growth Trust | C67: 0.01 | D67: 0 | E67: 0.01
A68: Mixed Asset_Y_18 | B68: RLS Sustainable World Trust | C68: 0.01 | D68: 0 | E68: 0.01
A69: Mixed Asset_Y_19 | B69: RLS/BlackRock Consensus 85 | C69: 0.01 | D69: 0 | E69: 0.01
A70: Mixed Asset_Y_20 | B70: RLP/BNY Mellon Multi-Asset Balanced 'A' | C70: 0.01 | D70: 0 | E70: 0.01
A71: Mixed Asset_Y_21 | B71: RLP/BNY Mellon Multi-Asset Growth 'A' | C71: 0.01 | D71: 0 | E71: 0.01
A72: Mixed Asset_Y_22 | B72: RLS Sustainable Growth | C72: 0.01 | D72: 0 | E72: 0.01
B74: UK Equity
B76: Fund Name | C76: FMC | D76: Additional expenses | E76: TER
A77: UK Equity_Y_1 | B77: RLS Equity Income | C77: 0.01 | D77: 0 | E77: 0.01
A78: UK Equity_Y_2 | B78: RLS UK Equity | C78: 0.01 | D78: 0 | E78: 0.01
A79: UK Equity_Y_3 | B79: RLS Sustainable Leaders | C79: 0.01 | D79: 0 | E79: 0.01
A80: UK Equity_Y_4 | B80: RLS UK Mid Cap | C80: 0.01 | D80: 0 | E80: 0.01
A81: UK Equity_Y_5 | B81: RLS UK Smaller Companies | C81: 0.01 | D81: 0 | E81: 0.01
A82: UK Equity_Y_6 | B82: RLS UK Opportunities | C82: 0.01 | D82: 0 | E82: 0.01
A83: UK Equity_Y_7 | B83: RLP/Baillie Gifford UK Equity 'A' | C83: 0.01 | D83: 0 | E83: 0.01
A84: UK Equity_Y_8 | B84: RLP/BlackRock ACS UK Equity Index | C84: 0.01 | D84: 0 | E84: 0.01
A85: UK Equity_Y_9 | B85: RLP/BlackRock UK Equity 'A' | C85: 0.01 | D85: 0 | E85: 0.01
A86: UK Equity_Y_12
B88: US Equity
B90: Fund Name | C90: FMC | D90: Additional expenses | E90: TER
A91: US Equity_Y_1 | B91: RLP American Tilt | C91: 0.01 | D91: 0 | E91: 0.01
A92: US Equity_Y_2 | B92: RLP/BlackRock ACS US Equity Index | C92: 0.01 | D92: 0 | E92: 0.01
B94: European Equity
B96: Fund Name | C96: FMC | D96: Additional expenses | E96: TER
A97: European Equity_Y_1 | B97: RLS European | C97: 0.01 | D97: 0 | E97: 0.01
A98: European Equity_Y_2 | B98: RLP/BlackRock ACS European Equity Index | C98: 0.01 | D98: 0 | E98: 0.01
B100: Asian Equity
B102: Fund Name | C102: FMC | D102: Additional expenses | E102: TER
A103: Asian Equity_Y_1 | B103: RLS Far East (Ex Japan) Tilt | C103: 0.01 | D103: 0 | E103: 0.01
A104: Asian Equity_Y_2 | B104: RLP Japan Tilt | C104: 0.01 | D104: 0 | E104: 0.01
A105: Asian Equity_Y_3 | B105: RLP Pacific Tilt | C105: 0.01 | D105: 0 | E105: 0.01
A106: Asian Equity_Y_4 | B106: RLP/BlackRock ACS Japanese Equity Index | C106: 0.01 | D106: 0 | E106: 0.01
A107: Asian Equity_Y_5 | B107: RLS/BlackRock Pacific Rim Equity Index | C107: 0.01 | D107: 0 | E107: 0.01
B109: Global Equity
B111: Fund Name | C111: FMC | D111: Additional expenses | E111: TER
A112: Global Equity_Y_1 | B112: RLP Global Equity | C112: 0.01 | D112: 0 | E112: 0.01
A113: Global Equity_Y_2 | B113: RLS Global Equity Blend | C113: 0.01 | D113: 0 | E113: 0.01
A114: Global Equity_Y_3 | B114: RLS Global Equity Diversified | C114: 0.01 | D114: 0 | E114: 0.01
A115: Global Equity_Y_4 | B115: RLS Global Equity Select | C115: 0.01 | D115: 0 | E115: 0.01
A116: Global Equity_Y_5 | B116: RLP Global Managed | C116: 0.01 | D116: 0 | E116: 0.01
A117: Global Equity_Y_6 | B117: RLS Global Sustainable Equity | C117: 0.01 | D117: 0 | E117: 0.01
A118: Global Equity_Y_7 | B118: RLP Worldwide | C118: 0.01 | D118: 0 | E118: 0.01
A119: Global Equity_Y_8 | B119: RLP/Baillie Gifford UK & Worldwide Equity 'A' | C119: 0.01 | D119: 0 | E119: 0.01
A120: Global Equity_Y_9 | B120: RLP/BlackRock ACS Global Blend | C120: 0.01 | D120: 0 | E120: 0.01
A121: Global Equity_Y_10 | B121: RLP/BlackRock ACS Global Equity Index (50:50) | C121: 0.01 | D121: 0 | E121: 0.01
A122: Global Equity_Y_11 | B122: RLP/BlackRock ACS Global Equity Index (60:40) | C122: 0.01 | D122: 0 | E122: 0.01
A123: Global Equity_Y_12 | B123: RLP/BlackRock ACS World (ex UK) Equity Index | C123: 0.01 | D123: 0 | E123: 0.01
A124: Global Equity_Y_13 | B124: RLP/HSBC Islamic Global Equity Index 'A' | C124: 0.01 | D124: 0 | E124: 0.01
A125: Global Equity_Y_14 | B125: RLS/UBS Global Blend (50:50) 'A' | C125: 0.01 | D125: 0 | E125: 0.01
A126: Global Equity_Y_15 | B126: RLS Global Equity Transitions | C126: 0.01 | D126: 0 | E126: 0.01
B128: Emerging Market Equity
B130: Fund Name | C130: FMC | D130: Additional expenses | E130: TER
A131: Emerging Market Equity_Y_1 | B131: RLS Emerging Markets Equity Tilt | C131: 0.01 | D131: 0 | E131: 0.01
B133: Specialist
B135: Fund Name | C135: FMC | D135: Additional expenses | E135: TER
A136: Specialist_Y_1 | B136: RLS Absolute Return Government Bond | C136: 0.01 | D136: 0 | E136: 0.01
A137: Specialist_Y_2 | B137: RLS Short Term Fixed Income | C137: 0.01 | D137: 0 | E137: 0.01
A138: Specialist_Y_3 | B138: RLS Commodity | C138: 0.01 | D138: 0 | E138: 0.01
A139: Specialist_Y_4 | B139: RLS Short Term Fixed Income Enhanced | C139: 0.01 | D139: 0 | E139: 0.01
A140: Specialist_Y_5 | B140: RLS Multi Asset Strategies | C140: 0.01 | D140: 0 | E140: 0.01

Sheet FMC_INVEX_TER_LIFE (hidden)
A1: 2024 Calendar Year DATA | C1: Source: | D1: S:\Investment Marketing\TER\2025\Annual Update\TER Manipulator v2.6_311224 data_rik.xlsx
C2: Last Updated: | D2: 2025-04-08
B3: Life Funds
B5: Fund Name | C5: FMC | D5: Additional expenses | E5: TER
A6: MAN | B6: RLL Managed | C6: 0.0075 | D6: 0.0012 | E6: 0.0087
A7: GLO | B7: RLL Global Managed | C7: 0.0075 | D7: 0.0012 | E7: 0.0087
A8: DEF | B8: RLL Defensive Managed | C8: 0.0075 | D8: 0.001243513139 | E8: 0.008743513139
A9: AME | B9: RLL American Tilt | C9: 0.0075 | D9: 0.0006 | E9: 0.0081
A10: DEP | B10: RLL Deposit | C10: 0.0075 | D10: 0.000309 | E10: 0.007809
A11: EUR | B11: RLL European | C11: 0.0075 | D11: 0.0006298964398 | E11: 0.00812989644
A12: FIX | B12: RLL Fixed Interest | C12: 0.0075 | D12: 0.0006721713506 | E12: 0.008172171351
A13: IND | B13: RLL UK Index Linked | C13: 0.0075 | D13: 0.001068426759 | E13: 0.008568426759
A14: PAC | B14: RLL Pacific Tilt | C14: 0.0075 | D14: 0.00075 | E14: 0.00825
A15: PRO | B15: RLL Property | C15: 0.0075 | D15: 0 | E15: 0.0075
A16: UKE | B16: RLL UK Equity | C16: 0.0075 | D16: 0.0004616894812 | E16: 0.007961689481
A17: WOR | B17: RLL Worldwide | C17: 0.0075 | D17: 0.0006215855887 | E17: 0.008121585589

Sheet WatchList Funds (hidden)
A1: FUND TYPE | B1: TYPE | C1: LIPPER_ID | D1: RED_COUNT | F1: Source: | G1: S:\Investment Marketing\IAC\Meetings
A2: Governed Range | B2: Portfolio | C2: 1000105411 | D2: 4 | G2: Red Count Calculator Tab in (IAC Performance) pack
A3: Governed Range | B3: Portfolio | C3: 1000105402 | D3: 2 | G3: Filter out life funds
A4: Governed Range | B4: Portfolio | C4: 1000105398 | D4: 2 | G4: Filter red count column to take out '0'
A5: Matrix | B5: Active | C5: 77008676 | D5: 8 | G5: Take out any GP/GRIPs with (TLS-…) in the name and RLP GP 1/8/9
A6: Matrix | B6: Active | C6: 77008273 | D6: 5
A7: External Funds | B7: Tracker | C7: 77006161 | D7: 2
A8: External Funds | B8: Active | C8: 77006160 | D8: 2
A9: External Funds | B9: Active | C9: 77006006 | D9: 4
A10: External Funds | B10: Tracker | C10: 77006003 | D10: 7
A11: External Funds | B11: Tracker | C11: 77005999 | D11: 2
A12: Matrix | B12: Active | C12: 77002791 | D12: 3
A13: Matrix | B13: Active | C13: 77002789 | D13: 3
A14: Matrix | B14: Active | C14: 77002786 | D14: 5
A15: Matrix | B15: Active | C15: 77002785 | D15: 14
A16: Matrix | B16: Active | C16: 77002783 | D16: 7
A17: Matrix | B17: Active | C17: 77002781 | D17: 3
A18: Matrix | B18: Active | C18: 77002779 | D18: 10
A19: Pension | B19: Active | C19: 72014685 | D19: 2
A20: External Funds | B20: Tracker | C20: 72014664 | D20: 3
A21: External Funds | B21: Tracker | C21: 72014663 | D21: 4
A22: Pension | B22: Tracker | C22: 72010192 | D22: 3
A23: Pension | B23: Active | C23: 72010191 | D23: 4
A24: Pension | B24: Tracker | C24: 72010189 | D24: 3
A25: Matrix | B25: Active | C25: 72010188 | D25: 5
A26: Matrix | B26: Tracker | C26: 72010182 | D26: 7
A27: Matrix | B27: Tracker | C27: 72010181 | D27: 6
A28: Matrix | B28: Tracker | C28: 72010179 | D28: 4
A29: Pension | B29: Active | C29: 72006235 | D29: 2
A30: Pension | B30: Active | C30: 72006232 | D30: 3
A31: Pension | B31: Active | C31: 72006231 | D31: 3
A32: Pension | B32: Active | C32: 72006230 | D32: 3
A33: Matrix | B33: Active | C33: 72006226 | D33: 14
A34: Pension | B34: Tracker | C34: 72006224 | D34: 3
A35: Pension | B35: Active | C35: 72006222 | D35: 2
A36: Pension | B36: Active | C36: 72006220 | D36: 4
A37: External Funds | B37: Active | C37: 72006218 | D37: 4
A38: Pension | B38: Active | C38: 72006216 | D38: 4
A39: Pension | B39: Tracker | C39: 68376168 | D39: 6
A40: External Funds | B40: Tracker | C40: 68321826 | D40: 2
A41: External Funds | B41: Tracker | C41: 68321825 | D41: 10
A42: Pension | B42: Active | C42: 68209977 | D42: 9
A43: External Funds | B43: Active | C43: 68209885 | D43: 17
A44: External Funds | B44: Tracker | C44: 68209884 | D44: 38
A45: External Funds | B45: Active | C45: 68154373 | D45: 2
A46: External Funds | B46: Active | C46: 68154371 | D46: 2
A47: External Funds | B47: Active | C47: 68154370 | D47: 3
A48: External Funds | B48: Active | C48: 68154366 | D48: 3
A49: External Funds | B49: Active | C49: 68140767 | D49: 18
A50: External Funds | B50: Active | C50: 68140765 | D50: 5
A51: External Funds | B51: Active | C51: 68140757 | D51: 14
A52: External Funds | B52: Active | C52: 68044826 | D52: 2
A53: External Funds | B53: Active | C53: 68044823 | D53: 3
A54: External Funds | B54: Active | C54: 68044820 | D54: 6
A55: External Funds | B55: Active | C55: 68044819 | D55: 2
A56: External Funds | B56: Active | C56: 68044814 | D56: 6
A57: External Funds | B57: Active | C57: 68044812 | D57: 2
A58: External Funds | B58: Active | C58: 68044806 | D58: 7
A59: External Funds | B59: Active | C59: 68044805 | D59: 8
A60: External Funds | B60: Active | C60: 68044799 | D60: 11
A61: Pension | B61: Active | C61: 68044792 | D61: 13
A62: Pension | B62: Active | C62: 68044791 | D62: 3
A63: External Funds | B63: Active | C63: 68038633 | D63: 18
A64: External Funds | B64: Active | C64: 68038632 | D64: 5
A65: External Funds | B65: Active | C65: 68038630 | D65: 2
A66: External Funds | B66: Active | C66: 68038629 | D66: 7
A67: Matrix | B67: Active | C67: 68038628 | D67: 4
A68: External Funds | B68: Active | C68: 68038626 | D68: 2
A69: Matrix | B69: Tracker | C69: 68010852 | D69: 8
A70: Pension | B70: Active | C70: 68557882 | D70: 3
A71: Governed Range | B71: Portfolio | C71: 68637362 | D71: 2
A72: Governed Range | B72: Portfolio | C72: 68637358 | D72: 2
A73: Governed Range | B73: Portfolio | C73: 68637361 | D73: 2
A74: Governed Range | B74: Portfolio | C74: 68637360 | D74: 3
A75: Governed Range | B75: Portfolio | C75: 68637363 | D75: 3

Sheet Sheet1 - Table (1) (hidden)
E2: 3 year SD | F2: t 3 month % growth | G2: 1 year % growth | H2: 1 year % growth | I2: 1 year % growth | J2: 1 year % growth | K2: 1 year % growth | L2: 3 year CAGR | M2: 5 year CAGR | N2: 10 year CAGR | O2: 15 year CAGR | P2: t-1 3 months | Z2: t-2 3 months | AJ2: GRIP launch | AK2: GP launch
A4: Paste Here -> | C4: Lipper ID | D4: Name | E4: Std Dev AnnSim TR Def ExD Def GBP Mthly | F4: % Growth TR Def ExD Def GBP | G4: % Growth TR Def ExD Def GBP from 31/03/2021 to 31/03/2026 every 12 Months | H4: % Growth TR Def ExD Def GBP from 31/03/2021 to 31/03/2026 every 12 Months | I4: % Growth TR Def ExD Def GBP from 31/03/2021 to 31/03/2026 every 12 Months | J4: % Growth TR Def ExD Def GBP from 31/03/2021 to 31/03/2026 every 12 Months | K4: % Growth TR Def ExD Def GBP from 31/03/2021 to 31/03/2026 every 12 Months | L4: Ann Comp Ret 365 TR Def ExD Def GBP | M4: Ann Comp Ret 365 TR Def ExD Def GBP | N4: Ann Comp Ret 365 TR Def ExD Def GBP | O4: Ann Comp Ret 365 TR Def ExD Def GBP | P4: % Growth TR Def ExD Def GBP | Q4: % Growth TR Def ExD Def GBP | R4: % Growth TR Def ExD Def GBP | S4: % Growth TR Def ExD Def GBP | T4: % Growth TR Def ExD Def GBP | U4: % Growth TR Def ExD Def GBP | V4: Ann Comp Ret 365 TR Def ExD Def GBP | W4: Ann Comp Ret 365 TR Def ExD Def GBP | X4: Ann Comp Ret 365 TR Def ExD Def GBP | Y4: Ann Comp Ret 365 TR Def ExD Def GBP | Z4: % Growth TR Def ExD Def GBP | AA4: % Growth TR Def ExD Def GBP | AB4: % Growth TR Def ExD Def GBP | AC4: % Growth TR Def ExD Def GBP | AD4: % Growth TR Def ExD Def GBP | AE4: % Growth TR Def ExD Def GBP | AF4: Ann Comp Ret 365 TR Def ExD Def GBP | AG4: Ann Comp Ret 365 TR Def ExD Def GBP | AH4: Ann Comp Ret 365 TR Def ExD Def GBP | AI4: Ann Comp Ret 365 TR Def ExD Def GBP | AJ4: % Growth 365 TR Def ExD Def Ann GBP | AK4: % Growth 365 TR Def ExD Def Ann GBP | AL4: Ann Comp Ret 365 TR Def ExD Def GBP
E5: 31/03/2023 To 31/03/2026 | F5: 31/12/2025 To 31/03/2026 | G5: 31/03/2025 To 31/03/2026 | H5: 31/03/2024 To 31/03/2025 | I5: 31/03/2023 To 31/03/2024 | J5: 31/03/2022 To 31/03/2023 | K5: 31/03/2021 To 31/03/2022 | L5: 31/03/2023 To 31/03/2026 | M5: 31/03/2021 To 31/03/2026 | N5: 31/03/2016 To 31/03/2026 | O5: 31/03/2011 To 31/03/2026 | P5: 30/12/2025 To 30/03/2026 | Q5: 28/03/2025 To 30/03/2026 | R5: 28/03/2024 To 28/03/2025 | S5: 30/03/2023 To 28/03/2024 | T5: 30/03/2022 To 30/03/2023 | U5: 30/03/2021 To 30/03/2022 | V5: 30/03/2023 To 30/03/2026 | W5: 30/03/2021 To 30/03/2026 | X5: 30/03/2016 To 30/03/2026 | Y5: 30/03/2011 To 30/03/2026 | Z5: 29/12/2025 To 27/03/2026 | AA5: 27/03/2025 To 27/03/2026 | AB5: 27/03/2024 To 27/03/2025 | AC5: 29/03/2023 To 27/03/2024 | AD5: 29/03/2022 To 29/03/2023 | AE5: 29/03/2021 To 29/03/2022 | AF5: 29/03/2023 To 27/03/2026 | AG5: 29/03/2021 To 27/03/2026 | AH5: 29/03/2016 To 27/03/2026 | AI5: 29/03/2011 To 27/03/2026 | AJ5: 28/08/2012 To 31/03/2026 | AK5: 12/01/2009 To 31/03/2026 | AL5: 01/02/2021 To 31/03/2026
E6: Value | F6: Value | G6: Value | H6: Value | I6: Value | J6: Value | K6: Value | L6: Value | M6: Value | N6: Value | O6: Value | P6: Value | Q6: Value | R6: Value | S6: Value | T6: Value | U6: Value | V6: Value | W6: Value | X6: Value | Y6: Value | Z6: Value | AA6: Value | AB6: Value | AC6: Value | AD6: Value | AE6: Value | AF6: Value | AG6: Value | AH6: Value | AI6: Value | AJ6: Value | AK6: Value | AL6: Value
B7: 1 | C7: 19074013 | D7: ABI UK - Asia Pacific inc Japan Equities-Life | E7: 10.44577 | F7: 2.69 | G7: 21.43 | H7: 3.32 | I7: 3.96 | J7: -1.95 | K7: -4.64 | L7: 9.25 | M7: 4.05 | N7: 7.86 | O7: 6.23 | P7: 3.69 | Q7: 20.71 | R7: 4.83 | S7: 4.24 | T7: -2.23 | U7: -5.01 | V7: 9.66 | W7: 4.14 | X7: 7.95 | Y7: 6.32 | Z7: 4.66 | AA7: 20.75 | AB7: 5.35 | AC7: 4.68 | AD7: -1.73 | AE7: -5.56 | AF7: 10.03 | AG7: 4.33 | AH7: 8.02 | AI7: 6.42 | AJ7: 7.29 | AK7: 7.97 | AL7: 3.82
B8: 2 | C8: 19074035 | D8: ABI UK - Deposit & Treasury-Life | E8: 0.14717 | F8: 0.55 | G8: 2.63 | H8: 3.44 | I8: 3.39 | J8: 0.94 | K8: -0.55 | L8: 3.15 | M8: 1.96 | N8: 0.8 | O8: 0.44 | P8: 0.57 | Q8: 2.63 | R8: 3.43 | S8: 3.39 | T8: 0.94 | U8: -0.55 | V8: 3.15 | W8: 1.96 | X8: 0.8 | Y8: 0.44 | Z8: 0.57 | AA8: 2.62 | AB8: 3.43 | AC8: 3.39 | AD8: 0.94 | AE8: -0.55 | AF8: 3.15 | AG8: 1.96 | AH8: 0.8 | AI8: 0.44 | AJ8: 0.5 | AK8: 0.38 | AL8: 1.88
B9: 3 | C9: 19074011 | D9: ABI UK - Europe ex UK Equities-Life | E9: 9.30089 | F9: -4.34 | G9: 7.42 | H9: 0.14 | I9: 10.62 | J9: 4.69 | K9: 3.53 | L9: 5.97 | M9: 5.22 | N9: 6.89 | O9: 6.42 | P9: -4.73 | Q9: 5.37 | R9: 1.41 | S9: 11.2 | T9: 3.92 | U9: 4.25 | V9: 5.91 | W9: 5.18 | X9: 6.88 | Y9: 6.41 | Z9: -4.35 | AA9: 4.98 | AB9: 1.93 | AC9: 12.74 | AD9: 3.37 | AE9: 3.75 | AF9: 6.46 | AG9: 5.29 | AH9: 6.96 | AI9: 6.45 | AJ9: 7.93 | AK9: 7.53 | AL9: 5.82
B10: 4 | C10: 19074001 | D10: ABI UK - Mixed Investment 0%-35% Shares-Life | E10: 4.03583 | F10: -1.06 | G10: 4.58 | H10: 2.24 | I10: 3.71 | J10: -6.41 | K10: -1.25 | L10: 3.51 | M10: 0.49 | N10: 1.59 | O10: 2.52 | P10: -1.21 | Q10: 4.29 | R10: 2.32 | S10: 3.7 | T10: -6.23 | U10: -1.44 | V10: 3.43 | W10: 0.45 | X10: 1.58 | Y10: 2.51 | Z10: -1.07 | AA10: 4.33 | AB10: 2.42 | AC10: 3.9 | AD10: -6.26 | AE10: -1.8 | AF10: 3.55 | AG10: 0.44 | AH10: 1.6 | AI10: 2.52 | AJ10: 2.24 | AK10: 3.1 | AL10: 0.39
B11: 5 | C11: 19074003 | D11: ABI UK - Mixed Investment 40%-85% Shares-Life | E11: 6.46222 | F11: -1.5 | G11: 9.5 | H11: 3.07 | I11: 8.29 | J11: -3.6 | K11: 4.32 | L11: 6.91 | M11: 4.21 | N11: 5.2 | O11: 5 | P11: -1.54 | Q11: 8.54 | R11: 3.8 | S11: 8.59 | T11: -3.82 | U11: 4.32 | V11: 6.95 | W11: 4.18 | X11: 5.21 | Y11: 5 | Z11: -1.21 | AA11: 8.62 | AB11: 4.17 | AC11: 9.1 | AD11: -3.92 | AE11: 3.96 | AF11: 7.28 | AG11: 4.28 | AH11: 5.26 | AI11: 5.04 | AJ11: 5.46 | AK11: 6.1 | AL11: 4.51
B12: 6 | C12: 19074019 | D12: ABI UK - Sterling Fixed Interest-Life | E12: 5.00154 | F12: -1.68 | G12: 2.12 | H12: -0.19 | I12: 2.07 | J12: -11.62 | K12: -5.17 | L12: 1.33 | M12: -2.7 | N12: -0.26 | O12: 1.29 | P12: -1.82 | Q12: 2.22 | R12: -0.46 | S12: 1.89 | T12: -11.42 | U12: -5.41 | V12: 1.21 | W12: -2.78 | X12: -0.28 | Y12: 1.28 | Z12: -1.7 | AA12: 2.26 | AB12: -0.35 | AC12: 1.79 | AD12: -11.36 | AE12: -5.8 | AF12: 1.23 | AG12: -2.84 | AH12: -0.26 | AI12: 1.27 | AJ12: 0.53 | AK12: 1.85 | AL12: -3.32
B13: 7 | C13: 19074006 | D13: ABI UK - UK All Companies-Life | E13: 8.90813 | F13: -1.77 | G13: 11.26 | H13: 5.35 | I13: 6.8 | J13: -1.58 | K13: 3.49 | L13: 7.77 | M13: 4.98 | N13: 4.85 | O13: 5.23 | P13: -2.52 | Q13: 9.27 | R13: 6.29 | S13: 7.37 | T13: -2.19 | U13: 3.7 | V13: 7.63 | W13: 4.81 | X13: 4.79 | Y13: 5.18 | Z13: -2.32 | AA13: 9.38 | AB13: 6.51 | AC13: 8.36 | AD13: -3.3 | AE13: 3.82 | AF13: 8.08 | AG13: 4.85 | AH13: 4.87 | AI13: 5.22 | AJ13: 5.79 | AK13: 6.88 | AL13: 5.95
B14: 8 | C14: 19074026 | D14: ABI UK - UK Direct Property-Life | E14: 1.15122 | F14: -0.33 | G14: -1.41 | H14: 1.07 | I14: -2.91 | J14: -12.02 | K14: 11.15 | L14: -1.1 | M14: -1.1 | N14: -0.55 | O14: 1.42 | P14: -0.58 | Q14: -1.44 | R14: 1.15 | S14: -2.85 | T14: -11.53 | U14: 10.41 | V14: -1.06 | W14: -1.1 | X14: -0.54 | Y14: 1.43 | Z14: -0.55 | AA14: -1.5 | AB14: 0.97 | AC14: -2.56 | AD14: -11.49 | AE14: 10.32 | AF14: -1.04 | AG14: -1.1 | AH14: -0.54 | AI14: 1.43 | AJ14: 1.48 | AK14: 1.9 | AL14: -0.98
B15: 9 | C15: 19074018 | D15: ABI UK - UK Index-Linked Gilts-Life | E15: 8.56521 | F15: 0.46 | G15: 2.26 | H15: -7.5 | I15: -5.56 | J15: -22.7 | K15: 2.16 | L15: -3.69 | M15: -6.74 | N15: -1.32 | O15: 1.22 | P15: -0.11 | Q15: 1.98 | R15: -7.81 | S15: -5.78 | T15: -22.08 | U15: 1.11 | V15: -3.96 | W15: -6.94 | X15: -1.38 | Y15: 1.18 | Z15: -0.44 | AA15: 1.86 | AB15: -8.25 | AC15: -4.39 | AD15: -23.43 | AE15: 0.4 | AF15: -3.69 | AG15: -7.24 | AH15: -1.43 | AI15: 1.14 | AJ15: 0.3 | AK15: 1.69 | AL15: -7.13
B16: 10 | C16: 1000105407 | D16: Governed Portfolio Conservative | E16: 4.60004 | F16: 0.4 | G16: 9.04 | H16: 3.3 | I16: 7.8 | J16: -4.55 | K16: 7.96 | L16: 6.68 | M16: 4.58 | N16: 4.49 | O16: 4.78 | P16: 0.24 | Q16: 8.16 | R16: 3.94 | S16: 7.72 | T16: -4.24 | U16: 7.66 | V16: 6.59 | W16: 4.54 | X16: 4.47 | Y16: 4.77 | Z16: -0.11 | AA16: 7.71 | AB16: 4.09 | AC16: 8.21 | AD16: -4.72 | AE16: 7.74 | AF16: 6.66 | AG16: 4.49 | AH16: 4.48 | AI16: 4.76 | AJ16: 4.81 | AK16: 5.62 | AL16: 4.7
B17: 11 | C17: 1000110752 | D17: Governed Portfolio Conservative (Active) (TLS-6) | E17: 5.27453 | F17: -0.48 | G17: 8.17 | H17: 1.95 | I17: 7.4 | J17: -6.38 | K17: 2.99 | L17: 5.8 | M17: 2.69 | N17: 3.76 | O17: 4.29 | P17: -0.56 | Q17: 7.39 | R17: 2.6 | S17: 7.4 | T17: -6.27 | U17: 2.91 | V17: 5.77 | W17: 2.68 | X17: 3.78 | Y17: 4.3 | Z17: -0.74 | AA17: 7.09 | AB17: 2.8 | AC17: 7.88 | AD17: -6.59 | AE17: 2.52 | AF17: 5.9 | AG17: 2.61 | AH17: 3.76 | AI17: 4.28 | AJ17: 4.26 | AK17: 5.14 | AL17: 2.72
B18: 12 | C18: 1000290992 | D18: Governed Portfolio Conservative (TLS-AN-6) | E18: 4.60239 | F18: 0.41 | G18: 9.1 | H18: 3.3 | I18: 7.3 | J18: -8.06 | K18: 7.35 | L18: 6.53 | M18: 3.6 | N18: 4.31 | P18: 0.25 | Q18: 8.16 | R18: 3.94 | S18: 7.04 | T18: -7.5 | U18: 6.96 | V18: 6.36 | W18: 3.55 | X18: 4.29 | Z18: -0.08 | AA18: 7.71 | AB18: 4.12 | AC18: 7.58 | AD18: -8.02 | AE18: 6.76 | AF18: 6.46 | AG18: 3.45 | AH18: 4.3 | AJ18: 4.83 | AL18: 3.53
B19: 13 | C19: 1000290964 | D19: Governed Portfolio Conservative (TLS-CA-6) | E19: 4.5859 | F19: 0.41 | G19: 9.1 | H19: 3.28 | I19: 7.8 | J19: -4.55 | K19: 7.96 | L19: 6.69 | M19: 4.59 | N19: 4.5 | O19: 4.79 | P19: 0.25 | Q19: 8.16 | R19: 3.93 | S19: 7.72 | T19: -4.24 | U19: 7.66 | V19: 6.58 | W19: 4.53 | X19: 4.47 | Y19: 4.77 | Z19: -0.08 | AA19: 7.71 | AB19: 4.11 | AC19: 8.21 | AD19: -4.72 | AE19: 7.74 | AF19: 6.66 | AG19: 4.49 | AH19: 4.48 | AI19: 4.76 | AJ19: 4.82 | AK19: 5.62 | AL19: 4.71
B20: 14 | C20: 1000171373 | D20: Governed Portfolio Conservative (TLS-DD-6) | E20: 4.59721 | F20: 0.41 | G20: 9.1 | H20: 3.26 | I20: 7.3 | J20: -8.06 | K20: 7.35 | L20: 6.52 | M20: 3.59 | N20: 4.31 | P20: 0.25 | Q20: 8.16 | R20: 3.91 | S20: 7.04 | T20: -7.5 | U20: 6.96 | V20: 6.35 | W20: 3.54 | X20: 4.28 | Z20: -0.08 | AA20: 7.71 | AB20: 4.09 | AC20: 7.58 | AD20: -8.02 | AE20: 6.76 | AF20: 6.45 | AG20: 3.44 | AH20: 4.3 | AJ20: 4.83 | AL20: 3.52
B21: 15 | C21: 1000110742 | D21: Governed Portfolio Conservative (Tracker) (TLS-6) | E21: 4.67273 | F21: 0.27 | G21: 9.2 | H21: 3.58 | I21: 7.3 | J21: -4.74 | K21: 7.9 | L21: 6.66 | M21: 4.52 | N21: 4.51 | O21: 4.79 | P21: 0.14 | Q21: 8.24 | R21: 4.29 | S21: 7.21 | T21: -4.49 | U21: 7.65 | V21: 6.56 | W21: 4.46 | X21: 4.51 | Y21: 4.79 | Z21: -0.18 | AA21: 7.9 | AB21: 4.48 | AC21: 7.61 | AD21: -4.9 | AE21: 7.54 | AF21: 6.65 | AG21: 4.41 | AH21: 4.49 | AI21: 4.77 | AJ21: 4.81 | AK21: 5.73 | AL21: 4.68
B22: 16 | C22: 1000172866 | D22: Governed Portfolio Conservative Annuity / DD (Active) (TLS-6) | E22: 5.29673 | F22: -0.48 | G22: 8.17 | H22: 1.95 | I22: 6.9 | J22: -9.84 | K22: 2.38 | L22: 5.63 | M22: 1.7 | N22: 3.57 | P22: -0.56 | Q22: 7.39 | R22: 2.6 | S22: 6.72 | T22: -9.49 | U22: 2.22 | V22: 5.54 | W22: 1.7 | X22: 3.59 | Z22: -0.74 | AA22: 7.09 | AB22: 2.8 | AC22: 7.25 | AD22: -9.84 | AE22: 1.57 | AF22: 5.7 | AG22: 1.57 | AH22: 3.57 | AJ22: 4.27 | AL22: 1.56
B23: 17 | C23: 1000171296 | D23: Governed Portfolio Conservative Annuity / DD (Tracker) (TLS-6) | E23: 4.68658 | F23: 0.27 | G23: 9.2 | H23: 3.58 | I23: 6.8 | J23: -8.25 | K23: 7.17 | L23: 6.5 | M23: 3.5 | N23: 4.31 | P23: 0.14 | Q23: 8.24 | R23: 4.29 | S23: 6.53 | T23: -7.75 | U23: 6.84 | V23: 6.33 | W23: 3.45 | X23: 4.32 | Z23: -0.18 | AA23: 7.9 | AB23: 4.48 | AC23: 6.98 | AD23: -8.2 | AE23: 6.46 | AF23: 6.45 | AG23: 3.34 | AH23: 4.29 | AJ23: 4.81 | AL23: 3.48
B24: 18 | C24: 1000137954 | D24: Governed Portfolio Conservative Annuity / DD Benchmark (1% AMC) (TLS-6) | E24: 4.37663 | F24: 0.95 | G24: 9.27 | H24: 3.97 | I24: 6 | J24: -8.27 | K24: 5.96 | L24: 6.38 | M24: 3.2 | N24: 3.9 | P24: 0.26 | Q24: 8.63 | R24: 4.05 | S24: 6.28 | T24: -8.64 | U24: 5.9 | V24: 6.3 | W24: 3.05 | X24: 3.86 | Z24: 0.12 | AA24: 8.08 | AB24: 4.39 | AC24: 6.25 | AD24: -8.69 | AE24: 5.67 | AF24: 6.23 | AG24: 2.95 | AH24: 3.84 | AJ24: 4.38 | AL24: 2.99
B25: 19 | C25: 1000116898 | D25: Governed Portfolio Conservative Benchmark (1% AMC) | E25: 4.34796 | F25: 0.95 | G25: 9.27 | H25: 3.97 | I25: 6.56 | J25: -4.07 | K25: 6.61 | L25: 6.57 | M25: 4.36 | N25: 4.16 | O25: 4.46 | P25: 0.26 | Q25: 8.63 | R25: 4.05 | S25: 6.92 | T25: -4.66 | U25: 6.71 | V25: 6.51 | W25: 4.21 | X25: 4.12 | Y25: 4.42 | Z25: 0.12 | AA25: 8.08 | AB25: 4.39 | AC25: 6.89 | AD25: -4.68 | AE25: 6.61 | AF25: 6.45 | AG25: 4.15 | AH25: 4.1 | AI25: 4.4 | AJ25: 4.42 | AK25: 5.26 | AL25: 4.34
B26: 20 | C26: 1000292158 | D26: Governed Portfolio Conservative Benchmark (1% AMC) (For Broadridge Factsheets) | E26: 4.34796 | F26: 0.95 | G26: 9.27 | H26: 3.97 | I26: 6.56 | J26: -4.07 | K26: 6.61 | L26: 6.57 | M26: 4.36 | N26: 4.16 | O26: 4.46 | P26: 0.26 | Q26: 8.63 | R26: 4.05 | S26: 6.92 | T26: -4.66 | U26: 6.71 | V26: 6.51 | W26: 4.21 | X26: 4.12 | Y26: 4.42 | Z26: 0.12 | AA26: 8.08 | AB26: 4.39 | AC26: 6.89 | AD26: -4.68 | AE26: 6.61 | AF26: 6.45 | AG26: 4.15 | AH26: 4.1 | AI26: 4.4 | AJ26: 4.42 | AK26: 5.26 | AL26: 4.34
B27: 21 | C27: 1000105394 | D27: Governed Portfolio Defensive | E27: 3.60773 | F27: 0.52 | G27: 6.79 | H27: 3.25 | I27: 5.5 | J27: -4.69 | K27: 4.74 | L27: 5.16 | M27: 3.03 | N27: 3.13 | O27: 3.69 | P27: 0.33 | Q27: 6.45 | R27: 3.37 | S27: 5.36 | T27: -4.32 | U27: 4.43 | V27: 5.05 | W27: 2.98 | X27: 3.1 | Y27: 3.68 | Z27: -0.06 | AA27: 6.06 | AB27: 3.31 | AC27: 5.71 | AD27: -4.6 | AE27: 4.3 | AF27: 5.02 | AG27: 2.88 | AH27: 3.09 | AI27: 3.65 | AJ27: 3.5 | AK27: 4.44 | AL27: 3.01
B28: 22 | C28: 1000110749 | D28: Governed Portfolio Defensive (Active) (TLS-3) | E28: 3.84055 | F28: 0.01 | G28: 6.16 | H28: 2.61 | I28: 5.25 | J28: -5.59 | K28: 2.33 | L28: 4.66 | M28: 2.06 | N28: 2.75 | O28: 3.44 | P28: -0.12 | Q28: 5.88 | R28: 2.73 | S28: 5.15 | T28: -5.33 | U28: 2.13 | V28: 4.57 | W28: 2.03 | X28: 2.75 | Y28: 3.44 | Z28: -0.42 | AA28: 5.57 | AB28: 2.7 | AC28: 5.5 | AD28: -5.53 | AE28: 1.76 | AF28: 4.59 | AG28: 1.92 | AH28: 2.72 | AI28: 3.4 | AJ28: 3.21 | AK28: 4.19 | AL28: 2
B29: 23 | C29: 1000290993 | D29: Governed Portfolio Defensive (TLS-AN-3) | E29: 3.59391 | F29: 0.54 | G29: 6.78 | H29: 3.28 | I29: 4.76 | J29: -9.87 | K29: 3.89 | L29: 4.92 | M29: 1.58 | N29: 2.83 | P29: 0.27 | Q29: 6.39 | R29: 3.38 | S29: 4.35 | T29: -9.15 | U29: 3.46 | V29: 4.7 | W29: 1.53 | X29: 2.8 | Z29: -0.09 | AA29: 6.02 | AB29: 3.3 | AC29: 4.8 | AD29: -9.5 | AE29: 2.94 | AF29: 4.7 | AG29: 1.35 | AH29: 2.78 | AJ29: 3.51 | AL29: 1.3
B30: 24 | C30: 1000290965 | D30: Governed Portfolio Defensive (TLS-CA-3) | E30: 3.54641 | F30: 0.54 | G30: 6.78 | H30: 3.22 | I30: 5.5 | J30: -4.69 | K30: 4.74 | L30: 5.15 | M30: 3.03 | N30: 3.12 | O30: 3.69 | P30: 0.27 | Q30: 6.39 | R30: 3.32 | S30: 5.36 | T30: -4.32 | U30: 4.43 | V30: 5.01 | W30: 2.96 | X30: 3.09 | Y30: 3.68 | Z30: -0.09 | AA30: 6.02 | AB30: 3.25 | AC30: 5.71 | AD30: -4.6 | AE30: 4.3 | AF30: 4.99 | AG30: 2.86 | AH30: 3.08 | AI30: 3.65 | AJ30: 3.5 | AK30: 4.43 | AL30: 3
B31: 25 | C31: 1000171369 | D31: Governed Portfolio Defensive (TLS-DD-3) | E31: 3.59391 | F31: 0.54 | G31: 6.78 | H31: 3.28 | I31: 4.76 | J31: -9.87 | K31: 3.89 | L31: 4.92 | M31: 1.58 | N31: 2.83 | P31: 0.27 | Q31: 6.39 | R31: 3.38 | S31: 4.35 | T31: -9.15 | U31: 3.46 | V31: 4.7 | W31: 1.53 | X31: 2.8 | Z31: -0.09 | AA31: 6.02 | AB31: 3.3 | AC31: 4.8 | AD31: -9.5 | AE31: 2.94 | AF31: 4.7 | AG31: 1.35 | AH31: 2.78 | AJ31: 3.51 | AL31: 1.3
B32: 26 | C32: 1000110739 | D32: Governed Portfolio Defensive (Tracker) (TLS-3) | E32: 3.62925 | F32: 0.44 | G32: 6.85 | H32: 3.37 | I32: 5.25 | J32: -4.78 | K32: 4.71 | L32: 5.14 | M32: 3 | N32: 3.13 | O32: 3.69 | P32: 0.27 | Q32: 6.48 | R32: 3.51 | S32: 5.11 | T32: -4.44 | U32: 4.42 | V32: 5.02 | W32: 2.94 | X32: 3.12 | Y32: 3.69 | Z32: -0.11 | AA32: 6.14 | AB32: 3.48 | AC32: 5.42 | AD32: -4.69 | AE32: 4.2 | AF32: 5.01 | AG32: 2.83 | AH32: 3.09 | AI32: 3.65 | AJ32: 3.49 | AK32: 4.49 | AL32: 3
B33: 27 | C33: 1000172864 | D33: Governed Portfolio Defensive Annuity / DD (Active) (TLS-3) | E33: 3.88697 | F33: 0.01 | G33: 6.16 | H33: 2.61 | I33: 4.5 | J33: -10.76 | K33: 1.48 | L33: 4.41 | M33: 0.61 | N33: 2.45 | P33: -0.12 | Q33: 5.88 | R33: 2.73 | S33: 4.14 | T33: -10.14 | U33: 1.16 | V33: 4.24 | W33: 0.59 | X33: 2.45 | Z33: -0.42 | AA33: 5.57 | AB33: 2.7 | AC33: 4.58 | AD33: -10.41 | AE33: 0.42 | AF33: 4.28 | AG33: 0.4 | AH33: 2.41 | AJ33: 3.21 | AL33: 0.29
B34: 28 | C34: 1000171344 | D34: Governed Portfolio Defensive Annuity / DD (Tracker) (TLS-3) | E34: 3.66757 | F34: 0.44 | G34: 6.85 | H34: 3.37 | I34: 4.51 | J34: -9.97 | K34: 3.86 | L34: 4.9 | M34: 1.54 | N34: 2.83 | P34: 0.27 | Q34: 6.48 | R34: 3.51 | S34: 4.11 | T34: -9.28 | U34: 3.45 | V34: 4.69 | W34: 1.49 | X34: 2.83 | Z34: -0.11 | AA34: 6.14 | AB34: 3.48 | AC34: 4.51 | AD34: -9.6 | AE34: 2.84 | AF34: 4.71 | AG34: 1.31 | AH34: 2.79 | AJ34: 3.5 | AL34: 1.28
B35: 29 | C35: 1000137952 | D35: Governed Portfolio Defensive Annuity / DD Benchmark (1% AMC) (TLS-3) | E35: 3.43391 | F35: 0.79 | G35: 6.69 | H35: 3.33 | I35: 3.58 | J35: -10.48 | K35: 2.53 | L35: 4.52 | M35: 0.94 | N35: 2.26 | P35: 0.32 | Q35: 6.35 | R35: 3.3 | S35: 3.72 | T35: -10.49 | U35: 2.34 | V35: 4.44 | W35: 0.86 | X35: 2.25 | Z35: 0.15 | AA35: 6.09 | AB35: 3.36 | AC35: 3.6 | AD35: -10.44 | AE35: 1.91 | AF35: 4.35 | AG35: 0.73 | AH35: 2.22 | AJ35: 2.96 | AL35: 0.55
B36: 30 | C36: 1000116895 | D36: Governed Portfolio Defensive Benchmark (1% AMC) | E36: 3.3704 | F36: 0.79 | G36: 6.69 | H36: 3.33 | I36: 4.37 | J36: -4.48 | K36: 3.45 | L36: 4.79 | M36: 2.6 | N36: 2.64 | O36: 3.27 | P36: 0.32 | Q36: 6.35 | R36: 3.3 | S36: 4.61 | T36: -4.78 | U36: 3.47 | V36: 4.74 | W36: 2.51 | X36: 2.62 | Y36: 3.24 | Z36: 0.15 | AA36: 6.09 | AB36: 3.36 | AC36: 4.5 | AD36: -4.68 | AE36: 3.23 | AF36: 4.65 | AG36: 2.43 | AH36: 2.59 | AI36: 3.22 | AJ36: 3.01 | AK36: 3.99 | AL36: 2.46
B37: 31 | C37: 1000105411 | D37: Governed Portfolio Dynamic | E37: 8.26458 | F37: -0.34 | G37: 16.17 | H37: 3.65 | I37: 13.43 | J37: -4.23 | K37: 13.99 | L37: 10.94 | M37: 8.31 | N37: 8.12 | O37: 7.6 | P37: -0.49 | Q37: 13.88 | R37: 5.54 | S37: 13.47 | T37: -4.08 | U37: 13.7 | V37: 10.89 | W37: 8.26 | X37: 8.09 | Y37: 7.59 | Z37: -0.78 | AA37: 13.26 | AB37: 6.18 | AC37: 14.38 | AD37: -5.06 | AE37: 14.24 | AF37: 11.22 | AG37: 8.33 | AH37: 8.19 | AI37: 7.63 | AJ37: 8.43 | AK37: 8.76 | AL37: 8.79
B38: 32 | C38: 1000110753 | D38: Governed Portfolio Dynamic (Active) (TLS-7) (SGR) | E38: 9.85345 | F38: -2.67 | G38: 13.6 | H38: 0.71 | I38: 12.61 | J38: -8.54 | K38: 2.04 | L38: 8.8 | M38: 3.75 | N38: 6.3 | O38: 6.42 | P38: -2.58 | Q38: 11.63 | R38: 2.58 | S38: 12.84 | T38: -8.83 | U38: 2.23 | V38: 8.91 | W38: 3.79 | X38: 6.39 | Y38: 6.46 | Z38: -2.4 | AA38: 11.48 | AB38: 3.32 | AC38: 13.73 | AD38: -9.43 | AE38: 1.7 | AF38: 9.42 | AG38: 3.83 | AH38: 6.41 | AI38: 6.47 | AJ38: 7.08 | AK38: 7.6 | AL38: 4.03
B39: 33 | C39: 1000110744 | D39: Governed Portfolio Dynamic (Tracker) (TLS-7) (SGR) | E39: 8.49052 | F39: -0.64 | G39: 16.63 | H39: 4.3 | I39: 12.34 | J39: -4.71 | K39: 13.86 | L39: 10.96 | M39: 8.19 | N39: 8.18 | O39: 7.63 | P39: -0.71 | Q39: 14.11 | R39: 6.35 | S39: 12.35 | T39: -4.69 | U39: 13.67 | V39: 10.88 | W39: 8.11 | X39: 8.21 | Y39: 7.64 | Z39: -0.92 | AA39: 13.79 | AB39: 7.08 | AC39: 13.05 | AD39: -5.51 | AE39: 13.79 | AF39: 11.28 | AG39: 8.17 | AH39: 8.22 | AI39: 7.67 | AJ39: 8.43 | AK39: 9.11 | AL39: 8.77
B40: 34 | C40: 1000293253 | D40: Governed Portfolio Dynamic 15yr (Active) (TLS-Bal/Mod Caut) (Previously GP Enhanced) | E40: 9.28627 | F40: -2.67 | G40: 12.66 | H40: 0.68 | I40: 11.54 | J40: -8.87 | K40: 3 | L40: 8.15 | M40: 3.5 | N40: 5.79 | O40: 6.17 | P40: -2.58 | Q40: 10.96 | R40: 2.32 | S40: 11.7 | T40: -9.03 | U40: 3.12 | V40: 8.24 | W40: 3.53 | X40: 5.87 | Y40: 6.2 | Z40: -2.4 | AA40: 10.86 | AB40: 2.98 | AC40: 12.47 | AD40: -9.57 | AE40: 2.61 | AF40: 8.7 | AG40: 3.57 | AH40: 5.89 | AI40: 6.21 | AJ40: 6.55 | AK40: 7.15 | AL40: 3.73
B41: 35 | C41: 1000290957 | D41: Governed Portfolio Dynamic 15yr (TLS-AN-Bal/Mod Caut) (Previously GP Enhanced) | E41: 7.88042 | F41: -0.33 | G41: 15.37 | H41: 3.47 | I41: 12.33 | J41: -5.17 | K41: 13.42 | L41: 10.26 | M41: 7.59 | N41: 7.43 | O41: 7.24 | P41: -0.46 | Q41: 13.33 | R41: 5.11 | S41: 12.33 | T41: -4.93 | U41: 13.1 | V41: 10.19 | W41: 7.54 | X41: 7.4 | Y41: 7.23 | Z41: -0.79 | AA41: 12.76 | AB41: 5.67 | AC41: 13.13 | AD41: -5.81 | AE41: 13.56 | AF41: 10.47 | AG41: 7.59 | AH41: 7.48 | AI41: 7.26 | AJ41: 7.78 | AK41: 8.2 | AL41: 8
B42: 36 | C42: 1000290956 | D42: Governed Portfolio Dynamic 15yr (TLS-CA-Bal/Mod Caut) (Previously GP Enhanced) | E42: 7.87597 | F42: -0.33 | G42: 15.37 | H42: 3.44 | I42: 12.33 | J42: -5.17 | K42: 13.42 | L42: 10.25 | M42: 7.59 | N42: 7.43 | O42: 7.24 | P42: -0.46 | Q42: 13.33 | R42: 5.09 | S42: 12.33 | T42: -4.93 | U42: 13.1 | V42: 10.18 | W42: 7.54 | X42: 7.4 | Y42: 7.23 | Z42: -0.79 | AA42: 12.76 | AB42: 5.65 | AC42: 13.13 | AD42: -5.81 | AE42: 13.56 | AF42: 10.47 | AG42: 7.59 | AH42: 7.48 | AI42: 7.26 | AJ42: 7.77 | AK42: 8.19 | AL42: 7.99
B43: 37 | C43: 1000290958 | D43: Governed Portfolio Dynamic 15yr (TLS-DD-Bal/Mod Caut) (Previously GP Enhanced) | E43: 7.8739 | F43: -0.33 | G43: 15.37 | H43: 3.47 | I43: 12.33 | J43: -5.17 | K43: 13.42 | L43: 10.26 | M43: 7.59 | N43: 7.43 | O43: 7.24 | P43: -0.46 | Q43: 13.33 | R43: 5.12 | S43: 12.33 | T43: -4.93 | U43: 13.1 | V43: 10.19 | W43: 7.54 | X43: 7.4 | Y43: 7.23 | Z43: -0.79 | AA43: 12.76 | AB43: 5.68 | AC43: 13.13 | AD43: -5.81 | AE43: 13.56 | AF43: 10.47 | AG43: 7.6 | AH43: 7.48 | AI43: 7.26 | AJ43: 7.78 | AK43: 8.2 | AL43: 8
B44: 38 | C44: 1000293251 | D44: Governed Portfolio Dynamic 15yr (Tracker) (TLS-Bal/Mod Caut) (Previously GP Enhanced) | E44: 8.07525 | F44: -0.64 | G44: 15.79 | H44: 4.03 | I44: 11.29 | J44: -5.57 | K44: 13.29 | L44: 10.25 | M44: 7.47 | N44: 7.47 | O44: 7.26 | P44: -0.71 | Q44: 13.55 | R44: 5.82 | S44: 11.27 | T44: -5.46 | U44: 13.07 | V44: 10.16 | W44: 7.4 | X44: 7.5 | Y44: 7.27 | Z44: -0.92 | AA44: 13.27 | AB44: 6.47 | AC44: 11.87 | AD44: -6.19 | AE44: 13.14 | AF44: 10.51 | AG44: 7.45 | AH44: 7.51 | AI44: 7.29 | AJ44: 7.77 | AK44: 8.46 | AL44: 7.97
B45: 39 | C45: 1000293098 | D45: Governed Portfolio Dynamic 15yr Benchmark (1% AMC) (TLS-Bal/Mod Caut) (Previously GP Enhanced) | E45: 7.49053 | F45: 1.28 | G45: 17.04 | H45: 5.29 | I45: 10.72 | J45: -3.92 | K45: 11.8 | L45: 10.9 | M45: 7.94 | N45: 7.51 | O45: 7.2 | P45: -0.22 | Q45: 15.37 | R45: 5.6 | S45: 11.37 | T45: -5.12 | U45: 12.08 | V45: 10.7 | W45: 7.61 | X45: 7.39 | Y45: 7.1 | Z45: -0.25 | AA45: 14.15 | AB45: 6.5 | AC45: 11.55 | AD45: -5.37 | AE45: 12.27 | AF45: 10.7 | AG45: 7.58 | AH45: 7.4 | AI45: 7.1 | AJ45: 7.66 | AK45: 8.23 | AL45: 8.13
B46: 40 | C46: 1000116899 | D46: Governed Portfolio Dynamic Benchmark (1% AMC) | E46: 7.97174 | F46: 1.28 | G46: 17.94 | H46: 5.72 | I46: 12.12 | J46: -2.7 | K46: 13.03 | L46: 11.8 | M46: 8.98 | N46: 8.41 | O46: 7.71 | P46: -0.22 | Q46: 16.21 | R46: 6.08 | S46: 12.89 | T46: -4.19 | U46: 13.44 | V46: 11.64 | W46: 8.63 | X46: 8.28 | Y46: 7.61 | Z46: -0.25 | AA46: 14.84 | AB46: 7.11 | AC46: 13.14 | AD46: -4.52 | AE46: 13.77 | AF46: 11.66 | AG46: 8.62 | AH46: 8.31 | AI46: 7.61 | AJ46: 8.47 | AK46: 8.93 | AL46: 9.28
B47: 41 | C47: 1000105398 | D47: Governed Portfolio Enhanced | E47: 7.44568 | F47: -0.11 | G47: 14.56 | H47: 3.44 | I47: 12.33 | J47: -5.17 | K47: 13.42 | L47: 9.99 | M47: 7.44 | N47: 7.35 | O47: 7.19 | P47: -0.24 | Q47: 12.55 | R47: 5.09 | S47: 12.33 | T47: -4.93 | U47: 13.1 | V47: 9.92 | W47: 7.39 | X47: 7.33 | Y47: 7.18 | Z47: -0.55 | AA47: 11.93 | AB47: 5.65 | AC47: 13.13 | AD47: -5.81 | AE47: 13.56 | AF47: 10.2 | AG47: 7.43 | AH47: 7.4 | AI47: 7.21 | AJ47: 7.72 | AK47: 8.15 | AL47: 7.84
B48: 42 | C48: 1000110750 | D48: Governed Portfolio Enhanced (Active) (TLS-4) (SGR) | E48: 8.92787 | F48: -2.04 | G48: 12.56 | H48: 0.68 | I48: 11.54 | J48: -8.87 | K48: 3 | L48: 8.12 | M48: 3.48 | N48: 5.78 | O48: 6.16 | P48: -1.98 | Q48: 10.81 | R48: 2.32 | S48: 11.7 | T48: -9.03 | U48: 3.12 | V48: 8.18 | W48: 3.5 | X48: 5.86 | Y48: 6.19 | Z48: -1.9 | AA48: 10.57 | AB48: 2.98 | AC48: 12.47 | AD48: -9.57 | AE48: 2.61 | AF48: 8.6 | AG48: 3.51 | AH48: 5.86 | AI48: 6.19 | AJ48: 6.55 | AK48: 7.15 | AL48: 3.71
B49: 43 | C49: 1000110754 | D49: Governed Portfolio Enhanced (Active) (TLS-8) | E49: 8.92671 | F49: -2.04 | G49: 12.56 | H49: 0.68 | I49: 11.58 | J49: -8.47 | K49: 2.54 | L49: 8.13 | M49: 3.48 | N49: 5.85 | O49: 6.11 | P49: -1.98 | Q49: 10.81 | R49: 2.32 | S49: 11.75 | T49: -8.67 | U49: 2.68 | V49: 8.2 | W49: 3.51 | X49: 5.93 | Y49: 6.14 | Z49: -1.9 | AA49: 10.57 | AB49: 2.98 | AC49: 12.56 | AD49: -9.23 | AE49: 2.18 | AF49: 8.63 | AG49: 3.52 | AH49: 5.93 | AI49: 6.14 | AJ49: 6.55 | AK49: 7.22 | AL49: 3.74
B50: 44 | C50: 1000290988 | D50: Governed Portfolio Enhanced (TLS-AN-8) | E50: 7.47517 | F50: -0.14 | G50: 14.72 | H50: 3.47 | I50: 12.38 | J50: -4.84 | K50: 13.28 | L50: 10.07 | M50: 7.53 | N50: 7.47 | P50: -0.21 | Q50: 12.76 | R50: 5.11 | S50: 12.37 | T50: -4.62 | U50: 12.96 | V50: 10.01 | W50: 7.49 | X50: 7.45 | Z50: -0.48 | AA50: 12.18 | AB50: 5.67 | AC50: 13.2 | AD50: -5.52 | AE50: 13.44 | AF50: 10.31 | AG50: 7.54 | AH50: 7.53 | AJ50: 7.77 | AL50: 7.96
B51: 45 | C51: 1000105415 | D51: Governed Portfolio Enhanced (TLS-CA-8) | E51: 7.47043 | F51: -0.14 | G51: 14.72 | H51: 3.44 | I51: 12.41 | J51: -4.62 | K51: 13.31 | L51: 10.07 | M51: 7.58 | N51: 7.48 | O51: 7.17 | P51: -0.21 | Q51: 12.76 | R51: 5.09 | S51: 12.41 | T51: -4.41 | U51: 13 | V51: 10.02 | W51: 7.54 | X51: 7.46 | Y51: 7.16 | Z51: -0.48 | AA51: 12.18 | AB51: 5.65 | AC51: 13.24 | AD51: -5.31 | AE51: 13.49 | AF51: 10.31 | AG51: 7.6 | AH51: 7.54 | AI51: 7.2 | AJ51: 7.76 | AK51: 8.25 | AL51: 8.02
B52: 46 | C52: 1000171374 | D52: Governed Portfolio Enhanced (TLS-DD-8) | E52: 7.47517 | F52: -0.14 | G52: 14.72 | H52: 3.47 | I52: 12.38 | J52: -4.84 | K52: 13.28 | L52: 10.07 | M52: 7.53 | N52: 7.47 | P52: -0.21 | Q52: 12.76 | R52: 5.11 | S52: 12.37 | T52: -4.62 | U52: 12.96 | V52: 10.01 | W52: 7.49 | X52: 7.45 | Z52: -0.48 | AA52: 12.18 | AB52: 5.67 | AC52: 13.2 | AD52: -5.52 | AE52: 13.44 | AF52: 10.31 | AG52: 7.54 | AH52: 7.53 | AJ52: 7.77 | AL52: 7.96
B53: 47 | C53: 1000110740 | D53: Governed Portfolio Enhanced (Tracker) (TLS-4) (SGR) | E53: 7.65246 | F53: -0.35 | G53: 14.94 | H53: 4.03 | I53: 11.29 | J53: -5.57 | K53: 13.29 | L53: 9.98 | M53: 7.32 | N53: 7.39 | O53: 7.2 | P53: -0.43 | Q53: 12.74 | R53: 5.82 | S53: 11.27 | T53: -5.46 | U53: 13.07 | V53: 9.89 | W53: 7.25 | X53: 7.42 | Y53: 7.21 | Z53: -0.67 | AA53: 12.38 | AB53: 6.47 | AC53: 11.87 | AD53: -6.19 | AE53: 13.14 | AF53: 10.22 | AG53: 7.28 | AH53: 7.42 | AI53: 7.23 | AJ53: 7.71 | AK53: 8.42 | AL53: 7.82
B54: 48 | C54: 1000110745 | D54: Governed Portfolio Enhanced (Tracker) (TLS-8) | E54: 7.65215 | F54: -0.35 | G54: 14.94 | H54: 4.03 | I54: 11.37 | J54: -5.04 | K54: 13.18 | L54: 10.01 | M54: 7.43 | N54: 7.51 | O54: 7.18 | P54: -0.43 | Q54: 12.74 | R54: 5.82 | S54: 11.35 | T54: -4.95 | U54: 12.97 | V54: 9.92 | W54: 7.36 | X54: 7.54 | Y54: 7.19 | Z54: -0.67 | AA54: 12.38 | AB54: 6.47 | AC54: 11.98 | AD54: -5.71 | AE54: 13.06 | AF54: 10.26 | AG54: 7.4 | AH54: 7.54 | AI54: 7.21 | AJ54: 7.74 | AK54: 8.53 | AL54: 7.97
B55: 49 | C55: 1000293254 | D55: Governed Portfolio Enhanced 15yr (Active) (TLS-Caut) (Previously GP Growth) | E55: 8.0894 | F55: -2.04 | G55: 11.04 | H55: 0.94 | I55: 9.91 | J55: -9.81 | K55: 2.99 | L55: 7.19 | M55: 2.73 | N55: 4.92 | O55: 5.67 | P55: -1.98 | Q55: 9.68 | R55: 2.24 | S55: 9.94 | T55: -9.74 | U55: 2.98 | V55: 7.22 | W55: 2.76 | X55: 4.98 | Y55: 5.7 | Z55: -1.9 | AA55: 9.55 | AB55: 2.73 | AC55: 10.62 | AD55: -10.2 | AE55: 2.41 | AF55: 7.58 | AG55: 2.74 | AH55: 4.99 | AI55: 5.69 | AJ55: 5.79 | AK55: 6.53 | AL55: 2.81
B56: 50 | C56: 1000290955 | D56: Governed Portfolio Enhanced 15yr (TLS-AN-Caut) (Previously GP Growth) | E56: 6.973 | F56: -0.14 | G56: 13.53 | H56: 3.18 | I56: 10.53 | J56: -6.94 | K56: 11.09 | L56: 8.99 | M56: 6 | N56: 6.24 | O56: 6.54 | P56: -0.21 | Q56: 11.96 | R56: 4.48 | S56: 10.44 | T56: -6.56 | U56: 10.73 | V56: 8.9 | W56: 5.97 | X56: 6.22 | Y56: 6.54 | Z56: -0.48 | AA56: 11.45 | AB56: 4.91 | AC56: 11.14 | AD56: -7.28 | AE56: 10.9 | AF56: 9.13 | AG56: 5.97 | AH56: 6.29 | AI56: 6.56 | AJ56: 6.78 | AK56: 7.38 | AL56: 6.2
B57: 51 | C57: 1000105386 | D57: Governed Portfolio Enhanced 15yr (TLS-CA-Caut) (Previously GP Growth) | E57: 6.97045 | F57: -0.14 | G57: 13.53 | H57: 3.11 | I57: 10.53 | J57: -6.94 | K57: 11.09 | L57: 8.96 | M57: 5.99 | N57: 6.23 | O57: 6.54 | P57: -0.21 | Q57: 11.96 | R57: 4.41 | S57: 10.44 | T57: -6.56 | U57: 10.73 | V57: 8.88 | W57: 5.96 | X57: 6.22 | Y57: 6.53 | Z57: -0.48 | AA57: 11.45 | AB57: 4.84 | AC57: 11.14 | AD57: -7.28 | AE57: 10.9 | AF57: 9.11 | AG57: 5.96 | AH57: 6.28 | AI57: 6.55 | AJ57: 6.78 | AK57: 7.37 | AL57: 6.19
B58: 52 | C58: 1000290954 | D58: Governed Portfolio Enhanced 15yr (TLS-DD-Caut) (Previously GP Growth) | E58: 6.973 | F58: -0.14 | G58: 13.53 | H58: 3.18 | I58: 10.53 | J58: -6.94 | K58: 11.09 | L58: 8.99 | M58: 6 | N58: 6.24 | O58: 6.54 | P58: -0.21 | Q58: 11.96 | R58: 4.48 | S58: 10.44 | T58: -6.56 | U58: 10.73 | V58: 8.9 | W58: 5.97 | X58: 6.22 | Y58: 6.54 | Z58: -0.48 | AA58: 11.45 | AB58: 4.91 | AC58: 11.14 | AD58: -7.28 | AE58: 10.9 | AF58: 9.13 | AG58: 5.97 | AH58: 6.29 | AI58: 6.56 | AJ58: 6.78 | AK58: 7.38 | AL58: 6.2
B59: 53 | C59: 1000293252 | D59: Governed Portfolio Enhanced 15yr (Tracker) (TLS-Caut) (Previously GP Growth) | E59: 7.06817 | F59: -0.35 | G59: 13.61 | H59: 3.7 | I59: 9.68 | J59: -7.25 | K59: 10.99 | L59: 8.91 | M59: 5.87 | N59: 6.26 | O59: 6.54 | P59: -0.43 | Q59: 11.82 | R59: 5.12 | S59: 9.57 | T59: -6.96 | U59: 10.71 | V59: 8.79 | W59: 5.81 | X59: 6.28 | Y59: 6.55 | Z59: -0.67 | AA59: 11.55 | AB59: 5.6 | AC59: 10.1 | AD59: -7.58 | AE59: 10.58 | AF59: 9.06 | AG59: 5.8 | AH59: 6.28 | AI59: 6.56 | AJ59: 6.76 | AK59: 7.57 | AL59: 6.15
B60: 54 | C60: 1000293099 | D60: Governed Portfolio Enhanced 15yr Benchmark (1% AMC) (TLS-Caut) (Previously GP Growth) | E60: 6.58598 | F60: 1.22 | G60: 14.61 | H60: 4.65 | I60: 9.06 | J60: -6.08 | K60: 9.59 | L60: 9.36 | M60: 6.12 | N60: 6.21 | O60: 6.4 | P60: -0.06 | Q60: 13.26 | R60: 4.87 | S60: 9.57 | T60: -6.91 | U60: 9.71 | V60: 9.17 | W60: 5.85 | X60: 6.12 | Y60: 6.32 | Z60: -0.12 | AA60: 12.29 | AB60: 5.56 | AC60: 9.66 | AD60: -7.08 | AE60: 9.7 | AF60: 9.14 | AG60: 5.79 | AH60: 6.12 | AI60: 6.31 | AJ60: 6.58 | AK60: 7.32 | AL60: 6.14
B61: 55 | C61: 1000172867 | D61: Governed Portfolio Enhanced Annuity / DD (Active) (TLS-8) | E61: 8.92645 | F61: -2.04 | G61: 12.56 | H61: 0.71 | I61: 11.56 | J61: -8.68 | K61: 2.5 | L61: 8.13 | M61: 3.43 | N61: 5.84 | P61: -1.98 | Q61: 10.81 | R61: 2.35 | S61: 11.71 | T61: -8.87 | U61: 2.64 | V61: 8.2 | W61: 3.45 | X61: 5.91 | Z61: -1.9 | AA61: 10.57 | AB61: 3.01 | AC61: 12.52 | AD61: -9.43 | AE61: 2.13 | AF61: 8.63 | AG61: 3.46 | AH61: 5.92 | AJ61: 6.56 | AL61: 3.68
B62: 56 | C62: 1000171347 | D62: Governed Portfolio Enhanced Annuity / DD (Tracker) (TLS-8) | E62: 7.65223 | F62: -0.35 | G62: 14.94 | H62: 4.03 | I62: 11.35 | J62: -5.26 | K62: 13.14 | L62: 10 | M62: 7.37 | N62: 7.49 | P62: -0.43 | Q62: 12.74 | R62: 5.82 | S62: 11.31 | T62: -5.16 | U62: 12.93 | V62: 9.91 | W62: 7.29 | X62: 7.52 | Z62: -0.67 | AA62: 12.38 | AB62: 6.47 | AC62: 11.94 | AD62: -5.92 | AE62: 13.01 | AF62: 10.24 | AG62: 7.33 | AH62: 7.52 | AJ62: 7.75 | AL62: 7.9
B63: 57 | C63: 1000137956 | D63: Governed Portfolio Enhanced Annuity / DD Benchmark (1% AMC) (TLS-8) | E63: 7.10443 | F63: 1.22 | G63: 15.69 | H63: 5.29 | I63: 10.76 | J63: -3.53 | K63: 11.69 | L63: 10.49 | M63: 7.77 | N63: 7.48 | P63: -0.06 | Q63: 14.24 | R63: 5.6 | S63: 11.43 | T63: -4.79 | U63: 12.01 | V63: 10.36 | W63: 7.47 | X63: 7.38 | Z63: -0.12 | AA63: 13.05 | AB63: 6.5 | AC63: 11.62 | AD63: -5.06 | AE63: 12.23 | AF63: 10.36 | AG63: 7.45 | AH63: 7.4 | AJ63: 7.63 | AL63: 7.98
B64: 58 | C64: 1000116896 | D64: Governed Portfolio Enhanced Benchmark (1% AMC) | E64: 7.10529 | F64: 1.22 | G64: 15.69 | H64: 5.29 | I64: 10.72 | J64: -3.92 | K64: 11.8 | L64: 10.48 | M64: 7.69 | N64: 7.38 | O64: 7.11 | P64: -0.06 | Q64: 14.24 | R64: 5.6 | S64: 11.37 | T64: -5.12 | U64: 12.08 | V64: 10.34 | W64: 7.4 | X64: 7.28 | Y64: 7.03 | Z64: -0.12 | AA64: 13.05 | AB64: 6.5 | AC64: 11.55 | AD64: -5.37 | AE64: 12.27 | AF64: 10.34 | AG64: 7.37 | AH64: 7.29 | AI64: 7.03 | AJ64: 7.57 | AK64: 8.16 | AL64: 7.88
B65: 59 | C65: 1000292160 | D65: Governed Portfolio Enhanced Benchmark (1% AMC) (For Broadridge Factsheets) | E65: 7.10088 | F65: 1.22 | G65: 15.7 | H65: 5.3 | I65: 10.73 | J65: -3.92 | K65: 11.8 | L65: 10.48 | M65: 7.69 | N65: 7.38 | O65: 7.11 | P65: -0.06 | Q65: 14.25 | R65: 5.61 | S65: 11.38 | T65: -5.12 | U65: 12.08 | V65: 10.34 | W65: 7.4 | X65: 7.28 | Y65: 7.03 | Z65: -0.12 | AA65: 13.05 | AB65: 6.5 | AC65: 11.56 | AD65: -5.37 | AE65: 12.27 | AF65: 10.35 | AG65: 7.37 | AH65: 7.3 | AI65: 7.03 | AJ65: 7.57 | AK65: 8.16 | AL65: 7.89
B66: 60 | C66: 1000116900 | D66: Governed Portfolio Enhanced Benchmark (1% AMC) (TLS-8) | E66: 7.10365 | F66: 1.22 | G66: 15.69 | H66: 5.29 | I66: 10.8 | J66: -3.24 | K66: 11.73 | L66: 10.5 | M66: 7.84 | N66: 7.49 | O66: 7.11 | P66: -0.06 | Q66: 14.24 | R66: 5.6 | S66: 11.47 | T66: -4.52 | U66: 12.06 | V66: 10.37 | W66: 7.54 | X66: 7.38 | Y66: 7.03 | Z66: -0.12 | AA66: 13.05 | AB66: 6.5 | AC66: 11.66 | AD66: -4.8 | AE66: 12.29 | AF66: 10.38 | AG66: 7.53 | AH66: 7.4 | AI66: 7.03 | AJ66: 7.6 | AK66: 8.22 | AL66: 8.07
B67: 61 | C67: 1000105402 | D67: Governed Portfolio Growth | E67: 6.55968 | F67: 0.1 | G67: 12.56 | H67: 3.21 | I67: 10.72 | J67: -5.67 | K67: 11.13 | L67: 8.74 | M67: 6.16 | N67: 6.32 | O67: 6.47 | P67: -0.05 | Q67: 10.93 | R67: 4.52 | S67: 10.65 | T67: -5.37 | U67: 10.8 | V67: 8.65 | W67: 6.11 | X67: 6.3 | Y67: 6.46 | Z67: -0.38 | AA67: 10.37 | AB67: 4.93 | AC67: 11.37 | AD67: -6.11 | AE67: 11.08 | AF67: 8.86 | AG67: 6.11 | AH67: 6.35 | AI67: 6.47 | AJ67: 6.76 | AK67: 7.44 | AL67: 6.43
B68: 62 | C68: 1000110747 | D68: Governed Portfolio Growth (Active) (TLS-1) (SGR) | E68: 7.78836 | F68: -1.47 | G68: 10.95 | H68: 0.94 | I68: 9.91 | J68: -9.81 | K68: 2.99 | L68: 7.16 | M68: 2.71 | N68: 4.91 | O68: 5.66 | P68: -1.47 | Q68: 9.52 | R68: 2.24 | S68: 9.94 | T68: -9.74 | U68: 2.98 | V68: 7.17 | W68: 2.73 | X68: 4.97 | Y68: 5.69 | Z68: -1.49 | AA68: 9.25 | AB68: 2.73 | AC68: 10.62 | AD68: -10.2 | AE68: 2.41 | AF68: 7.48 | AG68: 2.69 | AH68: 4.96 | AI68: 5.67 | AJ68: 5.78 | AK68: 6.53 | AL68: 2.79
B69: 63 | C69: 1000110751 | D69: Governed Portfolio Growth (Active) (TLS-5) | E69: 7.78349 | F69: -1.47 | G69: 10.95 | H69: 0.94 | I69: 10.06 | J69: -8.7 | K69: 2.68 | L69: 7.21 | M69: 2.93 | N69: 5.04 | O69: 5.63 | P69: -1.47 | Q69: 9.52 | R69: 2.24 | S69: 10.13 | T69: -8.73 | U69: 2.71 | V69: 7.23 | W69: 2.94 | X69: 5.1 | Y69: 5.65 | Z69: -1.49 | AA69: 9.25 | AB69: 2.73 | AC69: 10.82 | AD69: -9.2 | AE69: 2.21 | AF69: 7.55 | AG69: 2.91 | AH69: 5.09 | AI69: 5.64 | AJ69: 5.8 | AK69: 6.62 | AL69: 3.07
B70: 64 | C70: 1000290989 | D70: Governed Portfolio Growth (TLS-AN-5) | E70: 6.62049 | F70: 0.15 | G70: 12.78 | H70: 3.18 | I70: 10.62 | J70: -6.4 | K70: 10.96 | L70: 8.77 | M70: 5.98 | N70: 6.29 | P70: -0.07 | Q70: 11.13 | R70: 4.48 | S70: 10.51 | T70: -6.05 | U70: 10.62 | V70: 8.66 | W70: 5.92 | X70: 6.26 | Z70: -0.37 | AA70: 10.52 | AB70: 4.91 | AC70: 11.24 | AD70: -6.79 | AE70: 10.84 | AF70: 8.86 | AG70: 5.91 | AH70: 6.31 | AJ70: 6.77 | AL70: 6.21
B71: 65 | C71: 1000290962 | D71: Governed Portfolio Growth (TLS-CA-5) | E71: 6.6165 | F71: 0.15 | G71: 12.78 | H71: 3.11 | I71: 10.72 | J71: -5.67 | K71: 11.13 | L71: 8.78 | M71: 6.18 | N71: 6.33 | O71: 6.47 | P71: -0.07 | Q71: 11.13 | R71: 4.41 | S71: 10.65 | T71: -5.37 | U71: 10.8 | V71: 8.68 | W71: 6.12 | X71: 6.3 | Y71: 6.46 | Z71: -0.37 | AA71: 10.52 | AB71: 4.84 | AC71: 11.37 | AD71: -6.11 | AE71: 11.08 | AF71: 8.88 | AG71: 6.12 | AH71: 6.35 | AI71: 6.48 | AJ71: 6.77 | AK71: 7.45 | AL71: 6.45
B72: 66 | C72: 1000171372 | D72: Governed Portfolio Growth (TLS-DD-5) | E72: 6.61214 | F72: 0.15 | G72: 12.78 | H72: 3.19 | I72: 10.62 | J72: -6.4 | K72: 10.96 | L72: 8.78 | M72: 5.98 | N72: 6.29 | P72: -0.07 | Q72: 11.13 | R72: 4.5 | S72: 10.51 | T72: -6.05 | U72: 10.62 | V72: 8.66 | W72: 5.93 | X72: 6.26 | Z72: -0.37 | AA72: 10.52 | AB72: 4.93 | AC72: 11.24 | AD72: -6.79 | AE72: 10.84 | AF72: 8.87 | AG72: 5.92 | AH72: 6.31 | AJ72: 6.77 | AL72: 6.22
B73: 67 | C73: 1000110736 | D73: Governed Portfolio Growth (Tracker) (TLS-1) (SGR) | E73: 6.71429 | F73: -0.11 | G73: 12.86 | H73: 3.7 | I73: 9.68 | J73: -7.25 | K73: 10.99 | L73: 8.67 | M73: 5.73 | N73: 6.19 | O73: 6.49 | P73: -0.21 | Q73: 11.08 | R73: 5.12 | S73: 9.57 | T73: -6.96 | U73: 10.71 | V73: 8.55 | W73: 5.67 | X73: 6.21 | Y73: 6.5 | Z73: -0.49 | AA73: 10.72 | AB73: 5.6 | AC73: 10.1 | AD73: -7.58 | AE73: 10.58 | AF73: 8.79 | AG73: 5.64 | AH73: 6.2 | AI73: 6.5 | AJ73: 6.71 | AK73: 7.53 | AL73: 6.01
B74: 68 | C74: 1000110741 | D74: Governed Portfolio Growth (Tracker) (TLS-5) | E74: 6.71127 | F74: -0.11 | G74: 12.86 | H74: 3.69 | I74: 9.86 | J74: -6 | K74: 11.03 | L74: 8.73 | M74: 6.05 | N74: 6.35 | O74: 6.48 | P74: -0.21 | Q74: 11.08 | R74: 5.11 | S74: 9.78 | T74: -5.79 | U74: 10.78 | V74: 8.62 | W74: 5.99 | X74: 6.37 | Y74: 6.49 | Z74: -0.49 | AA74: 10.72 | AB74: 5.6 | AC74: 10.33 | AD74: -6.42 | AE74: 10.74 | AF74: 8.87 | AG74: 5.98 | AH74: 6.36 | AI74: 6.49 | AJ74: 6.75 | AK74: 7.66 | AL74: 6.41
B75: 69 | C75: 1000172865 | D75: Governed Portfolio Growth Annuity / DD (Active) (TLS-5) | E75: 7.78678 | F75: -1.47 | G75: 10.95 | H75: 0.94 | I75: 9.96 | J75: -9.41 | K75: 2.52 | L75: 7.18 | M75: 2.72 | N75: 4.99 | P75: -1.47 | Q75: 9.52 | R75: 2.24 | S75: 9.99 | T75: -9.39 | U75: 2.54 | V75: 7.18 | W75: 2.73 | X75: 5.04 | Z75: -1.49 | AA75: 9.25 | AB75: 2.73 | AC75: 10.7 | AD75: -9.87 | AE75: 1.98 | AF75: 7.51 | AG75: 2.69 | AH75: 5.04 | AJ75: 5.8 | AL75: 2.82
B76: 70 | C76: 1000171293 | D76: Governed Portfolio Growth Annuity / DD (Tracker) (TLS-5) | E76: 6.71261 | F76: -0.11 | G76: 12.86 | H76: 3.69 | I76: 9.76 | J76: -6.72 | K76: 10.86 | L76: 8.7 | M76: 5.84 | N76: 6.3 | P76: -0.21 | Q76: 11.08 | R76: 5.11 | S76: 9.64 | T76: -6.47 | U76: 10.6 | V76: 8.57 | W76: 5.77 | X76: 6.32 | Z76: -0.49 | AA76: 10.72 | AB76: 5.6 | AC76: 10.2 | AD76: -7.1 | AE76: 10.5 | AF76: 8.82 | AG76: 5.76 | AH76: 6.31 | AJ76: 6.75 | AL76: 6.16
B77: 71 | C77: 1000137953 | D77: Governed Portfolio Growth Annuity / DD Benchmark (1% AMC) (TLS-5) | E77: 6.26334 | F77: 1.12 | G77: 13.38 | H77: 4.65 | I77: 9.13 | J77: -5.5 | K77: 9.51 | L77: 8.98 | M77: 6.02 | N77: 6.18 | P77: 0.04 | Q77: 12.22 | R77: 4.87 | S77: 9.66 | T77: -6.41 | U77: 9.68 | V77: 8.86 | W77: 5.78 | X77: 6.11 | Z77: -0.07 | AA77: 11.26 | AB77: 5.56 | AC77: 9.75 | AD77: -6.59 | AE77: 9.71 | AF77: 8.84 | AG77: 5.73 | AH77: 6.11 | AJ77: 6.52 | AL77: 6.07
B78: 72 | C78: 1000116897 | D78: Governed Portfolio Growth Benchmark (1% AMC) | E78: 6.25978 | F78: 1.12 | G78: 13.38 | H78: 4.65 | I78: 9.25 | J78: -4.65 | K78: 9.62 | L78: 9.02 | M78: 6.26 | N78: 6.22 | O78: 6.31 | P78: 0.04 | Q78: 12.22 | R78: 4.87 | S78: 9.79 | T78: -5.61 | U78: 9.82 | V78: 8.91 | W78: 6.02 | X78: 6.14 | Y78: 6.24 | Z78: -0.07 | AA78: 11.26 | AB78: 5.56 | AC78: 9.89 | AD78: -5.79 | AE78: 9.89 | AF78: 8.88 | AG78: 5.97 | AH78: 6.14 | AI78: 6.23 | AJ78: 6.5 | AK78: 7.31 | AL78: 6.35
B79: 73 | C79: 1000292159 | D79: Governed Portfolio Growth Benchmark (1% AMC) (For Broadridge Factsheet) | E79: 6.25978 | F79: 1.12 | G79: 13.38 | H79: 4.65 | I79: 9.25 | J79: -4.65 | K79: 9.62 | L79: 9.02 | M79: 6.26 | N79: 6.22 | O79: 6.31 | P79: 0.04 | Q79: 12.22 | R79: 4.87 | S79: 9.79 | T79: -5.61 | U79: 9.82 | V79: 8.91 | W79: 6.02 | X79: 6.14 | Y79: 6.24 | Z79: -0.07 | AA79: 11.26 | AB79: 5.56 | AC79: 9.89 | AD79: -5.79 | AE79: 9.89 | AF79: 8.88 | AG79: 5.97 | AH79: 6.14 | AI79: 6.23 | AJ79: 6.5 | AK79: 7.31 | AL79: 6.35
B80: 74 | C80: 1000116893 | D80: Governed Portfolio Growth Benchmark (1% AMC) (TLS-1) | E80: 6.26564 | F80: 1.12 | G80: 13.38 | H80: 4.65 | I80: 9.06 | J80: -6.08 | K80: 9.59 | L80: 8.96 | M80: 5.9 | N80: 6.09 | O80: 6.32 | P80: 0.04 | Q80: 12.22 | R80: 4.87 | S80: 9.57 | T80: -6.91 | U80: 9.71 | V80: 8.84 | W80: 5.66 | X80: 6.02 | Y80: 6.26 | Z80: -0.07 | AA80: 11.26 | AB80: 5.56 | AC80: 9.66 | AD80: -7.08 | AE80: 9.7 | AF80: 8.81 | AG80: 5.6 | AH80: 6.02 | AI80: 6.25 | AJ80: 6.5 | AK80: 7.25 | AL80: 5.92
B81: 75 | C81: 1000105390 | D81: Governed Portfolio Moderate | E81: 5.46466 | F81: 0.23 | G81: 10.71 | H81: 3.25 | I81: 8.65 | J81: -6.53 | K81: 8.96 | L81: 7.48 | M81: 4.81 | N81: 5.21 | O81: 5.72 | P81: 0.08 | Q81: 9.51 | R81: 4.19 | S81: 8.49 | T81: -6.11 | U81: 8.61 | V81: 7.36 | W81: 4.76 | X81: 5.19 | Y81: 5.72 | Z81: -0.25 | AA81: 9.02 | AB81: 4.46 | AC81: 9.1 | AD81: -6.73 | AE81: 8.65 | AF81: 7.51 | AG81: 4.72 | AH81: 5.23 | AI81: 5.72 | AJ81: 5.76 | AK81: 6.59 | AL81: 4.91
B82: 76 | C82: 1000110748 | D82: Governed Portfolio Moderate (Active) (TLS-2) | E82: 6.36253 | F82: -1 | G82: 9.45 | H82: 1.54 | I82: 8.15 | J82: -8.86 | K82: 2.51 | L82: 6.32 | M82: 2.35 | N82: 4.23 | O82: 5.08 | P82: -1.02 | Q82: 8.39 | R82: 2.49 | S82: 8.09 | T82: -8.7 | U82: 2.44 | V82: 6.29 | W82: 2.35 | X82: 4.28 | Y82: 5.1 | Z82: -1.11 | AA82: 8.13 | AB82: 2.82 | AC82: 8.69 | AD82: -9.11 | AE82: 1.9 | AF82: 6.52 | AG82: 2.28 | AH82: 4.26 | AI82: 5.07 | AJ82: 5.02 | AK82: 5.96 | AL82: 2.35
B83: 77 | C83: 1000110755 | D83: Governed Portfolio Moderate (Active) (TLS-9) | E83: 6.34763 | F83: -1 | G83: 9.45 | H83: 1.52 | I83: 8.46 | J83: -6.79 | K83: 2.78 | L83: 6.41 | M83: 2.91 | N83: 4.44 | O83: 4.8 | P83: -1.02 | Q83: 8.39 | R83: 2.47 | S83: 8.5 | T83: -6.79 | U83: 2.77 | V83: 6.41 | W83: 2.91 | X83: 4.48 | Y83: 4.82 | Z83: -1.11 | AA83: 8.13 | AB83: 2.8 | AC83: 9.09 | AD83: -7.19 | AE83: 2.35 | AF83: 6.64 | AG83: 2.87 | AH83: 4.47 | AI83: 4.8 | AJ83: 4.95 | AK83: 5.76 | AL83: 3.02
B84: 78 | C84: 1000290990 | D84: Governed Portfolio Moderate (TLS-AN-2) | E84: 5.46973 | F84: 0.24 | G84: 10.7 | H84: 3.23 | I84: 8.46 | J84: -7.96 | K84: 8.69 | L84: 7.41 | M84: 4.39 | N84: 5.12 | P84: 0.08 | Q84: 9.46 | R84: 4.15 | S84: 8.23 | T84: -7.44 | U84: 8.31 | V84: 7.25 | W84: 4.34 | X84: 5.09 | Z84: -0.24 | AA84: 9 | AB84: 4.46 | AC84: 8.87 | AD84: -8.07 | AE84: 8.23 | AF84: 7.43 | AG84: 4.29 | AH84: 5.13 | AJ84: 5.75 | AL84: 4.42
B85: 79 | C85: 1000290991 | D85: Governed Portfolio Moderate (TLS-AN-9) | E85: 5.46519 | F85: 0.24 | G85: 10.7 | H85: 3.23 | I85: 8.62 | J85: -6.98 | K85: 9.11 | L85: 7.46 | M85: 4.73 | N85: 5.31 | P85: 0.08 | Q85: 9.46 | R85: 4.15 | S85: 8.41 | T85: -6.5 | U85: 8.75 | V85: 7.31 | W85: 4.67 | X85: 5.29 | Z85: -0.24 | AA85: 9 | AB85: 4.46 | AC85: 9.05 | AD85: -7.15 | AE85: 8.74 | AF85: 7.49 | AG85: 4.63 | AH85: 5.33 | AJ85: 5.75 | AL85: 4.8
B86: 80 | C86: 1000290963 | D86: Governed Portfolio Moderate (TLS-CA-2) | E86: 5.46307 | F86: 0.24 | G86: 10.7 | H86: 3.23 | I86: 8.65 | J86: -6.53 | K86: 8.96 | L86: 7.47 | M86: 4.8 | N86: 5.21 | O86: 5.72 | P86: 0.08 | Q86: 9.46 | R86: 4.15 | S86: 8.49 | T86: -6.11 | U86: 8.61 | V86: 7.33 | W86: 4.75 | X86: 5.18 | Y86: 5.71 | Z86: -0.24 | AA86: 9 | AB86: 4.46 | AC86: 9.1 | AD86: -6.73 | AE86: 8.65 | AF86: 7.51 | AG86: 4.71 | AH86: 5.22 | AI86: 5.71 | AJ86: 5.75 | AK86: 6.59 | AL86: 4.91
B87: 81 | C87: 1000105419 | D87: Governed Portfolio Moderate (TLS-CA-9) | E87: 5.45825 | F87: 0.24 | G87: 10.7 | H87: 3.23 | I87: 8.99 | J87: -4.3 | K87: 9.6 | L87: 7.59 | M87: 5.49 | N87: 5.45 | O87: 5.47 | P87: 0.08 | Q87: 9.46 | R87: 4.15 | S87: 8.93 | T87: -4.02 | U87: 9.3 | V87: 7.48 | W87: 5.43 | X87: 5.42 | Y87: 5.45 | Z87: -0.24 | AA87: 9 | AB87: 4.46 | AC87: 9.53 | AD87: -4.65 | AE87: 9.51 | AF87: 7.65 | AG87: 5.43 | AH87: 5.46 | AI87: 5.46 | AJ87: 5.7 | AK87: 6.41 | AL87: 5.71
B88: 82 | C88: 1000171367 | D88: Governed Portfolio Moderate (TLS-DD-2) | E88: 5.46973 | F88: 0.24 | G88: 10.7 | H88: 3.23 | I88: 8.46 | J88: -7.96 | K88: 8.69 | L88: 7.41 | M88: 4.39 | N88: 5.12 | P88: 0.08 | Q88: 9.46 | R88: 4.15 | S88: 8.23 | T88: -7.44 | U88: 8.31 | V88: 7.25 | W88: 4.34 | X88: 5.09 | Z88: -0.24 | AA88: 9 | AB88: 4.46 | AC88: 8.87 | AD88: -8.07 | AE88: 8.23 | AF88: 7.43 | AG88: 4.29 | AH88: 5.13 | AJ88: 5.75 | AL88: 4.42
B89: 83 | C89: 1000171371 | D89: Governed Portfolio Moderate (TLS-DD-9) | E89: 5.46519 | F89: 0.24 | G89: 10.7 | H89: 3.23 | I89: 8.62 | J89: -6.98 | K89: 9.11 | L89: 7.46 | M89: 4.73 | N89: 5.31 | P89: 0.08 | Q89: 9.46 | R89: 4.15 | S89: 8.41 | T89: -6.5 | U89: 8.75 | V89: 7.31 | W89: 4.67 | X89: 5.29 | Z89: -0.24 | AA89: 9 | AB89: 4.46 | AC89: 9.05 | AD89: -7.15 | AE89: 8.74 | AF89: 7.49 | AG89: 4.63 | AH89: 5.33 | AJ89: 5.75 | AL89: 4.8
B90: 84 | C90: 1000110737 | D90: Governed Portfolio Moderate (Tracker) (TLS-2) | E90: 5.57165 | F90: 0.06 | G90: 10.93 | H90: 3.62 | I90: 8.02 | J90: -6.78 | K90: 8.88 | L90: 7.48 | M90: 4.73 | N90: 5.24 | O90: 5.73 | P90: -0.05 | Q90: 9.61 | R90: 4.65 | S90: 7.85 | T90: -6.44 | U90: 8.59 | V90: 7.34 | W90: 4.68 | X90: 5.26 | Y90: 5.74 | Z90: -0.33 | AA90: 9.28 | AB90: 4.97 | AC90: 8.35 | AD90: -6.97 | AE90: 8.4 | AF90: 7.52 | AG90: 4.62 | AH90: 5.24 | AI90: 5.73 | AJ90: 5.75 | AK90: 6.75 | AL90: 4.9
B91: 85 | C91: 1000110746 | D91: Governed Portfolio Moderate (Tracker) (TLS-9) | E91: 5.5664 | F91: 0.06 | G91: 10.93 | H91: 3.62 | I91: 8.36 | J91: -4.56 | K91: 9.53 | L91: 7.59 | M91: 5.42 | N91: 5.48 | O91: 5.48 | P91: -0.05 | Q91: 9.61 | R91: 4.65 | S91: 8.28 | T91: -4.36 | U91: 9.29 | V91: 7.49 | W91: 5.36 | X91: 5.49 | Y91: 5.48 | Z91: -0.33 | AA91: 9.28 | AB91: 4.97 | AC91: 8.77 | AD91: -4.9 | AE91: 9.25 | AF91: 7.66 | AG91: 5.33 | AH91: 5.48 | AI91: 5.47 | AJ91: 5.7 | AK91: 6.58 | AL91: 5.7
B92: 86 | C92: 1000172863 | D92: Governed Portfolio Moderate Annuity / DD (Active) (TLS-2) | E92: 6.36664 | F92: -1 | G92: 9.45 | H92: 1.52 | I92: 7.96 | J92: -10.26 | K92: 2.37 | L92: 6.25 | M92: 1.96 | N92: 4.15 | P92: -1.02 | Q92: 8.39 | R92: 2.47 | S92: 7.83 | T92: -10.01 | U92: 2.27 | V92: 6.19 | W92: 1.97 | X92: 4.19 | Z92: -1.11 | AA92: 8.13 | AB92: 2.8 | AC92: 8.46 | AD92: -10.43 | AE92: 1.62 | AF92: 6.44 | AG92: 1.87 | AH92: 4.18 | AJ92: 5.03 | AL92: 1.89
B93: 87 | C93: 1000172868 | D93: Governed Portfolio Moderate Annuity / DD (Active) (TLS-9) | E93: 6.3611 | F93: -1 | G93: 9.45 | H93: 1.52 | I93: 8.08 | J93: -9.43 | K93: 2.29 | L93: 6.29 | M93: 2.16 | N93: 4.3 | P93: -1.02 | Q93: 8.39 | R93: 2.47 | S93: 7.98 | T93: -9.23 | U93: 2.22 | V93: 6.24 | W93: 2.16 | X93: 4.34 | Z93: -1.11 | AA93: 8.13 | AB93: 2.8 | AC93: 8.61 | AD93: -9.65 | AE93: 1.6 | AF93: 6.48 | AG93: 2.08 | AH93: 4.33 | AJ93: 4.99 | AL93: 2.12
B94: 88 | C94: 1000171292 | D94: Governed Portfolio Moderate Annuity / DD (Tracker) (TLS-2) | E94: 5.57696 | F94: 0.06 | G94: 10.93 | H94: 3.62 | I94: 7.83 | J94: -8.2 | K94: 8.61 | L94: 7.41 | M94: 4.32 | N94: 5.15 | P94: -0.05 | Q94: 9.61 | R94: 4.65 | S94: 7.59 | T94: -7.77 | U94: 8.3 | V94: 7.26 | W94: 4.27 | X94: 5.16 | Z94: -0.33 | AA94: 9.28 | AB94: 4.97 | AC94: 8.11 | AD94: -8.31 | AE94: 7.98 | AF94: 7.44 | AG94: 4.19 | AH94: 5.15 | AJ94: 5.76 | AL94: 4.41
B95: 89 | C95: 1000171348 | D95: Governed Portfolio Moderate Annuity / DD (Tracker) (TLS-9) | E95: 5.57229 | F95: 0.06 | G95: 10.93 | H95: 3.62 | I95: 7.99 | J95: -7.24 | K95: 9.03 | L95: 7.46 | M95: 4.65 | N95: 5.34 | P95: -0.05 | Q95: 9.61 | R95: 4.65 | S95: 7.76 | T95: -6.85 | U95: 8.73 | V95: 7.32 | W95: 4.6 | X95: 5.36 | Z95: -0.33 | AA95: 9.28 | AB95: 4.97 | AC95: 8.29 | AD95: -7.4 | AE95: 8.48 | AF95: 7.5 | AG95: 4.53 | AH95: 5.34 | AJ95: 5.75 | AL95: 4.79
B96: 90 | C96: 1000137951 | D96: Governed Portfolio Moderate Annuity / DD Benchmark (1% AMC) (TLS-2) | E96: 5.19818 | F96: 1 | G96: 11.22 | H96: 4.29 | I96: 7.15 | J96: -7.56 | K96: 7.27 | L96: 7.51 | M96: 4.27 | N96: 4.92 | P96: 0.11 | Q96: 10.33 | R96: 4.44 | S96: 7.53 | T96: -8.13 | U96: 7.29 | V96: 7.4 | W96: 4.08 | X96: 4.87 | Z96: 0 | AA96: 9.6 | AB96: 4.93 | AC96: 7.56 | AD96: -8.24 | AE96: 7.15 | AF96: 7.35 | AG96: 3.99 | AH96: 4.86 | AJ96: 5.45 | AL96: 4.14
B97: 91 | C97: 1000137957 | D97: Governed Portfolio Moderate Annuity / DD Benchmark (1% AMC) (TLS-9) | E97: 5.1928 | F97: 1 | G97: 11.22 | H97: 4.29 | I97: 7.26 | J97: -6.93 | K97: 7.74 | L97: 7.55 | M97: 4.52 | N97: 5.04 | P97: 0.11 | Q97: 10.33 | R97: 4.44 | S97: 7.65 | T97: -7.56 | U97: 7.78 | V97: 7.44 | W97: 4.32 | X97: 4.98 | Z97: 0 | AA97: 9.6 | AB97: 4.93 | AC97: 7.68 | AD97: -7.68 | AE97: 7.69 | AF97: 7.39 | AG97: 4.25 | AH97: 4.98 | AJ97: 5.4 | AL97: 4.43
B98: 92 | C98: 1000116894 | D98: Governed Portfolio Moderate Benchmark (1% AMC) | E98: 5.18782 | F98: 1 | G98: 11.22 | H98: 4.29 | I98: 7.37 | J98: -5.99 | K98: 7.47 | L98: 7.58 | M98: 4.7 | N98: 4.99 | O98: 5.49 | P98: 0.11 | Q98: 10.33 | R98: 4.44 | S98: 7.78 | T98: -6.66 | U98: 7.56 | V98: 7.48 | W98: 4.51 | X98: 4.94 | Y98: 5.43 | Z98: 0 | AA98: 9.6 | AB98: 4.93 | AC98: 7.8 | AD98: -6.76 | AE98: 7.48 | AF98: 7.43 | AG98: 4.44 | AH98: 4.93 | AI98: 5.42 | AJ98: 5.43 | AK98: 6.39 | AL98: 4.65
B99: 93 | C99: 1000116901 | D99: Governed Portfolio Moderate Benchmark (1% AMC) (TLS-9) | E99: 5.17662 | F99: 1 | G99: 11.22 | H99: 4.29 | I99: 7.7 | J99: -3.6 | K99: 8.25 | L99: 7.69 | M99: 5.44 | N99: 5.24 | O99: 5.23 | P99: 0.11 | Q99: 10.33 | R99: 4.44 | S99: 8.15 | T99: -4.41 | U99: 8.42 | V99: 7.6 | W99: 5.25 | X99: 5.17 | Y99: 5.17 | Z99: 0 | AA99: 9.6 | AB99: 4.93 | AC99: 8.18 | AD99: -4.51 | AE99: 8.44 | AF99: 7.56 | AG99: 5.2 | AH99: 5.17 | AI99: 5.16 | AJ99: 5.39 | AK99: 6.18 | AL99: 5.5
B100: 94 | C100: 1000289707 | D100: Governed Portfolio Total Equity | F100: -2.11 | G100: 17 | P100: -2.26 | Q100: 14.1 | Z100: -2.45 | AA100: 13.49
B101: 95 | C101: 1000292690 | D101: Governed Portfolio Total Equity (Active) | E101: 12.08762 | F101: -4.81 | G101: 14.04 | H101: -0.41 | I101: 15.75 | J101: -7.94 | K101: -3.39 | L101: 9.54 | M101: 3.17 | N101: 6.83 | O101: 6.7 | P101: -4.69 | Q101: 11.55 | R101: 1.94 | S101: 15.94 | T101: -8.47 | U101: -2.91 | V101: 9.65 | W101: 3.22 | X101: 6.93 | Y101: 6.74 | Z101: -4.34 | AA101: 11.49 | AB101: 2.84 | AC101: 17.09 | AD101: -9.09 | AE101: -3.67 | AF101: 10.33 | AG101: 3.29 | AH101: 6.97 | AI101: 6.76 | AJ101: 7.45 | AK101: 8.05 | AL101: 3.5
B102: 96 | C102: 1000292689 | D102: Governed Portfolio Total Equity (Tracker) | E102: 10.28733 | F102: -2.44 | G102: 17.56 | H102: 4.01 | I102: 15.46 | J102: -3.09 | K102: 10.85 | L102: 12.17 | M102: 8.68 | N102: 9.17 | O102: 8.2 | P102: -2.52 | Q102: 14.38 | R102: 6.61 | S102: 15.39 | T102: -3.25 | U102: 10.92 | V102: 12.05 | W102: 8.59 | X102: 9.21 | Y102: 8.21 | Z102: -2.61 | AA102: 14.14 | AB102: 7.49 | AC102: 16.3 | AD102: -4.15 | AE102: 10.9 | AF102: 12.59 | AG102: 8.69 | AH102: 9.24 | AI102: 8.25 | AJ102: 9.12 | AK102: 9.84 | AL102: 9.38
B103: 97 | C103: 1000293250 | D103: Governed Portfolio Total Equity 15yr (Active) (TLS-Adv/Mod Adv) (Previously GP Dynamic) | E103: 10.5558 | F103: -4.81 | G103: 11.89 | H103: 0.71 | I103: 12.61 | J103: -8.54 | K103: 2.04 | L103: 8.25 | M103: 3.44 | N103: 6.14 | O103: 6.32 | P103: -4.69 | Q103: 9.99 | R103: 2.58 | S103: 12.84 | T103: -8.83 | U103: 2.23 | V103: 8.37 | W103: 3.48 | X103: 6.23 | Y103: 6.35 | Z103: -4.34 | AA103: 10.06 | AB103: 3.32 | AC103: 13.73 | AD103: -9.43 | AE103: 1.7 | AF103: 8.96 | AG103: 3.56 | AH103: 6.27 | AI103: 6.38 | AJ103: 6.96 | AK103: 7.51 | AL103: 3.73
B104: 98 | C104: 1000290960 | D104: Governed Portfolio Total Equity 15yr (TLS-AN-Adv/Mod Adv) (Previously GP Dynamic) | E104: 9.07234 | F104: -2.11 | G104: 15.14 | H104: 3.67 | I104: 13.43 | J104: -4.23 | K104: 13.99 | L104: 10.62 | M104: 8.12 | N104: 8.03 | O104: 7.54 | P104: -2.29 | Q104: 12.84 | R104: 5.58 | S104: 13.47 | T104: -4.08 | U104: 13.7 | V104: 10.56 | W104: 8.07 | X104: 8 | Y104: 7.52 | Z104: -2.47 | AA104: 12.39 | AB104: 6.16 | AC104: 14.38 | AD104: -5.06 | AE104: 14.24 | AF104: 10.93 | AG104: 8.16 | AH104: 8.1 | AI104: 7.58 | AJ104: 8.36 | AK104: 8.71 | AL104: 8.6
B105: 99 | C105: 1000290959 | D105: Governed Portfolio Total Equity 15yr (TLS-CA-Adv/Mod Adv) (Previously GP Dynamic) | E105: 9.07342 | F105: -2.11 | G105: 15.14 | H105: 3.65 | I105: 13.43 | J105: -4.23 | K105: 13.99 | L105: 10.61 | M105: 8.12 | N105: 8.03 | O105: 7.54 | P105: -2.29 | Q105: 12.84 | R105: 5.57 | S105: 13.47 | T105: -4.08 | U105: 13.7 | V105: 10.56 | W105: 8.07 | X105: 8 | Y105: 7.52 | Z105: -2.47 | AA105: 12.39 | AB105: 6.14 | AC105: 14.38 | AD105: -5.06 | AE105: 14.24 | AF105: 10.92 | AG105: 8.16 | AH105: 8.1 | AI105: 7.58 | AJ105: 8.36 | AK105: 8.71 | AL105: 8.6
B106: 100 | C106: 1000290961 | D106: Governed Portfolio Total Equity 15yr (TLS-DD-Adv/Mod Adv) (Previously GP Dynamic) | E106: 9.07234 | F106: -2.11 | G106: 15.14 | H106: 3.67 | I106: 13.43 | J106: -4.23 | K106: 13.99 | L106: 10.62 | M106: 8.12 | N106: 8.03 | O106: 7.54 | P106: -2.29 | Q106: 12.84 | R106: 5.58 | S106: 13.47 | T106: -4.08 | U106: 13.7 | V106: 10.56 | W106: 8.07 | X106: 8 | Y106: 7.52 | Z106: -2.47 | AA106: 12.39 | AB106: 6.16 | AC106: 14.38 | AD106: -5.06 | AE106: 14.24 | AF106: 10.93 | AG106: 8.16 | AH106: 8.1 | AI106: 7.58 | AJ106: 8.36 | AK106: 8.71 | AL106: 8.6
B107: 101 | C107: 1000293248 | D107: Governed Portfolio Total Equity 15yr (Tracker) (TLS-Adv/Mod Adv) (Previously GP Dynamic) | E107: 9.28223 | F107: -2.44 | G107: 15.67 | H107: 4.3 | I107: 12.34 | J107: -4.71 | K107: 13.86 | L107: 10.66 | M107: 8.01 | N107: 8.09 | O107: 7.57 | P107: -2.52 | Q107: 13.13 | R107: 6.35 | S107: 12.35 | T107: -4.69 | U107: 13.67 | V107: 10.56 | W107: 7.93 | X107: 8.12 | Y107: 7.58 | Z107: -2.61 | AA107: 12.97 | AB107: 7.08 | AC107: 13.05 | AD107: -5.51 | AE107: 13.79 | AF107: 11.01 | AG107: 8.02 | AH107: 8.15 | AI107: 7.62 | AJ107: 8.36 | AK107: 9.06 | AL107: 8.6
B108: 102 | C108: 1000293097 | D108: Governed Portfolio Total Equity 15yr Benchmark (1% AMC) (TLS-Adv/Mod Adv) (Previously GP Dynamic) | E108: 8.67084 | F108: 0.05 | G108: 18.01 | H108: 5.72 | I108: 12.12 | J108: -2.7 | K108: 13.03 | L108: 11.83 | M108: 8.99 | N108: 8.42 | O108: 7.71 | P108: -1.57 | Q108: 16.05 | R108: 6.08 | S108: 12.89 | T108: -4.19 | U108: 13.44 | V108: 11.58 | W108: 8.59 | X108: 8.27 | Y108: 7.6 | Z108: -1.65 | AA108: 14.68 | AB108: 7.11 | AC108: 13.14 | AD108: -4.52 | AE108: 13.77 | AF108: 11.61 | AG108: 8.59 | AH108: 8.29 | AI108: 7.6 | AJ108: 8.47 | AK108: 8.94 | AL108: 9.3
B109: 103 | C109: 1000289708 | D109: Governed Portfolio Total Equity Benchmark (1% AMC) | F109: 0.05 | G109: 19.64 | P109: -1.57 | Q109: 17.49 | Z109: -1.65 | AA109: 15.83
B110: 104 | C110: 1000137774 | D110: Governed Retirement Income Portfolio 1 | E110: 3.83226 | F110: 0.53 | G110: 6.46 | H110: 2.95 | I110: 4.97 | J110: -8.3 | K110: 4.12 | L110: 4.78 | M110: 1.89 | N110: 3 | P110: 0.33 | Q110: 6.13 | R110: 3.04 | S110: 4.65 | T110: -7.69 | U110: 3.73 | V110: 4.59 | W110: 1.84 | X110: 2.99 | Z110: -0.08 | AA110: 5.72 | AB110: 2.94 | AC110: 5.05 | AD110: -8.01 | AE110: 3.34 | AF110: 4.57 | AG110: 1.68 | AH110: 2.95 | AJ110: 3.33 | AL110: 1.6
B111: 105 | C111: 1000209090 | D111: Governed Retirement Income Portfolio 1 (Active) | E111: 4.08398 | F111: 0.14 | G111: 6.01 | H111: 2.32 | I111: 4.76 | J111: -9.05 | K111: 2.03 | L111: 4.35 | M111: 1.06 | N111: 2.67 | P111: -0.04 | Q111: 5.72 | R111: 2.41 | S111: 4.47 | T111: -8.53 | U111: 1.73 | V111: 4.19 | W111: 1.03 | X111: 2.67 | Z111: -0.38 | AA111: 5.38 | AB111: 2.34 | AC111: 4.87 | AD111: -8.78 | AE111: 1.17 | AF111: 4.19 | AG111: 0.86 | AH111: 2.62 | AL111: 0.74
B112: 106 | C112: 1000290994 | D112: Governed Retirement Income Portfolio 1 (TLS-DD-1) | E112: 3.86243 | F112: 0.29 | G112: 6.24 | H112: 2.91 | I112: 4.97 | J112: -8.3 | K112: 4.12 | L112: 4.69 | M112: 1.84 | N112: 2.98 | P112: 0.19 | Q112: 5.92 | R112: 3.01 | S112: 4.65 | T112: -7.69 | U112: 3.73 | V112: 4.52 | W112: 1.8 | X112: 2.96 | Z112: -0.29 | AA112: 5.52 | AB112: 2.91 | AC112: 5.05 | AD112: -8.01 | AE112: 3.34 | AF112: 4.49 | AG112: 1.64 | AH112: 2.93 | AJ112: 3.32 | AL112: 1.55
B113: 107 | C113: 1000209091 | D113: Governed Retirement Income Portfolio 1 (Tracker) | E113: 3.84948 | F113: 0.47 | G113: 6.51 | H113: 3.06 | I113: 4.73 | J113: -8.38 | K113: 4.09 | L113: 4.76 | M113: 1.86 | N113: 3 | P113: 0.28 | Q113: 6.15 | R113: 3.18 | S113: 4.4 | T113: -7.79 | U113: 3.72 | V113: 4.56 | W113: 1.8 | X113: 2.99 | Z113: -0.12 | AA113: 5.79 | AB113: 3.11 | AC113: 4.76 | AD113: -8.08 | AE113: 3.26 | AF113: 4.55 | AG113: 1.64 | AH113: 2.94 | AL113: 1.58
B114: 108 | C114: 1000137825 | D114: Governed Retirement Income Portfolio 1 Benchmark (1% AMC) | E114: 3.75384 | F114: 0.64 | G114: 6.15 | H114: 2.66 | I114: 3.68 | J114: -9.09 | K114: 2.27 | L114: 4.15 | M114: 0.99 | N114: 2.21 | P114: 0.21 | Q114: 5.84 | R114: 2.62 | S114: 3.8 | T114: -9.12 | U114: 2.13 | V114: 4.07 | W114: 0.91 | X114: 2.21 | Z114: -0.01 | AA114: 5.59 | AB114: 2.65 | AC114: 3.64 | AD114: -9.04 | AE114: 1.69 | AF114: 3.96 | AG114: 0.77 | AH114: 2.17 | AJ114: 2.65 | AL114: 0.58
B115: 109 | C115: 1000137775 | D115: Governed Retirement Income Portfolio 2 | E115: 4.45391 | F115: 0.37 | G115: 8 | H115: 2.96 | I115: 6.4 | J115: -7.22 | K115: 6.03 | L115: 5.76 | M115: 3.08 | N115: 3.98 | P115: 0.17 | Q115: 7.36 | R115: 3.35 | S115: 6.18 | T115: -6.73 | U115: 5.66 | V115: 5.61 | W115: 3.03 | X115: 3.96 | Z115: -0.2 | AA115: 6.92 | AB115: 3.37 | AC115: 6.64 | AD115: -7.13 | AE115: 5.47 | AF115: 5.64 | AG115: 2.92 | AH115: 3.94 | AJ115: 4.39 | AL115: 2.94
B116: 110 | C116: 1000209092 | D116: Governed Retirement Income Portfolio 2 (Active) | E116: 4.92138 | F116: -0.31 | G116: 7.3 | H116: 1.91 | I116: 6.09 | J116: -8.5 | K116: 2.51 | L116: 5.07 | M116: 1.7 | N116: 3.42 | P116: -0.45 | Q116: 6.73 | R116: 2.3 | S116: 5.93 | T116: -8.15 | U116: 2.29 | V116: 4.96 | W116: 1.67 | X116: 3.43 | Z116: -0.69 | AA116: 6.41 | AB116: 2.36 | AC116: 6.38 | AD116: -8.44 | AE116: 1.79 | AF116: 5.04 | AG116: 1.55 | AH116: 3.39 | AL116: 1.51
B117: 111 | C117: 1000290995 | D117: Governed Retirement Income Portfolio 2 (TLS-DD-2) | E117: 4.43582 | F117: 0.36 | G117: 7.92 | H117: 2.97 | I117: 6.4 | J117: -7.22 | K117: 6.03 | L117: 5.73 | M117: 3.06 | N117: 3.97 | P117: 0.18 | Q117: 7.31 | R117: 3.37 | S117: 6.18 | T117: -6.73 | U117: 5.66 | V117: 5.6 | W117: 3.02 | X117: 3.95 | Z117: -0.18 | AA117: 6.83 | AB117: 3.4 | AC117: 6.64 | AD117: -7.13 | AE117: 5.47 | AF117: 5.62 | AG117: 2.9 | AH117: 3.93 | AJ117: 4.38 | AL117: 2.92
B118: 112 | C118: 1000209093 | D118: Governed Retirement Income Portfolio 2 (Tracker) | E118: 4.49307 | F118: 0.27 | G118: 8.12 | H118: 3.17 | I118: 6.03 | J118: -7.35 | K118: 5.99 | L118: 5.75 | M118: 3.03 | N118: 3.98 | P118: 0.09 | Q118: 7.41 | R118: 3.6 | S118: 5.8 | T118: -6.9 | U118: 5.65 | V118: 5.59 | W118: 2.98 | X118: 3.98 | Z118: -0.26 | AA118: 7.06 | AB118: 3.65 | AC118: 6.2 | AD118: -7.26 | AE118: 5.34 | AF118: 5.63 | AG118: 2.86 | AH118: 3.94 | AL118: 2.92
B119: 113 | C119: 1000137826 | D119: Governed Retirement Income Portfolio 2 Benchmark (1% AMC) | E119: 4.35626 | F119: 0.68 | G119: 7.97 | H119: 2.98 | I119: 5.03 | J119: -7.68 | K119: 4.08 | L119: 5.3 | M119: 2.33 | N119: 3.19 | P119: 0.08 | Q119: 7.45 | R119: 3.01 | S119: 5.26 | T119: -7.94 | U119: 4.03 | V119: 5.22 | W119: 2.21 | X119: 3.17 | Z119: -0.12 | AA119: 7.03 | AB119: 3.19 | AC119: 5.17 | AD119: -7.92 | AE119: 3.72 | AF119: 5.12 | AG119: 2.1 | AH119: 3.14 | AJ119: 3.63 | AL119: 2.05
B120: 114 | C120: 1000137776 | D120: Governed Retirement Income Portfolio 3 | E120: 4.92526 | F120: 0.3 | G120: 9.17 | H120: 3.04 | I120: 7.36 | J120: -6.43 | K120: 7.16 | L120: 6.49 | M120: 3.9 | N120: 4.76 | P120: 0.11 | Q120: 8.35 | R120: 3.59 | S120: 7.2 | T120: -6.01 | U120: 6.8 | V120: 6.35 | W120: 3.85 | X120: 4.73 | Z120: -0.26 | AA120: 7.89 | AB120: 3.68 | AC120: 7.72 | AD120: -6.48 | AE120: 6.74 | AF120: 6.42 | AG120: 3.76 | AH120: 4.73 | AJ120: 5.31 | AL120: 3.92
B121: 115 | C121: 1000209094 | D121: Governed Retirement Income Portfolio 3 (Active) | E121: 5.53063 | F121: -0.64 | G121: 8.15 | H121: 1.77 | I121: 6.99 | J121: -8.11 | K121: 2.56 | L121: 5.59 | M121: 2.1 | N121: 4.05 | P121: -0.74 | Q121: 7.43 | R121: 2.34 | S121: 6.89 | T121: -7.87 | U121: 2.4 | V121: 5.52 | W121: 2.08 | X121: 4.07 | Z121: -0.92 | AA121: 7.15 | AB121: 2.48 | AC121: 7.4 | AD121: -8.2 | AE121: 1.92 | AF121: 5.65 | AG121: 1.99 | AH121: 4.04 | AL121: 2.05
B122: 116 | C122: 1000290996 | D122: Governed Retirement Income Portfolio 3 (TLS-DD-3) | E122: 4.90881 | F122: 0.34 | G122: 9.16 | H122: 3.07 | I122: 7.36 | J122: -6.43 | K122: 7.16 | L122: 6.49 | M122: 3.9 | N122: 4.76 | P122: 0.09 | Q122: 8.28 | R122: 3.64 | S122: 7.2 | T122: -6.01 | U122: 6.8 | V122: 6.35 | W122: 3.84 | X122: 4.73 | Z122: -0.26 | AA122: 7.82 | AB122: 3.7 | AC122: 7.72 | AD122: -6.48 | AE122: 6.74 | AF122: 6.4 | AG122: 3.75 | AH122: 4.73 | AJ122: 5.31 | AL122: 3.93
B123: 117 | C123: 1000209095 | D123: Governed Retirement Income Portfolio 3 (Tracker) | E123: 4.98261 | F123: 0.17 | G123: 9.32 | H123: 3.29 | I123: 6.9 | J123: -6.61 | K123: 7.1 | L123: 6.47 | M123: 3.84 | N123: 4.77 | P123: 0 | Q123: 8.42 | R123: 3.91 | S123: 6.72 | T123: -6.24 | U123: 6.78 | V123: 6.33 | W123: 3.78 | X123: 4.76 | Z123: -0.33 | AA123: 8.08 | AB123: 4.04 | AC123: 7.15 | AD123: -6.65 | AE123: 6.56 | AF123: 6.42 | AG123: 3.69 | AH123: 4.73 | AL123: 3.91
B124: 118 | C124: 1000137944 | D124: Governed Retirement Income Portfolio 3 Benchmark (1% AMC) | E124: 4.80468 | F124: 0.78 | G124: 9.36 | H124: 3.25 | I124: 5.99 | J124: -6.66 | K124: 5.11 | L124: 6.17 | M124: 3.26 | N124: 3.96 | P124: 0.04 | Q124: 8.67 | R124: 3.32 | S124: 6.3 | T124: -7.1 | U124: 5.13 | V124: 6.07 | W124: 3.11 | X124: 3.93 | Z124: -0.14 | AA124: 8.15 | AB124: 3.59 | AC124: 6.24 | AD124: -7.13 | AE124: 4.94 | AF124: 5.98 | AG124: 3.02 | AH124: 3.89 | AJ124: 4.46 | AL124: 3.12
B125: 119 | C125: 1000137777 | D125: Governed Retirement Income Portfolio 4 | E125: 5.47693 | F125: 0.19 | G125: 10.6 | H125: 3.49 | I125: 9.19 | J125: -5.25 | K125: 9.19 | L125: 7.71 | M125: 5.27 | N125: 5.84 | P125: 0.03 | Q125: 9.43 | R125: 4.38 | S125: 9.15 | T125: -4.97 | U125: 8.86 | V125: 7.63 | W125: 5.22 | X125: 5.82 | Z125: -0.29 | AA125: 8.93 | AB125: 4.65 | AC125: 9.72 | AD125: -5.53 | AE125: 9.03 | AF125: 7.75 | AG125: 5.2 | AH125: 5.84 | AJ125: 6.46 | AL125: 5.46
B126: 120 | C126: 1000209096 | D126: Governed Retirement Income Portfolio 4 (Active) | E126: 6.32624 | F126: -1 | G126: 9.35 | H126: 1.77 | I126: 8.68 | J126: -7.49 | K126: 2.99 | L126: 6.54 | M126: 2.88 | N126: 4.9 | P126: -1.05 | Q126: 8.33 | R126: 2.67 | S126: 8.74 | T126: -7.47 | U126: 2.93 | V126: 6.54 | W126: 2.87 | X126: 4.93 | Z126: -1.14 | AA126: 8.04 | AB126: 3 | AC126: 9.29 | AD126: -7.83 | AE126: 2.53 | AF126: 6.75 | AG126: 2.83 | AH126: 4.92 | AL126: 2.96
B127: 121 | C127: 1000290997 | D127: Governed Retirement Income Portfolio 4 (TLS-DD-4) | E127: 5.51134 | F127: 0.16 | G127: 10.84 | H127: 3.4 | I127: 9.19 | J127: -5.25 | K127: 9.19 | L127: 7.75 | M127: 5.3 | N127: 5.86 | P127: 0 | Q127: 9.63 | R127: 4.3 | S127: 9.15 | T127: -4.97 | U127: 8.86 | V127: 7.66 | W127: 5.24 | X127: 5.83 | Z127: -0.31 | AA127: 9.1 | AB127: 4.59 | AC127: 9.72 | AD127: -5.53 | AE127: 9.03 | AF127: 7.79 | AG127: 5.22 | AH127: 5.85 | AJ127: 6.47 | AL127: 5.49
B128: 122 | C128: 1000209097 | D128: Governed Retirement Income Portfolio 4 (Tracker) | E128: 5.57578 | F128: 0.03 | G128: 10.81 | H128: 3.84 | I128: 8.56 | J128: -5.48 | K128: 9.11 | L128: 7.69 | M128: 5.19 | N128: 5.86 | P128: -0.1 | Q128: 9.53 | R128: 4.82 | S128: 8.52 | T128: -5.28 | U128: 8.84 | V128: 7.6 | W128: 5.13 | X128: 5.86 | Z128: -0.38 | AA128: 9.18 | AB128: 5.14 | AC128: 8.96 | AD128: -5.76 | AE128: 8.78 | AF128: 7.75 | AG128: 5.1 | AH128: 5.85 | AL128: 5.45
B129: 123 | C129: 1000137946 | D129: Governed Retirement Income Portfolio 4 Benchmark (1% AMC) | E129: 5.3057 | F129: 0.81 | G129: 10.92 | H129: 4.01 | I129: 7.61 | J129: -5.11 | K129: 6.87 | L129: 7.47 | M129: 4.71 | N129: 5.07 | P129: -0.07 | Q129: 10.04 | R129: 4.15 | S129: 8.04 | T129: -5.83 | U129: 7 | V129: 7.37 | W129: 4.52 | X129: 5.02 | Z129: -0.21 | AA129: 9.32 | AB129: 4.6 | AC129: 8.08 | AD129: -5.92 | AE129: 6.93 | AF129: 7.32 | AG129: 4.45 | AH129: 5 | AJ129: 5.57 | AL129: 4.69
B130: 124 | C130: 1000137778 | D130: Governed Retirement Income Portfolio 5 | E130: 6.05595 | F130: 0.19 | G130: 11.9 | H130: 3.71 | I130: 10.59 | J130: -4.76 | K130: 10.45 | L130: 8.66 | M130: 6.18 | N130: 6.75 | P130: 0.05 | Q130: 10.48 | R130: 4.84 | S130: 10.61 | T130: -4.55 | U130: 10.12 | V130: 8.6 | W130: 6.13 | X130: 6.72 | Z130: -0.25 | AA130: 9.95 | AB130: 5.23 | AC130: 11.25 | AD130: -5.21 | AE130: 10.43 | AF130: 8.79 | AG130: 6.15 | AH130: 6.77 | AJ130: 7.27 | AL130: 6.49
B131: 125 | C131: 1000209098 | D131: Governed Retirement Income Portfolio 5 (Active) | E131: 7.11455 | F131: -1.24 | G131: 10.39 | H131: 1.69 | I131: 9.98 | J131: -7.55 | K131: 2.76 | L131: 7.27 | M131: 3.24 | N131: 5.58 | P131: -1.24 | Q131: 9.15 | R131: 2.83 | S131: 10.12 | T131: -7.65 | U131: 2.76 | V131: 7.31 | W131: 3.24 | X131: 5.63 | Z131: -1.26 | AA131: 8.89 | AB131: 3.28 | AC131: 10.75 | AD131: -8.06 | AE131: 2.36 | AF131: 7.6 | AG131: 3.23 | AH131: 5.62 | AL131: 3.41
B132: 126 | C132: 1000290998 | D132: Governed Retirement Income Portfolio 5 (TLS-DD-5) | E132: 6.05021 | F132: 0.22 | G132: 11.87 | H132: 3.72 | I132: 10.59 | J132: -4.76 | K132: 10.45 | L132: 8.66 | M132: 6.18 | N132: 6.75 | P132: 0 | Q132: 10.43 | R132: 4.84 | S132: 10.61 | T132: -4.55 | U132: 10.12 | V132: 8.58 | W132: 6.12 | X132: 6.71 | Z132: -0.22 | AA132: 9.91 | AB132: 5.26 | AC132: 11.25 | AD132: -5.21 | AE132: 10.43 | AF132: 8.78 | AG132: 6.15 | AH132: 6.77 | AJ132: 7.27 | AL132: 6.49
B133: 127 | C133: 1000209099 | D133: Governed Retirement Income Portfolio 5 (Tracker) | E133: 6.18719 | F133: 0 | G133: 12.16 | H133: 4.13 | I133: 9.83 | J133: -5.06 | K133: 10.35 | L133: 8.64 | M133: 6.09 | N133: 6.78 | P133: -0.1 | Q133: 10.6 | R133: 5.37 | S133: 9.83 | T133: -4.95 | U133: 10.1 | V133: 8.57 | W133: 6.02 | X133: 6.79 | Z133: -0.35 | AA133: 10.26 | AB133: 5.81 | AC133: 10.33 | AD133: -5.5 | AE133: 10.13 | AF133: 8.79 | AG133: 6.03 | AH133: 6.79 | AL133: 6.47
B134: 128 | C134: 1000137947 | D134: Governed Retirement Income Portfolio 5 Benchmark (1% AMC) | E134: 5.84814 | F134: 0.97 | G134: 12.46 | H134: 4.53 | I134: 8.96 | J134: -4.41 | K134: 8.07 | L134: 8.59 | M134: 5.76 | N134: 6.11 | P134: -0.04 | Q134: 11.4 | R134: 4.72 | S134: 9.49 | T134: -5.35 | U134: 8.29 | V134: 8.49 | W134: 5.53 | X134: 6.04 | Z134: -0.15 | AA134: 10.54 | AB134: 5.31 | AC134: 9.6 | AD134: -5.5 | AE134: 8.32 | AF134: 8.47 | AG134: 5.49 | AH134: 6.04 | AJ134: 6.5 | AL134: 5.83
B135: 129 | C135: 1000287672 | D135: Investment Pathway 1 | E135: 4.59721 | F135: 0.41 | G135: 9.1 | H135: 3.26 | I135: 7.3 | J135: -8.06 | K135: 7.35 | L135: 6.52 | M135: 3.59 | P135: 0.25 | Q135: 8.16 | R135: 3.91 | S135: 7.04 | T135: -7.5 | U135: 6.96 | V135: 6.35 | W135: 3.54 | Z135: -0.08 | AA135: 7.71 | AB135: 4.09 | AC135: 7.58 | AD135: -8.02 | AE135: 6.76 | AF135: 6.45 | AG135: 3.44 | AL135: 3.52
B136: 130 | C136: 1000287701 | D136: Investment Pathway 1 Benchmark | E136: 4.37663 | F136: 0.95 | G136: 9.27 | H136: 3.97 | I136: 6 | J136: -8.27 | K136: 5.96 | L136: 6.38 | M136: 3.2 | P136: 0.26 | Q136: 8.63 | R136: 4.05 | S136: 6.28 | T136: -8.64 | U136: 5.9 | V136: 6.3 | W136: 3.05 | Z136: 0.12 | AA136: 8.08 | AB136: 4.39 | AC136: 6.25 | AD136: -8.69 | AE136: 5.67 | AF136: 6.23 | AG136: 2.95 | AL136: 2.99
B137: 131 | C137: 1000287673 | D137: Investment Pathway 2 | E137: 5.98779 | F137: -3.1 | G137: 2.65 | H137: 1.88 | I137: 1.67 | J137: -7.53 | K137: -1.78 | L137: 2.06 | M137: -0.7 | P137: -3.53 | Q137: 1.99 | R137: 1.99 | S137: 1.87 | T137: -7.63 | U137: -2.48 | V137: 1.95 | W137: -0.93 | Z137: -4.34 | AA137: 1.23 | AB137: 1.98 | AC137: 2.07 | AD137: -7.73 | AE137: -2.48 | AF137: 1.76 | AG137: -1.06 | AL137: -1.12
B138: 132 | C138: 1000287702 | D138: Investment Pathway 2 Benchmark | E138: 5.89616 | F138: -3.81 | G138: 1.45 | H138: 1.61 | I138: 2 | J138: -10.56 | K138: -2.28 | L138: 1.69 | M138: -1.67 | P138: -4.27 | Q138: 1.11 | R138: 1.57 | S138: 1.89 | T138: -10.11 | U138: -2.68 | V138: 1.52 | W138: -1.75 | Z138: -4.85 | AA138: 0.49 | AB138: 1.61 | AC138: 1.59 | AD138: -10.04 | AE138: -3.05 | AF138: 1.23 | AG138: -1.98 | AL138: -2.22
B139: 133 | C139: 1000287674 | D139: Investment Pathway 3 | E139: 4.92526 | F139: 0.3 | G139: 9.17 | H139: 3.04 | I139: 7.36 | J139: -6.43 | K139: 7.16 | L139: 6.49 | M139: 3.9 | P139: 0.11 | Q139: 8.35 | R139: 3.59 | S139: 7.2 | T139: -6.01 | U139: 6.8 | V139: 6.35 | W139: 3.85 | Z139: -0.26 | AA139: 7.89 | AB139: 3.68 | AC139: 7.72 | AD139: -6.48 | AE139: 6.74 | AF139: 6.42 | AG139: 3.76 | AL139: 3.92
B140: 134 | C140: 1000287703 | D140: Investment Pathway 3 Benchmark | E140: 4.80468 | F140: 0.78 | G140: 9.36 | H140: 3.25 | I140: 5.99 | J140: -6.66 | K140: 5.11 | L140: 6.17 | M140: 3.26 | P140: 0.04 | Q140: 8.67 | R140: 3.32 | S140: 6.3 | T140: -7.1 | U140: 5.13 | V140: 6.07 | W140: 3.11 | Z140: -0.14 | AA140: 8.15 | AB140: 3.59 | AC140: 6.24 | AD140: -7.13 | AE140: 4.94 | AF140: 5.98 | AG140: 3.02 | AL140: 3.12
B141: 135 | C141: 1000287675 | D141: Investment Pathway 4 | E141: 3.60773 | F141: 0.52 | G141: 6.79 | H141: 3.25 | I141: 5.5 | J141: -4.69 | K141: 4.74 | L141: 5.16 | M141: 3.03 | P141: 0.33 | Q141: 6.45 | R141: 3.37 | S141: 5.36 | T141: -4.32 | U141: 4.43 | V141: 5.05 | W141: 2.98 | Z141: -0.06 | AA141: 6.06 | AB141: 3.31 | AC141: 5.71 | AD141: -4.6 | AE141: 4.3 | AF141: 5.02 | AG141: 2.88 | AL141: 3.01
B142: 136 | C142: 1000287704 | D142: Investment Pathway 4 Benchmark | E142: 3.3704 | F142: 0.79 | G142: 6.69 | H142: 3.33 | I142: 4.37 | J142: -4.48 | K142: 3.45 | L142: 4.79 | M142: 2.6 | P142: 0.32 | Q142: 6.35 | R142: 3.3 | S142: 4.61 | T142: -4.78 | U142: 3.47 | V142: 4.74 | W142: 2.51 | Z142: 0.15 | AA142: 6.09 | AB142: 3.36 | AC142: 4.5 | AD142: -4.68 | AE142: 3.23 | AF142: 4.65 | AG142: 2.43 | AL142: 2.46
B143: 137 | C143: 1000112156 | D143: Long Corporate Bond Benchmark (1% AMC) | E143: 10.59812 | F143: -4.28 | G143: 2.31 | H143: -6.2 | I143: 4.3 | J143: -22.92 | K143: -8.82 | L143: 0.03 | M143: -6.79 | N143: -0.65 | O143: 2.17 | P143: -4.52 | Q143: 1.89 | R143: -6.18 | S143: 4.11 | T143: -22.41 | U143: -9.38 | V143: -0.16 | W143: -6.89 | X143: -0.62 | Y143: 2.15 | Z143: -5.19 | AA143: 1.8 | AB143: -6.71 | AC143: 3.86 | AD143: -22.3 | AE143: -10.15 | AF143: -0.46 | AG143: -7.19 | AH143: -0.72 | AI143: 2.09 | AJ143: 0.86 | AK143: 3 | AL143: -7.95
B144: 138 | C144: 1000112157 | D144: Long Gilt Benchmark (1% AMC) | E144: 11.73707 | F144: -4.17 | G144: -0.25 | H144: -7.87 | I144: -3.98 | J144: -23.3 | K144: -7.01 | L144: -4.08 | M144: -8.84 | N144: -3.04 | O144: 0.91 | P144: -4.17 | Q144: -0.2 | R144: -8.14 | S144: -4.2 | T144: -22.75 | U144: -7.61 | V144: -4.23 | W144: -8.91 | X144: -2.99 | Y144: 0.9 | Z144: -4.96 | AA144: 0.12 | AB144: -8.84 | AC144: -5.04 | AD144: -22.44 | AE144: -8.17 | AF144: -4.66 | AG144: -9.2 | AH144: -3.1 | AI144: 0.83 | AJ144: -1.02 | AK144: 0.93 | AL144: -9.93
B145: 139 | C145: 1000112158 | D145: Long Index-Linked Benchmark (1% AMC) | E145: 9.52391 | F145: 0.97 | G145: 2.99 | H145: -9.19 | I145: -4.44 | J145: -21.09 | K145: 4.45 | L145: -3.67 | M145: -5.93 | N145: -1.18 | O145: 1.35 | P145: 0.4 | Q145: 2.44 | R145: -9.33 | S145: -4.9 | T145: -19.51 | U145: 3.16 | V145: -4.05 | W145: -6.01 | X145: -1.19 | Y145: 1.31 | Z145: -0.53 | AA145: 2.36 | AB145: -9.58 | AC145: -5.06 | AD145: -19.82 | AE145: 2.27 | AF145: -4.22 | AG145: -6.35 | AH145: -1.29 | AI145: 1.25 | AJ145: 0.16 | AK145: 1.89 | AL145: -6.3
B146: 140 | C146: 1000112153 | D146: Medium Corporate Bond Benchmark (1% AMC) | E146: 8.54482 | F146: -3.48 | G146: 3.12 | H146: -3.01 | I146: 5.32 | J146: -16.17 | K146: -7.51 | L146: 1.75 | M146: -3.97 | N146: 0.18 | O146: 2.58 | P146: -3.68 | Q146: 2.82 | R146: -3.03 | S146: 5.22 | T146: -15.78 | U146: -7.91 | V146: 1.61 | W146: -4.04 | X146: 0.19 | Y146: 2.55 | Z146: -4.22 | AA146: 2.75 | AB146: -3.46 | AC146: 4.94 | AD146: -15.63 | AE146: -8.39 | AF146: 1.35 | AG146: -4.26 | AH146: 0.11 | AI146: 2.5 | AJ146: 1.49 | AK146: 3.42 | AL146: -4.76
B147: 141 | C147: 1000112154 | D147: Medium Gilt Benchmark (1% AMC) | E147: 8.29626 | F147: -2.75 | G147: 1.38 | H147: -3.57 | I147: -0.96 | J147: -15.54 | K147: -5.9 | L147: -1.07 | M147: -5.1 | N147: -1.7 | O147: 1.06 | P147: -2.76 | Q147: 1.44 | R147: -3.8 | S147: -1.06 | T147: -15.17 | U147: -6.27 | V147: -1.16 | W147: -5.15 | X147: -1.67 | Y147: 1.04 | Z147: -3.31 | AA147: 1.71 | AB147: -4.33 | AC147: -1.77 | AD147: -14.85 | AE147: -6.63 | AF147: -1.5 | AG147: -5.35 | AH147: -1.75 | AI147: 0.99 | AJ147: -0.44 | AK147: 1.2 | AL147: -5.88
B148: 142 | C148: 1000112155 | D148: Medium Index-Linked Benchmark (1% AMC) | E148: 6.03653 | F148: 1.37 | G148: 3.65 | H148: -4.46 | I148: -1.51 | J148: -12.21 | K148: 5.54 | L148: -0.83 | M148: -2 | N148: 0.02 | O148: 1.64 | P148: 1.04 | Q148: 3.34 | R148: -4.56 | S148: -1.8 | T148: -11.16 | U148: 4.76 | V148: -1.06 | W148: -2.05 | X148: 0.02 | Y148: 1.61 | Z148: 0.42 | AA148: 3.24 | AB148: -4.69 | AC148: -1.95 | AD148: -11.4 | AE148: 4.2 | AF148: -1.19 | AG148: -2.29 | AH148: -0.05 | AI148: 1.57 | AJ148: 0.63 | AK148: 2.32 | AL148: -2.21
B149: 143 | C149: 1000214410 | D149: Pegasus Growth Benchmark | E149: 6.46222 | F149: -1.5 | G149: 9.5 | H149: 3.07 | I149: 8.29 | J149: -3.6 | K149: 4.32 | L149: 6.91 | M149: 4.21 | N149: 5.2 | O149: 5 | P149: -1.54 | Q149: 8.54 | R149: 3.8 | S149: 8.59 | T149: -3.82 | U149: 4.32 | V149: 6.95 | W149: 4.18 | X149: 5.21 | Y149: 5 | Z149: -1.21 | AA149: 8.62 | AB149: 4.17 | AC149: 9.1 | AD149: -3.92 | AE149: 3.96 | AF149: 7.28 | AG149: 4.28 | AH149: 5.26 | AI149: 5.04 | AJ149: 5.46 | AK149: 6.1 | AL149: 4.51
B150: 144 | C150: 1000214025 | D150: Pegasus Opportunity Benchmark | E150: 7.0777 | F150: -1.58 | G150: 10.38 | H150: 2.86 | I150: 9.62 | J150: -2.46 | K150: 5.55 | L150: 7.56 | M150: 5.08 | N150: 6.15 | O150: 5.58 | P150: -1.48 | Q150: 9.52 | R150: 3.68 | S150: 10.06 | T150: -2.72 | U150: 5.49 | V150: 7.71 | W150: 5.1 | X150: 6.18 | Y150: 5.6 | Z150: -0.97 | AA150: 9.6 | AB150: 4.25 | AC150: 10.47 | AD150: -2.76 | AE150: 5.23 | AF150: 8.08 | AG150: 5.25 | AH150: 6.23 | AI150: 5.66 | AJ150: 6.38 | AL150: 5.58
B151: 145 | C151: 1000214026 | D151: Pegasus Safety Benchmark | E151: 5.06482 | F151: 1.2 | G151: 8.64 | H151: -0.46 | I151: 2.53 | J151: -9.47 | K151: -0.21 | L151: 3.5 | M151: 0.03 | N151: 0.9 | O151: 1.53 | P151: 0.67 | Q151: 8.3 | R151: -0.55 | S151: 2.51 | T151: -9.17 | U151: -0.56 | V151: 3.36 | W151: -0.05 | X151: 0.88 | Y151: 1.51 | Z151: 0.53 | AA151: 8.37 | AB151: -0.73 | AC151: 2.25 | AD151: -9.1 | AE151: -0.9 | AF151: 3.23 | AG151: -0.18 | AH151: 0.83 | AI151: 1.48 | AJ151: 1.19 | AL151: -0.43
B152: 146 | C152: 68774078 | D152: RLI/BlackRock European Equity Index | F152: -2.93 | G152: 12.89 | H152: 3.23 | P152: -3.86 | Q152: 9.29 | R152: 5.45 | Z152: -4.1 | AA152: 8.58 | AB152: 5.25
B153: 147 | C153: 1000292765 | D153: RLI/BlackRock European Equity Index Benchmark | F153: -2.33 | G153: 15.1 | H153: 2.68 | P153: -3.45 | Q153: 11.97 | R153: 4.34 | Z153: -3.77 | AA153: 10.39 | AB153: 4.68
B154: 148 | C154: 68774079 | D154: RLI/BlackRock Global Blend | F154: -3.91 | G154: 14.29 | H154: 4.58 | P154: -4.2 | Q154: 11.41 | R154: 6.87 | Z154: -4.27 | AA154: 11.29 | AB154: 7.74
B155: 149 | C155: 1000292766 | D155: RLI/BlackRock Global Blend Benchmark | F155: 0.05 | G155: 19.64 | H155: 5.73 | P155: -1.57 | Q155: 17.49 | R155: 6.24 | Z155: -1.65 | AA155: 15.83 | AB155: 7.5
B156: 150 | C156: 68774080 | D156: RLI/BlackRock Japanese Equity Index | F156: 0.86 | G156: 18.44 | H156: -3.54 | P156: 1.88 | Q156: 17.06 | R156: -1.42 | Z156: 1.09 | AA156: 14.58 | AB156: -0.79
B157: 151 | C157: 1000292767 | D157: RLI/BlackRock Japanese Equity Index Benchmark | F157: 3.56 | G157: 22.87 | H157: -4.31 | P157: 4.44 | Q157: 20.4 | R157: -0.9 | Z157: 4.92 | AA157: 21.09 | AB157: -1.27
B158: 152 | C158: 68774081 | D158: RLI/BlackRock UK Equity Index | F158: 0.54 | G158: 14.35 | H158: 9.8 | P158: -1.53 | Q158: 11.34 | R158: 10.95 | Z158: -2.38 | AA158: 10.23 | AB158: 11.39
B159: 153 | C159: 1000292768 | D159: RLI/BlackRock UK Equity Index Benchmark | F159: 2.16 | G159: 20.33 | H159: 9.36 | P159: 1.48 | Q159: 18.44 | R159: 10.49 | Z159: 0.8 | AA159: 16.66 | AB159: 10.97
B160: 154 | C160: 68774082 | D160: RLI/BlackRock US Equity Index | F160: -6.33 | G160: 11.8 | H160: 2.17 | P160: -6.27 | Q160: 8.32 | R160: 5.29 | Z160: -5.82 | AA160: 9.03 | AB160: 6.47
B161: 155 | C161: 1000292769 | D161: RLI/BlackRock US Equity Index Benchmark | F161: -3 | G161: 13.89 | H161: 5.14 | P161: -6.38 | Q161: 11.39 | R161: 4.33 | Z161: -6.62 | AA161: 9.01 | AB161: 6.37
B162: 156 | C162: 68774083 | D162: RLI/BlackRock World (ex UK) Equity Index | F162: -6.15 | G162: 13.4 | H162: 2.21 | P162: -6.3 | Q162: 9.82 | R162: 5.21 | Z162: -6 | AA162: 10.12 | AB162: 6.12
B163: 157 | C163: 1000292770 | D163: RLI/BlackRock World (ex UK) Equity Index Benchmark | F163: -1.63 | G163: 16.67 | H163: 3.65 | P163: -4.16 | Q163: 14.21 | R163: 3.64 | Z163: -4.27 | AA163: 12.3 | AB163: 5.22
B164: 158 | C164: 1000144206 | D164: RLL American Benchmark | E164: 11.65321 | F164: -2.94 | G164: 14.17 | H164: 5.4 | I164: 26.39 | J164: -3.09 | K164: 18.41 | L164: 14.99 | M164: 11.78 | N164: 14.26 | O164: 13.85 | P164: -6.32 | Q164: 11.67 | R164: 4.59 | S164: 28.45 | T164: -6.08 | U164: 20.05 | V164: 14.46 | W164: 11.08 | X164: 13.96 | Y164: 13.62 | Z164: -6.56 | AA164: 9.28 | AB164: 6.64 | AC164: 28.38 | AD164: -7.02 | AE164: 21.43 | AF164: 14.39 | AG164: 11.06 | AH164: 13.84 | AI164: 13.62 | AJ164: 14.61 | AK164: 14.45 | AL164: 12.19
B165: 159 | C165: 72001643 | D165: RLL American Tilt Fund | E165: 11.40688 | F165: -5.14 | G165: 13.31 | H165: 2.65 | I165: 24.31 | J165: -5.71 | K165: 19.5 | L165: 13.06 | M165: 10.25 | N165: 12.4 | O165: 11.94 | P165: -5.35 | Q165: 9.73 | R165: 5.72 | S165: 24.04 | T165: -5.5 | U165: 19.13 | V165: 12.89 | W165: 10.12 | X165: 12.42 | Y165: 11.95 | Z165: -4.75 | AA165: 10.07 | AB165: 6.35 | AC165: 25.04 | AD165: -6.23 | AE165: 19.84 | AF165: 13.55 | AG165: 10.47 | AH165: 12.49 | AI165: 12.03 | AJ165: 12.68 | AK165: 12.4 | AL165: 10.72
B166: 160 | C166: 1000231831 | D166: RLL Defensive Managed Benchmark | E166: 5.36253 | F166: -1.28 | G166: 6.82 | H166: 2.92 | I166: 5.59 | J166: -5.04 | K166: 0.74 | L166: 5.09 | M166: 2.12 | N166: 2.41 | O166: 3.07 | P166: -1.44 | Q166: 6.19 | R166: 3.28 | S166: 5.76 | T166: -5.04 | U166: 0.56 | V166: 5.07 | W166: 2.07 | X166: 2.39 | Y166: 3.05 | Z166: -1.19 | AA166: 6.27 | AB166: 3.5 | AC166: 6.08 | AD166: -5.22 | AE166: 0.19 | AF166: 5.28 | AG166: 2.07 | AH166: 2.43 | AI166: 3.07 | AJ166: 2.85 | AK166: 3.58 | AL166: 1.96
B167: 161 | C167: 72001644 | D167: RLL Defensive Managed Fund | E167: 3.80572 | F167: 0.41 | G167: 6.56 | H167: 3.09 | I167: 7.52 | J167: -3.4 | K167: 6.11 | L167: 5.7 | M167: 3.89 | N167: 4.47 | O167: 4.89 | P167: 0.22 | Q167: 6.06 | R167: 3.27 | S167: 8.07 | T167: -3.76 | U167: 6.06 | V167: 5.78 | W167: 3.85 | X167: 4.44 | Y167: 4.88 | Z167: 0.75 | AA167: 6.25 | AB167: 3.46 | AC167: 8.47 | AD167: -3.93 | AE167: 5.73 | AF167: 6.04 | AG167: 3.91 | AH167: 4.52 | AI167: 4.92 | AJ167: 4.73 | AK167: 5.47 | AL167: 3.76
B168: 162 | C168: 72001645 | D168: RLL Deposit Fund | E168: 0.18826 | F168: 0.52 | G168: 2.67 | H168: 3.47 | I168: 3.63 | J168: 0.93 | K168: -0.73 | L168: 3.26 | M168: 1.98 | N168: 0.84 | O168: 0.47 | P168: 0.55 | Q168: 2.71 | R168: 3.44 | S168: 3.6 | T168: 0.96 | U168: -0.73 | V168: 3.25 | W168: 1.98 | X168: 0.84 | Y168: 0.47 | Z168: 0.52 | AA168: 2.68 | AB168: 3.44 | AC168: 3.63 | AD168: 0.97 | AE168: -0.77 | AF168: 3.25 | AG168: 1.98 | AH168: 0.83 | AI168: 0.47 | AJ168: 0.53 | AK168: 0.41 | AL168: 1.9
B169: 163 | C169: 72001646 | D169: RLL European Fund | E169: 9.59171 | F169: -3.09 | G169: 12.05 | H169: 1.16 | I169: 11.21 | J169: 6.11 | K169: 6.58 | L169: 8.02 | M169: 7.34 | N169: 8.33 | O169: 6.91 | P169: -4.24 | Q169: 8.7 | R169: 3.11 | S169: 10.92 | T169: 6.03 | U169: 7.28 | V169: 7.52 | W169: 7.17 | X169: 8.16 | Y169: 6.85 | Z169: -4.53 | AA169: 7.73 | AB169: 2.97 | AC169: 12.99 | AD169: 4.67 | AE169: 7.7 | AF169: 7.83 | AG169: 7.16 | AH169: 8.29 | AI169: 6.88 | AJ169: 8.6 | AK169: 7.61 | AL169: 7.83
B170: 164 | C170: 72001647 | D170: RLL Fixed Interest Fund | E170: 5.43497 | F170: -1.65 | G170: 2.21 | H170: -0.17 | I170: 2.54 | J170: -12.72 | K170: -4.37 | L170: 1.52 | M170: -2.67 | N170: -0.09 | O170: 1.72 | P170: -1.89 | Q170: 2.33 | R170: -0.58 | S170: 1.86 | T170: -11.82 | U170: -4.57 | V170: 1.2 | W170: -2.7 | X170: -0.12 | Y170: 1.72 | Z170: -2.51 | AA170: 1.95 | AB170: -1.07 | AC170: 2.16 | AD170: -11.88 | AE170: -5.4 | AF170: 1.01 | AG170: -2.99 | AH170: -0.19 | AI170: 1.65 | AJ170: 0.91 | AK170: 2.17 | AL170: -3.35
B171: 165 | C171: 1000205482 | D171: RLL Global Managed Benchmark | E171: 9.63417 | F171: 0.27 | G171: 20.75 | H171: 6.52 | I171: 17.28 | J171: -2.57 | K171: 8.26 | L171: 14.67 | M171: 9.73 | N171: 10.13 | O171: 8.48 | P171: -1.32 | Q171: 18.63 | R171: 7.04 | S171: 17.69 | T171: -3.07 | U171: 8.43 | V171: 14.32 | W171: 9.45 | X171: 10.01 | Y171: 8.41 | Z171: -1.4 | AA171: 16.95 | AB171: 8.33 | AC171: 18.47 | AD171: -3.08 | AE171: 7.98 | AF171: 14.51 | AG171: 9.46 | AH171: 9.99 | AI171: 8.41 | AJ171: 9.72 | AK171: 9.56 | AL171: 10.22
B172: 166 | C172: 72001648 | D172: RLL Global Managed Fund | E172: 9.11738 | F172: -2.15 | G172: 14.45 | H172: 4.27 | I172: 17.77 | J172: -2.21 | K172: 12.54 | L172: 12 | M172: 9.11 | N172: 10.29 | O172: 9.08 | P172: -2.13 | Q172: 13.92 | R172: 4.75 | S172: 17.56 | T172: -2.11 | U172: 12.5 | V172: 11.93 | W172: 9.08 | X172: 10.29 | Y172: 9.1 | Z172: -1.1 | AA172: 14.12 | AB172: 5.5 | AC172: 18.88 | AD172: -3.02 | AE172: 12.92 | AF172: 12.71 | AG172: 9.41 | AH172: 10.47 | AI172: 9.22 | AJ172: 10.21 | AK172: 9.89 | AL172: 9.51
B173: 167 | C173: 72001649 | D173: RLL Index Linked Fund | E173: 7.51108 | F173: 0.32 | G173: 1.92 | H173: -6.22 | I173: -5.07 | J173: -18.51 | K173: 2.22 | L173: -3.19 | M173: -5.44 | N173: -0.47 | O173: 1.95 | P173: -0.22 | Q173: 1.85 | R173: -6.65 | S173: -5.64 | T173: -17.29 | U173: 1.41 | V173: -3.55 | W173: -5.52 | X173: -0.5 | Y173: 1.93 | Z173: -1.17 | AA173: 1.33 | AB173: -7.77 | AC173: -3.94 | AD173: -18.48 | AE173: -0.03 | AF173: -3.54 | AG173: -6.06 | AH173: -0.63 | AI173: 1.83 | AJ173: 1.02 | AK173: 2.42 | AL173: -5.81
B174: 168 | C174: 1000231837 | D174: RLL Managed Benchmark | E174: 6.46222 | F174: -1.5 | G174: 9.5 | H174: 3.07 | I174: 8.29 | J174: -3.6 | K174: 4.32 | L174: 6.91 | M174: 4.21 | N174: 5.2 | O174: 5 | P174: -1.54 | Q174: 8.54 | R174: 3.8 | S174: 8.59 | T174: -3.82 | U174: 4.32 | V174: 6.95 | W174: 4.18 | X174: 5.21 | Y174: 5 | Z174: -1.21 | AA174: 8.62 | AB174: 4.17 | AC174: 9.1 | AD174: -3.92 | AE174: 3.96 | AF174: 7.28 | AG174: 4.28 | AH174: 5.26 | AI174: 5.04 | AJ174: 5.46 | AK174: 6.1 | AL174: 4.51
B175: 169 | C175: 72001650 | D175: RLL Managed-Life Fund | E175: 5.29092 | F175: -0.03 | G175: 8.82 | H175: 3.83 | I175: 9.99 | J175: -3.92 | K175: 9.38 | L175: 7.51 | M175: 5.48 | N175: 6.39 | O175: 6.07 | P175: -0.16 | Q175: 8.31 | R175: 4.1 | S175: 10.75 | T175: -4.42 | U175: 9.22 | V175: 7.68 | W175: 5.44 | X175: 6.36 | Y175: 6.06 | Z175: 0.52 | AA175: 8.4 | AB175: 4.46 | AC175: 11.29 | AD175: -4.5 | AE175: 8.95 | AF175: 8.02 | AG175: 5.57 | AH175: 6.51 | AI175: 6.15 | AJ175: 6.52 | AK175: 7.02 | AL175: 5.66
B176: 170 | C176: 72001651 | D176: RLL Pacific Tilt | E176: 12.5689 | F176: 6.76 | G176: 35.27 | H176: -3.39 | I176: 12.3 | J176: -1.75 | K176: 0.16 | L176: 13.63 | M176: 7.62 | N176: 9.02 | O176: 6.78 | P176: 7.83 | Q176: 34.31 | R176: -1.47 | S176: 12.15 | T176: -2.01 | U176: 0.25 | V176: 14.05 | W176: 7.83 | X176: 9.16 | Y176: 6.9 | Z176: 7.55 | AA176: 32.33 | AB176: -0.78 | AC176: 13.77 | AD176: -2.29 | AE176: -0.32 | AF176: 14.33 | AG176: 7.8 | AH176: 9.13 | AI176: 6.93 | AJ176: 8.06 | AK176: 8.38 | AL176: 7.56
B177: 171 | C177: 68122660 | D177: RLL Pegasus Growth Fund | E177: 5.81583 | F177: 0.08 | G177: 9.58 | H177: 2.7 | I177: 12.24 | J177: -5.82 | K177: 11 | L177: 8.09 | M177: 5.71 | N177: 5.88 | O177: 5.34 | P177: -0.07 | Q177: 8.38 | R177: 3.65 | S177: 12.23 | T177: -5.72 | U177: 10.79 | V177: 8.02 | W177: 5.66 | X177: 5.85 | Y177: 5.33 | Z177: -0.2 | AA177: 7.87 | AB177: 4.1 | AC177: 13 | AD177: -6.33 | AE177: 11 | AF177: 8.27 | AG177: 5.7 | AH177: 5.9 | AI177: 5.37 | AJ177: 5.96 | AL177: 6.02
B178: 172 | C178: 68126920 | D178: RLL Pegasus Opportunity Fund | E178: 6.04017 | F178: -0.08 | G178: 11.23 | H178: 2.48 | I178: 11.46 | J178: -3.36 | K178: 10.41 | L178: 8.3 | M178: 6.27 | N178: 6.13 | O178: 5.83 | P178: -0.25 | Q178: 9.68 | R178: 3.71 | S178: 11.85 | T178: -3.64 | U178: 10.24 | V178: 8.35 | W178: 6.21 | X178: 6.11 | Y178: 5.81 | Z178: -0.31 | AA178: 9.19 | AB178: 4.24 | AC178: 12.53 | AD178: -4.26 | AE178: 10.55 | AF178: 8.61 | AG178: 6.28 | AH178: 6.16 | AI178: 5.86 | AJ178: 6.6 | AL178: 6.61
B179: 173 | C179: 68122556 | D179: RLL Pegasus Safety Fund | E179: 3.68099 | F179: 0.48 | G179: 5.98 | H179: 0.98 | I179: 2.37 | J179: -5.86 | K179: 0.25 | L179: 3.09 | M179: 0.67 | N179: 1.17 | O179: 1.83 | P179: 0.46 | Q179: 6.13 | R179: 0.82 | S179: 2.2 | T179: -5.55 | U179: 0.11 | V179: 3.02 | W179: 0.67 | X179: 1.17 | Y179: 1.83 | Z179: 0.22 | AA179: 5.98 | AB179: 0.57 | AC179: 2.47 | AD179: -5.59 | AE179: -0.34 | AF179: 2.98 | AG179: 0.55 | AH179: 1.14 | AI179: 1.81 | AJ179: 1.34 | AL179: 0.43
B180: 174 | C180: 72001652 | D180: RLL Property-Life | E180: 1.20795 | F180: 0.88 | G180: 4.3 | H180: 4.76 | I180: -1.49 | J180: -13.34 | K180: 16.52 | L180: 2.48 | M180: 1.68 | N180: 1.77 | O180: 3.8 | P180: 1.37 | Q180: 4.45 | R180: 4.75 | S180: -1.04 | T180: -13.02 | U180: 16.48 | V180: 2.68 | W180: 1.86 | X180: 1.8 | Y180: 3.81 | Z180: 1.35 | AA180: 4.42 | AB180: 4.79 | AC180: -1.09 | AD180: -12.99 | AE180: 16.43 | AF180: 2.68 | AG180: 1.86 | AH180: 1.8 | AI180: 3.81 | AJ180: 3.74 | AK180: 4.7 | AL180: 1.85
B181: 175 | C181: 72001653 | D181: RLL Uk Equity Fund | E181: 8.56177 | F181: 1.43 | G181: 17.04 | H181: 7.1 | I181: 6.91 | J181: -2.03 | K181: 6.25 | L181: 10.24 | M181: 6.88 | N181: 6.5 | O181: 6.06 | P181: 0.15 | Q181: 14.07 | R181: 8.69 | S181: 6.93 | T181: -1.87 | U181: 6.2 | V181: 9.84 | W181: 6.68 | X181: 6.35 | Y181: 5.96 | Z181: -0.55 | AA181: 13.25 | AB181: 8.67 | AC181: 8.01 | AD181: -3.32 | AE181: 6.68 | AF181: 9.96 | AG181: 6.52 | AH181: 6.45 | AI181: 5.98 | AJ181: 6.61 | AK181: 7.52 | AL181: 7.59
B182: 176 | C182: 1000205483 | D182: RLL Worldwide Benchmark | E182: 8.6252 | F182: -3.23 | G182: 10.29 | H182: 1.89 | I182: 14.82 | J182: -2.57 | K182: 8.26 | L182: 8.86 | M182: 6.36 | N182: 8.43 | O182: 7.35 | P182: -3.18 | Q182: 8.85 | R182: 3.24 | S182: 15.3 | T182: -3.07 | U182: 8.43 | V182: 9.01 | W182: 6.37 | X182: 8.46 | Y182: 7.38 | Z182: -2.54 | AA182: 8.94 | AB182: 4.08 | AC182: 15.93 | AD182: -3.08 | AE182: 7.98 | AF182: 9.55 | AG182: 6.59 | AH182: 8.55 | AI182: 7.46 | AJ182: 8.46 | AK182: 8.57 | AL182: 6.93
B183: 177 | C183: 72001654 | D183: RLL Worldwide Fund | E183: 9.92043 | F183: -3.15 | G183: 14.51 | H183: 2.05 | I183: 20.33 | J183: -3.04 | K183: 13.22 | L183: 12.02 | M183: 9.07 | N183: 10.5 | O183: 9.27 | P183: -3.32 | Q183: 11.46 | R183: 4.69 | S183: 20.09 | T183: -2.9 | U183: 13.09 | V183: 11.89 | W183: 9 | X183: 10.49 | Y183: 9.28 | Z183: -2.99 | AA183: 11.32 | AB183: 5.19 | AC183: 21.51 | AD183: -3.86 | AE183: 13.56 | AF183: 12.49 | AG183: 9.21 | AH183: 10.58 | AI183: 9.36 | AJ183: 10.47 | AK183: 10.22 | AL183: 9.47
B184: 178 | C184: 68154360 | D184: RLP 7IM AAP Adventurous-Pen | I184: 5.59 | J184: -2.96 | K184: 5.92 | S184: 5.83 | T184: -3.07 | U184: 5.62 | AC184: 6.49 | AD184: -3.25 | AE184: 5.48
B185: 179 | C185: 68154358 | D185: RLP 7IM AAP Balanced-Pen | I185: 5.89 | J185: -5.3 | K185: 2.18 | S185: 6.05 | T185: -5.31 | U185: 2.04 | AC185: 6.52 | AD185: -5.54 | AE185: 1.76
B186: 180 | C186: 68154359 | D186: RLP 7IM AAP Moderately Adventurous-Pen | I186: 6.41 | J186: -3.57 | K186: 4.15 | S186: 6.61 | T186: -3.69 | U186: 3.96 | AC186: 7.22 | AD186: -3.83 | AE186: 3.72
B187: 181 | C187: 68154357 | D187: RLP 7IM AAP Moderately Cautious-Pen | I187: 4.14 | J187: -6.81 | K187: -0.81 | S187: 4.32 | T187: -6.9 | U187: -0.98 | AC187: 4.7 | AD187: -7.09 | AE187: -1.3
B188: 182 | C188: 1000215070 | D188: RLP Absolute Return Government Bond Benchmark | E188: 0.15709 | F188: 0.67 | G188: 3.06 | H188: 3.97 | I188: 4.04 | J188: 1.24 | K188: -0.86 | L188: 3.69 | M188: 2.27 | N188: 0.82 | P188: 0.67 | Q188: 3.08 | R188: 3.98 | S188: 4.01 | T188: 1.24 | U188: -0.86 | V188: 3.69 | W188: 2.27 | X188: 0.82 | Z188: 0.66 | AA188: 3.06 | AB188: 3.98 | AC188: 4.01 | AD188: 1.23 | AE188: -0.86 | AF188: 3.69 | AG188: 2.27 | AH188: 0.82 | AL188: 2.17
B189: 183 | C189: 72014685 | D189: RLP Adventurous Managed -Pen | E189: 7.47427 | F189: -0.12 | G189: 14.42 | H189: 3.37 | I189: 12.33 | J189: -5.13 | K189: 13.36 | L189: 9.92 | M189: 7.39 | N189: 7.29 | O189: 6.92 | P189: -0.23 | Q189: 12.37 | R189: 5.06 | S189: 12.33 | T189: -4.9 | U189: 13.06 | V189: 9.86 | W189: 7.35 | X189: 7.27 | Y189: 6.91 | Z189: -0.54 | AA189: 11.75 | AB189: 5.65 | AC189: 13.1 | AD189: -5.76 | AE189: 13.55 | AF189: 10.13 | AG189: 7.4 | AH189: 7.35 | AI189: 6.95 | AJ189: 7.56 | AK189: 7.99 | AL189: 7.82
B190: 184 | C190: 1000204224 | D190: RLP American Benchmark | E190: 11.65079 | F190: -3 | G190: 13.89 | H190: 5.14 | I190: 26.08 | J190: -3.34 | K190: 18.11 | L190: 14.7 | M190: 11.5 | N190: 13.97 | O190: 13.56 | P190: -6.38 | Q190: 11.39 | R190: 4.33 | S190: 28.13 | T190: -6.31 | U190: 19.75 | V190: 14.18 | W190: 10.8 | X190: 13.67 | Y190: 13.34 | Z190: -6.62 | AA190: 9.01 | AB190: 6.37 | AC190: 28.06 | AD190: -7.25 | AE190: 21.12 | AF190: 14.1 | AG190: 10.78 | AH190: 13.55 | AI190: 13.33 | AJ190: 14.33 | AK190: 14.17 | AL190: 11.91
B191: 185 | C191: 72006213 | D191: RLP American Tilt -Pen | E191: 12.58977 | F191: -5.57 | G191: 13.26 | H191: 3.04 | I191: 28.09 | J191: -6.87 | K191: 20.55 | L191: 14.32 | M191: 10.9 | N191: 13.43 | O191: 13.08 | P191: -5.59 | Q191: 9.83 | R191: 6.19 | S191: 27.79 | T191: -6.65 | U191: 20.12 | V191: 14.22 | W191: 10.81 | X191: 13.48 | Y191: 13.11 | Z191: -5.39 | AA191: 9.93 | AB191: 7.16 | AC191: 28.5 | AD191: -7.35 | AE191: 20.94 | AF191: 14.83 | AG191: 11.15 | AH191: 13.53 | AI191: 13.17 | AJ191: 13.78 | AK191: 13.54 | AL191: 11.49
B192: 186 | C192: 1000211849 | D192: RLP Annuity Benchmark | E192: 4.9836 | F192: -0.46 | G192: 2.61 | H192: -1.41 | I192: 2 | J192: -10.56 | K192: -2.28 | L192: 1.05 | M192: -2.04 | N192: -0.01 | P192: -0.64 | Q192: 2.48 | R192: -1.53 | S192: 1.89 | T192: -10.11 | U192: -2.68 | V192: 0.93 | W192: -2.1 | X192: -0.01 | Z192: -1.08 | AA192: 2.47 | AB192: -1.81 | AC192: 1.59 | AD192: -10.04 | AE192: -3.05 | AF192: 0.74 | AG192: -2.27 | AH192: -0.07 | AL192: -2.57
B193: 187 | C193: 1000205312 | D193: RLP Asia Pacific Core Plus (Invesco Asian) Benchmark | E193: 14.19344 | F193: 1 | G193: 23.14 | H193: 5.45 | I193: 1.63 | J193: -4.3 | K193: -7.92 | L193: 9.68 | M193: 3.06 | N193: 7.63 | O193: 5.24 | P193: 2.55 | Q193: 22.63 | R193: 7.58 | S193: 2.14 | T193: -5.69 | U193: -8.24 | V193: 10.44 | W193: 3.12 | X193: 7.89 | Y193: 5.4 | Z193: 4.06 | AA193: 23.49 | AB193: 8.55 | AC193: 1.79 | AD193: -4.75 | AE193: -8.31 | AF193: 10.93 | AG193: 3.57 | AH193: 8.1 | AI193: 5.56 | AJ193: 6.6 | AK193: 8.63 | AL193: 2.11
B194: 188 | C194: 1000205314 | D194: RLP Asia Pacific Core Plus (Stewart Investors Asia Pacific Leaders) Benchmark | E194: 14.19245 | F194: 0.97 | G194: 23.01 | H194: 5.35 | I194: 1.52 | J194: -4.4 | K194: -8.01 | L194: 9.57 | M194: 2.96 | N194: 7.53 | O194: 5.13 | P194: 2.53 | Q194: 22.51 | R194: 7.47 | S194: 2.04 | T194: -5.78 | U194: -8.33 | V194: 10.33 | W194: 3.02 | X194: 7.78 | Y194: 5.29 | Z194: 4.03 | AA194: 23.37 | AB194: 8.45 | AC194: 1.69 | AD194: -4.84 | AE194: -8.4 | AF194: 10.82 | AG194: 3.47 | AH194: 8 | AI194: 5.45 | AJ194: 6.49 | AL194: 2.01
B195: 189 | C195: 72014660 | D195: RLP Baillie Gifford UK Equity 'A'-Pen | E195: 11.49298 | F195: -6.47 | G195: 6.5 | H195: 6.34 | I195: 5.79 | J195: -2.4 | K195: -0.69 | L195: 6.21 | M195: 3.03 | N195: 5.64 | O195: 6.07 | P195: -7.69 | Q195: 3.61 | R195: 7.66 | S195: 6.18 | T195: -3.01 | U195: -0.25 | V195: 5.8 | W195: 2.76 | X195: 5.46 | Y195: 6.1 | Z195: -7.34 | AA195: 4.35 | AB195: 7.73 | AC195: 7.53 | AD195: -4.14 | AE195: -0.33 | AF195: 6.53 | AG195: 2.93 | AH195: 5.69 | AI195: 6.07 | AJ195: 6.33 | AK195: 8.01 | AL195: 3.94
B196: 190 | C196: 72014662 | D196: RLP BlackRock ACS European Equity Index 'A'-Pen
B197: 191 | C197: 77006002 | D197: RLP BlackRock ACS Japanese Equity Index 'A'-Pen
B198: 192 | C198: 72014665 | D198: RLP BlackRock ACS US Equity Index 'A'-Pen
B199: 193 | C199: 72014666 | D199: RLP BlackRock ACS World (ex UK) Eq Idx 'A'-Pen
B200: 194 | C200: 77006004 | D200: RLP BlackRock Pacific Rim Equity Index 'A'-Pen
B201: 195 | C201: 77006007 | D201: RLP BlackRock UK Equity 'A'-Pen | E201: 9.63223 | F201: -1.87 | G201: 8.05 | H201: 6.56 | I201: 11.2 | J201: 2.01 | K201: 8.09 | L201: 8.58 | M201: 7.14 | N201: 7.65 | O201: 6.99 | P201: -3.18 | Q201: 4.71 | R201: 8.33 | S201: 11.46 | T201: 2.22 | U201: 7.52 | V201: 8.13 | W201: 6.8 | X201: 7.48 | Y201: 6.86 | Z201: -3.46 | AA201: 4.77 | AB201: 8.19 | AC201: 12.19 | AD201: 0.32 | AE201: 8.62 | AF201: 8.35 | AG201: 6.75 | AH201: 7.59 | AI201: 6.9 | AJ201: 7.75 | AK201: 9.03 | AL201: 7.29
B202: 196 | C202: 68154369 | D202: RLP BMF Balanced-Pen | I202: 8.84 | J202: -4.82 | K202: 2.91 | S202: 9.51 | T202: -5.41 | U202: 3.03 | AC202: 9.99 | AD202: -4.87 | AE202: 2.37
... 405 more rows

Sheet Adj Sheet1 - Table (1) (hidden)
B1: This will recalc the figures from the 'Sheet1 - Table (1)'
A2: Col Lookup | B2: 1 | C2: 2 | D2: 3 | E2: 4 | F2: 5 | G2: 6 | H2: 7 | I2: 8 | J2: 9 | K2: 10 | L2: 11 | M2: 12 | N2: 13 | O2: 14 | P2: 15 | Q2: 16 | R2: 17 | S2: 18 | T2: 19 | U2: 20 | V2: 21 | W2: 22 | X2: 23 | Y2: 24 | Z2: 25 | AA2: 26 | AB2: 27 | AC2: 28 | AD2: 29 | AE2: 30 | AF2: 31 | AG2: 32 | AH2: 33 | AI2: 34 | AJ2: 35
E3: Figures for T | O3: Figures for T-1 | Y3: Figures for T-2
E4: 3month | F4: 1yr | G4: 1yr | H4: 1yr | I4: 1yr | J4: 1yr | K4: 3yr | L4: 5yr | M4: 10yr | N4: 15yr | O4: 3month | P4: 1yr | Q4: 1yr | R4: 1yr | S4: 1yr | T4: 1yr | U4: 3yr | V4: 5yr | W4: 10yr | X4: 15yr | Y4: 3month | Z4: 1yr | AA4: 1yr | AB4: 1yr | AC4: 1yr | AD4: 1yr | AE4: 3yr | AF4: 5yr | AG4: 10yr | AH4: 15yr | AI4: GRIP term | AJ4: GP term
E5: =E6-E7 -> 90 | F5: 365 | G5: 365 | H5: 366 | I5: 365 | J5: 365 | K5: 365 | L5: 365 | M5: 365 | N5: 365 | O5: =O6-O7 -> 90 | P5: =P6-P7 -> 367 | Q5: =Q6-Q7 -> 365 | R5: =R6-R7 -> 364 | S5: =S6-S7 -> 365 | T5: =T6-T7 -> 365 | U5: 365 | V5: 365 | W5: 365 | X5: 365 | Y5: =Y6-Y7 -> 88 | Z5: =Z6-Z7 -> 365 | AA5: =AA6-AA7 -> 365 | AB5: =AB6-AB7 -> 364 | AC5: =AC6-AC7 -> 365 | AD5: =AD6-AD7 -> 365 | AE5: 365 | AF5: 365 | AG5: 365 | AH5: 365 | AI5: 365 | AJ5: 365
B6: Source: Lipper | E6: =RIGHT(E9,10) -> 31/03/2026 | F6: 31/03/2026 | G6: 31/03/2025 | H6: 31/03/2024 | I6: 31/03/2023 | J6: 31/03/2022 | O6: =RIGHT(O9,10) -> 30/03/2026 | P6: 30/03/2026 | Q6: 28/03/2025 | R6: 28/03/2024 | S6: 30/03/2023 | T6: 30/03/2022 | Y6: =RIGHT(Y9,10) -> 27/03/2026 | Z6: 27/03/2026 | AA6: 27/03/2025 | AB6: 27/03/2024 | AC6: 29/03/2023 | AD6: 29/03/2022 | AI6: 31/03/2026 | AJ6: 31/03/2026
E7: =LEFT(E9,10) -> 31/12/2025 | F7: 31/03/2025 | G7: 31/03/2024 | H7: 31/03/2023 | I7: 31/03/2022 | J7: 31/03/2021 | O7: =LEFT(O9,10) -> 30/12/2025 | P7: 28/03/2025 | Q7: 28/03/2024 | R7: 30/03/2023 | S7: 30/03/2022 | T7: 30/03/2021 | Y7: =LEFT(Y9,10) -> 29/12/2025 | Z7: 27/03/2025 | AA7: 27/03/2024 | AB7: 29/03/2023 | AC7: 29/03/2022 | AD7: 29/03/2021 | AI7: 28/08/2012 | AJ7: 12/01/2009
A8: Life/Pension Flag | B8: Lipper ID | C8: Name | D8: ='Sheet1 - Table (1)'!E4 -> Std Dev AnnSim TR Def ExD Def GBP Mthly | E8: ='Sheet1 - Table (1)'!F4 -> % Growth TR Def ExD Def GBP | F8: % Growth TR Def ExD Def GBP from 31/05/2016 to 31/05/2021 every 12 Months | K8: Ann Comp Ret 365 TR Def ExD Def GBP | O8: % Growth TR Def ExD Def GBP | P8: % Growth TR Def ExD Def GBP | U8: Ann Comp Ret 365 TR Def ExD Def GBP | Y8: % Growth TR Def ExD Def GBP | Z8: % Growth TR Def ExD Def GBP | AE8: Ann Comp Ret 365 TR Def ExD Def GBP | AI8: % Growth 365 TR Def ExD Def Ann GBP | AJ8: % Growth 365 TR Def ExD Def Ann GBP
D9: ='Sheet1 - Table (1)'!E5 -> 31/03/2023 To 31/03/2026 | E9: ='Sheet1 - Table (1)'!F5 -> 31/12/2025 To 31/03/2026 | F9: ='Sheet1 - Table (1)'!G5 -> 31/03/2025 To 31/03/2026 | G9: ='Sheet1 - Table (1)'!H5 -> 31/03/2024 To 31/03/2025 | H9: ='Sheet1 - Table (1)'!I5 -> 31/03/2023 To 31/03/2024 | I9: ='Sheet1 - Table (1)'!J5 -> 31/03/2022 To 31/03/2023 | J9: ='Sheet1 - Table (1)'!K5 -> 31/03/2021 To 31/03/2022 | K9: ='Sheet1 - Table (1)'!L5 -> 31/03/2023 To 31/03/2026 | L9: ='Sheet1 - Table (1)'!M5 -> 31/03/2021 To 31/03/2026 | M9: ='Sheet1 - Table (1)'!N5 -> 31/03/2016 To 31/03/2026 | N9: ='Sheet1 - Table (1)'!O5 -> 31/03/2011 To 31/03/2026 | O9: ='Sheet1 - Table (1)'!P5 -> 30/12/2025 To 30/03/2026 | P9: ='Sheet1 - Table (1)'!Q5 -> 28/03/2025 To 30/03/2026 | Q9: ='Sheet1 - Table (1)'!R5 -> 28/03/2024 To 28/03/2025 | R9: ='Sheet1 - Table (1)'!S5 -> 30/03/2023 To 28/03/2024 | S9: ='Sheet1 - Table (1)'!T5 -> 30/03/2022 To 30/03/2023 | T9: ='Sheet1 - Table (1)'!U5 -> 30/03/2021 To 30/03/2022 | U9: ='Sheet1 - Table (1)'!V5 -> 30/03/2023 To 30/03/2026 | V9: ='Sheet1 - Table (1)'!W5 -> 30/03/2021 To 30/03/2026 | W9: ='Sheet1 - Table (1)'!X5 -> 30/03/2016 To 30/03/2026 | X9: ='Sheet1 - Table (1)'!Y5 -> 30/03/2011 To 30/03/2026 | Y9: ='Sheet1 - Table (1)'!Z5 -> 29/12/2025 To 27/03/2026 | Z9: ='Sheet1 - Table (1)'!AA5 -> 27/03/2025 To 27/03/2026 | AA9: ='Sheet1 - Table (1)'!AB5 -> 27/03/2024 To 27/03/2025 | AB9: ='Sheet1 - Table (1)'!AC5 -> 29/03/2023 To 27/03/2024 | AC9: ='Sheet1 - Table (1)'!AD5 -> 29/03/2022 To 29/03/2023 | AD9: ='Sheet1 - Table (1)'!AE5 -> 29/03/2021 To 29/03/2022 | AE9: ='Sheet1 - Table (1)'!AF5 -> 29/03/2023 To 27/03/2026 | AF9: ='Sheet1 - Table (1)'!AG5 -> 29/03/2021 To 27/03/2026 | AG9: ='Sheet1 - Table (1)'!AH5 -> 29/03/2016 To 27/03/2026 | AH9: ='Sheet1 - Table (1)'!AI5 -> 29/03/2011 To 27/03/2026 | AI9: ='Sheet1 - Table (1)'!AJ5 -> 28/08/2012 To 31/03/2026 | AJ9: ='Sheet1 - Table (1)'!AK5 -> 12/01/2009 To 31/03/2026
A10: Life/Pension Flag | D10: ='Sheet1 - Table (1)'!E6 -> Value | E10: ='Sheet1 - Table (1)'!F6 -> Value | F10: ='Sheet1 - Table (1)'!G6 -> Value | G10: ='Sheet1 - Table (1)'!H6 -> Value | H10: ='Sheet1 - Table (1)'!I6 -> Value | I10: ='Sheet1 - Table (1)'!J6 -> Value | J10: ='Sheet1 - Table (1)'!K6 -> Value | K10: ='Sheet1 - Table (1)'!L6 -> Value | L10: ='Sheet1 - Table (1)'!M6 -> Value | M10: ='Sheet1 - Table (1)'!N6 -> Value | N10: ='Sheet1 - Table (1)'!O6 -> Value | O10: ='Sheet1 - Table (1)'!P6 -> Value | P10: ='Sheet1 - Table (1)'!Q6 -> Value | Q10: ='Sheet1 - Table (1)'!R6 -> Value | R10: ='Sheet1 - Table (1)'!S6 -> Value | S10: ='Sheet1 - Table (1)'!T6 -> Value | T10: ='Sheet1 - Table (1)'!U6 -> Value | U10: ='Sheet1 - Table (1)'!V6 -> Value | V10: ='Sheet1 - Table (1)'!W6 -> Value | W10: ='Sheet1 - Table (1)'!X6 -> Value | X10: ='Sheet1 - Table (1)'!Y6 -> Value | Y10: ='Sheet1 - Table (1)'!Z6 -> Value | Z10: ='Sheet1 - Table (1)'!AA6 -> Value | AA10: ='Sheet1 - Table (1)'!AB6 -> Value | AB10: ='Sheet1 - Table (1)'!AC6 -> Value | AC10: ='Sheet1 - Table (1)'!AD6 -> Value | AD10: ='Sheet1 - Table (1)'!AE6 -> Value | AE10: ='Sheet1 - Table (1)'!AF6 -> Value | AF10: ='Sheet1 - Table (1)'!AG6 -> Value | AG10: ='Sheet1 - Table (1)'!AH6 -> Value | AH10: ='Sheet1 - Table (1)'!AI6 -> Value | AI10: ='Sheet1 - Table (1)'!AJ6 -> Value | AJ10: ='Sheet1 - Table (1)'!AK6 -> Value
A11: =IF(RIGHT(C11,4)="Life","Life","Pension") -> Life | B11: ='Sheet1 - Table (1)'!C7 -> 19074013 | C11: =_xlfn.XLOOKUP($B11,'Sheet1 - Table (1)'!$C$7:$C$1048576,'Sheet1 - Table (1)'!$D$7:$D$1048576,"N/A") -> ABI UK - Asia Pacific inc Japan Equities-Life | D11: =IF(VLOOKUP($B11, 'Sheet1 - Table (1)'!$C$4:$AK$996, 'Adj Sheet1 - Table (1)'!D$2, FALSE)="", "", VLOOKUP($B11, 'Sheet1 - Table (1)'!$C$4:$AK$996, 'Adj Sheet1 - Table (1)'!D$2, FALSE)) -> 10.44577 | E11: =IF(VLOOKUP($B11, 'Sheet1 - Table (1)'!$C$4:$AK$996, 'Adj Sheet1 - Table (1)'!E$2, FALSE)="", "", ((1+VLOOKUP($B11, 'Sheet1 - Table (1)'!$C$4:$AK$996, 'Adj Sheet1 - Table (1)'!E$2, FALSE)/100)*(1+IF($A11="Life",assumed_rebate_life,assumed_rebate))^(E$5/365)-1)*100) -> 2.69 | F11: =IF(VLOOKUP($B11, 'Sheet1 - Table (1)'!$C$4:$AK$996, 'Adj Sheet1 - Table (1)'!F$2, FALSE)="", "", ((1+VLOOKUP($B11, 'Sheet1 - Table (1)'!$C$4:$AK$996, 'Adj Sheet1 - Table (1)'!F$2, FALSE)/100)*(1+IF($A11="Life",assumed_rebate_life,assumed_rebate))^(F$5/365)-1)*100) -> 21.43 | G11: =IF(VLOOKUP($B11, 'Sheet1 - Table (1)'!$C$4:$AK$996, 'Adj Sheet1 - Table (1)'!G$2, FALSE)="", "", ((1+VLOOKUP($B11, 'Sheet1 - Table (1)'!$C$4:$AK$996, 'Adj Sheet1 - Table (1)'!G$2, FALSE)/100)*(1+IF($A11="Life",assumed_rebate_life,assumed_rebate))^(G$5/365)-1)*100) -> 3.32 | H11: =IF(VLOOKUP($B11, 'Sheet1 - Table (1)'!$C$4:$AK$996, 'Adj Sheet1 - Table (1)'!H$2, FALSE)="", "", ((1+VLOOKUP($B11, 'Sheet1 - Table (1)'!$C$4:$AK$996, 'Adj Sheet1 - Table (1)'!H$2, FALSE)/100)*(1+IF($A11="Life",assumed_rebate_life,assumed_rebate))^(H$5/365)-1)*100) -> 3.96 | I11: =IF(VLOOKUP($B11, 'Sheet1 - Table (1)'!$C$4:$AK$996, 'Adj Sheet1 - Table (1)'!I$2, FALSE)="", "", ((1+VLOOKUP($B11, 'Sheet1 - Table (1)'!$C$4:$AK$996, 'Adj Sheet1 - Table (1)'!I$2, FALSE)/100)*(1+IF($A11="Life",assumed_rebate_life,assumed_rebate))^(I$5/365)-1)*100) -> -1.95 | J11: =IF(VLOOKUP($B11, 'Sheet1 - Table (1)'!$C$4:$AK$996, 'Adj Sheet1 - Table (1)'!J$2, FALSE)="", "", ((1+VLOOKUP($B11, 'Sheet1 - Table (1)'!$C$4:$AK$996, 'Adj Sheet1 - Table (1)'!J$2, FALSE)/100)*(1+IF($A11="Life",assumed_rebate_life,assumed_rebate))^(J$5/365)-1)*100) -> -4.64 | K11: =IF(VLOOKUP($B11, 'Sheet1 - Table (1)'!$C$4:$AK$996, 'Adj Sheet1 - Table (1)'!K$2, FALSE)="", "", ((1+VLOOKUP($B11, 'Sheet1 - Table (1)'!$C$4:$AK$996, 'Adj Sheet1 - Table (1)'!K$2, FALSE)/100)*(1+IF($A11="Life",assumed_rebate_life,assumed_rebate))^(K$5/365)-1)*100) -> 9.25 | L11: =IF(VLOOKUP($B11, 'Sheet1 - Table (1)'!$C$4:$AK$996, 'Adj Sheet1 - Table (1)'!L$2, FALSE)="", "", ((1+VLOOKUP($B11, 'Sheet1 - Table (1)'!$C$4:$AK$996, 'Adj Sheet1 - Table (1)'!L$2, FALSE)/100)*(1+IF($A11="Life",assumed_rebate_life,assumed_rebate))^(L$5/365)-1)*100) -> 4.05 | M11: =IF(VLOOKUP($B11, 'Sheet1 - Table (1)'!$C$4:$AK$996, 'Adj Sheet1 - Table (1)'!M$2, FALSE)="", "", ((1+VLOOKUP($B11, 'Sheet1 - Table (1)'!$C$4:$AK$996, 'Adj Sheet1 - Table (1)'!M$2, FALSE)/100)*(1+IF($A11="Life",assumed_rebate_life,assumed_rebate))^(M$5/365)-1)*100) -> 7.86 | N11: =IF(VLOOKUP($B11, 'Sheet1 - Table (1)'!$C$4:$AK$996, 'Adj Sheet1 - Table (1)'!N$2, FALSE)="", "", ((1+VLOOKUP($B11, 'Sheet1 - Table (1)'!$C$4:$AK$996, 'Adj Sheet1 - Table (1)'!N$2, FALSE)/100)*(1+IF($A11="Life",assumed_rebate_life,assumed_rebate))^(N$5/365)-1)*100) -> 6.23 | O11: =IF(VLOOKUP($B11, 'Sheet1 - Table (1)'!$C$4:$AK$996, 'Adj Sheet1 - Table (1)'!O$2, FALSE)="", "", ((1+VLOOKUP($B11, 'Sheet1 - Table (1)'!$C$4:$AK$996, 'Adj Sheet1 - Table (1)'!O$2, FALSE)/100)*(1+IF($A11="Life",assumed_rebate_life,assumed_rebate))^(O$5/365)-1)*100) -> 3.69 | P11: =IF(VLOOKUP($B11, 'Sheet1 - Table (1)'!$C$4:$AK$996, 'Adj Sheet1 - Table (1)'!P$2, FALSE)="", "", ((1+VLOOKUP($B11, 'Sheet1 - Table (1)'!$C$4:$AK$996, 'Adj Sheet1 - Table (1)'!P$2, FALSE)/100)*(1+IF($A11="Life",assumed_rebate_life,assumed_rebate))^(P$5/365)-1)*100) -> 20.71 | Q11: =IF(VLOOKUP($B11, 'Sheet1 - Table (1)'!$C$4:$AK$996, 'Adj Sheet1 - Table (1)'!Q$2, FALSE)="", "", ((1+VLOOKUP($B11, 'Sheet1 - Table (1)'!$C$4:$AK$996, 'Adj Sheet1 - Table (1)'!Q$2, FALSE)/100)*(1+IF($A11="Life",assumed_rebate_life,assumed_rebate))^(Q$5/365)-1)*100) -> 4.83 | R11: =IF(VLOOKUP($B11, 'Sheet1 - Table (1)'!$C$4:$AK$996, 'Adj Sheet1 - Table (1)'!R$2, FALSE)="", "", ((1+VLOOKUP($B11, 'Sheet1 - Table (1)'!$C$4:$AK$996, 'Adj Sheet1 - Table (1)'!R$2, FALSE)/100)*(1+IF($A11="Life",assumed_rebate_life,assumed_rebate))^(R$5/365)-1)*100) -> 4.24 | S11: =IF(VLOOKUP($B11, 'Sheet1 - Table (1)'!$C$4:$AK$996, 'Adj Sheet1 - Table (1)'!S$2, FALSE)="", "", ((1+VLOOKUP($B11, 'Sheet1 - Table (1)'!$C$4:$AK$996, 'Adj Sheet1 - Table (1)'!S$2, FALSE)/100)*(1+IF($A11="Life",assumed_rebate_life,assumed_rebate))^(S$5/365)-1)*100) -> -2.23 | T11: =IF(VLOOKUP($B11, 'Sheet1 - Table (1)'!$C$4:$AK$996, 'Adj Sheet1 - Table (1)'!T$2, FALSE)="", "", ((1+VLOOKUP($B11, 'Sheet1 - Table (1)'!$C$4:$AK$996, 'Adj Sheet1 - Table (1)'!T$2, FALSE)/100)*(1+IF($A11="Life",assumed_rebate_life,assumed_rebate))^(T$5/365)-1)*100) -> -5.01 | U11: =IF(VLOOKUP($B11, 'Sheet1 - Table (1)'!$C$4:$AK$996, 'Adj Sheet1 - Table (1)'!U$2, FALSE)="", "", ((1+VLOOKUP($B11, 'Sheet1 - Table (1)'!$C$4:$AK$996, 'Adj Sheet1 - Table (1)'!U$2, FALSE)/100)*(1+IF($A11="Life",assumed_rebate_life,assumed_rebate))^(U$5/365)-1)*100) -> 9.66 | V11: =IF(VLOOKUP($B11, 'Sheet1 - Table (1)'!$C$4:$AK$996, 'Adj Sheet1 - Table (1)'!V$2, FALSE)="", "", ((1+VLOOKUP($B11, 'Sheet1 - Table (1)'!$C$4:$AK$996, 'Adj Sheet1 - Table (1)'!V$2, FALSE)/100)*(1+IF($A11="Life",assumed_rebate_life,assumed_rebate))^(V$5/365)-1)*100) -> 4.14 | W11: =IF(VLOOKUP($B11, 'Sheet1 - Table (1)'!$C$4:$AK$996, 'Adj Sheet1 - Table (1)'!W$2, FALSE)="", "", ((1+VLOOKUP($B11, 'Sheet1 - Table (1)'!$C$4:$AK$996, 'Adj Sheet1 - Table (1)'!W$2, FALSE)/100)*(1+IF($A11="Life",assumed_rebate_life,assumed_rebate))^(W$5/365)-1)*100) -> 7.95 | X11: =IF(VLOOKUP($B11, 'Sheet1 - Table (1)'!$C$4:$AK$996, 'Adj Sheet1 - Table (1)'!X$2, FALSE)="", "", ((1+VLOOKUP($B11, 'Sheet1 - Table (1)'!$C$4:$AK$996, 'Adj Sheet1 - Table (1)'!X$2, FALSE)/100)*(1+IF($A11="Life",assumed_rebate_life,assumed_rebate))^(X$5/365)-1)*100) -> 6.32 | Y11: =IF(VLOOKUP($B11, 'Sheet1 - Table (1)'!$C$4:$AK$996, 'Adj Sheet1 - Table (1)'!Y$2, FALSE)="", "", ((1+VLOOKUP($B11, 'Sheet1 - Table (1)'!$C$4:$AK$996, 'Adj Sheet1 - Table (1)'!Y$2, FALSE)/100)*(1+IF($A11="Life",assumed_rebate_life,assumed_rebate))^(Y$5/365)-1)*100) -> 4.66 | Z11: =IF(VLOOKUP($B11, 'Sheet1 - Table (1)'!$C$4:$AK$996, 'Adj Sheet1 - Table (1)'!Z$2, FALSE)="", "", ((1+VLOOKUP($B11, 'Sheet1 - Table (1)'!$C$4:$AK$996, 'Adj Sheet1 - Table (1)'!Z$2, FALSE)/100)*(1+IF($A11="Life",assumed_rebate_life,assumed_rebate))^(Z$5/365)-1)*100) -> 20.75 | AA11: =IF(VLOOKUP($B11, 'Sheet1 - Table (1)'!$C$4:$AK$996, 'Adj Sheet1 - Table (1)'!AA$2, FALSE)="", "", ((1+VLOOKUP($B11, 'Sheet1 - Table (1)'!$C$4:$AK$996, 'Adj Sheet1 - Table (1)'!AA$2, FALSE)/100)*(1+IF($A11="Life",assumed_rebate_life,assumed_rebate))^(AA$5/365)-1)*100) -> 5.35 | AB11: =IF(VLOOKUP($B11, 'Sheet1 - Table (1)'!$C$4:$AK$996, 'Adj Sheet1 - Table (1)'!AB$2, FALSE)="", "", ((1+VLOOKUP($B11, 'Sheet1 - Table (1)'!$C$4:$AK$996, 'Adj Sheet1 - Table (1)'!AB$2, FALSE)/100)*(1+IF($A11="Life",assumed_rebate_life,assumed_rebate))^(AB$5/365)-1)*100) -> 4.68 | AC11: =IF(VLOOKUP($B11, 'Sheet1 - Table (1)'!$C$4:$AK$996, 'Adj Sheet1 - Table (1)'!AC$2, FALSE)="", "", ((1+VLOOKUP($B11, 'Sheet1 - Table (1)'!$C$4:$AK$996, 'Adj Sheet1 - Table (1)'!AC$2, FALSE)/100)*(1+IF($A11="Life",assumed_rebate_life,assumed_rebate))^(AC$5/365)-1)*100) -> -1.73 | AD11: =IF(VLOOKUP($B11, 'Sheet1 - Table (1)'!$C$4:$AK$996, 'Adj Sheet1 - Table (1)'!AD$2, FALSE)="", "", ((1+VLOOKUP($B11, 'Sheet1 - Table (1)'!$C$4:$AK$996, 'Adj Sheet1 - Table (1)'!AD$2, FALSE)/100)*(1+IF($A11="Life",assumed_rebate_life,assumed_rebate))^(AD$5/365)-1)*100) -> -5.56 | AE11: =IF(VLOOKUP($B11, 'Sheet1 - Table (1)'!$C$4:$AK$996, 'Adj Sheet1 - Table (1)'!AE$2, FALSE)="", "", ((1+VLOOKUP($B11, 'Sheet1 - Table (1)'!$C$4:$AK$996, 'Adj Sheet1 - Table (1)'!AE$2, FALSE)/100)*(1+IF($A11="Life",assumed_rebate_life,assumed_rebate))^(AE$5/365)-1)*100) -> 10.03 | AF11: =IF(VLOOKUP($B11, 'Sheet1 - Table (1)'!$C$4:$AK$996, 'Adj Sheet1 - Table (1)'!AF$2, FALSE)="", "", ((1+VLOOKUP($B11, 'Sheet1 - Table (1)'!$C$4:$AK$996, 'Adj Sheet1 - Table (1)'!AF$2, FALSE)/100)*(1+IF($A11="Life",assumed_rebate_life,assumed_rebate))^(AF$5/365)-1)*100) -> 4.33 | AG11: =IF(VLOOKUP($B11, 'Sheet1 - Table (1)'!$C$4:$AK$996, 'Adj Sheet1 - Table (1)'!AG$2, FALSE)="", "", ((1+VLOOKUP($B11, 'Sheet1 - Table (1)'!$C$4:$AK$996, 'Adj Sheet1 - Table (1)'!AG$2, FALSE)/100)*(1+IF($A11="Life",assumed_rebate_life,assumed_rebate))^(AG$5/365)-1)*100) -> 8.02 | AH11: =IF(VLOOKUP($B11, 'Sheet1 - Table (1)'!$C$4:$AK$996, 'Adj Sheet1 - Table (1)'!AH$2, FALSE)="", "", ((1+VLOOKUP($B11, 'Sheet1 - Table (1)'!$C$4:$AK$996, 'Adj Sheet1 - Table (1)'!AH$2, FALSE)/100)*(1+IF($A11="Life",assumed_rebate_life,assumed_rebate))^(AH$5/365)-1)*100) -> 6.42 | AI11: =IF(VLOOKUP($B11, 'Sheet1 - Table (1)'!$C$4:$AK$996, 'Adj Sheet1 - Table (1)'!AI$2, FALSE)="", "", ((1+VLOOKUP($B11, 'Sheet1 - Table (1)'!$C$4:$AK$996, 'Adj Sheet1 - Table (1)'!AI$2, FALSE)/100)*(1+IF($A11="Life",assumed_rebate_life,assumed_rebate))^(AI$5/365)-1)*100) -> 7.29 | AJ11: =IF(VLOOKUP($B11, 'Sheet1 - Table (1)'!$C$4:$AK$996, 'Adj Sheet1 - Table (1)'!AJ$2, FALSE)="", "", ((1+VLOOKUP($B11, 'Sheet1 - Table (1)'!$C$4:$AK$996, 'Adj Sheet1 - Table (1)'!AJ$2, FALSE)/100)*(1+IF($A11="Life",assumed_rebate_life,assumed_rebate))^(AJ$5/365)-1)*100) -> 7.97
A12: =IF(RIGHT(C12,4)="Life","Life","Pension") -> Life | B12: ='Sheet1 - Table (1)'!C8 -> 19074035 | C12: =_xlfn.XLOOKUP($B12,'Sheet1 - Table (1)'!$C$7:$C$1048576,'Sheet1 - Table (1)'!$D$7:$D$1048576,"N/A") -> ABI UK - Deposit & Treasury-Life | D12: =IF(VLOOKUP($B12, 'Sheet1 - Table (1)'!$C$4:$AK$996, 'Adj Sheet1 - Table (1)'!D$2, FALSE)="", "", VLOOKUP($B12, 'Sheet1 - Table (1)'!$C$4:$AK$996, 'Adj Sheet1 - Table (1)'!D$2, FALSE)) -> 0.14717 | E12: =IF(VLOOKUP($B12, 'Sheet1 - Table (1)'!$C$4:$AK$996, 'Adj Sheet1 - Table (1)'!E$2, FALSE)="", "", ((1+VLOOKUP($B12, 'Sheet1 - Table (1)'!$C$4:$AK$996, 'Adj Sheet1 - Table (1)'!E$2, FALSE)/100)*(1+IF($A12="Life",assumed_rebate_life,assumed_rebate))^(E$5/365)-1)*100) -> 0.55 | F12: =IF(VLOOKUP($B12, 'Sheet1 - Table (1)'!$C$4:$AK$996, 'Adj Sheet1 - Table (1)'!F$2, FALSE)="", "", ((1+VLOOKUP($B12, 'Sheet1 - Table (1)'!$C$4:$AK$996, 'Adj Sheet1 - Table (1)'!F$2, FALSE)/100)*(1+IF($A12="Life",assumed_rebate_life,assumed_rebate))^(F$5/365)-1)*100) -> 2.63 | G12: =IF(VLOOKUP($B12, 'Sheet1 - Table (1)'!$C$4:$AK$996, 'Adj Sheet1 - Table (1)'!G$2, FALSE)="", "", ((1+VLOOKUP($B12, 'Sheet1 - Table (1)'!$C$4:$AK$996, 'Adj Sheet1 - Table (1)'!G$2, FALSE)/100)*(1+IF($A12="Life",assumed_rebate_life,assumed_rebate))^(G$5/365)-1)*100) -> 3.44 | H12: =IF(VLOOKUP($B12, 'Sheet1 - Table (1)'!$C$4:$AK$996, 'Adj Sheet1 - Table (1)'!H$2, FALSE)="", "", ((1+VLOOKUP($B12, 'Sheet1 - Table (1)'!$C$4:$AK$996, 'Adj Sheet1 - Table (1)'!H$2, FALSE)/100)*(1+IF($A12="Life",assumed_rebate_life,assumed_rebate))^(H$5/365)-1)*100) -> 3.39 | I12: =IF(VLOOKUP($B12, 'Sheet1 - Table (1)'!$C$4:$AK$996, 'Adj Sheet1 - Table (1)'!I$2, FALSE)="", "", ((1+VLOOKUP($B12, 'Sheet1 - Table (1)'!$C$4:$AK$996, 'Adj Sheet1 - Table (1)'!I$2, FALSE)/100)*(1+IF($A12="Life",assumed_rebate_life,assumed_rebate))^(I$5/365)-1)*100) -> 0.94 | J12: =IF(VLOOKUP($B12, 'Sheet1 - Table (1)'!$C$4:$AK$996, 'Adj Sheet1 - Table (1)'!J$2, FALSE)="", "", ((1+VLOOKUP($B12, 'Sheet1 - Table (1)'!$C$4:$AK$996, 'Adj Sheet1 - Table (1)'!J$2, FALSE)/100)*(1+IF($A12="Life",assumed_rebate_life,assumed_rebate))^(J$5/365)-1)*100) -> -0.55 | K12: =IF(VLOOKUP($B12, 'Sheet1 - Table (1)'!$C$4:$AK$996, 'Adj Sheet1 - Table (1)'!K$2, FALSE)="", "", ((1+VLOOKUP($B12, 'Sheet1 - Table (1)'!$C$4:$AK$996, 'Adj Sheet1 - Table (1)'!K$2, FALSE)/100)*(1+IF($A12="Life",assumed_rebate_life,assumed_rebate))^(K$5/365)-1)*100) -> 3.15 | L12: =IF(VLOOKUP($B12, 'Sheet1 - Table (1)'!$C$4:$AK$996, 'Adj Sheet1 - Table (1)'!L$2, FALSE)="", "", ((1+VLOOKUP($B12, 'Sheet1 - Table (1)'!$C$4:$AK$996, 'Adj Sheet1 - Table (1)'!L$2, FALSE)/100)*(1+IF($A12="Life",assumed_rebate_life,assumed_rebate))^(L$5/365)-1)*100) -> 1.96 | M12: =IF(VLOOKUP($B12, 'Sheet1 - Table (1)'!$C$4:$AK$996, 'Adj Sheet1 - Table (1)'!M$2, FALSE)="", "", ((1+VLOOKUP($B12, 'Sheet1 - Table (1)'!$C$4:$AK$996, 'Adj Sheet1 - Table (1)'!M$2, FALSE)/100)*(1+IF($A12="Life",assumed_rebate_life,assumed_rebate))^(M$5/365)-1)*100) -> 0.8 | N12: =IF(VLOOKUP($B12, 'Sheet1 - Table (1)'!$C$4:$AK$996, 'Adj Sheet1 - Table (1)'!N$2, FALSE)="", "", ((1+VLOOKUP($B12, 'Sheet1 - Table (1)'!$C$4:$AK$996, 'Adj Sheet1 - Table (1)'!N$2, FALSE)/100)*(1+IF($A12="Life",assumed_rebate_life,assumed_rebate))^(N$5/365)-1)*100) -> 0.44 | O12: =IF(VLOOKUP($B12, 'Sheet1 - Table (1)'!$C$4:$AK$996, 'Adj Sheet1 - Table (1)'!O$2, FALSE)="", "", ((1+VLOOKUP($B12, 'Sheet1 - Table (1)'!$C$4:$AK$996, 'Adj Sheet1 - Table (1)'!O$2, FALSE)/100)*(1+IF($A12="Life",assumed_rebate_life,assumed_rebate))^(O$5/365)-1)*100) -> 0.57 | P12: =IF(VLOOKUP($B12, 'Sheet1 - Table (1)'!$C$4:$AK$996, 'Adj Sheet1 - Table (1)'!P$2, FALSE)="", "", ((1+VLOOKUP($B12, 'Sheet1 - Table (1)'!$C$4:$AK$996, 'Adj Sheet1 - Table (1)'!P$2, FALSE)/100)*(1+IF($A12="Life",assumed_rebate_life,assumed_rebate))^(P$5/365)-1)*100) -> 2.63 | Q12: =IF(VLOOKUP($B12, 'Sheet1 - Table (1)'!$C$4:$AK$996, 'Adj Sheet1 - Table (1)'!Q$2, FALSE)="", "", ((1+VLOOKUP($B12, 'Sheet1 - Table (1)'!$C$4:$AK$996, 'Adj Sheet1 - Table (1)'!Q$2, FALSE)/100)*(1+IF($A12="Life",assumed_rebate_life,assumed_rebate))^(Q$5/365)-1)*100) -> 3.43 | R12: =IF(VLOOKUP($B12, 'Sheet1 - Table (1)'!$C$4:$AK$996, 'Adj Sheet1 - Table (1)'!R$2, FALSE)="", "", ((1+VLOOKUP($B12, 'Sheet1 - Table (1)'!$C$4:$AK$996, 'Adj Sheet1 - Table (1)'!R$2, FALSE)/100)*(1+IF($A12="Life",assumed_rebate_life,assumed_rebate))^(R$5/365)-1)*100) -> 3.39 | S12: =IF(VLOOKUP($B12, 'Sheet1 - Table (1)'!$C$4:$AK$996, 'Adj Sheet1 - Table (1)'!S$2, FALSE)="", "", ((1+VLOOKUP($B12, 'Sheet1 - Table (1)'!$C$4:$AK$996, 'Adj Sheet1 - Table (1)'!S$2, FALSE)/100)*(1+IF($A12="Life",assumed_rebate_life,assumed_rebate))^(S$5/365)-1)*100) -> 0.94 | T12: =IF(VLOOKUP($B12, 'Sheet1 - Table (1)'!$C$4:$AK$996, 'Adj Sheet1 - Table (1)'!T$2, FALSE)="", "", ((1+VLOOKUP($B12, 'Sheet1 - Table (1)'!$C$4:$AK$996, 'Adj Sheet1 - Table (1)'!T$2, FALSE)/100)*(1+IF($A12="Life",assumed_rebate_life,assumed_rebate))^(T$5/365)-1)*100) -> -0.55 | U12: =IF(VLOOKUP($B12, 'Sheet1 - Table (1)'!$C$4:$AK$996, 'Adj Sheet1 - Table (1)'!U$2, FALSE)="", "", ((1+VLOOKUP($B12, 'Sheet1 - Table (1)'!$C$4:$AK$996, 'Adj Sheet1 - Table (1)'!U$2, FALSE)/100)*(1+IF($A12="Life",assumed_rebate_life,assumed_rebate))^(U$5/365)-1)*100) -> 3.15 | V12: =IF(VLOOKUP($B12, 'Sheet1 - Table (1)'!$C$4:$AK$996, 'Adj Sheet1 - Table (1)'!V$2, FALSE)="", "", ((1+VLOOKUP($B12, 'Sheet1 - Table (1)'!$C$4:$AK$996, 'Adj Sheet1 - Table (1)'!V$2, FALSE)/100)*(1+IF($A12="Life",assumed_rebate_life,assumed_rebate))^(V$5/365)-1)*100) -> 1.96 | W12: =IF(VLOOKUP($B12, 'Sheet1 - Table (1)'!$C$4:$AK$996, 'Adj Sheet1 - Table (1)'!W$2, FALSE)="", "", ((1+VLOOKUP($B12, 'Sheet1 - Table (1)'!$C$4:$AK$996, 'Adj Sheet1 - Table (1)'!W$2, FALSE)/100)*(1+IF($A12="Life",assumed_rebate_life,assumed_rebate))^(W$5/365)-1)*100) -> 0.8 | X12: =IF(VLOOKUP($B12, 'Sheet1 - Table (1)'!$C$4:$AK$996, 'Adj Sheet1 - Table (1)'!X$2, FALSE)="", "", ((1+VLOOKUP($B12, 'Sheet1 - Table (1)'!$C$4:$AK$996, 'Adj Sheet1 - Table (1)'!X$2, FALSE)/100)*(1+IF($A12="Life",assumed_rebate_life,assumed_rebate))^(X$5/365)-1)*100) -> 0.44 | Y12: =IF(VLOOKUP($B12, 'Sheet1 - Table (1)'!$C$4:$AK$996, 'Adj Sheet1 - Table (1)'!Y$2, FALSE)="", "", ((1+VLOOKUP($B12, 'Sheet1 - Table (1)'!$C$4:$AK$996, 'Adj Sheet1 - Table (1)'!Y$2, FALSE)/100)*(1+IF($A12="Life",assumed_rebate_life,assumed_rebate))^(Y$5/365)-1)*100) -> 0.57 | Z12: =IF(VLOOKUP($B12, 'Sheet1 - Table (1)'!$C$4:$AK$996, 'Adj Sheet1 - Table (1)'!Z$2, FALSE)="", "", ((1+VLOOKUP($B12, 'Sheet1 - Table (1)'!$C$4:$AK$996, 'Adj Sheet1 - Table (1)'!Z$2, FALSE)/100)*(1+IF($A12="Life",assumed_rebate_life,assumed_rebate))^(Z$5/365)-1)*100) -> 2.62 | AA12: =IF(VLOOKUP($B12, 'Sheet1 - Table (1)'!$C$4:$AK$996, 'Adj Sheet1 - Table (1)'!AA$2, FALSE)="", "", ((1+VLOOKUP($B12, 'Sheet1 - Table (1)'!$C$4:$AK$996, 'Adj Sheet1 - Table (1)'!AA$2, FALSE)/100)*(1+IF($A12="Life",assumed_rebate_life,assumed_rebate))^(AA$5/365)-1)*100) -> 3.43 | AB12: =IF(VLOOKUP($B12, 'Sheet1 - Table (1)'!$C$4:$AK$996, 'Adj Sheet1 - Table (1)'!AB$2, FALSE)="", "", ((1+VLOOKUP($B12, 'Sheet1 - Table (1)'!$C$4:$AK$996, 'Adj Sheet1 - Table (1)'!AB$2, FALSE)/100)*(1+IF($A12="Life",assumed_rebate_life,assumed_rebate))^(AB$5/365)-1)*100) -> 3.39 | AC12: =IF(VLOOKUP($B12, 'Sheet1 - Table (1)'!$C$4:$AK$996, 'Adj Sheet1 - Table (1)'!AC$2, FALSE)="", "", ((1+VLOOKUP($B12, 'Sheet1 - Table (1)'!$C$4:$AK$996, 'Adj Sheet1 - Table (1)'!AC$2, FALSE)/100)*(1+IF($A12="Life",assumed_rebate_life,assumed_rebate))^(AC$5/365)-1)*100) -> 0.94 | AD12: =IF(VLOOKUP($B12, 'Sheet1 - Table (1)'!$C$4:$AK$996, 'Adj Sheet1 - Table (1)'!AD$2, FALSE)="", "", ((1+VLOOKUP($B12, 'Sheet1 - Table (1)'!$C$4:$AK$996, 'Adj Sheet1 - Table (1)'!AD$2, FALSE)/100)*(1+IF($A12="Life",assumed_rebate_life,assumed_rebate))^(AD$5/365)-1)*100) -> -0.55 | AE12: =IF(VLOOKUP($B12, 'Sheet1 - Table (1)'!$C$4:$AK$996, 'Adj Sheet1 - Table (1)'!AE$2, FALSE)="", "", ((1+VLOOKUP($B12, 'Sheet1 - Table (1)'!$C$4:$AK$996, 'Adj Sheet1 - Table (1)'!AE$2, FALSE)/100)*(1+IF($A12="Life",assumed_rebate_life,assumed_rebate))^(AE$5/365)-1)*100) -> 3.15 | AF12: =IF(VLOOKUP($B12, 'Sheet1 - Table (1)'!$C$4:$AK$996, 'Adj Sheet1 - Table (1)'!AF$2, FALSE)="", "", ((1+VLOOKUP($B12, 'Sheet1 - Table (1)'!$C$4:$AK$996, 'Adj Sheet1 - Table (1)'!AF$2, FALSE)/100)*(1+IF($A12="Life",assumed_rebate_life,assumed_rebate))^(AF$5/365)-1)*100) -> 1.96 | AG12: =IF(VLOOKUP($B12, 'Sheet1 - Table (1)'!$C$4:$AK$996, 'Adj Sheet1 - Table (1)'!AG$2, FALSE)="", "", ((1+VLOOKUP($B12, 'Sheet1 - Table (1)'!$C$4:$AK$996, 'Adj Sheet1 - Table (1)'!AG$2, FALSE)/100)*(1+IF($A12="Life",assumed_rebate_life,assumed_rebate))^(AG$5/365)-1)*100) -> 0.8 | AH12: =IF(VLOOKUP($B12, 'Sheet1 - Table (1)'!$C$4:$AK$996, 'Adj Sheet1 - Table (1)'!AH$2, FALSE)="", "", ((1+VLOOKUP($B12, 'Sheet1 - Table (1)'!$C$4:$AK$996, 'Adj Sheet1 - Table (1)'!AH$2, FALSE)/100)*(1+IF($A12="Life",assumed_rebate_life,assumed_rebate))^(AH$5/365)-1)*100) -> 0.44 | AI12: =IF(VLOOKUP($B12, 'Sheet1 - Table (1)'!$C$4:$AK$996, 'Adj Sheet1 - Table (1)'!AI$2, FALSE)="", "", ((1+VLOOKUP($B12, 'Sheet1 - Table (1)'!$C$4:$AK$996, 'Adj Sheet1 - Table (1)'!AI$2, FALSE)/100)*(1+IF($A12="Life",assumed_rebate_life,assumed_rebate))^(AI$5/365)-1)*100) -> 0.5 | AJ12: =IF(VLOOKUP($B12, 'Sheet1 - Table (1)'!$C$4:$AK$996, 'Adj Sheet1 - Table (1)'!AJ$2, FALSE)="", "", ((1+VLOOKUP($B12, 'Sheet1 - Table (1)'!$C$4:$AK$996, 'Adj Sheet1 - Table (1)'!AJ$2, FALSE)/100)*(1+IF($A12="Life",assumed_rebate_life,assumed_rebate))^(AJ$5/365)-1)*100) -> 0.38
A13: Life | B13: ='Sheet1 - Table (1)'!C9 -> 19074011 | C13: =_xlfn.XLOOKUP($B13,'Sheet1 - Table (1)'!$C$7:$C$1048576,'Sheet1 - Table (1)'!$D$7:$D$1048576,"N/A") -> ABI UK - Europe ex UK Equities-Life | D13: =IF(VLOOKUP($B13, 'Sheet1 - Table (1)'!$C$4:$AK$996, 'Adj Sheet1 - Table (1)'!D$2, FALSE)="", "", VLOOKUP($B13, 'Sheet1 - Table (1)'!$C$4:$AK$996, 'Adj Sheet1 - Table (1)'!D$2, FALSE)) -> 9.30089 | E13: =IF(VLOOKUP($B13, 'Sheet1 - Table (1)'!$C$4:$AK$996, 'Adj Sheet1 - Table (1)'!E$2, FALSE)="", "", ((1+VLOOKUP($B13, 'Sheet1 - Table (1)'!$C$4:$AK$996, 'Adj Sheet1 - Table (1)'!E$2, FALSE)/100)*(1+IF($A13="Life",assumed_rebate_life,assumed_rebate))^(E$5/365)-1)*100) -> -4.34 | F13: =IF(VLOOKUP($B13, 'Sheet1 - Table (1)'!$C$4:$AK$996, 'Adj Sheet1 - Table (1)'!F$2, FALSE)="", "", ((1+VLOOKUP($B13, 'Sheet1 - Table (1)'!$C$4:$AK$996, 'Adj Sheet1 - Table (1)'!F$2, FALSE)/100)*(1+IF($A13="Life",assumed_rebate_life,assumed_rebate))^(F$5/365)-1)*100) -> 7.42 | G13: =IF(VLOOKUP($B13, 'Sheet1 - Table (1)'!$C$4:$AK$996, 'Adj Sheet1 - Table (1)'!G$2, FALSE)="", "", ((1+VLOOKUP($B13, 'Sheet1 - Table (1)'!$C$4:$AK$996, 'Adj Sheet1 - Table (1)'!G$2, FALSE)/100)*(1+IF($A13="Life",assumed_rebate_life,assumed_rebate))^(G$5/365)-1)*100) -> 0.14 | H13: =IF(VLOOKUP($B13, 'Sheet1 - Table (1)'!$C$4:$AK$996, 'Adj Sheet1 - Table (1)'!H$2, FALSE)="", "", ((1+VLOOKUP($B13, 'Sheet1 - Table (1)'!$C$4:$AK$996, 'Adj Sheet1 - Table (1)'!H$2, FALSE)/100)*(1+IF($A13="Life",assumed_rebate_life,assumed_rebate))^(H$5/365)-1)*100) -> 10.62 | I13: =IF(VLOOKUP($B13, 'Sheet1 - Table (1)'!$C$4:$AK$996, 'Adj Sheet1 - Table (1)'!I$2, FALSE)="", "", ((1+VLOOKUP($B13, 'Sheet1 - Table (1)'!$C$4:$AK$996, 'Adj Sheet1 - Table (1)'!I$2, FALSE)/100)*(1+IF($A13="Life",assumed_rebate_life,assumed_rebate))^(I$5/365)-1)*100) -> 4.69 | J13: =IF(VLOOKUP($B13, 'Sheet1 - Table (1)'!$C$4:$AK$996, 'Adj Sheet1 - Table (1)'!J$2, FALSE)="", "", ((1+VLOOKUP($B13, 'Sheet1 - Table (1)'!$C$4:$AK$996, 'Adj Sheet1 - Table (1)'!J$2, FALSE)/100)*(1+IF($A13="Life",assumed_rebate_life,assumed_rebate))^(J$5/365)-1)*100) -> 3.53 | K13: =IF(VLOOKUP($B13, 'Sheet1 - Table (1)'!$C$4:$AK$996, 'Adj Sheet1 - Table (1)'!K$2, FALSE)="", "", ((1+VLOOKUP($B13, 'Sheet1 - Table (1)'!$C$4:$AK$996, 'Adj Sheet1 - Table (1)'!K$2, FALSE)/100)*(1+IF($A13="Life",assumed_rebate_life,assumed_rebate))^(K$5/365)-1)*100) -> 5.97 | L13: =IF(VLOOKUP($B13, 'Sheet1 - Table (1)'!$C$4:$AK$996, 'Adj Sheet1 - Table (1)'!L$2, FALSE)="", "", ((1+VLOOKUP($B13, 'Sheet1 - Table (1)'!$C$4:$AK$996, 'Adj Sheet1 - Table (1)'!L$2, FALSE)/100)*(1+IF($A13="Life",assumed_rebate_life,assumed_rebate))^(L$5/365)-1)*100) -> 5.22 | M13: =IF(VLOOKUP($B13, 'Sheet1 - Table (1)'!$C$4:$AK$996, 'Adj Sheet1 - Table (1)'!M$2, FALSE)="", "", ((1+VLOOKUP($B13, 'Sheet1 - Table (1)'!$C$4:$AK$996, 'Adj Sheet1 - Table (1)'!M$2, FALSE)/100)*(1+IF($A13="Life",assumed_rebate_life,assumed_rebate))^(M$5/365)-1)*100) -> 6.89 | N13: =IF(VLOOKUP($B13, 'Sheet1 - Table (1)'!$C$4:$AK$996, 'Adj Sheet1 - Table (1)'!N$2, FALSE)="", "", ((1+VLOOKUP($B13, 'Sheet1 - Table (1)'!$C$4:$AK$996, 'Adj Sheet1 - Table (1)'!N$2, FALSE)/100)*(1+IF($A13="Life",assumed_rebate_life,assumed_rebate))^(N$5/365)-1)*100) -> 6.42 | O13: =IF(VLOOKUP($B13, 'Sheet1 - Table (1)'!$C$4:$AK$996, 'Adj Sheet1 - Table (1)'!O$2, FALSE)="", "", ((1+VLOOKUP($B13, 'Sheet1 - Table (1)'!$C$4:$AK$996, 'Adj Sheet1 - Table (1)'!O$2, FALSE)/100)*(1+IF($A13="Life",assumed_rebate_life,assumed_rebate))^(O$5/365)-1)*100) -> -4.73 | P13: =IF(VLOOKUP($B13, 'Sheet1 - Table (1)'!$C$4:$AK$996, 'Adj Sheet1 - Table (1)'!P$2, FALSE)="", "", ((1+VLOOKUP($B13, 'Sheet1 - Table (1)'!$C$4:$AK$996, 'Adj Sheet1 - Table (1)'!P$2, FALSE)/100)*(1+IF($A13="Life",assumed_rebate_life,assumed_rebate))^(P$5/365)-1)*100) -> 5.37 | Q13: =IF(VLOOKUP($B13, 'Sheet1 - Table (1)'!$C$4:$AK$996, 'Adj Sheet1 - Table (1)'!Q$2, FALSE)="", "", ((1+VLOOKUP($B13, 'Sheet1 - Table (1)'!$C$4:$AK$996, 'Adj Sheet1 - Table (1)'!Q$2, FALSE)/100)*(1+IF($A13="Life",assumed_rebate_life,assumed_rebate))^(Q$5/365)-1)*100) -> 1.41 | R13: =IF(VLOOKUP($B13, 'Sheet1 - Table (1)'!$C$4:$AK$996, 'Adj Sheet1 - Table (1)'!R$2, FALSE)="", "", ((1+VLOOKUP($B13, 'Sheet1 - Table (1)'!$C$4:$AK$996, 'Adj Sheet1 - Table (1)'!R$2, FALSE)/100)*(1+IF($A13="Life",assumed_rebate_life,assumed_rebate))^(R$5/365)-1)*100) -> 11.2 | S13: =IF(VLOOKUP($B13, 'Sheet1 - Table (1)'!$C$4:$AK$996, 'Adj Sheet1 - Table (1)'!S$2, FALSE)="", "", ((1+VLOOKUP($B13, 'Sheet1 - Table (1)'!$C$4:$AK$996, 'Adj Sheet1 - Table (1)'!S$2, FALSE)/100)*(1+IF($A13="Life",assumed_rebate_life,assumed_rebate))^(S$5/365)-1)*100) -> 3.92 | T13: =IF(VLOOKUP($B13, 'Sheet1 - Table (1)'!$C$4:$AK$996, 'Adj Sheet1 - Table (1)'!T$2, FALSE)="", "", ((1+VLOOKUP($B13, 'Sheet1 - Table (1)'!$C$4:$AK$996, 'Adj Sheet1 - Table (1)'!T$2, FALSE)/100)*(1+IF($A13="Life",assumed_rebate_life,assumed_rebate))^(T$5/365)-1)*100) -> 4.25 | U13: =IF(VLOOKUP($B13, 'Sheet1 - Table (1)'!$C$4:$AK$996, 'Adj Sheet1 - Table (1)'!U$2, FALSE)="", "", ((1+VLOOKUP($B13, 'Sheet1 - Table (1)'!$C$4:$AK$996, 'Adj Sheet1 - Table (1)'!U$2, FALSE)/100)*(1+IF($A13="Life",assumed_rebate_life,assumed_rebate))^(U$5/365)-1)*100) -> 5.91 | V13: =IF(VLOOKUP($B13, 'Sheet1 - Table (1)'!$C$4:$AK$996, 'Adj Sheet1 - Table (1)'!V$2, FALSE)="", "", ((1+VLOOKUP($B13, 'Sheet1 - Table (1)'!$C$4:$AK$996, 'Adj Sheet1 - Table (1)'!V$2, FALSE)/100)*(1+IF($A13="Life",assumed_rebate_life,assumed_rebate))^(V$5/365)-1)*100) -> 5.18 | W13: =IF(VLOOKUP($B13, 'Sheet1 - Table (1)'!$C$4:$AK$996, 'Adj Sheet1 - Table (1)'!W$2, FALSE)="", "", ((1+VLOOKUP($B13, 'Sheet1 - Table (1)'!$C$4:$AK$996, 'Adj Sheet1 - Table (1)'!W$2, FALSE)/100)*(1+IF($A13="Life",assumed_rebate_life,assumed_rebate))^(W$5/365)-1)*100) -> 6.88 | X13: =IF(VLOOKUP($B13, 'Sheet1 - Table (1)'!$C$4:$AK$996, 'Adj Sheet1 - Table (1)'!X$2, FALSE)="", "", ((1+VLOOKUP($B13, 'Sheet1 - Table (1)'!$C$4:$AK$996, 'Adj Sheet1 - Table (1)'!X$2, FALSE)/100)*(1+IF($A13="Life",assumed_rebate_life,assumed_rebate))^(X$5/365)-1)*100) -> 6.41 | Y13: =IF(VLOOKUP($B13, 'Sheet1 - Table (1)'!$C$4:$AK$996, 'Adj Sheet1 - Table (1)'!Y$2, FALSE)="", "", ((1+VLOOKUP($B13, 'Sheet1 - Table (1)'!$C$4:$AK$996, 'Adj Sheet1 - Table (1)'!Y$2, FALSE)/100)*(1+IF($A13="Life",assumed_rebate_life,assumed_rebate))^(Y$5/365)-1)*100) -> -4.35 | Z13: =IF(VLOOKUP($B13, 'Sheet1 - Table (1)'!$C$4:$AK$996, 'Adj Sheet1 - Table (1)'!Z$2, FALSE)="", "", ((1+VLOOKUP($B13, 'Sheet1 - Table (1)'!$C$4:$AK$996, 'Adj Sheet1 - Table (1)'!Z$2, FALSE)/100)*(1+IF($A13="Life",assumed_rebate_life,assumed_rebate))^(Z$5/365)-1)*100) -> 4.98 | AA13: =IF(VLOOKUP($B13, 'Sheet1 - Table (1)'!$C$4:$AK$996, 'Adj Sheet1 - Table (1)'!AA$2, FALSE)="", "", ((1+VLOOKUP($B13, 'Sheet1 - Table (1)'!$C$4:$AK$996, 'Adj Sheet1 - Table (1)'!AA$2, FALSE)/100)*(1+IF($A13="Life",assumed_rebate_life,assumed_rebate))^(AA$5/365)-1)*100) -> 1.93 | AB13: =IF(VLOOKUP($B13, 'Sheet1 - Table (1)'!$C$4:$AK$996, 'Adj Sheet1 - Table (1)'!AB$2, FALSE)="", "", ((1+VLOOKUP($B13, 'Sheet1 - Table (1)'!$C$4:$AK$996, 'Adj Sheet1 - Table (1)'!AB$2, FALSE)/100)*(1+IF($A13="Life",assumed_rebate_life,assumed_rebate))^(AB$5/365)-1)*100) -> 12.74 | AC13: =IF(VLOOKUP($B13, 'Sheet1 - Table (1)'!$C$4:$AK$996, 'Adj Sheet1 - Table (1)'!AC$2, FALSE)="", "", ((1+VLOOKUP($B13, 'Sheet1 - Table (1)'!$C$4:$AK$996, 'Adj Sheet1 - Table (1)'!AC$2, FALSE)/100)*(1+IF($A13="Life",assumed_rebate_life,assumed_rebate))^(AC$5/365)-1)*100) -> 3.37 | AD13: =IF(VLOOKUP($B13, 'Sheet1 - Table (1)'!$C$4:$AK$996, 'Adj Sheet1 - Table (1)'!AD$2, FALSE)="", "", ((1+VLOOKUP($B13, 'Sheet1 - Table (1)'!$C$4:$AK$996, 'Adj Sheet1 - Table (1)'!AD$2, FALSE)/100)*(1+IF($A13="Life",assumed_rebate_life,assumed_rebate))^(AD$5/365)-1)*100) -> 3.75 | AE13: =IF(VLOOKUP($B13, 'Sheet1 - Table (1)'!$C$4:$AK$996, 'Adj Sheet1 - Table (1)'!AE$2, FALSE)="", "", ((1+VLOOKUP($B13, 'Sheet1 - Table (1)'!$C$4:$AK$996, 'Adj Sheet1 - Table (1)'!AE$2, FALSE)/100)*(1+IF($A13="Life",assumed_rebate_life,assumed_rebate))^(AE$5/365)-1)*100) -> 6.46 | AF13: =IF(VLOOKUP($B13, 'Sheet1 - Table (1)'!$C$4:$AK$996, 'Adj Sheet1 - Table (1)'!AF$2, FALSE)="", "", ((1+VLOOKUP($B13, 'Sheet1 - Table (1)'!$C$4:$AK$996, 'Adj Sheet1 - Table (1)'!AF$2, FALSE)/100)*(1+IF($A13="Life",assumed_rebate_life,assumed_rebate))^(AF$5/365)-1)*100) -> 5.29 | AG13: =IF(VLOOKUP($B13, 'Sheet1 - Table (1)'!$C$4:$AK$996, 'Adj Sheet1 - Table (1)'!AG$2, FALSE)="", "", ((1+VLOOKUP($B13, 'Sheet1 - Table (1)'!$C$4:$AK$996, 'Adj Sheet1 - Table (1)'!AG$2, FALSE)/100)*(1+IF($A13="Life",assumed_rebate_life,assumed_rebate))^(AG$5/365)-1)*100) -> 6.96 | AH13: =IF(VLOOKUP($B13, 'Sheet1 - Table (1)'!$C$4:$AK$996, 'Adj Sheet1 - Table (1)'!AH$2, FALSE)="", "", ((1+VLOOKUP($B13, 'Sheet1 - Table (1)'!$C$4:$AK$996, 'Adj Sheet1 - Table (1)'!AH$2, FALSE)/100)*(1+IF($A13="Life",assumed_rebate_life,assumed_rebate))^(AH$5/365)-1)*100) -> 6.45 | AI13: =IF(VLOOKUP($B13, 'Sheet1 - Table (1)'!$C$4:$AK$996, 'Adj Sheet1 - Table (1)'!AI$2, FALSE)="", "", ((1+VLOOKUP($B13, 'Sheet1 - Table (1)'!$C$4:$AK$996, 'Adj Sheet1 - Table (1)'!AI$2, FALSE)/100)*(1+IF($A13="Life",assumed_rebate_life,assumed_rebate))^(AI$5/365)-1)*100) -> 7.93 | AJ13: =IF(VLOOKUP($B13, 'Sheet1 - Table (1)'!$C$4:$AK$996, 'Adj Sheet1 - Table (1)'!AJ$2, FALSE)="", "", ((1+VLOOKUP($B13, 'Sheet1 - Table (1)'!$C$4:$AK$996, 'Adj Sheet1 - Table (1)'!AJ$2, FALSE)/100)*(1+IF($A13="Life",assumed_rebate_life,assumed_rebate))^(AJ$5/365)-1)*100) -> 7.53
A14: Life | B14: ='Sheet1 - Table (1)'!C10 -> 19074001 | C14: =_xlfn.XLOOKUP($B14,'Sheet1 - Table (1)'!$C$7:$C$1048576,'Sheet1 - Table (1)'!$D$7:$D$1048576,"N/A") -> ABI UK - Mixed Investment 0%-35% Shares-Life | D14: =IF(VLOOKUP($B14, 'Sheet1 - Table (1)'!$C$4:$AK$996, 'Adj Sheet1 - Table (1)'!D$2, FALSE)="", "", VLOOKUP($B14, 'Sheet1 - Table (1)'!$C$4:$AK$996, 'Adj Sheet1 - Table (1)'!D$2, FALSE)) -> 4.03583 | E14: =IF(VLOOKUP($B14, 'Sheet1 - Table (1)'!$C$4:$AK$996, 'Adj Sheet1 - Table (1)'!E$2, FALSE)="", "", ((1+VLOOKUP($B14, 'Sheet1 - Table (1)'!$C$4:$AK$996, 'Adj Sheet1 - Table (1)'!E$2, FALSE)/100)*(1+IF($A14="Life",assumed_rebate_life,assumed_rebate))^(E$5/365)-1)*100) -> -1.06 | F14: =IF(VLOOKUP($B14, 'Sheet1 - Table (1)'!$C$4:$AK$996, 'Adj Sheet1 - Table (1)'!F$2, FALSE)="", "", ((1+VLOOKUP($B14, 'Sheet1 - Table (1)'!$C$4:$AK$996, 'Adj Sheet1 - Table (1)'!F$2, FALSE)/100)*(1+IF($A14="Life",assumed_rebate_life,assumed_rebate))^(F$5/365)-1)*100) -> 4.58 | G14: =IF(VLOOKUP($B14, 'Sheet1 - Table (1)'!$C$4:$AK$996, 'Adj Sheet1 - Table (1)'!G$2, FALSE)="", "", ((1+VLOOKUP($B14, 'Sheet1 - Table (1)'!$C$4:$AK$996, 'Adj Sheet1 - Table (1)'!G$2, FALSE)/100)*(1+IF($A14="Life",assumed_rebate_life,assumed_rebate))^(G$5/365)-1)*100) -> 2.24 | H14: =IF(VLOOKUP($B14, 'Sheet1 - Table (1)'!$C$4:$AK$996, 'Adj Sheet1 - Table (1)'!H$2, FALSE)="", "", ((1+VLOOKUP($B14, 'Sheet1 - Table (1)'!$C$4:$AK$996, 'Adj Sheet1 - Table (1)'!H$2, FALSE)/100)*(1+IF($A14="Life",assumed_rebate_life,assumed_rebate))^(H$5/365)-1)*100) -> 3.71 | I14: =IF(VLOOKUP($B14, 'Sheet1 - Table (1)'!$C$4:$AK$996, 'Adj Sheet1 - Table (1)'!I$2, FALSE)="", "", ((1+VLOOKUP($B14, 'Sheet1 - Table (1)'!$C$4:$AK$996, 'Adj Sheet1 - Table (1)'!I$2, FALSE)/100)*(1+IF($A14="Life",assumed_rebate_life,assumed_rebate))^(I$5/365)-1)*100) -> -6.41 | J14: =IF(VLOOKUP($B14, 'Sheet1 - Table (1)'!$C$4:$AK$996, 'Adj Sheet1 - Table (1)'!J$2, FALSE)="", "", ((1+VLOOKUP($B14, 'Sheet1 - Table (1)'!$C$4:$AK$996, 'Adj Sheet1 - Table (1)'!J$2, FALSE)/100)*(1+IF($A14="Life",assumed_rebate_life,assumed_rebate))^(J$5/365)-1)*100) -> -1.25 | K14: =IF(VLOOKUP($B14, 'Sheet1 - Table (1)'!$C$4:$AK$996, 'Adj Sheet1 - Table (1)'!K$2, FALSE)="", "", ((1+VLOOKUP($B14, 'Sheet1 - Table (1)'!$C$4:$AK$996, 'Adj Sheet1 - Table (1)'!K$2, FALSE)/100)*(1+IF($A14="Life",assumed_rebate_life,assumed_rebate))^(K$5/365)-1)*100) -> 3.51 | L14: =IF(VLOOKUP($B14, 'Sheet1 - Table (1)'!$C$4:$AK$996, 'Adj Sheet1 - Table (1)'!L$2, FALSE)="", "", ((1+VLOOKUP($B14, 'Sheet1 - Table (1)'!$C$4:$AK$996, 'Adj Sheet1 - Table (1)'!L$2, FALSE)/100)*(1+IF($A14="Life",assumed_rebate_life,assumed_rebate))^(L$5/365)-1)*100) -> 0.49 | M14: =IF(VLOOKUP($B14, 'Sheet1 - Table (1)'!$C$4:$AK$996, 'Adj Sheet1 - Table (1)'!M$2, FALSE)="", "", ((1+VLOOKUP($B14, 'Sheet1 - Table (1)'!$C$4:$AK$996, 'Adj Sheet1 - Table (1)'!M$2, FALSE)/100)*(1+IF($A14="Life",assumed_rebate_life,assumed_rebate))^(M$5/365)-1)*100) -> 1.59 | N14: =IF(VLOOKUP($B14, 'Sheet1 - Table (1)'!$C$4:$AK$996, 'Adj Sheet1 - Table (1)'!N$2, FALSE)="", "", ((1+VLOOKUP($B14, 'Sheet1 - Table (1)'!$C$4:$AK$996, 'Adj Sheet1 - Table (1)'!N$2, FALSE)/100)*(1+IF($A14="Life",assumed_rebate_life,assumed_rebate))^(N$5/365)-1)*100) -> 2.52 | O14: =IF(VLOOKUP($B14, 'Sheet1 - Table (1)'!$C$4:$AK$996, 'Adj Sheet1 - Table (1)'!O$2, FALSE)="", "", ((1+VLOOKUP($B14, 'Sheet1 - Table (1)'!$C$4:$AK$996, 'Adj Sheet1 - Table (1)'!O$2, FALSE)/100)*(1+IF($A14="Life",assumed_rebate_life,assumed_rebate))^(O$5/365)-1)*100) -> -1.21 | P14: =IF(VLOOKUP($B14, 'Sheet1 - Table (1)'!$C$4:$AK$996, 'Adj Sheet1 - Table (1)'!P$2, FALSE)="", "", ((1+VLOOKUP($B14, 'Sheet1 - Table (1)'!$C$4:$AK$996, 'Adj Sheet1 - Table (1)'!P$2, FALSE)/100)*(1+IF($A14="Life",assumed_rebate_life,assumed_rebate))^(P$5/365)-1)*100) -> 4.29 | Q14: =IF(VLOOKUP($B14, 'Sheet1 - Table (1)'!$C$4:$AK$996, 'Adj Sheet1 - Table (1)'!Q$2, FALSE)="", "", ((1+VLOOKUP($B14, 'Sheet1 - Table (1)'!$C$4:$AK$996, 'Adj Sheet1 - Table (1)'!Q$2, FALSE)/100)*(1+IF($A14="Life",assumed_rebate_life,assumed_rebate))^(Q$5/365)-1)*100) -> 2.32 | R14: =IF(VLOOKUP($B14, 'Sheet1 - Table (1)'!$C$4:$AK$996, 'Adj Sheet1 - Table (1)'!R$2, FALSE)="", "", ((1+VLOOKUP($B14, 'Sheet1 - Table (1)'!$C$4:$AK$996, 'Adj Sheet1 - Table (1)'!R$2, FALSE)/100)*(1+IF($A14="Life",assumed_rebate_life,assumed_rebate))^(R$5/365)-1)*100) -> 3.7 | S14: =IF(VLOOKUP($B14, 'Sheet1 - Table (1)'!$C$4:$AK$996, 'Adj Sheet1 - Table (1)'!S$2, FALSE)="", "", ((1+VLOOKUP($B14, 'Sheet1 - Table (1)'!$C$4:$AK$996, 'Adj Sheet1 - Table (1)'!S$2, FALSE)/100)*(1+IF($A14="Life",assumed_rebate_life,assumed_rebate))^(S$5/365)-1)*100) -> -6.23 | T14: =IF(VLOOKUP($B14, 'Sheet1 - Table (1)'!$C$4:$AK$996, 'Adj Sheet1 - Table (1)'!T$2, FALSE)="", "", ((1+VLOOKUP($B14, 'Sheet1 - Table (1)'!$C$4:$AK$996, 'Adj Sheet1 - Table (1)'!T$2, FALSE)/100)*(1+IF($A14="Life",assumed_rebate_life,assumed_rebate))^(T$5/365)-1)*100) -> -1.44 | U14: =IF(VLOOKUP($B14, 'Sheet1 - Table (1)'!$C$4:$AK$996, 'Adj Sheet1 - Table (1)'!U$2, FALSE)="", "", ((1+VLOOKUP($B14, 'Sheet1 - Table (1)'!$C$4:$AK$996, 'Adj Sheet1 - Table (1)'!U$2, FALSE)/100)*(1+IF($A14="Life",assumed_rebate_life,assumed_rebate))^(U$5/365)-1)*100) -> 3.43 | V14: =IF(VLOOKUP($B14, 'Sheet1 - Table (1)'!$C$4:$AK$996, 'Adj Sheet1 - Table (1)'!V$2, FALSE)="", "", ((1+VLOOKUP($B14, 'Sheet1 - Table (1)'!$C$4:$AK$996, 'Adj Sheet1 - Table (1)'!V$2, FALSE)/100)*(1+IF($A14="Life",assumed_rebate_life,assumed_rebate))^(V$5/365)-1)*100) -> 0.45 | W14: =IF(VLOOKUP($B14, 'Sheet1 - Table (1)'!$C$4:$AK$996, 'Adj Sheet1 - Table (1)'!W$2, FALSE)="", "", ((1+VLOOKUP($B14, 'Sheet1 - Table (1)'!$C$4:$AK$996, 'Adj Sheet1 - Table (1)'!W$2, FALSE)/100)*(1+IF($A14="Life",assumed_rebate_life,assumed_rebate))^(W$5/365)-1)*100) -> 1.58 | X14: =IF(VLOOKUP($B14, 'Sheet1 - Table (1)'!$C$4:$AK$996, 'Adj Sheet1 - Table (1)'!X$2, FALSE)="", "", ((1+VLOOKUP($B14, 'Sheet1 - Table (1)'!$C$4:$AK$996, 'Adj Sheet1 - Table (1)'!X$2, FALSE)/100)*(1+IF($A14="Life",assumed_rebate_life,assumed_rebate))^(X$5/365)-1)*100) -> 2.51 | Y14: =IF(VLOOKUP($B14, 'Sheet1 - Table (1)'!$C$4:$AK$996, 'Adj Sheet1 - Table (1)'!Y$2, FALSE)="", "", ((1+VLOOKUP($B14, 'Sheet1 - Table (1)'!$C$4:$AK$996, 'Adj Sheet1 - Table (1)'!Y$2, FALSE)/100)*(1+IF($A14="Life",assumed_rebate_life,assumed_rebate))^(Y$5/365)-1)*100) -> -1.07 | Z14: =IF(VLOOKUP($B14, 'Sheet1 - Table (1)'!$C$4:$AK$996, 'Adj Sheet1 - Table (1)'!Z$2, FALSE)="", "", ((1+VLOOKUP($B14, 'Sheet1 - Table (1)'!$C$4:$AK$996, 'Adj Sheet1 - Table (1)'!Z$2, FALSE)/100)*(1+IF($A14="Life",assumed_rebate_life,assumed_rebate))^(Z$5/365)-1)*100) -> 4.33 | AA14: =IF(VLOOKUP($B14, 'Sheet1 - Table (1)'!$C$4:$AK$996, 'Adj Sheet1 - Table (1)'!AA$2, FALSE)="", "", ((1+VLOOKUP($B14, 'Sheet1 - Table (1)'!$C$4:$AK$996, 'Adj Sheet1 - Table (1)'!AA$2, FALSE)/100)*(1+IF($A14="Life",assumed_rebate_life,assumed_rebate))^(AA$5/365)-1)*100) -> 2.42 | AB14: =IF(VLOOKUP($B14, 'Sheet1 - Table (1)'!$C$4:$AK$996, 'Adj Sheet1 - Table (1)'!AB$2, FALSE)="", "", ((1+VLOOKUP($B14, 'Sheet1 - Table (1)'!$C$4:$AK$996, 'Adj Sheet1 - Table (1)'!AB$2, FALSE)/100)*(1+IF($A14="Life",assumed_rebate_life,assumed_rebate))^(AB$5/365)-1)*100) -> 3.9 | AC14: =IF(VLOOKUP($B14, 'Sheet1 - Table (1)'!$C$4:$AK$996, 'Adj Sheet1 - Table (1)'!AC$2, FALSE)="", "", ((1+VLOOKUP($B14, 'Sheet1 - Table (1)'!$C$4:$AK$996, 'Adj Sheet1 - Table (1)'!AC$2, FALSE)/100)*(1+IF($A14="Life",assumed_rebate_life,assumed_rebate))^(AC$5/365)-1)*100) -> -6.26 | AD14: =IF(VLOOKUP($B14, 'Sheet1 - Table (1)'!$C$4:$AK$996, 'Adj Sheet1 - Table (1)'!AD$2, FALSE)="", "", ((1+VLOOKUP($B14, 'Sheet1 - Table (1)'!$C$4:$AK$996, 'Adj Sheet1 - Table (1)'!AD$2, FALSE)/100)*(1+IF($A14="Life",assumed_rebate_life,assumed_rebate))^(AD$5/365)-1)*100) -> -1.8 | AE14: =IF(VLOOKUP($B14, 'Sheet1 - Table (1)'!$C$4:$AK$996, 'Adj Sheet1 - Table (1)'!AE$2, FALSE)="", "", ((1+VLOOKUP($B14, 'Sheet1 - Table (1)'!$C$4:$AK$996, 'Adj Sheet1 - Table (1)'!AE$2, FALSE)/100)*(1+IF($A14="Life",assumed_rebate_life,assumed_rebate))^(AE$5/365)-1)*100) -> 3.55 | AF14: =IF(VLOOKUP($B14, 'Sheet1 - Table (1)'!$C$4:$AK$996, 'Adj Sheet1 - Table (1)'!AF$2, FALSE)="", "", ((1+VLOOKUP($B14, 'Sheet1 - Table (1)'!$C$4:$AK$996, 'Adj Sheet1 - Table (1)'!AF$2, FALSE)/100)*(1+IF($A14="Life",assumed_rebate_life,assumed_rebate))^(AF$5/365)-1)*100) -> 0.44 | AG14: =IF(VLOOKUP($B14, 'Sheet1 - Table (1)'!$C$4:$AK$996, 'Adj Sheet1 - Table (1)'!AG$2, FALSE)="", "", ((1+VLOOKUP($B14, 'Sheet1 - Table (1)'!$C$4:$AK$996, 'Adj Sheet1 - Table (1)'!AG$2, FALSE)/100)*(1+IF($A14="Life",assumed_rebate_life,assumed_rebate))^(AG$5/365)-1)*100) -> 1.6 | AH14: =IF(VLOOKUP($B14, 'Sheet1 - Table (1)'!$C$4:$AK$996, 'Adj Sheet1 - Table (1)'!AH$2, FALSE)="", "", ((1+VLOOKUP($B14, 'Sheet1 - Table (1)'!$C$4:$AK$996, 'Adj Sheet1 - Table (1)'!AH$2, FALSE)/100)*(1+IF($A14="Life",assumed_rebate_life,assumed_rebate))^(AH$5/365)-1)*100) -> 2.52 | AI14: =IF(VLOOKUP($B14, 'Sheet1 - Table (1)'!$C$4:$AK$996, 'Adj Sheet1 - Table (1)'!AI$2, FALSE)="", "", ((1+VLOOKUP($B14, 'Sheet1 - Table (1)'!$C$4:$AK$996, 'Adj Sheet1 - Table (1)'!AI$2, FALSE)/100)*(1+IF($A14="Life",assumed_rebate_life,assumed_rebate))^(AI$5/365)-1)*100) -> 2.24 | AJ14: =IF(VLOOKUP($B14, 'Sheet1 - Table (1)'!$C$4:$AK$996, 'Adj Sheet1 - Table (1)'!AJ$2, FALSE)="", "", ((1+VLOOKUP($B14, 'Sheet1 - Table (1)'!$C$4:$AK$996, 'Adj Sheet1 - Table (1)'!AJ$2, FALSE)/100)*(1+IF($A14="Life",assumed_rebate_life,assumed_rebate))^(AJ$5/365)-1)*100) -> 3.1
A15: Life | B15: ='Sheet1 - Table (1)'!C11 -> 19074003 | C15: =_xlfn.XLOOKUP($B15,'Sheet1 - Table (1)'!$C$7:$C$1048576,'Sheet1 - Table (1)'!$D$7:$D$1048576,"N/A") -> ABI UK - Mixed Investment 40%-85% Shares-Life | D15: =IF(VLOOKUP($B15, 'Sheet1 - Table (1)'!$C$4:$AK$996, 'Adj Sheet1 - Table (1)'!D$2, FALSE)="", "", VLOOKUP($B15, 'Sheet1 - Table (1)'!$C$4:$AK$996, 'Adj Sheet1 - Table (1)'!D$2, FALSE)) -> 6.46222 | E15: =IF(VLOOKUP($B15, 'Sheet1 - Table (1)'!$C$4:$AK$996, 'Adj Sheet1 - Table (1)'!E$2, FALSE)="", "", ((1+VLOOKUP($B15, 'Sheet1 - Table (1)'!$C$4:$AK$996, 'Adj Sheet1 - Table (1)'!E$2, FALSE)/100)*(1+IF($A15="Life",assumed_rebate_life,assumed_rebate))^(E$5/365)-1)*100) -> -1.5 | F15: =IF(VLOOKUP($B15, 'Sheet1 - Table (1)'!$C$4:$AK$996, 'Adj Sheet1 - Table (1)'!F$2, FALSE)="", "", ((1+VLOOKUP($B15, 'Sheet1 - Table (1)'!$C$4:$AK$996, 'Adj Sheet1 - Table (1)'!F$2, FALSE)/100)*(1+IF($A15="Life",assumed_rebate_life,assumed_rebate))^(F$5/365)-1)*100) -> 9.5 | G15: =IF(VLOOKUP($B15, 'Sheet1 - Table (1)'!$C$4:$AK$996, 'Adj Sheet1 - Table (1)'!G$2, FALSE)="", "", ((1+VLOOKUP($B15, 'Sheet1 - Table (1)'!$C$4:$AK$996, 'Adj Sheet1 - Table (1)'!G$2, FALSE)/100)*(1+IF($A15="Life",assumed_rebate_life,assumed_rebate))^(G$5/365)-1)*100) -> 3.07 | H15: =IF(VLOOKUP($B15, 'Sheet1 - Table (1)'!$C$4:$AK$996, 'Adj Sheet1 - Table (1)'!H$2, FALSE)="", "", ((1+VLOOKUP($B15, 'Sheet1 - Table (1)'!$C$4:$AK$996, 'Adj Sheet1 - Table (1)'!H$2, FALSE)/100)*(1+IF($A15="Life",assumed_rebate_life,assumed_rebate))^(H$5/365)-1)*100) -> 8.29 | I15: =IF(VLOOKUP($B15, 'Sheet1 - Table (1)'!$C$4:$AK$996, 'Adj Sheet1 - Table (1)'!I$2, FALSE)="", "", ((1+VLOOKUP($B15, 'Sheet1 - Table (1)'!$C$4:$AK$996, 'Adj Sheet1 - Table (1)'!I$2, FALSE)/100)*(1+IF($A15="Life",assumed_rebate_life,assumed_rebate))^(I$5/365)-1)*100) -> -3.6 | J15: =IF(VLOOKUP($B15, 'Sheet1 - Table (1)'!$C$4:$AK$996, 'Adj Sheet1 - Table (1)'!J$2, FALSE)="", "", ((1+VLOOKUP($B15, 'Sheet1 - Table (1)'!$C$4:$AK$996, 'Adj Sheet1 - Table (1)'!J$2, FALSE)/100)*(1+IF($A15="Life",assumed_rebate_life,assumed_rebate))^(J$5/365)-1)*100) -> 4.32 | K15: =IF(VLOOKUP($B15, 'Sheet1 - Table (1)'!$C$4:$AK$996, 'Adj Sheet1 - Table (1)'!K$2, FALSE)="", "", ((1+VLOOKUP($B15, 'Sheet1 - Table (1)'!$C$4:$AK$996, 'Adj Sheet1 - Table (1)'!K$2, FALSE)/100)*(1+IF($A15="Life",assumed_rebate_life,assumed_rebate))^(K$5/365)-1)*100) -> 6.91 | L15: =IF(VLOOKUP($B15, 'Sheet1 - Table (1)'!$C$4:$AK$996, 'Adj Sheet1 - Table (1)'!L$2, FALSE)="", "", ((1+VLOOKUP($B15, 'Sheet1 - Table (1)'!$C$4:$AK$996, 'Adj Sheet1 - Table (1)'!L$2, FALSE)/100)*(1+IF($A15="Life",assumed_rebate_life,assumed_rebate))^(L$5/365)-1)*100) -> 4.21 | M15: =IF(VLOOKUP($B15, 'Sheet1 - Table (1)'!$C$4:$AK$996, 'Adj Sheet1 - Table (1)'!M$2, FALSE)="", "", ((1+VLOOKUP($B15, 'Sheet1 - Table (1)'!$C$4:$AK$996, 'Adj Sheet1 - Table (1)'!M$2, FALSE)/100)*(1+IF($A15="Life",assumed_rebate_life,assumed_rebate))^(M$5/365)-1)*100) -> 5.2 | N15: =IF(VLOOKUP($B15, 'Sheet1 - Table (1)'!$C$4:$AK$996, 'Adj Sheet1 - Table (1)'!N$2, FALSE)="", "", ((1+VLOOKUP($B15, 'Sheet1 - Table (1)'!$C$4:$AK$996, 'Adj Sheet1 - Table (1)'!N$2, FALSE)/100)*(1+IF($A15="Life",assumed_rebate_life,assumed_rebate))^(N$5/365)-1)*100) -> 5 | O15: =IF(VLOOKUP($B15, 'Sheet1 - Table (1)'!$C$4:$AK$996, 'Adj Sheet1 - Table (1)'!O$2, FALSE)="", "", ((1+VLOOKUP($B15, 'Sheet1 - Table (1)'!$C$4:$AK$996, 'Adj Sheet1 - Table (1)'!O$2, FALSE)/100)*(1+IF($A15="Life",assumed_rebate_life,assumed_rebate))^(O$5/365)-1)*100) -> -1.54 | P15: =IF(VLOOKUP($B15, 'Sheet1 - Table (1)'!$C$4:$AK$996, 'Adj Sheet1 - Table (1)'!P$2, FALSE)="", "", ((1+VLOOKUP($B15, 'Sheet1 - Table (1)'!$C$4:$AK$996, 'Adj Sheet1 - Table (1)'!P$2, FALSE)/100)*(1+IF($A15="Life",assumed_rebate_life,assumed_rebate))^(P$5/365)-1)*100) -> 8.54 | Q15: =IF(VLOOKUP($B15, 'Sheet1 - Table (1)'!$C$4:$AK$996, 'Adj Sheet1 - Table (1)'!Q$2, FALSE)="", "", ((1+VLOOKUP($B15, 'Sheet1 - Table (1)'!$C$4:$AK$996, 'Adj Sheet1 - Table (1)'!Q$2, FALSE)/100)*(1+IF($A15="Life",assumed_rebate_life,assumed_rebate))^(Q$5/365)-1)*100) -> 3.8 | R15: =IF(VLOOKUP($B15, 'Sheet1 - Table (1)'!$C$4:$AK$996, 'Adj Sheet1 - Table (1)'!R$2, FALSE)="", "", ((1+VLOOKUP($B15, 'Sheet1 - Table (1)'!$C$4:$AK$996, 'Adj Sheet1 - Table (1)'!R$2, FALSE)/100)*(1+IF($A15="Life",assumed_rebate_life,assumed_rebate))^(R$5/365)-1)*100) -> 8.59 | S15: =IF(VLOOKUP($B15, 'Sheet1 - Table (1)'!$C$4:$AK$996, 'Adj Sheet1 - Table (1)'!S$2, FALSE)="", "", ((1+VLOOKUP($B15, 'Sheet1 - Table (1)'!$C$4:$AK$996, 'Adj Sheet1 - Table (1)'!S$2, FALSE)/100)*(1+IF($A15="Life",assumed_rebate_life,assumed_rebate))^(S$5/365)-1)*100) -> -3.82 | T15: =IF(VLOOKUP($B15, 'Sheet1 - Table (1)'!$C$4:$AK$996, 'Adj Sheet1 - Table (1)'!T$2, FALSE)="", "", ((1+VLOOKUP($B15, 'Sheet1 - Table (1)'!$C$4:$AK$996, 'Adj Sheet1 - Table (1)'!T$2, FALSE)/100)*(1+IF($A15="Life",assumed_rebate_life,assumed_rebate))^(T$5/365)-1)*100) -> 4.32 | U15: =IF(VLOOKUP($B15, 'Sheet1 - Table (1)'!$C$4:$AK$996, 'Adj Sheet1 - Table (1)'!U$2, FALSE)="", "", ((1+VLOOKUP($B15, 'Sheet1 - Table (1)'!$C$4:$AK$996, 'Adj Sheet1 - Table (1)'!U$2, FALSE)/100)*(1+IF($A15="Life",assumed_rebate_life,assumed_rebate))^(U$5/365)-1)*100) -> 6.95 | V15: =IF(VLOOKUP($B15, 'Sheet1 - Table (1)'!$C$4:$AK$996, 'Adj Sheet1 - Table (1)'!V$2, FALSE)="", "", ((1+VLOOKUP($B15, 'Sheet1 - Table (1)'!$C$4:$AK$996, 'Adj Sheet1 - Table (1)'!V$2, FALSE)/100)*(1+IF($A15="Life",assumed_rebate_life,assumed_rebate))^(V$5/365)-1)*100) -> 4.18 | W15: =IF(VLOOKUP($B15, 'Sheet1 - Table (1)'!$C$4:$AK$996, 'Adj Sheet1 - Table (1)'!W$2, FALSE)="", "", ((1+VLOOKUP($B15, 'Sheet1 - Table (1)'!$C$4:$AK$996, 'Adj Sheet1 - Table (1)'!W$2, FALSE)/100)*(1+IF($A15="Life",assumed_rebate_life,assumed_rebate))^(W$5/365)-1)*100) -> 5.21 | X15: =IF(VLOOKUP($B15, 'Sheet1 - Table (1)'!$C$4:$AK$996, 'Adj Sheet1 - Table (1)'!X$2, FALSE)="", "", ((1+VLOOKUP($B15, 'Sheet1 - Table (1)'!$C$4:$AK$996, 'Adj Sheet1 - Table (1)'!X$2, FALSE)/100)*(1+IF($A15="Life",assumed_rebate_life,assumed_rebate))^(X$5/365)-1)*100) -> 5 | Y15: =IF(VLOOKUP($B15, 'Sheet1 - Table (1)'!$C$4:$AK$996, 'Adj Sheet1 - Table (1)'!Y$2, FALSE)="", "", ((1+VLOOKUP($B15, 'Sheet1 - Table (1)'!$C$4:$AK$996, 'Adj Sheet1 - Table (1)'!Y$2, FALSE)/100)*(1+IF($A15="Life",assumed_rebate_life,assumed_rebate))^(Y$5/365)-1)*100) -> -1.21 | Z15: =IF(VLOOKUP($B15, 'Sheet1 - Table (1)'!$C$4:$AK$996, 'Adj Sheet1 - Table (1)'!Z$2, FALSE)="", "", ((1+VLOOKUP($B15, 'Sheet1 - Table (1)'!$C$4:$AK$996, 'Adj Sheet1 - Table (1)'!Z$2, FALSE)/100)*(1+IF($A15="Life",assumed_rebate_life,assumed_rebate))^(Z$5/365)-1)*100) -> 8.62 | AA15: =IF(VLOOKUP($B15, 'Sheet1 - Table (1)'!$C$4:$AK$996, 'Adj Sheet1 - Table (1)'!AA$2, FALSE)="", "", ((1+VLOOKUP($B15, 'Sheet1 - Table (1)'!$C$4:$AK$996, 'Adj Sheet1 - Table (1)'!AA$2, FALSE)/100)*(1+IF($A15="Life",assumed_rebate_life,assumed_rebate))^(AA$5/365)-1)*100) -> 4.17 | AB15: =IF(VLOOKUP($B15, 'Sheet1 - Table (1)'!$C$4:$AK$996, 'Adj Sheet1 - Table (1)'!AB$2, FALSE)="", "", ((1+VLOOKUP($B15, 'Sheet1 - Table (1)'!$C$4:$AK$996, 'Adj Sheet1 - Table (1)'!AB$2, FALSE)/100)*(1+IF($A15="Life",assumed_rebate_life,assumed_rebate))^(AB$5/365)-1)*100) -> 9.1 | AC15: =IF(VLOOKUP($B15, 'Sheet1 - Table (1)'!$C$4:$AK$996, 'Adj Sheet1 - Table (1)'!AC$2, FALSE)="", "", ((1+VLOOKUP($B15, 'Sheet1 - Table (1)'!$C$4:$AK$996, 'Adj Sheet1 - Table (1)'!AC$2, FALSE)/100)*(1+IF($A15="Life",assumed_rebate_life,assumed_rebate))^(AC$5/365)-1)*100) -> -3.92 | AD15: =IF(VLOOKUP($B15, 'Sheet1 - Table (1)'!$C$4:$AK$996, 'Adj Sheet1 - Table (1)'!AD$2, FALSE)="", "", ((1+VLOOKUP($B15, 'Sheet1 - Table (1)'!$C$4:$AK$996, 'Adj Sheet1 - Table (1)'!AD$2, FALSE)/100)*(1+IF($A15="Life",assumed_rebate_life,assumed_rebate))^(AD$5/365)-1)*100) -> 3.96 | AE15: =IF(VLOOKUP($B15, 'Sheet1 - Table (1)'!$C$4:$AK$996, 'Adj Sheet1 - Table (1)'!AE$2, FALSE)="", "", ((1+VLOOKUP($B15, 'Sheet1 - Table (1)'!$C$4:$AK$996, 'Adj Sheet1 - Table (1)'!AE$2, FALSE)/100)*(1+IF($A15="Life",assumed_rebate_life,assumed_rebate))^(AE$5/365)-1)*100) -> 7.28 | AF15: =IF(VLOOKUP($B15, 'Sheet1 - Table (1)'!$C$4:$AK$996, 'Adj Sheet1 - Table (1)'!AF$2, FALSE)="", "", ((1+VLOOKUP($B15, 'Sheet1 - Table (1)'!$C$4:$AK$996, 'Adj Sheet1 - Table (1)'!AF$2, FALSE)/100)*(1+IF($A15="Life",assumed_rebate_life,assumed_rebate))^(AF$5/365)-1)*100) -> 4.28 | AG15: =IF(VLOOKUP($B15, 'Sheet1 - Table (1)'!$C$4:$AK$996, 'Adj Sheet1 - Table (1)'!AG$2, FALSE)="", "", ((1+VLOOKUP($B15, 'Sheet1 - Table (1)'!$C$4:$AK$996, 'Adj Sheet1 - Table (1)'!AG$2, FALSE)/100)*(1+IF($A15="Life",assumed_rebate_life,assumed_rebate))^(AG$5/365)-1)*100) -> 5.26 | AH15: =IF(VLOOKUP($B15, 'Sheet1 - Table (1)'!$C$4:$AK$996, 'Adj Sheet1 - Table (1)'!AH$2, FALSE)="", "", ((1+VLOOKUP($B15, 'Sheet1 - Table (1)'!$C$4:$AK$996, 'Adj Sheet1 - Table (1)'!AH$2, FALSE)/100)*(1+IF($A15="Life",assumed_rebate_life,assumed_rebate))^(AH$5/365)-1)*100) -> 5.04 | AI15: =IF(VLOOKUP($B15, 'Sheet1 - Table (1)'!$C$4:$AK$996, 'Adj Sheet1 - Table (1)'!AI$2, FALSE)="", "", ((1+VLOOKUP($B15, 'Sheet1 - Table (1)'!$C$4:$AK$996, 'Adj Sheet1 - Table (1)'!AI$2, FALSE)/100)*(1+IF($A15="Life",assumed_rebate_life,assumed_rebate))^(AI$5/365)-1)*100) -> 5.46 | AJ15: =IF(VLOOKUP($B15, 'Sheet1 - Table (1)'!$C$4:$AK$996, 'Adj Sheet1 - Table (1)'!AJ$2, FALSE)="", "", ((1+VLOOKUP($B15, 'Sheet1 - Table (1)'!$C$4:$AK$996, 'Adj Sheet1 - Table (1)'!AJ$2, FALSE)/100)*(1+IF($A15="Life",assumed_rebate_life,assumed_rebate))^(AJ$5/365)-1)*100) -> 6.1
A16: Life | B16: ='Sheet1 - Table (1)'!C12 -> 19074019 | C16: =_xlfn.XLOOKUP($B16,'Sheet1 - Table (1)'!$C$7:$C$1048576,'Sheet1 - Table (1)'!$D$7:$D$1048576,"N/A") -> ABI UK - Sterling Fixed Interest-Life | D16: =IF(VLOOKUP($B16, 'Sheet1 - Table (1)'!$C$4:$AK$996, 'Adj Sheet1 - Table (1)'!D$2, FALSE)="", "", VLOOKUP($B16, 'Sheet1 - Table (1)'!$C$4:$AK$996, 'Adj Sheet1 - Table (1)'!D$2, FALSE)) -> 5.00154 | E16: =IF(VLOOKUP($B16, 'Sheet1 - Table (1)'!$C$4:$AK$996, 'Adj Sheet1 - Table (1)'!E$2, FALSE)="", "", ((1+VLOOKUP($B16, 'Sheet1 - Table (1)'!$C$4:$AK$996, 'Adj Sheet1 - Table (1)'!E$2, FALSE)/100)*(1+IF($A16="Life",assumed_rebate_life,assumed_rebate))^(E$5/365)-1)*100) -> -1.68 | F16: =IF(VLOOKUP($B16, 'Sheet1 - Table (1)'!$C$4:$AK$996, 'Adj Sheet1 - Table (1)'!F$2, FALSE)="", "", ((1+VLOOKUP($B16, 'Sheet1 - Table (1)'!$C$4:$AK$996, 'Adj Sheet1 - Table (1)'!F$2, FALSE)/100)*(1+IF($A16="Life",assumed_rebate_life,assumed_rebate))^(F$5/365)-1)*100) -> 2.12 | G16: =IF(VLOOKUP($B16, 'Sheet1 - Table (1)'!$C$4:$AK$996, 'Adj Sheet1 - Table (1)'!G$2, FALSE)="", "", ((1+VLOOKUP($B16, 'Sheet1 - Table (1)'!$C$4:$AK$996, 'Adj Sheet1 - Table (1)'!G$2, FALSE)/100)*(1+IF($A16="Life",assumed_rebate_life,assumed_rebate))^(G$5/365)-1)*100) -> -0.19 | H16: =IF(VLOOKUP($B16, 'Sheet1 - Table (1)'!$C$4:$AK$996, 'Adj Sheet1 - Table (1)'!H$2, FALSE)="", "", ((1+VLOOKUP($B16, 'Sheet1 - Table (1)'!$C$4:$AK$996, 'Adj Sheet1 - Table (1)'!H$2, FALSE)/100)*(1+IF($A16="Life",assumed_rebate_life,assumed_rebate))^(H$5/365)-1)*100) -> 2.07 | I16: =IF(VLOOKUP($B16, 'Sheet1 - Table (1)'!$C$4:$AK$996, 'Adj Sheet1 - Table (1)'!I$2, FALSE)="", "", ((1+VLOOKUP($B16, 'Sheet1 - Table (1)'!$C$4:$AK$996, 'Adj Sheet1 - Table (1)'!I$2, FALSE)/100)*(1+IF($A16="Life",assumed_rebate_life,assumed_rebate))^(I$5/365)-1)*100) -> -11.62 | J16: =IF(VLOOKUP($B16, 'Sheet1 - Table (1)'!$C$4:$AK$996, 'Adj Sheet1 - Table (1)'!J$2, FALSE)="", "", ((1+VLOOKUP($B16, 'Sheet1 - Table (1)'!$C$4:$AK$996, 'Adj Sheet1 - Table (1)'!J$2, FALSE)/100)*(1+IF($A16="Life",assumed_rebate_life,assumed_rebate))^(J$5/365)-1)*100) -> -5.17 | K16: =IF(VLOOKUP($B16, 'Sheet1 - Table (1)'!$C$4:$AK$996, 'Adj Sheet1 - Table (1)'!K$2, FALSE)="", "", ((1+VLOOKUP($B16, 'Sheet1 - Table (1)'!$C$4:$AK$996, 'Adj Sheet1 - Table (1)'!K$2, FALSE)/100)*(1+IF($A16="Life",assumed_rebate_life,assumed_rebate))^(K$5/365)-1)*100) -> 1.33 | L16: =IF(VLOOKUP($B16, 'Sheet1 - Table (1)'!$C$4:$AK$996, 'Adj Sheet1 - Table (1)'!L$2, FALSE)="", "", ((1+VLOOKUP($B16, 'Sheet1 - Table (1)'!$C$4:$AK$996, 'Adj Sheet1 - Table (1)'!L$2, FALSE)/100)*(1+IF($A16="Life",assumed_rebate_life,assumed_rebate))^(L$5/365)-1)*100) -> -2.7 | M16: =IF(VLOOKUP($B16, 'Sheet1 - Table (1)'!$C$4:$AK$996, 'Adj Sheet1 - Table (1)'!M$2, FALSE)="", "", ((1+VLOOKUP($B16, 'Sheet1 - Table (1)'!$C$4:$AK$996, 'Adj Sheet1 - Table (1)'!M$2, FALSE)/100)*(1+IF($A16="Life",assumed_rebate_life,assumed_rebate))^(M$5/365)-1)*100) -> -0.26 | N16: =IF(VLOOKUP($B16, 'Sheet1 - Table (1)'!$C$4:$AK$996, 'Adj Sheet1 - Table (1)'!N$2, FALSE)="", "", ((1+VLOOKUP($B16, 'Sheet1 - Table (1)'!$C$4:$AK$996, 'Adj Sheet1 - Table (1)'!N$2, FALSE)/100)*(1+IF($A16="Life",assumed_rebate_life,assumed_rebate))^(N$5/365)-1)*100) -> 1.29 | O16: =IF(VLOOKUP($B16, 'Sheet1 - Table (1)'!$C$4:$AK$996, 'Adj Sheet1 - Table (1)'!O$2, FALSE)="", "", ((1+VLOOKUP($B16, 'Sheet1 - Table (1)'!$C$4:$AK$996, 'Adj Sheet1 - Table (1)'!O$2, FALSE)/100)*(1+IF($A16="Life",assumed_rebate_life,assumed_rebate))^(O$5/365)-1)*100) -> -1.82 | P16: =IF(VLOOKUP($B16, 'Sheet1 - Table (1)'!$C$4:$AK$996, 'Adj Sheet1 - Table (1)'!P$2, FALSE)="", "", ((1+VLOOKUP($B16, 'Sheet1 - Table (1)'!$C$4:$AK$996, 'Adj Sheet1 - Table (1)'!P$2, FALSE)/100)*(1+IF($A16="Life",assumed_rebate_life,assumed_rebate))^(P$5/365)-1)*100) -> 2.22 | Q16: =IF(VLOOKUP($B16, 'Sheet1 - Table (1)'!$C$4:$AK$996, 'Adj Sheet1 - Table (1)'!Q$2, FALSE)="", "", ((1+VLOOKUP($B16, 'Sheet1 - Table (1)'!$C$4:$AK$996, 'Adj Sheet1 - Table (1)'!Q$2, FALSE)/100)*(1+IF($A16="Life",assumed_rebate_life,assumed_rebate))^(Q$5/365)-1)*100) -> -0.46 | R16: =IF(VLOOKUP($B16, 'Sheet1 - Table (1)'!$C$4:$AK$996, 'Adj Sheet1 - Table (1)'!R$2, FALSE)="", "", ((1+VLOOKUP($B16, 'Sheet1 - Table (1)'!$C$4:$AK$996, 'Adj Sheet1 - Table (1)'!R$2, FALSE)/100)*(1+IF($A16="Life",assumed_rebate_life,assumed_rebate))^(R$5/365)-1)*100) -> 1.89 | S16: =IF(VLOOKUP($B16, 'Sheet1 - Table (1)'!$C$4:$AK$996, 'Adj Sheet1 - Table (1)'!S$2, FALSE)="", "", ((1+VLOOKUP($B16, 'Sheet1 - Table (1)'!$C$4:$AK$996, 'Adj Sheet1 - Table (1)'!S$2, FALSE)/100)*(1+IF($A16="Life",assumed_rebate_life,assumed_rebate))^(S$5/365)-1)*100) -> -11.42 | T16: =IF(VLOOKUP($B16, 'Sheet1 - Table (1)'!$C$4:$AK$996, 'Adj Sheet1 - Table (1)'!T$2, FALSE)="", "", ((1+VLOOKUP($B16, 'Sheet1 - Table (1)'!$C$4:$AK$996, 'Adj Sheet1 - Table (1)'!T$2, FALSE)/100)*(1+IF($A16="Life",assumed_rebate_life,assumed_rebate))^(T$5/365)-1)*100) -> -5.41 | U16: =IF(VLOOKUP($B16, 'Sheet1 - Table (1)'!$C$4:$AK$996, 'Adj Sheet1 - Table (1)'!U$2, FALSE)="", "", ((1+VLOOKUP($B16, 'Sheet1 - Table (1)'!$C$4:$AK$996, 'Adj Sheet1 - Table (1)'!U$2, FALSE)/100)*(1+IF($A16="Life",assumed_rebate_life,assumed_rebate))^(U$5/365)-1)*100) -> 1.21 | V16: =IF(VLOOKUP($B16, 'Sheet1 - Table (1)'!$C$4:$AK$996, 'Adj Sheet1 - Table (1)'!V$2, FALSE)="", "", ((1+VLOOKUP($B16, 'Sheet1 - Table (1)'!$C$4:$AK$996, 'Adj Sheet1 - Table (1)'!V$2, FALSE)/100)*(1+IF($A16="Life",assumed_rebate_life,assumed_rebate))^(V$5/365)-1)*100) -> -2.78 | W16: =IF(VLOOKUP($B16, 'Sheet1 - Table (1)'!$C$4:$AK$996, 'Adj Sheet1 - Table (1)'!W$2, FALSE)="", "", ((1+VLOOKUP($B16, 'Sheet1 - Table (1)'!$C$4:$AK$996, 'Adj Sheet1 - Table (1)'!W$2, FALSE)/100)*(1+IF($A16="Life",assumed_rebate_life,assumed_rebate))^(W$5/365)-1)*100) -> -0.28 | X16: =IF(VLOOKUP($B16, 'Sheet1 - Table (1)'!$C$4:$AK$996, 'Adj Sheet1 - Table (1)'!X$2, FALSE)="", "", ((1+VLOOKUP($B16, 'Sheet1 - Table (1)'!$C$4:$AK$996, 'Adj Sheet1 - Table (1)'!X$2, FALSE)/100)*(1+IF($A16="Life",assumed_rebate_life,assumed_rebate))^(X$5/365)-1)*100) -> 1.28 | Y16: =IF(VLOOKUP($B16, 'Sheet1 - Table (1)'!$C$4:$AK$996, 'Adj Sheet1 - Table (1)'!Y$2, FALSE)="", "", ((1+VLOOKUP($B16, 'Sheet1 - Table (1)'!$C$4:$AK$996, 'Adj Sheet1 - Table (1)'!Y$2, FALSE)/100)*(1+IF($A16="Life",assumed_rebate_life,assumed_rebate))^(Y$5/365)-1)*100) -> -1.7 | Z16: =IF(VLOOKUP($B16, 'Sheet1 - Table (1)'!$C$4:$AK$996, 'Adj Sheet1 - Table (1)'!Z$2, FALSE)="", "", ((1+VLOOKUP($B16, 'Sheet1 - Table (1)'!$C$4:$AK$996, 'Adj Sheet1 - Table (1)'!Z$2, FALSE)/100)*(1+IF($A16="Life",assumed_rebate_life,assumed_rebate))^(Z$5/365)-1)*100) -> 2.26 | AA16: =IF(VLOOKUP($B16, 'Sheet1 - Table (1)'!$C$4:$AK$996, 'Adj Sheet1 - Table (1)'!AA$2, FALSE)="", "", ((1+VLOOKUP($B16, 'Sheet1 - Table (1)'!$C$4:$AK$996, 'Adj Sheet1 - Table (1)'!AA$2, FALSE)/100)*(1+IF($A16="Life",assumed_rebate_life,assumed_rebate))^(AA$5/365)-1)*100) -> -0.35 | AB16: =IF(VLOOKUP($B16, 'Sheet1 - Table (1)'!$C$4:$AK$996, 'Adj Sheet1 - Table (1)'!AB$2, FALSE)="", "", ((1+VLOOKUP($B16, 'Sheet1 - Table (1)'!$C$4:$AK$996, 'Adj Sheet1 - Table (1)'!AB$2, FALSE)/100)*(1+IF($A16="Life",assumed_rebate_life,assumed_rebate))^(AB$5/365)-1)*100) -> 1.79 | AC16: =IF(VLOOKUP($B16, 'Sheet1 - Table (1)'!$C$4:$AK$996, 'Adj Sheet1 - Table (1)'!AC$2, FALSE)="", "", ((1+VLOOKUP($B16, 'Sheet1 - Table (1)'!$C$4:$AK$996, 'Adj Sheet1 - Table (1)'!AC$2, FALSE)/100)*(1+IF($A16="Life",assumed_rebate_life,assumed_rebate))^(AC$5/365)-1)*100) -> -11.36 | AD16: =IF(VLOOKUP($B16, 'Sheet1 - Table (1)'!$C$4:$AK$996, 'Adj Sheet1 - Table (1)'!AD$2, FALSE)="", "", ((1+VLOOKUP($B16, 'Sheet1 - Table (1)'!$C$4:$AK$996, 'Adj Sheet1 - Table (1)'!AD$2, FALSE)/100)*(1+IF($A16="Life",assumed_rebate_life,assumed_rebate))^(AD$5/365)-1)*100) -> -5.8 | AE16: =IF(VLOOKUP($B16, 'Sheet1 - Table (1)'!$C$4:$AK$996, 'Adj Sheet1 - Table (1)'!AE$2, FALSE)="", "", ((1+VLOOKUP($B16, 'Sheet1 - Table (1)'!$C$4:$AK$996, 'Adj Sheet1 - Table (1)'!AE$2, FALSE)/100)*(1+IF($A16="Life",assumed_rebate_life,assumed_rebate))^(AE$5/365)-1)*100) -> 1.23 | AF16: =IF(VLOOKUP($B16, 'Sheet1 - Table (1)'!$C$4:$AK$996, 'Adj Sheet1 - Table (1)'!AF$2, FALSE)="", "", ((1+VLOOKUP($B16, 'Sheet1 - Table (1)'!$C$4:$AK$996, 'Adj Sheet1 - Table (1)'!AF$2, FALSE)/100)*(1+IF($A16="Life",assumed_rebate_life,assumed_rebate))^(AF$5/365)-1)*100) -> -2.84 | AG16: =IF(VLOOKUP($B16, 'Sheet1 - Table (1)'!$C$4:$AK$996, 'Adj Sheet1 - Table (1)'!AG$2, FALSE)="", "", ((1+VLOOKUP($B16, 'Sheet1 - Table (1)'!$C$4:$AK$996, 'Adj Sheet1 - Table (1)'!AG$2, FALSE)/100)*(1+IF($A16="Life",assumed_rebate_life,assumed_rebate))^(AG$5/365)-1)*100) -> -0.26 | AH16: =IF(VLOOKUP($B16, 'Sheet1 - Table (1)'!$C$4:$AK$996, 'Adj Sheet1 - Table (1)'!AH$2, FALSE)="", "", ((1+VLOOKUP($B16, 'Sheet1 - Table (1)'!$C$4:$AK$996, 'Adj Sheet1 - Table (1)'!AH$2, FALSE)/100)*(1+IF($A16="Life",assumed_rebate_life,assumed_rebate))^(AH$5/365)-1)*100) -> 1.27 | AI16: =IF(VLOOKUP($B16, 'Sheet1 - Table (1)'!$C$4:$AK$996, 'Adj Sheet1 - Table (1)'!AI$2, FALSE)="", "", ((1+VLOOKUP($B16, 'Sheet1 - Table (1)'!$C$4:$AK$996, 'Adj Sheet1 - Table (1)'!AI$2, FALSE)/100)*(1+IF($A16="Life",assumed_rebate_life,assumed_rebate))^(AI$5/365)-1)*100) -> 0.53 | AJ16: =IF(VLOOKUP($B16, 'Sheet1 - Table (1)'!$C$4:$AK$996, 'Adj Sheet1 - Table (1)'!AJ$2, FALSE)="", "", ((1+VLOOKUP($B16, 'Sheet1 - Table (1)'!$C$4:$AK$996, 'Adj Sheet1 - Table (1)'!AJ$2, FALSE)/100)*(1+IF($A16="Life",assumed_rebate_life,assumed_rebate))^(AJ$5/365)-1)*100) -> 1.85
A17: Life | B17: ='Sheet1 - Table (1)'!C13 -> 19074006 | C17: =_xlfn.XLOOKUP($B17,'Sheet1 - Table (1)'!$C$7:$C$1048576,'Sheet1 - Table (1)'!$D$7:$D$1048576,"N/A") -> ABI UK - UK All Companies-Life | D17: =IF(VLOOKUP($B17, 'Sheet1 - Table (1)'!$C$4:$AK$996, 'Adj Sheet1 - Table (1)'!D$2, FALSE)="", "", VLOOKUP($B17, 'Sheet1 - Table (1)'!$C$4:$AK$996, 'Adj Sheet1 - Table (1)'!D$2, FALSE)) -> 8.90813 | E17: =IF(VLOOKUP($B17, 'Sheet1 - Table (1)'!$C$4:$AK$996, 'Adj Sheet1 - Table (1)'!E$2, FALSE)="", "", ((1+VLOOKUP($B17, 'Sheet1 - Table (1)'!$C$4:$AK$996, 'Adj Sheet1 - Table (1)'!E$2, FALSE)/100)*(1+IF($A17="Life",assumed_rebate_life,assumed_rebate))^(E$5/365)-1)*100) -> -1.77 | F17: =IF(VLOOKUP($B17, 'Sheet1 - Table (1)'!$C$4:$AK$996, 'Adj Sheet1 - Table (1)'!F$2, FALSE)="", "", ((1+VLOOKUP($B17, 'Sheet1 - Table (1)'!$C$4:$AK$996, 'Adj Sheet1 - Table (1)'!F$2, FALSE)/100)*(1+IF($A17="Life",assumed_rebate_life,assumed_rebate))^(F$5/365)-1)*100) -> 11.26 | G17: =IF(VLOOKUP($B17, 'Sheet1 - Table (1)'!$C$4:$AK$996, 'Adj Sheet1 - Table (1)'!G$2, FALSE)="", "", ((1+VLOOKUP($B17, 'Sheet1 - Table (1)'!$C$4:$AK$996, 'Adj Sheet1 - Table (1)'!G$2, FALSE)/100)*(1+IF($A17="Life",assumed_rebate_life,assumed_rebate))^(G$5/365)-1)*100) -> 5.35 | H17: =IF(VLOOKUP($B17, 'Sheet1 - Table (1)'!$C$4:$AK$996, 'Adj Sheet1 - Table (1)'!H$2, FALSE)="", "", ((1+VLOOKUP($B17, 'Sheet1 - Table (1)'!$C$4:$AK$996, 'Adj Sheet1 - Table (1)'!H$2, FALSE)/100)*(1+IF($A17="Life",assumed_rebate_life,assumed_rebate))^(H$5/365)-1)*100) -> 6.8 | I17: =IF(VLOOKUP($B17, 'Sheet1 - Table (1)'!$C$4:$AK$996, 'Adj Sheet1 - Table (1)'!I$2, FALSE)="", "", ((1+VLOOKUP($B17, 'Sheet1 - Table (1)'!$C$4:$AK$996, 'Adj Sheet1 - Table (1)'!I$2, FALSE)/100)*(1+IF($A17="Life",assumed_rebate_life,assumed_rebate))^(I$5/365)-1)*100) -> -1.58 | J17: =IF(VLOOKUP($B17, 'Sheet1 - Table (1)'!$C$4:$AK$996, 'Adj Sheet1 - Table (1)'!J$2, FALSE)="", "", ((1+VLOOKUP($B17, 'Sheet1 - Table (1)'!$C$4:$AK$996, 'Adj Sheet1 - Table (1)'!J$2, FALSE)/100)*(1+IF($A17="Life",assumed_rebate_life,assumed_rebate))^(J$5/365)-1)*100) -> 3.49 | K17: =IF(VLOOKUP($B17, 'Sheet1 - Table (1)'!$C$4:$AK$996, 'Adj Sheet1 - Table (1)'!K$2, FALSE)="", "", ((1+VLOOKUP($B17, 'Sheet1 - Table (1)'!$C$4:$AK$996, 'Adj Sheet1 - Table (1)'!K$2, FALSE)/100)*(1+IF($A17="Life",assumed_rebate_life,assumed_rebate))^(K$5/365)-1)*100) -> 7.77 | L17: =IF(VLOOKUP($B17, 'Sheet1 - Table (1)'!$C$4:$AK$996, 'Adj Sheet1 - Table (1)'!L$2, FALSE)="", "", ((1+VLOOKUP($B17, 'Sheet1 - Table (1)'!$C$4:$AK$996, 'Adj Sheet1 - Table (1)'!L$2, FALSE)/100)*(1+IF($A17="Life",assumed_rebate_life,assumed_rebate))^(L$5/365)-1)*100) -> 4.98 | M17: =IF(VLOOKUP($B17, 'Sheet1 - Table (1)'!$C$4:$AK$996, 'Adj Sheet1 - Table (1)'!M$2, FALSE)="", "", ((1+VLOOKUP($B17, 'Sheet1 - Table (1)'!$C$4:$AK$996, 'Adj Sheet1 - Table (1)'!M$2, FALSE)/100)*(1+IF($A17="Life",assumed_rebate_life,assumed_rebate))^(M$5/365)-1)*100) -> 4.85 | N17: =IF(VLOOKUP($B17, 'Sheet1 - Table (1)'!$C$4:$AK$996, 'Adj Sheet1 - Table (1)'!N$2, FALSE)="", "", ((1+VLOOKUP($B17, 'Sheet1 - Table (1)'!$C$4:$AK$996, 'Adj Sheet1 - Table (1)'!N$2, FALSE)/100)*(1+IF($A17="Life",assumed_rebate_life,assumed_rebate))^(N$5/365)-1)*100) -> 5.23 | O17: =IF(VLOOKUP($B17, 'Sheet1 - Table (1)'!$C$4:$AK$996, 'Adj Sheet1 - Table (1)'!O$2, FALSE)="", "", ((1+VLOOKUP($B17, 'Sheet1 - Table (1)'!$C$4:$AK$996, 'Adj Sheet1 - Table (1)'!O$2, FALSE)/100)*(1+IF($A17="Life",assumed_rebate_life,assumed_rebate))^(O$5/365)-1)*100) -> -2.52 | P17: =IF(VLOOKUP($B17, 'Sheet1 - Table (1)'!$C$4:$AK$996, 'Adj Sheet1 - Table (1)'!P$2, FALSE)="", "", ((1+VLOOKUP($B17, 'Sheet1 - Table (1)'!$C$4:$AK$996, 'Adj Sheet1 - Table (1)'!P$2, FALSE)/100)*(1+IF($A17="Life",assumed_rebate_life,assumed_rebate))^(P$5/365)-1)*100) -> 9.27 | Q17: =IF(VLOOKUP($B17, 'Sheet1 - Table (1)'!$C$4:$AK$996, 'Adj Sheet1 - Table (1)'!Q$2, FALSE)="", "", ((1+VLOOKUP($B17, 'Sheet1 - Table (1)'!$C$4:$AK$996, 'Adj Sheet1 - Table (1)'!Q$2, FALSE)/100)*(1+IF($A17="Life",assumed_rebate_life,assumed_rebate))^(Q$5/365)-1)*100) -> 6.29 | R17: =IF(VLOOKUP($B17, 'Sheet1 - Table (1)'!$C$4:$AK$996, 'Adj Sheet1 - Table (1)'!R$2, FALSE)="", "", ((1+VLOOKUP($B17, 'Sheet1 - Table (1)'!$C$4:$AK$996, 'Adj Sheet1 - Table (1)'!R$2, FALSE)/100)*(1+IF($A17="Life",assumed_rebate_life,assumed_rebate))^(R$5/365)-1)*100) -> 7.37 | S17: =IF(VLOOKUP($B17, 'Sheet1 - Table (1)'!$C$4:$AK$996, 'Adj Sheet1 - Table (1)'!S$2, FALSE)="", "", ((1+VLOOKUP($B17, 'Sheet1 - Table (1)'!$C$4:$AK$996, 'Adj Sheet1 - Table (1)'!S$2, FALSE)/100)*(1+IF($A17="Life",assumed_rebate_life,assumed_rebate))^(S$5/365)-1)*100) -> -2.19 | T17: =IF(VLOOKUP($B17, 'Sheet1 - Table (1)'!$C$4:$AK$996, 'Adj Sheet1 - Table (1)'!T$2, FALSE)="", "", ((1+VLOOKUP($B17, 'Sheet1 - Table (1)'!$C$4:$AK$996, 'Adj Sheet1 - Table (1)'!T$2, FALSE)/100)*(1+IF($A17="Life",assumed_rebate_life,assumed_rebate))^(T$5/365)-1)*100) -> 3.7 | U17: =IF(VLOOKUP($B17, 'Sheet1 - Table (1)'!$C$4:$AK$996, 'Adj Sheet1 - Table (1)'!U$2, FALSE)="", "", ((1+VLOOKUP($B17, 'Sheet1 - Table (1)'!$C$4:$AK$996, 'Adj Sheet1 - Table (1)'!U$2, FALSE)/100)*(1+IF($A17="Life",assumed_rebate_life,assumed_rebate))^(U$5/365)-1)*100) -> 7.63 | V17: =IF(VLOOKUP($B17, 'Sheet1 - Table (1)'!$C$4:$AK$996, 'Adj Sheet1 - Table (1)'!V$2, FALSE)="", "", ((1+VLOOKUP($B17, 'Sheet1 - Table (1)'!$C$4:$AK$996, 'Adj Sheet1 - Table (1)'!V$2, FALSE)/100)*(1+IF($A17="Life",assumed_rebate_life,assumed_rebate))^(V$5/365)-1)*100) -> 4.81 | W17: =IF(VLOOKUP($B17, 'Sheet1 - Table (1)'!$C$4:$AK$996, 'Adj Sheet1 - Table (1)'!W$2, FALSE)="", "", ((1+VLOOKUP($B17, 'Sheet1 - Table (1)'!$C$4:$AK$996, 'Adj Sheet1 - Table (1)'!W$2, FALSE)/100)*(1+IF($A17="Life",assumed_rebate_life,assumed_rebate))^(W$5/365)-1)*100) -> 4.79 | X17: =IF(VLOOKUP($B17, 'Sheet1 - Table (1)'!$C$4:$AK$996, 'Adj Sheet1 - Table (1)'!X$2, FALSE)="", "", ((1+VLOOKUP($B17, 'Sheet1 - Table (1)'!$C$4:$AK$996, 'Adj Sheet1 - Table (1)'!X$2, FALSE)/100)*(1+IF($A17="Life",assumed_rebate_life,assumed_rebate))^(X$5/365)-1)*100) -> 5.18 | Y17: =IF(VLOOKUP($B17, 'Sheet1 - Table (1)'!$C$4:$AK$996, 'Adj Sheet1 - Table (1)'!Y$2, FALSE)="", "", ((1+VLOOKUP($B17, 'Sheet1 - Table (1)'!$C$4:$AK$996, 'Adj Sheet1 - Table (1)'!Y$2, FALSE)/100)*(1+IF($A17="Life",assumed_rebate_life,assumed_rebate))^(Y$5/365)-1)*100) -> -2.32 | Z17: =IF(VLOOKUP($B17, 'Sheet1 - Table (1)'!$C$4:$AK$996, 'Adj Sheet1 - Table (1)'!Z$2, FALSE)="", "", ((1+VLOOKUP($B17, 'Sheet1 - Table (1)'!$C$4:$AK$996, 'Adj Sheet1 - Table (1)'!Z$2, FALSE)/100)*(1+IF($A17="Life",assumed_rebate_life,assumed_rebate))^(Z$5/365)-1)*100) -> 9.38 | AA17: =IF(VLOOKUP($B17, 'Sheet1 - Table (1)'!$C$4:$AK$996, 'Adj Sheet1 - Table (1)'!AA$2, FALSE)="", "", ((1+VLOOKUP($B17, 'Sheet1 - Table (1)'!$C$4:$AK$996, 'Adj Sheet1 - Table (1)'!AA$2, FALSE)/100)*(1+IF($A17="Life",assumed_rebate_life,assumed_rebate))^(AA$5/365)-1)*100) -> 6.51 | AB17: =IF(VLOOKUP($B17, 'Sheet1 - Table (1)'!$C$4:$AK$996, 'Adj Sheet1 - Table (1)'!AB$2, FALSE)="", "", ((1+VLOOKUP($B17, 'Sheet1 - Table (1)'!$C$4:$AK$996, 'Adj Sheet1 - Table (1)'!AB$2, FALSE)/100)*(1+IF($A17="Life",assumed_rebate_life,assumed_rebate))^(AB$5/365)-1)*100) -> 8.36 | AC17: =IF(VLOOKUP($B17, 'Sheet1 - Table (1)'!$C$4:$AK$996, 'Adj Sheet1 - Table (1)'!AC$2, FALSE)="", "", ((1+VLOOKUP($B17, 'Sheet1 - Table (1)'!$C$4:$AK$996, 'Adj Sheet1 - Table (1)'!AC$2, FALSE)/100)*(1+IF($A17="Life",assumed_rebate_life,assumed_rebate))^(AC$5/365)-1)*100) -> -3.3 | AD17: =IF(VLOOKUP($B17, 'Sheet1 - Table (1)'!$C$4:$AK$996, 'Adj Sheet1 - Table (1)'!AD$2, FALSE)="", "", ((1+VLOOKUP($B17, 'Sheet1 - Table (1)'!$C$4:$AK$996, 'Adj Sheet1 - Table (1)'!AD$2, FALSE)/100)*(1+IF($A17="Life",assumed_rebate_life,assumed_rebate))^(AD$5/365)-1)*100) -> 3.82 | AE17: =IF(VLOOKUP($B17, 'Sheet1 - Table (1)'!$C$4:$AK$996, 'Adj Sheet1 - Table (1)'!AE$2, FALSE)="", "", ((1+VLOOKUP($B17, 'Sheet1 - Table (1)'!$C$4:$AK$996, 'Adj Sheet1 - Table (1)'!AE$2, FALSE)/100)*(1+IF($A17="Life",assumed_rebate_life,assumed_rebate))^(AE$5/365)-1)*100) -> 8.08 | AF17: =IF(VLOOKUP($B17, 'Sheet1 - Table (1)'!$C$4:$AK$996, 'Adj Sheet1 - Table (1)'!AF$2, FALSE)="", "", ((1+VLOOKUP($B17, 'Sheet1 - Table (1)'!$C$4:$AK$996, 'Adj Sheet1 - Table (1)'!AF$2, FALSE)/100)*(1+IF($A17="Life",assumed_rebate_life,assumed_rebate))^(AF$5/365)-1)*100) -> 4.85 | AG17: =IF(VLOOKUP($B17, 'Sheet1 - Table (1)'!$C$4:$AK$996, 'Adj Sheet1 - Table (1)'!AG$2, FALSE)="", "", ((1+VLOOKUP($B17, 'Sheet1 - Table (1)'!$C$4:$AK$996, 'Adj Sheet1 - Table (1)'!AG$2, FALSE)/100)*(1+IF($A17="Life",assumed_rebate_life,assumed_rebate))^(AG$5/365)-1)*100) -> 4.87 | AH17: =IF(VLOOKUP($B17, 'Sheet1 - Table (1)'!$C$4:$AK$996, 'Adj Sheet1 - Table (1)'!AH$2, FALSE)="", "", ((1+VLOOKUP($B17, 'Sheet1 - Table (1)'!$C$4:$AK$996, 'Adj Sheet1 - Table (1)'!AH$2, FALSE)/100)*(1+IF($A17="Life",assumed_rebate_life,assumed_rebate))^(AH$5/365)-1)*100) -> 5.22 | AI17: =IF(VLOOKUP($B17, 'Sheet1 - Table (1)'!$C$4:$AK$996, 'Adj Sheet1 - Table (1)'!AI$2, FALSE)="", "", ((1+VLOOKUP($B17, 'Sheet1 - Table (1)'!$C$4:$AK$996, 'Adj Sheet1 - Table (1)'!AI$2, FALSE)/100)*(1+IF($A17="Life",assumed_rebate_life,assumed_rebate))^(AI$5/365)-1)*100) -> 5.79 | AJ17: =IF(VLOOKUP($B17, 'Sheet1 - Table (1)'!$C$4:$AK$996, 'Adj Sheet1 - Table (1)'!AJ$2, FALSE)="", "", ((1+VLOOKUP($B17, 'Sheet1 - Table (1)'!$C$4:$AK$996, 'Adj Sheet1 - Table (1)'!AJ$2, FALSE)/100)*(1+IF($A17="Life",assumed_rebate_life,assumed_rebate))^(AJ$5/365)-1)*100) -> 6.88
A18: Life | B18: ='Sheet1 - Table (1)'!C14 -> 19074026 | C18: =_xlfn.XLOOKUP($B18,'Sheet1 - Table (1)'!$C$7:$C$1048576,'Sheet1 - Table (1)'!$D$7:$D$1048576,"N/A") -> ABI UK - UK Direct Property-Life | D18: =IF(VLOOKUP($B18, 'Sheet1 - Table (1)'!$C$4:$AK$996, 'Adj Sheet1 - Table (1)'!D$2, FALSE)="", "", VLOOKUP($B18, 'Sheet1 - Table (1)'!$C$4:$AK$996, 'Adj Sheet1 - Table (1)'!D$2, FALSE)) -> 1.15122 | E18: =IF(VLOOKUP($B18, 'Sheet1 - Table (1)'!$C$4:$AK$996, 'Adj Sheet1 - Table (1)'!E$2, FALSE)="", "", ((1+VLOOKUP($B18, 'Sheet1 - Table (1)'!$C$4:$AK$996, 'Adj Sheet1 - Table (1)'!E$2, FALSE)/100)*(1+IF($A18="Life",assumed_rebate_life,assumed_rebate))^(E$5/365)-1)*100) -> -0.33 | F18: =IF(VLOOKUP($B18, 'Sheet1 - Table (1)'!$C$4:$AK$996, 'Adj Sheet1 - Table (1)'!F$2, FALSE)="", "", ((1+VLOOKUP($B18, 'Sheet1 - Table (1)'!$C$4:$AK$996, 'Adj Sheet1 - Table (1)'!F$2, FALSE)/100)*(1+IF($A18="Life",assumed_rebate_life,assumed_rebate))^(F$5/365)-1)*100) -> -1.41 | G18: =IF(VLOOKUP($B18, 'Sheet1 - Table (1)'!$C$4:$AK$996, 'Adj Sheet1 - Table (1)'!G$2, FALSE)="", "", ((1+VLOOKUP($B18, 'Sheet1 - Table (1)'!$C$4:$AK$996, 'Adj Sheet1 - Table (1)'!G$2, FALSE)/100)*(1+IF($A18="Life",assumed_rebate_life,assumed_rebate))^(G$5/365)-1)*100) -> 1.07 | H18: =IF(VLOOKUP($B18, 'Sheet1 - Table (1)'!$C$4:$AK$996, 'Adj Sheet1 - Table (1)'!H$2, FALSE)="", "", ((1+VLOOKUP($B18, 'Sheet1 - Table (1)'!$C$4:$AK$996, 'Adj Sheet1 - Table (1)'!H$2, FALSE)/100)*(1+IF($A18="Life",assumed_rebate_life,assumed_rebate))^(H$5/365)-1)*100) -> -2.91 | I18: =IF(VLOOKUP($B18, 'Sheet1 - Table (1)'!$C$4:$AK$996, 'Adj Sheet1 - Table (1)'!I$2, FALSE)="", "", ((1+VLOOKUP($B18, 'Sheet1 - Table (1)'!$C$4:$AK$996, 'Adj Sheet1 - Table (1)'!I$2, FALSE)/100)*(1+IF($A18="Life",assumed_rebate_life,assumed_rebate))^(I$5/365)-1)*100) -> -12.02 | J18: =IF(VLOOKUP($B18, 'Sheet1 - Table (1)'!$C$4:$AK$996, 'Adj Sheet1 - Table (1)'!J$2, FALSE)="", "", ((1+VLOOKUP($B18, 'Sheet1 - Table (1)'!$C$4:$AK$996, 'Adj Sheet1 - Table (1)'!J$2, FALSE)/100)*(1+IF($A18="Life",assumed_rebate_life,assumed_rebate))^(J$5/365)-1)*100) -> 11.15 | K18: =IF(VLOOKUP($B18, 'Sheet1 - Table (1)'!$C$4:$AK$996, 'Adj Sheet1 - Table (1)'!K$2, FALSE)="", "", ((1+VLOOKUP($B18, 'Sheet1 - Table (1)'!$C$4:$AK$996, 'Adj Sheet1 - Table (1)'!K$2, FALSE)/100)*(1+IF($A18="Life",assumed_rebate_life,assumed_rebate))^(K$5/365)-1)*100) -> -1.1 | L18: =IF(VLOOKUP($B18, 'Sheet1 - Table (1)'!$C$4:$AK$996, 'Adj Sheet1 - Table (1)'!L$2, FALSE)="", "", ((1+VLOOKUP($B18, 'Sheet1 - Table (1)'!$C$4:$AK$996, 'Adj Sheet1 - Table (1)'!L$2, FALSE)/100)*(1+IF($A18="Life",assumed_rebate_life,assumed_rebate))^(L$5/365)-1)*100) -> -1.1 | M18: =IF(VLOOKUP($B18, 'Sheet1 - Table (1)'!$C$4:$AK$996, 'Adj Sheet1 - Table (1)'!M$2, FALSE)="", "", ((1+VLOOKUP($B18, 'Sheet1 - Table (1)'!$C$4:$AK$996, 'Adj Sheet1 - Table (1)'!M$2, FALSE)/100)*(1+IF($A18="Life",assumed_rebate_life,assumed_rebate))^(M$5/365)-1)*100) -> -0.55 | N18: =IF(VLOOKUP($B18, 'Sheet1 - Table (1)'!$C$4:$AK$996, 'Adj Sheet1 - Table (1)'!N$2, FALSE)="", "", ((1+VLOOKUP($B18, 'Sheet1 - Table (1)'!$C$4:$AK$996, 'Adj Sheet1 - Table (1)'!N$2, FALSE)/100)*(1+IF($A18="Life",assumed_rebate_life,assumed_rebate))^(N$5/365)-1)*100) -> 1.42 | O18: =IF(VLOOKUP($B18, 'Sheet1 - Table (1)'!$C$4:$AK$996, 'Adj Sheet1 - Table (1)'!O$2, FALSE)="", "", ((1+VLOOKUP($B18, 'Sheet1 - Table (1)'!$C$4:$AK$996, 'Adj Sheet1 - Table (1)'!O$2, FALSE)/100)*(1+IF($A18="Life",assumed_rebate_life,assumed_rebate))^(O$5/365)-1)*100) -> -0.58 | P18: =IF(VLOOKUP($B18, 'Sheet1 - Table (1)'!$C$4:$AK$996, 'Adj Sheet1 - Table (1)'!P$2, FALSE)="", "", ((1+VLOOKUP($B18, 'Sheet1 - Table (1)'!$C$4:$AK$996, 'Adj Sheet1 - Table (1)'!P$2, FALSE)/100)*(1+IF($A18="Life",assumed_rebate_life,assumed_rebate))^(P$5/365)-1)*100) -> -1.44 | Q18: =IF(VLOOKUP($B18, 'Sheet1 - Table (1)'!$C$4:$AK$996, 'Adj Sheet1 - Table (1)'!Q$2, FALSE)="", "", ((1+VLOOKUP($B18, 'Sheet1 - Table (1)'!$C$4:$AK$996, 'Adj Sheet1 - Table (1)'!Q$2, FALSE)/100)*(1+IF($A18="Life",assumed_rebate_life,assumed_rebate))^(Q$5/365)-1)*100) -> 1.15 | R18: =IF(VLOOKUP($B18, 'Sheet1 - Table (1)'!$C$4:$AK$996, 'Adj Sheet1 - Table (1)'!R$2, FALSE)="", "", ((1+VLOOKUP($B18, 'Sheet1 - Table (1)'!$C$4:$AK$996, 'Adj Sheet1 - Table (1)'!R$2, FALSE)/100)*(1+IF($A18="Life",assumed_rebate_life,assumed_rebate))^(R$5/365)-1)*100) -> -2.85 | S18: =IF(VLOOKUP($B18, 'Sheet1 - Table (1)'!$C$4:$AK$996, 'Adj Sheet1 - Table (1)'!S$2, FALSE)="", "", ((1+VLOOKUP($B18, 'Sheet1 - Table (1)'!$C$4:$AK$996, 'Adj Sheet1 - Table (1)'!S$2, FALSE)/100)*(1+IF($A18="Life",assumed_rebate_life,assumed_rebate))^(S$5/365)-1)*100) -> -11.53 | T18: =IF(VLOOKUP($B18, 'Sheet1 - Table (1)'!$C$4:$AK$996, 'Adj Sheet1 - Table (1)'!T$2, FALSE)="", "", ((1+VLOOKUP($B18, 'Sheet1 - Table (1)'!$C$4:$AK$996, 'Adj Sheet1 - Table (1)'!T$2, FALSE)/100)*(1+IF($A18="Life",assumed_rebate_life,assumed_rebate))^(T$5/365)-1)*100) -> 10.41 | U18: =IF(VLOOKUP($B18, 'Sheet1 - Table (1)'!$C$4:$AK$996, 'Adj Sheet1 - Table (1)'!U$2, FALSE)="", "", ((1+VLOOKUP($B18, 'Sheet1 - Table (1)'!$C$4:$AK$996, 'Adj Sheet1 - Table (1)'!U$2, FALSE)/100)*(1+IF($A18="Life",assumed_rebate_life,assumed_rebate))^(U$5/365)-1)*100) -> -1.06 | V18: =IF(VLOOKUP($B18, 'Sheet1 - Table (1)'!$C$4:$AK$996, 'Adj Sheet1 - Table (1)'!V$2, FALSE)="", "", ((1+VLOOKUP($B18, 'Sheet1 - Table (1)'!$C$4:$AK$996, 'Adj Sheet1 - Table (1)'!V$2, FALSE)/100)*(1+IF($A18="Life",assumed_rebate_life,assumed_rebate))^(V$5/365)-1)*100) -> -1.1 | W18: =IF(VLOOKUP($B18, 'Sheet1 - Table (1)'!$C$4:$AK$996, 'Adj Sheet1 - Table (1)'!W$2, FALSE)="", "", ((1+VLOOKUP($B18, 'Sheet1 - Table (1)'!$C$4:$AK$996, 'Adj Sheet1 - Table (1)'!W$2, FALSE)/100)*(1+IF($A18="Life",assumed_rebate_life,assumed_rebate))^(W$5/365)-1)*100) -> -0.54 | X18: =IF(VLOOKUP($B18, 'Sheet1 - Table (1)'!$C$4:$AK$996, 'Adj Sheet1 - Table (1)'!X$2, FALSE)="", "", ((1+VLOOKUP($B18, 'Sheet1 - Table (1)'!$C$4:$AK$996, 'Adj Sheet1 - Table (1)'!X$2, FALSE)/100)*(1+IF($A18="Life",assumed_rebate_life,assumed_rebate))^(X$5/365)-1)*100) -> 1.43 | Y18: =IF(VLOOKUP($B18, 'Sheet1 - Table (1)'!$C$4:$AK$996, 'Adj Sheet1 - Table (1)'!Y$2, FALSE)="", "", ((1+VLOOKUP($B18, 'Sheet1 - Table (1)'!$C$4:$AK$996, 'Adj Sheet1 - Table (1)'!Y$2, FALSE)/100)*(1+IF($A18="Life",assumed_rebate_life,assumed_rebate))^(Y$5/365)-1)*100) -> -0.55 | Z18: =IF(VLOOKUP($B18, 'Sheet1 - Table (1)'!$C$4:$AK$996, 'Adj Sheet1 - Table (1)'!Z$2, FALSE)="", "", ((1+VLOOKUP($B18, 'Sheet1 - Table (1)'!$C$4:$AK$996, 'Adj Sheet1 - Table (1)'!Z$2, FALSE)/100)*(1+IF($A18="Life",assumed_rebate_life,assumed_rebate))^(Z$5/365)-1)*100) -> -1.5 | AA18: =IF(VLOOKUP($B18, 'Sheet1 - Table (1)'!$C$4:$AK$996, 'Adj Sheet1 - Table (1)'!AA$2, FALSE)="", "", ((1+VLOOKUP($B18, 'Sheet1 - Table (1)'!$C$4:$AK$996, 'Adj Sheet1 - Table (1)'!AA$2, FALSE)/100)*(1+IF($A18="Life",assumed_rebate_life,assumed_rebate))^(AA$5/365)-1)*100) -> 0.97 | AB18: =IF(VLOOKUP($B18, 'Sheet1 - Table (1)'!$C$4:$AK$996, 'Adj Sheet1 - Table (1)'!AB$2, FALSE)="", "", ((1+VLOOKUP($B18, 'Sheet1 - Table (1)'!$C$4:$AK$996, 'Adj Sheet1 - Table (1)'!AB$2, FALSE)/100)*(1+IF($A18="Life",assumed_rebate_life,assumed_rebate))^(AB$5/365)-1)*100) -> -2.56 | AC18: =IF(VLOOKUP($B18, 'Sheet1 - Table (1)'!$C$4:$AK$996, 'Adj Sheet1 - Table (1)'!AC$2, FALSE)="", "", ((1+VLOOKUP($B18, 'Sheet1 - Table (1)'!$C$4:$AK$996, 'Adj Sheet1 - Table (1)'!AC$2, FALSE)/100)*(1+IF($A18="Life",assumed_rebate_life,assumed_rebate))^(AC$5/365)-1)*100) -> -11.49 | AD18: =IF(VLOOKUP($B18, 'Sheet1 - Table (1)'!$C$4:$AK$996, 'Adj Sheet1 - Table (1)'!AD$2, FALSE)="", "", ((1+VLOOKUP($B18, 'Sheet1 - Table (1)'!$C$4:$AK$996, 'Adj Sheet1 - Table (1)'!AD$2, FALSE)/100)*(1+IF($A18="Life",assumed_rebate_life,assumed_rebate))^(AD$5/365)-1)*100) -> 10.32 | AE18: =IF(VLOOKUP($B18, 'Sheet1 - Table (1)'!$C$4:$AK$996, 'Adj Sheet1 - Table (1)'!AE$2, FALSE)="", "", ((1+VLOOKUP($B18, 'Sheet1 - Table (1)'!$C$4:$AK$996, 'Adj Sheet1 - Table (1)'!AE$2, FALSE)/100)*(1+IF($A18="Life",assumed_rebate_life,assumed_rebate))^(AE$5/365)-1)*100) -> -1.04 | AF18: =IF(VLOOKUP($B18, 'Sheet1 - Table (1)'!$C$4:$AK$996, 'Adj Sheet1 - Table (1)'!AF$2, FALSE)="", "", ((1+VLOOKUP($B18, 'Sheet1 - Table (1)'!$C$4:$AK$996, 'Adj Sheet1 - Table (1)'!AF$2, FALSE)/100)*(1+IF($A18="Life",assumed_rebate_life,assumed_rebate))^(AF$5/365)-1)*100) -> -1.1 | AG18: =IF(VLOOKUP($B18, 'Sheet1 - Table (1)'!$C$4:$AK$996, 'Adj Sheet1 - Table (1)'!AG$2, FALSE)="", "", ((1+VLOOKUP($B18, 'Sheet1 - Table (1)'!$C$4:$AK$996, 'Adj Sheet1 - Table (1)'!AG$2, FALSE)/100)*(1+IF($A18="Life",assumed_rebate_life,assumed_rebate))^(AG$5/365)-1)*100) -> -0.54 | AH18: =IF(VLOOKUP($B18, 'Sheet1 - Table (1)'!$C$4:$AK$996, 'Adj Sheet1 - Table (1)'!AH$2, FALSE)="", "", ((1+VLOOKUP($B18, 'Sheet1 - Table (1)'!$C$4:$AK$996, 'Adj Sheet1 - Table (1)'!AH$2, FALSE)/100)*(1+IF($A18="Life",assumed_rebate_life,assumed_rebate))^(AH$5/365)-1)*100) -> 1.43 | AI18: =IF(VLOOKUP($B18, 'Sheet1 - Table (1)'!$C$4:$AK$996, 'Adj Sheet1 - Table (1)'!AI$2, FALSE)="", "", ((1+VLOOKUP($B18, 'Sheet1 - Table (1)'!$C$4:$AK$996, 'Adj Sheet1 - Table (1)'!AI$2, FALSE)/100)*(1+IF($A18="Life",assumed_rebate_life,assumed_rebate))^(AI$5/365)-1)*100) -> 1.48 | AJ18: =IF(VLOOKUP($B18, 'Sheet1 - Table (1)'!$C$4:$AK$996, 'Adj Sheet1 - Table (1)'!AJ$2, FALSE)="", "", ((1+VLOOKUP($B18, 'Sheet1 - Table (1)'!$C$4:$AK$996, 'Adj Sheet1 - Table (1)'!AJ$2, FALSE)/100)*(1+IF($A18="Life",assumed_rebate_life,assumed_rebate))^(AJ$5/365)-1)*100) -> 1.9
A19: Life | B19: ='Sheet1 - Table (1)'!C15 -> 19074018 | C19: =_xlfn.XLOOKUP($B19,'Sheet1 - Table (1)'!$C$7:$C$1048576,'Sheet1 - Table (1)'!$D$7:$D$1048576,"N/A") -> ABI UK - UK Index-Linked Gilts-Life | D19: =IF(VLOOKUP($B19, 'Sheet1 - Table (1)'!$C$4:$AK$996, 'Adj Sheet1 - Table (1)'!D$2, FALSE)="", "", VLOOKUP($B19, 'Sheet1 - Table (1)'!$C$4:$AK$996, 'Adj Sheet1 - Table (1)'!D$2, FALSE)) -> 8.56521 | E19: =IF(VLOOKUP($B19, 'Sheet1 - Table (1)'!$C$4:$AK$996, 'Adj Sheet1 - Table (1)'!E$2, FALSE)="", "", ((1+VLOOKUP($B19, 'Sheet1 - Table (1)'!$C$4:$AK$996, 'Adj Sheet1 - Table (1)'!E$2, FALSE)/100)*(1+IF($A19="Life",assumed_rebate_life,assumed_rebate))^(E$5/365)-1)*100) -> 0.46 | F19: =IF(VLOOKUP($B19, 'Sheet1 - Table (1)'!$C$4:$AK$996, 'Adj Sheet1 - Table (1)'!F$2, FALSE)="", "", ((1+VLOOKUP($B19, 'Sheet1 - Table (1)'!$C$4:$AK$996, 'Adj Sheet1 - Table (1)'!F$2, FALSE)/100)*(1+IF($A19="Life",assumed_rebate_life,assumed_rebate))^(F$5/365)-1)*100) -> 2.26 | G19: =IF(VLOOKUP($B19, 'Sheet1 - Table (1)'!$C$4:$AK$996, 'Adj Sheet1 - Table (1)'!G$2, FALSE)="", "", ((1+VLOOKUP($B19, 'Sheet1 - Table (1)'!$C$4:$AK$996, 'Adj Sheet1 - Table (1)'!G$2, FALSE)/100)*(1+IF($A19="Life",assumed_rebate_life,assumed_rebate))^(G$5/365)-1)*100) -> -7.5 | H19: =IF(VLOOKUP($B19, 'Sheet1 - Table (1)'!$C$4:$AK$996, 'Adj Sheet1 - Table (1)'!H$2, FALSE)="", "", ((1+VLOOKUP($B19, 'Sheet1 - Table (1)'!$C$4:$AK$996, 'Adj Sheet1 - Table (1)'!H$2, FALSE)/100)*(1+IF($A19="Life",assumed_rebate_life,assumed_rebate))^(H$5/365)-1)*100) -> -5.56 | I19: =IF(VLOOKUP($B19, 'Sheet1 - Table (1)'!$C$4:$AK$996, 'Adj Sheet1 - Table (1)'!I$2, FALSE)="", "", ((1+VLOOKUP($B19, 'Sheet1 - Table (1)'!$C$4:$AK$996, 'Adj Sheet1 - Table (1)'!I$2, FALSE)/100)*(1+IF($A19="Life",assumed_rebate_life,assumed_rebate))^(I$5/365)-1)*100) -> -22.7 | J19: =IF(VLOOKUP($B19, 'Sheet1 - Table (1)'!$C$4:$AK$996, 'Adj Sheet1 - Table (1)'!J$2, FALSE)="", "", ((1+VLOOKUP($B19, 'Sheet1 - Table (1)'!$C$4:$AK$996, 'Adj Sheet1 - Table (1)'!J$2, FALSE)/100)*(1+IF($A19="Life",assumed_rebate_life,assumed_rebate))^(J$5/365)-1)*100) -> 2.16 | K19: =IF(VLOOKUP($B19, 'Sheet1 - Table (1)'!$C$4:$AK$996, 'Adj Sheet1 - Table (1)'!K$2, FALSE)="", "", ((1+VLOOKUP($B19, 'Sheet1 - Table (1)'!$C$4:$AK$996, 'Adj Sheet1 - Table (1)'!K$2, FALSE)/100)*(1+IF($A19="Life",assumed_rebate_life,assumed_rebate))^(K$5/365)-1)*100) -> -3.69 | L19: =IF(VLOOKUP($B19, 'Sheet1 - Table (1)'!$C$4:$AK$996, 'Adj Sheet1 - Table (1)'!L$2, FALSE)="", "", ((1+VLOOKUP($B19, 'Sheet1 - Table (1)'!$C$4:$AK$996, 'Adj Sheet1 - Table (1)'!L$2, FALSE)/100)*(1+IF($A19="Life",assumed_rebate_life,assumed_rebate))^(L$5/365)-1)*100) -> -6.74 | M19: =IF(VLOOKUP($B19, 'Sheet1 - Table (1)'!$C$4:$AK$996, 'Adj Sheet1 - Table (1)'!M$2, FALSE)="", "", ((1+VLOOKUP($B19, 'Sheet1 - Table (1)'!$C$4:$AK$996, 'Adj Sheet1 - Table (1)'!M$2, FALSE)/100)*(1+IF($A19="Life",assumed_rebate_life,assumed_rebate))^(M$5/365)-1)*100) -> -1.32 | N19: =IF(VLOOKUP($B19, 'Sheet1 - Table (1)'!$C$4:$AK$996, 'Adj Sheet1 - Table (1)'!N$2, FALSE)="", "", ((1+VLOOKUP($B19, 'Sheet1 - Table (1)'!$C$4:$AK$996, 'Adj Sheet1 - Table (1)'!N$2, FALSE)/100)*(1+IF($A19="Life",assumed_rebate_life,assumed_rebate))^(N$5/365)-1)*100) -> 1.22 | O19: =IF(VLOOKUP($B19, 'Sheet1 - Table (1)'!$C$4:$AK$996, 'Adj Sheet1 - Table (1)'!O$2, FALSE)="", "", ((1+VLOOKUP($B19, 'Sheet1 - Table (1)'!$C$4:$AK$996, 'Adj Sheet1 - Table (1)'!O$2, FALSE)/100)*(1+IF($A19="Life",assumed_rebate_life,assumed_rebate))^(O$5/365)-1)*100) -> -0.11 | P19: =IF(VLOOKUP($B19, 'Sheet1 - Table (1)'!$C$4:$AK$996, 'Adj Sheet1 - Table (1)'!P$2, FALSE)="", "", ((1+VLOOKUP($B19, 'Sheet1 - Table (1)'!$C$4:$AK$996, 'Adj Sheet1 - Table (1)'!P$2, FALSE)/100)*(1+IF($A19="Life",assumed_rebate_life,assumed_rebate))^(P$5/365)-1)*100) -> 1.98 | Q19: =IF(VLOOKUP($B19, 'Sheet1 - Table (1)'!$C$4:$AK$996, 'Adj Sheet1 - Table (1)'!Q$2, FALSE)="", "", ((1+VLOOKUP($B19, 'Sheet1 - Table (1)'!$C$4:$AK$996, 'Adj Sheet1 - Table (1)'!Q$2, FALSE)/100)*(1+IF($A19="Life",assumed_rebate_life,assumed_rebate))^(Q$5/365)-1)*100) -> -7.81 | R19: =IF(VLOOKUP($B19, 'Sheet1 - Table (1)'!$C$4:$AK$996, 'Adj Sheet1 - Table (1)'!R$2, FALSE)="", "", ((1+VLOOKUP($B19, 'Sheet1 - Table (1)'!$C$4:$AK$996, 'Adj Sheet1 - Table (1)'!R$2, FALSE)/100)*(1+IF($A19="Life",assumed_rebate_life,assumed_rebate))^(R$5/365)-1)*100) -> -5.78 | S19: =IF(VLOOKUP($B19, 'Sheet1 - Table (1)'!$C$4:$AK$996, 'Adj Sheet1 - Table (1)'!S$2, FALSE)="", "", ((1+VLOOKUP($B19, 'Sheet1 - Table (1)'!$C$4:$AK$996, 'Adj Sheet1 - Table (1)'!S$2, FALSE)/100)*(1+IF($A19="Life",assumed_rebate_life,assumed_rebate))^(S$5/365)-1)*100) -> -22.08 | T19: =IF(VLOOKUP($B19, 'Sheet1 - Table (1)'!$C$4:$AK$996, 'Adj Sheet1 - Table (1)'!T$2, FALSE)="", "", ((1+VLOOKUP($B19, 'Sheet1 - Table (1)'!$C$4:$AK$996, 'Adj Sheet1 - Table (1)'!T$2, FALSE)/100)*(1+IF($A19="Life",assumed_rebate_life,assumed_rebate))^(T$5/365)-1)*100) -> 1.11 | U19: =IF(VLOOKUP($B19, 'Sheet1 - Table (1)'!$C$4:$AK$996, 'Adj Sheet1 - Table (1)'!U$2, FALSE)="", "", ((1+VLOOKUP($B19, 'Sheet1 - Table (1)'!$C$4:$AK$996, 'Adj Sheet1 - Table (1)'!U$2, FALSE)/100)*(1+IF($A19="Life",assumed_rebate_life,assumed_rebate))^(U$5/365)-1)*100) -> -3.96 | V19: =IF(VLOOKUP($B19, 'Sheet1 - Table (1)'!$C$4:$AK$996, 'Adj Sheet1 - Table (1)'!V$2, FALSE)="", "", ((1+VLOOKUP($B19, 'Sheet1 - Table (1)'!$C$4:$AK$996, 'Adj Sheet1 - Table (1)'!V$2, FALSE)/100)*(1+IF($A19="Life",assumed_rebate_life,assumed_rebate))^(V$5/365)-1)*100) -> -6.94 | W19: =IF(VLOOKUP($B19, 'Sheet1 - Table (1)'!$C$4:$AK$996, 'Adj Sheet1 - Table (1)'!W$2, FALSE)="", "", ((1+VLOOKUP($B19, 'Sheet1 - Table (1)'!$C$4:$AK$996, 'Adj Sheet1 - Table (1)'!W$2, FALSE)/100)*(1+IF($A19="Life",assumed_rebate_life,assumed_rebate))^(W$5/365)-1)*100) -> -1.38 | X19: =IF(VLOOKUP($B19, 'Sheet1 - Table (1)'!$C$4:$AK$996, 'Adj Sheet1 - Table (1)'!X$2, FALSE)="", "", ((1+VLOOKUP($B19, 'Sheet1 - Table (1)'!$C$4:$AK$996, 'Adj Sheet1 - Table (1)'!X$2, FALSE)/100)*(1+IF($A19="Life",assumed_rebate_life,assumed_rebate))^(X$5/365)-1)*100) -> 1.18 | Y19: =IF(VLOOKUP($B19, 'Sheet1 - Table (1)'!$C$4:$AK$996, 'Adj Sheet1 - Table (1)'!Y$2, FALSE)="", "", ((1+VLOOKUP($B19, 'Sheet1 - Table (1)'!$C$4:$AK$996, 'Adj Sheet1 - Table (1)'!Y$2, FALSE)/100)*(1+IF($A19="Life",assumed_rebate_life,assumed_rebate))^(Y$5/365)-1)*100) -> -0.44 | Z19: =IF(VLOOKUP($B19, 'Sheet1 - Table (1)'!$C$4:$AK$996, 'Adj Sheet1 - Table (1)'!Z$2, FALSE)="", "", ((1+VLOOKUP($B19, 'Sheet1 - Table (1)'!$C$4:$AK$996, 'Adj Sheet1 - Table (1)'!Z$2, FALSE)/100)*(1+IF($A19="Life",assumed_rebate_life,assumed_rebate))^(Z$5/365)-1)*100) -> 1.86 | AA19: =IF(VLOOKUP($B19, 'Sheet1 - Table (1)'!$C$4:$AK$996, 'Adj Sheet1 - Table (1)'!AA$2, FALSE)="", "", ((1+VLOOKUP($B19, 'Sheet1 - Table (1)'!$C$4:$AK$996, 'Adj Sheet1 - Table (1)'!AA$2, FALSE)/100)*(1+IF($A19="Life",assumed_rebate_life,assumed_rebate))^(AA$5/365)-1)*100) -> -8.25 | AB19: =IF(VLOOKUP($B19, 'Sheet1 - Table (1)'!$C$4:$AK$996, 'Adj Sheet1 - Table (1)'!AB$2, FALSE)="", "", ((1+VLOOKUP($B19, 'Sheet1 - Table (1)'!$C$4:$AK$996, 'Adj Sheet1 - Table (1)'!AB$2, FALSE)/100)*(1+IF($A19="Life",assumed_rebate_life,assumed_rebate))^(AB$5/365)-1)*100) -> -4.39 | AC19: =IF(VLOOKUP($B19, 'Sheet1 - Table (1)'!$C$4:$AK$996, 'Adj Sheet1 - Table (1)'!AC$2, FALSE)="", "", ((1+VLOOKUP($B19, 'Sheet1 - Table (1)'!$C$4:$AK$996, 'Adj Sheet1 - Table (1)'!AC$2, FALSE)/100)*(1+IF($A19="Life",assumed_rebate_life,assumed_rebate))^(AC$5/365)-1)*100) -> -23.43 | AD19: =IF(VLOOKUP($B19, 'Sheet1 - Table (1)'!$C$4:$AK$996, 'Adj Sheet1 - Table (1)'!AD$2, FALSE)="", "", ((1+VLOOKUP($B19, 'Sheet1 - Table (1)'!$C$4:$AK$996, 'Adj Sheet1 - Table (1)'!AD$2, FALSE)/100)*(1+IF($A19="Life",assumed_rebate_life,assumed_rebate))^(AD$5/365)-1)*100) -> 0.4 | AE19: =IF(VLOOKUP($B19, 'Sheet1 - Table (1)'!$C$4:$AK$996, 'Adj Sheet1 - Table (1)'!AE$2, FALSE)="", "", ((1+VLOOKUP($B19, 'Sheet1 - Table (1)'!$C$4:$AK$996, 'Adj Sheet1 - Table (1)'!AE$2, FALSE)/100)*(1+IF($A19="Life",assumed_rebate_life,assumed_rebate))^(AE$5/365)-1)*100) -> -3.69 | AF19: =IF(VLOOKUP($B19, 'Sheet1 - Table (1)'!$C$4:$AK$996, 'Adj Sheet1 - Table (1)'!AF$2, FALSE)="", "", ((1+VLOOKUP($B19, 'Sheet1 - Table (1)'!$C$4:$AK$996, 'Adj Sheet1 - Table (1)'!AF$2, FALSE)/100)*(1+IF($A19="Life",assumed_rebate_life,assumed_rebate))^(AF$5/365)-1)*100) -> -7.24 | AG19: =IF(VLOOKUP($B19, 'Sheet1 - Table (1)'!$C$4:$AK$996, 'Adj Sheet1 - Table (1)'!AG$2, FALSE)="", "", ((1+VLOOKUP($B19, 'Sheet1 - Table (1)'!$C$4:$AK$996, 'Adj Sheet1 - Table (1)'!AG$2, FALSE)/100)*(1+IF($A19="Life",assumed_rebate_life,assumed_rebate))^(AG$5/365)-1)*100) -> -1.43 | AH19: =IF(VLOOKUP($B19, 'Sheet1 - Table (1)'!$C$4:$AK$996, 'Adj Sheet1 - Table (1)'!AH$2, FALSE)="", "", ((1+VLOOKUP($B19, 'Sheet1 - Table (1)'!$C$4:$AK$996, 'Adj Sheet1 - Table (1)'!AH$2, FALSE)/100)*(1+IF($A19="Life",assumed_rebate_life,assumed_rebate))^(AH$5/365)-1)*100) -> 1.14 | AI19: =IF(VLOOKUP($B19, 'Sheet1 - Table (1)'!$C$4:$AK$996, 'Adj Sheet1 - Table (1)'!AI$2, FALSE)="", "", ((1+VLOOKUP($B19, 'Sheet1 - Table (1)'!$C$4:$AK$996, 'Adj Sheet1 - Table (1)'!AI$2, FALSE)/100)*(1+IF($A19="Life",assumed_rebate_life,assumed_rebate))^(AI$5/365)-1)*100) -> 0.3 | AJ19: =IF(VLOOKUP($B19, 'Sheet1 - Table (1)'!$C$4:$AK$996, 'Adj Sheet1 - Table (1)'!AJ$2, FALSE)="", "", ((1+VLOOKUP($B19, 'Sheet1 - Table (1)'!$C$4:$AK$996, 'Adj Sheet1 - Table (1)'!AJ$2, FALSE)/100)*(1+IF($A19="Life",assumed_rebate_life,assumed_rebate))^(AJ$5/365)-1)*100) -> 1.69
A20: =IF(RIGHT(C20,4)="Life","Life","Pension") -> Pension | B20: ='Sheet1 - Table (1)'!C16 -> 1000105407 | C20: =_xlfn.XLOOKUP($B20,'Sheet1 - Table (1)'!$C$7:$C$1048576,'Sheet1 - Table (1)'!$D$7:$D$1048576,"N/A") -> Governed Portfolio Conservative | D20: =IF(VLOOKUP($B20, 'Sheet1 - Table (1)'!$C$4:$AK$996, 'Adj Sheet1 - Table (1)'!D$2, FALSE)="", "", VLOOKUP($B20, 'Sheet1 - Table (1)'!$C$4:$AK$996, 'Adj Sheet1 - Table (1)'!D$2, FALSE)) -> 4.60004 | E20: =IF(VLOOKUP($B20, 'Sheet1 - Table (1)'!$C$4:$AK$996, 'Adj Sheet1 - Table (1)'!E$2, FALSE)="", "", ((1+VLOOKUP($B20, 'Sheet1 - Table (1)'!$C$4:$AK$996, 'Adj Sheet1 - Table (1)'!E$2, FALSE)/100)*(1+IF($A20="Life",assumed_rebate_life,assumed_rebate))^(E$5/365)-1)*100) -> 0.4 | F20: =IF(VLOOKUP($B20, 'Sheet1 - Table (1)'!$C$4:$AK$996, 'Adj Sheet1 - Table (1)'!F$2, FALSE)="", "", ((1+VLOOKUP($B20, 'Sheet1 - Table (1)'!$C$4:$AK$996, 'Adj Sheet1 - Table (1)'!F$2, FALSE)/100)*(1+IF($A20="Life",assumed_rebate_life,assumed_rebate))^(F$5/365)-1)*100) -> 9.04 | G20: =IF(VLOOKUP($B20, 'Sheet1 - Table (1)'!$C$4:$AK$996, 'Adj Sheet1 - Table (1)'!G$2, FALSE)="", "", ((1+VLOOKUP($B20, 'Sheet1 - Table (1)'!$C$4:$AK$996, 'Adj Sheet1 - Table (1)'!G$2, FALSE)/100)*(1+IF($A20="Life",assumed_rebate_life,assumed_rebate))^(G$5/365)-1)*100) -> 3.3 | H20: =IF(VLOOKUP($B20, 'Sheet1 - Table (1)'!$C$4:$AK$996, 'Adj Sheet1 - Table (1)'!H$2, FALSE)="", "", ((1+VLOOKUP($B20, 'Sheet1 - Table (1)'!$C$4:$AK$996, 'Adj Sheet1 - Table (1)'!H$2, FALSE)/100)*(1+IF($A20="Life",assumed_rebate_life,assumed_rebate))^(H$5/365)-1)*100) -> 7.8 | I20: =IF(VLOOKUP($B20, 'Sheet1 - Table (1)'!$C$4:$AK$996, 'Adj Sheet1 - Table (1)'!I$2, FALSE)="", "", ((1+VLOOKUP($B20, 'Sheet1 - Table (1)'!$C$4:$AK$996, 'Adj Sheet1 - Table (1)'!I$2, FALSE)/100)*(1+IF($A20="Life",assumed_rebate_life,assumed_rebate))^(I$5/365)-1)*100) -> -4.55 | J20: =IF(VLOOKUP($B20, 'Sheet1 - Table (1)'!$C$4:$AK$996, 'Adj Sheet1 - Table (1)'!J$2, FALSE)="", "", ((1+VLOOKUP($B20, 'Sheet1 - Table (1)'!$C$4:$AK$996, 'Adj Sheet1 - Table (1)'!J$2, FALSE)/100)*(1+IF($A20="Life",assumed_rebate_life,assumed_rebate))^(J$5/365)-1)*100) -> 7.96 | K20: =IF(VLOOKUP($B20, 'Sheet1 - Table (1)'!$C$4:$AK$996, 'Adj Sheet1 - Table (1)'!K$2, FALSE)="", "", ((1+VLOOKUP($B20, 'Sheet1 - Table (1)'!$C$4:$AK$996, 'Adj Sheet1 - Table (1)'!K$2, FALSE)/100)*(1+IF($A20="Life",assumed_rebate_life,assumed_rebate))^(K$5/365)-1)*100) -> 6.68 | L20: =IF(VLOOKUP($B20, 'Sheet1 - Table (1)'!$C$4:$AK$996, 'Adj Sheet1 - Table (1)'!L$2, FALSE)="", "", ((1+VLOOKUP($B20, 'Sheet1 - Table (1)'!$C$4:$AK$996, 'Adj Sheet1 - Table (1)'!L$2, FALSE)/100)*(1+IF($A20="Life",assumed_rebate_life,assumed_rebate))^(L$5/365)-1)*100) -> 4.58 | M20: =IF(VLOOKUP($B20, 'Sheet1 - Table (1)'!$C$4:$AK$996, 'Adj Sheet1 - Table (1)'!M$2, FALSE)="", "", ((1+VLOOKUP($B20, 'Sheet1 - Table (1)'!$C$4:$AK$996, 'Adj Sheet1 - Table (1)'!M$2, FALSE)/100)*(1+IF($A20="Life",assumed_rebate_life,assumed_rebate))^(M$5/365)-1)*100) -> 4.49 | N20: =IF(VLOOKUP($B20, 'Sheet1 - Table (1)'!$C$4:$AK$996, 'Adj Sheet1 - Table (1)'!N$2, FALSE)="", "", ((1+VLOOKUP($B20, 'Sheet1 - Table (1)'!$C$4:$AK$996, 'Adj Sheet1 - Table (1)'!N$2, FALSE)/100)*(1+IF($A20="Life",assumed_rebate_life,assumed_rebate))^(N$5/365)-1)*100) -> 4.78 | O20: =IF(VLOOKUP($B20, 'Sheet1 - Table (1)'!$C$4:$AK$996, 'Adj Sheet1 - Table (1)'!O$2, FALSE)="", "", ((1+VLOOKUP($B20, 'Sheet1 - Table (1)'!$C$4:$AK$996, 'Adj Sheet1 - Table (1)'!O$2, FALSE)/100)*(1+IF($A20="Life",assumed_rebate_life,assumed_rebate))^(O$5/365)-1)*100) -> 0.24 | P20: =IF(VLOOKUP($B20, 'Sheet1 - Table (1)'!$C$4:$AK$996, 'Adj Sheet1 - Table (1)'!P$2, FALSE)="", "", ((1+VLOOKUP($B20, 'Sheet1 - Table (1)'!$C$4:$AK$996, 'Adj Sheet1 - Table (1)'!P$2, FALSE)/100)*(1+IF($A20="Life",assumed_rebate_life,assumed_rebate))^(P$5/365)-1)*100) -> 8.16 | Q20: =IF(VLOOKUP($B20, 'Sheet1 - Table (1)'!$C$4:$AK$996, 'Adj Sheet1 - Table (1)'!Q$2, FALSE)="", "", ((1+VLOOKUP($B20, 'Sheet1 - Table (1)'!$C$4:$AK$996, 'Adj Sheet1 - Table (1)'!Q$2, FALSE)/100)*(1+IF($A20="Life",assumed_rebate_life,assumed_rebate))^(Q$5/365)-1)*100) -> 3.94 | R20: =IF(VLOOKUP($B20, 'Sheet1 - Table (1)'!$C$4:$AK$996, 'Adj Sheet1 - Table (1)'!R$2, FALSE)="", "", ((1+VLOOKUP($B20, 'Sheet1 - Table (1)'!$C$4:$AK$996, 'Adj Sheet1 - Table (1)'!R$2, FALSE)/100)*(1+IF($A20="Life",assumed_rebate_life,assumed_rebate))^(R$5/365)-1)*100) -> 7.72 | S20: =IF(VLOOKUP($B20, 'Sheet1 - Table (1)'!$C$4:$AK$996, 'Adj Sheet1 - Table (1)'!S$2, FALSE)="", "", ((1+VLOOKUP($B20, 'Sheet1 - Table (1)'!$C$4:$AK$996, 'Adj Sheet1 - Table (1)'!S$2, FALSE)/100)*(1+IF($A20="Life",assumed_rebate_life,assumed_rebate))^(S$5/365)-1)*100) -> -4.24 | T20: =IF(VLOOKUP($B20, 'Sheet1 - Table (1)'!$C$4:$AK$996, 'Adj Sheet1 - Table (1)'!T$2, FALSE)="", "", ((1+VLOOKUP($B20, 'Sheet1 - Table (1)'!$C$4:$AK$996, 'Adj Sheet1 - Table (1)'!T$2, FALSE)/100)*(1+IF($A20="Life",assumed_rebate_life,assumed_rebate))^(T$5/365)-1)*100) -> 7.66 | U20: =IF(VLOOKUP($B20, 'Sheet1 - Table (1)'!$C$4:$AK$996, 'Adj Sheet1 - Table (1)'!U$2, FALSE)="", "", ((1+VLOOKUP($B20, 'Sheet1 - Table (1)'!$C$4:$AK$996, 'Adj Sheet1 - Table (1)'!U$2, FALSE)/100)*(1+IF($A20="Life",assumed_rebate_life,assumed_rebate))^(U$5/365)-1)*100) -> 6.59 | V20: =IF(VLOOKUP($B20, 'Sheet1 - Table (1)'!$C$4:$AK$996, 'Adj Sheet1 - Table (1)'!V$2, FALSE)="", "", ((1+VLOOKUP($B20, 'Sheet1 - Table (1)'!$C$4:$AK$996, 'Adj Sheet1 - Table (1)'!V$2, FALSE)/100)*(1+IF($A20="Life",assumed_rebate_life,assumed_rebate))^(V$5/365)-1)*100) -> 4.54 | W20: =IF(VLOOKUP($B20, 'Sheet1 - Table (1)'!$C$4:$AK$996, 'Adj Sheet1 - Table (1)'!W$2, FALSE)="", "", ((1+VLOOKUP($B20, 'Sheet1 - Table (1)'!$C$4:$AK$996, 'Adj Sheet1 - Table (1)'!W$2, FALSE)/100)*(1+IF($A20="Life",assumed_rebate_life,assumed_rebate))^(W$5/365)-1)*100) -> 4.47 | X20: =IF(VLOOKUP($B20, 'Sheet1 - Table (1)'!$C$4:$AK$996, 'Adj Sheet1 - Table (1)'!X$2, FALSE)="", "", ((1+VLOOKUP($B20, 'Sheet1 - Table (1)'!$C$4:$AK$996, 'Adj Sheet1 - Table (1)'!X$2, FALSE)/100)*(1+IF($A20="Life",assumed_rebate_life,assumed_rebate))^(X$5/365)-1)*100) -> 4.77 | Y20: =IF(VLOOKUP($B20, 'Sheet1 - Table (1)'!$C$4:$AK$996, 'Adj Sheet1 - Table (1)'!Y$2, FALSE)="", "", ((1+VLOOKUP($B20, 'Sheet1 - Table (1)'!$C$4:$AK$996, 'Adj Sheet1 - Table (1)'!Y$2, FALSE)/100)*(1+IF($A20="Life",assumed_rebate_life,assumed_rebate))^(Y$5/365)-1)*100) -> -0.11 | Z20: =IF(VLOOKUP($B20, 'Sheet1 - Table (1)'!$C$4:$AK$996, 'Adj Sheet1 - Table (1)'!Z$2, FALSE)="", "", ((1+VLOOKUP($B20, 'Sheet1 - Table (1)'!$C$4:$AK$996, 'Adj Sheet1 - Table (1)'!Z$2, FALSE)/100)*(1+IF($A20="Life",assumed_rebate_life,assumed_rebate))^(Z$5/365)-1)*100) -> 7.71 | AA20: =IF(VLOOKUP($B20, 'Sheet1 - Table (1)'!$C$4:$AK$996, 'Adj Sheet1 - Table (1)'!AA$2, FALSE)="", "", ((1+VLOOKUP($B20, 'Sheet1 - Table (1)'!$C$4:$AK$996, 'Adj Sheet1 - Table (1)'!AA$2, FALSE)/100)*(1+IF($A20="Life",assumed_rebate_life,assumed_rebate))^(AA$5/365)-1)*100) -> 4.09 | AB20: =IF(VLOOKUP($B20, 'Sheet1 - Table (1)'!$C$4:$AK$996, 'Adj Sheet1 - Table (1)'!AB$2, FALSE)="", "", ((1+VLOOKUP($B20, 'Sheet1 - Table (1)'!$C$4:$AK$996, 'Adj Sheet1 - Table (1)'!AB$2, FALSE)/100)*(1+IF($A20="Life",assumed_rebate_life,assumed_rebate))^(AB$5/365)-1)*100) -> 8.21 | AC20: =IF(VLOOKUP($B20, 'Sheet1 - Table (1)'!$C$4:$AK$996, 'Adj Sheet1 - Table (1)'!AC$2, FALSE)="", "", ((1+VLOOKUP($B20, 'Sheet1 - Table (1)'!$C$4:$AK$996, 'Adj Sheet1 - Table (1)'!AC$2, FALSE)/100)*(1+IF($A20="Life",assumed_rebate_life,assumed_rebate))^(AC$5/365)-1)*100) -> -4.72 | AD20: =IF(VLOOKUP($B20, 'Sheet1 - Table (1)'!$C$4:$AK$996, 'Adj Sheet1 - Table (1)'!AD$2, FALSE)="", "", ((1+VLOOKUP($B20, 'Sheet1 - Table (1)'!$C$4:$AK$996, 'Adj Sheet1 - Table (1)'!AD$2, FALSE)/100)*(1+IF($A20="Life",assumed_rebate_life,assumed_rebate))^(AD$5/365)-1)*100) -> 7.74 | AE20: =IF(VLOOKUP($B20, 'Sheet1 - Table (1)'!$C$4:$AK$996, 'Adj Sheet1 - Table (1)'!AE$2, FALSE)="", "", ((1+VLOOKUP($B20, 'Sheet1 - Table (1)'!$C$4:$AK$996, 'Adj Sheet1 - Table (1)'!AE$2, FALSE)/100)*(1+IF($A20="Life",assumed_rebate_life,assumed_rebate))^(AE$5/365)-1)*100) -> 6.66 | AF20: =IF(VLOOKUP($B20, 'Sheet1 - Table (1)'!$C$4:$AK$996, 'Adj Sheet1 - Table (1)'!AF$2, FALSE)="", "", ((1+VLOOKUP($B20, 'Sheet1 - Table (1)'!$C$4:$AK$996, 'Adj Sheet1 - Table (1)'!AF$2, FALSE)/100)*(1+IF($A20="Life",assumed_rebate_life,assumed_rebate))^(AF$5/365)-1)*100) -> 4.49 | AG20: =IF(VLOOKUP($B20, 'Sheet1 - Table (1)'!$C$4:$AK$996, 'Adj Sheet1 - Table (1)'!AG$2, FALSE)="", "", ((1+VLOOKUP($B20, 'Sheet1 - Table (1)'!$C$4:$AK$996, 'Adj Sheet1 - Table (1)'!AG$2, FALSE)/100)*(1+IF($A20="Life",assumed_rebate_life,assumed_rebate))^(AG$5/365)-1)*100) -> 4.48 | AH20: =IF(VLOOKUP($B20, 'Sheet1 - Table (1)'!$C$4:$AK$996, 'Adj Sheet1 - Table (1)'!AH$2, FALSE)="", "", ((1+VLOOKUP($B20, 'Sheet1 - Table (1)'!$C$4:$AK$996, 'Adj Sheet1 - Table (1)'!AH$2, FALSE)/100)*(1+IF($A20="Life",assumed_rebate_life,assumed_rebate))^(AH$5/365)-1)*100) -> 4.76 | AI20: =IF(VLOOKUP($B20, 'Sheet1 - Table (1)'!$C$4:$AK$996, 'Adj Sheet1 - Table (1)'!AI$2, FALSE)="", "", ((1+VLOOKUP($B20, 'Sheet1 - Table (1)'!$C$4:$AK$996, 'Adj Sheet1 - Table (1)'!AI$2, FALSE)/100)*(1+IF($A20="Life",assumed_rebate_life,assumed_rebate))^(AI$5/365)-1)*100) -> 4.81 | AJ20: =IF(VLOOKUP($B20, 'Sheet1 - Table (1)'!$C$4:$AK$996, 'Adj Sheet1 - Table (1)'!AJ$2, FALSE)="", "", ((1+VLOOKUP($B20, 'Sheet1 - Table (1)'!$C$4:$AK$996, 'Adj Sheet1 - Table (1)'!AJ$2, FALSE)/100)*(1+IF($A20="Life",assumed_rebate_life,assumed_rebate))^(AJ$5/365)-1)*100) -> 5.62
A21: Pension | B21: ='Sheet1 - Table (1)'!C17 -> 1000110752 | C21: =_xlfn.XLOOKUP($B21,'Sheet1 - Table (1)'!$C$7:$C$1048576,'Sheet1 - Table (1)'!$D$7:$D$1048576,"N/A") -> Governed Portfolio Conservative (Active) (TLS-6) | D21: =IF(VLOOKUP($B21, 'Sheet1 - Table (1)'!$C$4:$AK$996, 'Adj Sheet1 - Table (1)'!D$2, FALSE)="", "", VLOOKUP($B21, 'Sheet1 - Table (1)'!$C$4:$AK$996, 'Adj Sheet1 - Table (1)'!D$2, FALSE)) -> 5.27453 | E21: =IF(VLOOKUP($B21, 'Sheet1 - Table (1)'!$C$4:$AK$996, 'Adj Sheet1 - Table (1)'!E$2, FALSE)="", "", ((1+VLOOKUP($B21, 'Sheet1 - Table (1)'!$C$4:$AK$996, 'Adj Sheet1 - Table (1)'!E$2, FALSE)/100)*(1+IF($A21="Life",assumed_rebate_life,assumed_rebate))^(E$5/365)-1)*100) -> -0.48 | F21: =IF(VLOOKUP($B21, 'Sheet1 - Table (1)'!$C$4:$AK$996, 'Adj Sheet1 - Table (1)'!F$2, FALSE)="", "", ((1+VLOOKUP($B21, 'Sheet1 - Table (1)'!$C$4:$AK$996, 'Adj Sheet1 - Table (1)'!F$2, FALSE)/100)*(1+IF($A21="Life",assumed_rebate_life,assumed_rebate))^(F$5/365)-1)*100) -> 8.17 | G21: =IF(VLOOKUP($B21, 'Sheet1 - Table (1)'!$C$4:$AK$996, 'Adj Sheet1 - Table (1)'!G$2, FALSE)="", "", ((1+VLOOKUP($B21, 'Sheet1 - Table (1)'!$C$4:$AK$996, 'Adj Sheet1 - Table (1)'!G$2, FALSE)/100)*(1+IF($A21="Life",assumed_rebate_life,assumed_rebate))^(G$5/365)-1)*100) -> 1.95 | H21: =IF(VLOOKUP($B21, 'Sheet1 - Table (1)'!$C$4:$AK$996, 'Adj Sheet1 - Table (1)'!H$2, FALSE)="", "", ((1+VLOOKUP($B21, 'Sheet1 - Table (1)'!$C$4:$AK$996, 'Adj Sheet1 - Table (1)'!H$2, FALSE)/100)*(1+IF($A21="Life",assumed_rebate_life,assumed_rebate))^(H$5/365)-1)*100) -> 7.4 | I21: =IF(VLOOKUP($B21, 'Sheet1 - Table (1)'!$C$4:$AK$996, 'Adj Sheet1 - Table (1)'!I$2, FALSE)="", "", ((1+VLOOKUP($B21, 'Sheet1 - Table (1)'!$C$4:$AK$996, 'Adj Sheet1 - Table (1)'!I$2, FALSE)/100)*(1+IF($A21="Life",assumed_rebate_life,assumed_rebate))^(I$5/365)-1)*100) -> -6.38 | J21: =IF(VLOOKUP($B21, 'Sheet1 - Table (1)'!$C$4:$AK$996, 'Adj Sheet1 - Table (1)'!J$2, FALSE)="", "", ((1+VLOOKUP($B21, 'Sheet1 - Table (1)'!$C$4:$AK$996, 'Adj Sheet1 - Table (1)'!J$2, FALSE)/100)*(1+IF($A21="Life",assumed_rebate_life,assumed_rebate))^(J$5/365)-1)*100) -> 2.99 | K21: =IF(VLOOKUP($B21, 'Sheet1 - Table (1)'!$C$4:$AK$996, 'Adj Sheet1 - Table (1)'!K$2, FALSE)="", "", ((1+VLOOKUP($B21, 'Sheet1 - Table (1)'!$C$4:$AK$996, 'Adj Sheet1 - Table (1)'!K$2, FALSE)/100)*(1+IF($A21="Life",assumed_rebate_life,assumed_rebate))^(K$5/365)-1)*100) -> 5.8 | L21: =IF(VLOOKUP($B21, 'Sheet1 - Table (1)'!$C$4:$AK$996, 'Adj Sheet1 - Table (1)'!L$2, FALSE)="", "", ((1+VLOOKUP($B21, 'Sheet1 - Table (1)'!$C$4:$AK$996, 'Adj Sheet1 - Table (1)'!L$2, FALSE)/100)*(1+IF($A21="Life",assumed_rebate_life,assumed_rebate))^(L$5/365)-1)*100) -> 2.69 | M21: =IF(VLOOKUP($B21, 'Sheet1 - Table (1)'!$C$4:$AK$996, 'Adj Sheet1 - Table (1)'!M$2, FALSE)="", "", ((1+VLOOKUP($B21, 'Sheet1 - Table (1)'!$C$4:$AK$996, 'Adj Sheet1 - Table (1)'!M$2, FALSE)/100)*(1+IF($A21="Life",assumed_rebate_life,assumed_rebate))^(M$5/365)-1)*100) -> 3.76 | N21: =IF(VLOOKUP($B21, 'Sheet1 - Table (1)'!$C$4:$AK$996, 'Adj Sheet1 - Table (1)'!N$2, FALSE)="", "", ((1+VLOOKUP($B21, 'Sheet1 - Table (1)'!$C$4:$AK$996, 'Adj Sheet1 - Table (1)'!N$2, FALSE)/100)*(1+IF($A21="Life",assumed_rebate_life,assumed_rebate))^(N$5/365)-1)*100) -> 4.29 | O21: =IF(VLOOKUP($B21, 'Sheet1 - Table (1)'!$C$4:$AK$996, 'Adj Sheet1 - Table (1)'!O$2, FALSE)="", "", ((1+VLOOKUP($B21, 'Sheet1 - Table (1)'!$C$4:$AK$996, 'Adj Sheet1 - Table (1)'!O$2, FALSE)/100)*(1+IF($A21="Life",assumed_rebate_life,assumed_rebate))^(O$5/365)-1)*100) -> -0.56 | P21: =IF(VLOOKUP($B21, 'Sheet1 - Table (1)'!$C$4:$AK$996, 'Adj Sheet1 - Table (1)'!P$2, FALSE)="", "", ((1+VLOOKUP($B21, 'Sheet1 - Table (1)'!$C$4:$AK$996, 'Adj Sheet1 - Table (1)'!P$2, FALSE)/100)*(1+IF($A21="Life",assumed_rebate_life,assumed_rebate))^(P$5/365)-1)*100) -> 7.39 | Q21: =IF(VLOOKUP($B21, 'Sheet1 - Table (1)'!$C$4:$AK$996, 'Adj Sheet1 - Table (1)'!Q$2, FALSE)="", "", ((1+VLOOKUP($B21, 'Sheet1 - Table (1)'!$C$4:$AK$996, 'Adj Sheet1 - Table (1)'!Q$2, FALSE)/100)*(1+IF($A21="Life",assumed_rebate_life,assumed_rebate))^(Q$5/365)-1)*100) -> 2.6 | R21: =IF(VLOOKUP($B21, 'Sheet1 - Table (1)'!$C$4:$AK$996, 'Adj Sheet1 - Table (1)'!R$2, FALSE)="", "", ((1+VLOOKUP($B21, 'Sheet1 - Table (1)'!$C$4:$AK$996, 'Adj Sheet1 - Table (1)'!R$2, FALSE)/100)*(1+IF($A21="Life",assumed_rebate_life,assumed_rebate))^(R$5/365)-1)*100) -> 7.4 | S21: =IF(VLOOKUP($B21, 'Sheet1 - Table (1)'!$C$4:$AK$996, 'Adj Sheet1 - Table (1)'!S$2, FALSE)="", "", ((1+VLOOKUP($B21, 'Sheet1 - Table (1)'!$C$4:$AK$996, 'Adj Sheet1 - Table (1)'!S$2, FALSE)/100)*(1+IF($A21="Life",assumed_rebate_life,assumed_rebate))^(S$5/365)-1)*100) -> -6.27 | T21: =IF(VLOOKUP($B21, 'Sheet1 - Table (1)'!$C$4:$AK$996, 'Adj Sheet1 - Table (1)'!T$2, FALSE)="", "", ((1+VLOOKUP($B21, 'Sheet1 - Table (1)'!$C$4:$AK$996, 'Adj Sheet1 - Table (1)'!T$2, FALSE)/100)*(1+IF($A21="Life",assumed_rebate_life,assumed_rebate))^(T$5/365)-1)*100) -> 2.91 | U21: =IF(VLOOKUP($B21, 'Sheet1 - Table (1)'!$C$4:$AK$996, 'Adj Sheet1 - Table (1)'!U$2, FALSE)="", "", ((1+VLOOKUP($B21, 'Sheet1 - Table (1)'!$C$4:$AK$996, 'Adj Sheet1 - Table (1)'!U$2, FALSE)/100)*(1+IF($A21="Life",assumed_rebate_life,assumed_rebate))^(U$5/365)-1)*100) -> 5.77 | V21: =IF(VLOOKUP($B21, 'Sheet1 - Table (1)'!$C$4:$AK$996, 'Adj Sheet1 - Table (1)'!V$2, FALSE)="", "", ((1+VLOOKUP($B21, 'Sheet1 - Table (1)'!$C$4:$AK$996, 'Adj Sheet1 - Table (1)'!V$2, FALSE)/100)*(1+IF($A21="Life",assumed_rebate_life,assumed_rebate))^(V$5/365)-1)*100) -> 2.68 | W21: =IF(VLOOKUP($B21, 'Sheet1 - Table (1)'!$C$4:$AK$996, 'Adj Sheet1 - Table (1)'!W$2, FALSE)="", "", ((1+VLOOKUP($B21, 'Sheet1 - Table (1)'!$C$4:$AK$996, 'Adj Sheet1 - Table (1)'!W$2, FALSE)/100)*(1+IF($A21="Life",assumed_rebate_life,assumed_rebate))^(W$5/365)-1)*100) -> 3.78 | X21: =IF(VLOOKUP($B21, 'Sheet1 - Table (1)'!$C$4:$AK$996, 'Adj Sheet1 - Table (1)'!X$2, FALSE)="", "", ((1+VLOOKUP($B21, 'Sheet1 - Table (1)'!$C$4:$AK$996, 'Adj Sheet1 - Table (1)'!X$2, FALSE)/100)*(1+IF($A21="Life",assumed_rebate_life,assumed_rebate))^(X$5/365)-1)*100) -> 4.3 | Y21: =IF(VLOOKUP($B21, 'Sheet1 - Table (1)'!$C$4:$AK$996, 'Adj Sheet1 - Table (1)'!Y$2, FALSE)="", "", ((1+VLOOKUP($B21, 'Sheet1 - Table (1)'!$C$4:$AK$996, 'Adj Sheet1 - Table (1)'!Y$2, FALSE)/100)*(1+IF($A21="Life",assumed_rebate_life,assumed_rebate))^(Y$5/365)-1)*100) -> -0.74 | Z21: =IF(VLOOKUP($B21, 'Sheet1 - Table (1)'!$C$4:$AK$996, 'Adj Sheet1 - Table (1)'!Z$2, FALSE)="", "", ((1+VLOOKUP($B21, 'Sheet1 - Table (1)'!$C$4:$AK$996, 'Adj Sheet1 - Table (1)'!Z$2, FALSE)/100)*(1+IF($A21="Life",assumed_rebate_life,assumed_rebate))^(Z$5/365)-1)*100) -> 7.09 | AA21: =IF(VLOOKUP($B21, 'Sheet1 - Table (1)'!$C$4:$AK$996, 'Adj Sheet1 - Table (1)'!AA$2, FALSE)="", "", ((1+VLOOKUP($B21, 'Sheet1 - Table (1)'!$C$4:$AK$996, 'Adj Sheet1 - Table (1)'!AA$2, FALSE)/100)*(1+IF($A21="Life",assumed_rebate_life,assumed_rebate))^(AA$5/365)-1)*100) -> 2.8 | AB21: =IF(VLOOKUP($B21, 'Sheet1 - Table (1)'!$C$4:$AK$996, 'Adj Sheet1 - Table (1)'!AB$2, FALSE)="", "", ((1+VLOOKUP($B21, 'Sheet1 - Table (1)'!$C$4:$AK$996, 'Adj Sheet1 - Table (1)'!AB$2, FALSE)/100)*(1+IF($A21="Life",assumed_rebate_life,assumed_rebate))^(AB$5/365)-1)*100) -> 7.88 | AC21: =IF(VLOOKUP($B21, 'Sheet1 - Table (1)'!$C$4:$AK$996, 'Adj Sheet1 - Table (1)'!AC$2, FALSE)="", "", ((1+VLOOKUP($B21, 'Sheet1 - Table (1)'!$C$4:$AK$996, 'Adj Sheet1 - Table (1)'!AC$2, FALSE)/100)*(1+IF($A21="Life",assumed_rebate_life,assumed_rebate))^(AC$5/365)-1)*100) -> -6.59 | AD21: =IF(VLOOKUP($B21, 'Sheet1 - Table (1)'!$C$4:$AK$996, 'Adj Sheet1 - Table (1)'!AD$2, FALSE)="", "", ((1+VLOOKUP($B21, 'Sheet1 - Table (1)'!$C$4:$AK$996, 'Adj Sheet1 - Table (1)'!AD$2, FALSE)/100)*(1+IF($A21="Life",assumed_rebate_life,assumed_rebate))^(AD$5/365)-1)*100) -> 2.52 | AE21: =IF(VLOOKUP($B21, 'Sheet1 - Table (1)'!$C$4:$AK$996, 'Adj Sheet1 - Table (1)'!AE$2, FALSE)="", "", ((1+VLOOKUP($B21, 'Sheet1 - Table (1)'!$C$4:$AK$996, 'Adj Sheet1 - Table (1)'!AE$2, FALSE)/100)*(1+IF($A21="Life",assumed_rebate_life,assumed_rebate))^(AE$5/365)-1)*100) -> 5.9 | AF21: =IF(VLOOKUP($B21, 'Sheet1 - Table (1)'!$C$4:$AK$996, 'Adj Sheet1 - Table (1)'!AF$2, FALSE)="", "", ((1+VLOOKUP($B21, 'Sheet1 - Table (1)'!$C$4:$AK$996, 'Adj Sheet1 - Table (1)'!AF$2, FALSE)/100)*(1+IF($A21="Life",assumed_rebate_life,assumed_rebate))^(AF$5/365)-1)*100) -> 2.61 | AG21: =IF(VLOOKUP($B21, 'Sheet1 - Table (1)'!$C$4:$AK$996, 'Adj Sheet1 - Table (1)'!AG$2, FALSE)="", "", ((1+VLOOKUP($B21, 'Sheet1 - Table (1)'!$C$4:$AK$996, 'Adj Sheet1 - Table (1)'!AG$2, FALSE)/100)*(1+IF($A21="Life",assumed_rebate_life,assumed_rebate))^(AG$5/365)-1)*100) -> 3.76 | AH21: =IF(VLOOKUP($B21, 'Sheet1 - Table (1)'!$C$4:$AK$996, 'Adj Sheet1 - Table (1)'!AH$2, FALSE)="", "", ((1+VLOOKUP($B21, 'Sheet1 - Table (1)'!$C$4:$AK$996, 'Adj Sheet1 - Table (1)'!AH$2, FALSE)/100)*(1+IF($A21="Life",assumed_rebate_life,assumed_rebate))^(AH$5/365)-1)*100) -> 4.28 | AI21: =IF(VLOOKUP($B21, 'Sheet1 - Table (1)'!$C$4:$AK$996, 'Adj Sheet1 - Table (1)'!AI$2, FALSE)="", "", ((1+VLOOKUP($B21, 'Sheet1 - Table (1)'!$C$4:$AK$996, 'Adj Sheet1 - Table (1)'!AI$2, FALSE)/100)*(1+IF($A21="Life",assumed_rebate_life,assumed_rebate))^(AI$5/365)-1)*100) -> 4.26 | AJ21: =IF(VLOOKUP($B21, 'Sheet1 - Table (1)'!$C$4:$AK$996, 'Adj Sheet1 - Table (1)'!AJ$2, FALSE)="", "", ((1+VLOOKUP($B21, 'Sheet1 - Table (1)'!$C$4:$AK$996, 'Adj Sheet1 - Table (1)'!AJ$2, FALSE)/100)*(1+IF($A21="Life",assumed_rebate_life,assumed_rebate))^(AJ$5/365)-1)*100) -> 5.14
A22: Pension | B22: ='Sheet1 - Table (1)'!C18 -> 1000290992 | C22: =_xlfn.XLOOKUP($B22,'Sheet1 - Table (1)'!$C$7:$C$1048576,'Sheet1 - Table (1)'!$D$7:$D$1048576,"N/A") -> Governed Portfolio Conservative (TLS-AN-6) | D22: =IF(VLOOKUP($B22, 'Sheet1 - Table (1)'!$C$4:$AK$996, 'Adj Sheet1 - Table (1)'!D$2, FALSE)="", "", VLOOKUP($B22, 'Sheet1 - Table (1)'!$C$4:$AK$996, 'Adj Sheet1 - Table (1)'!D$2, FALSE)) -> 4.60239 | E22: =IF(VLOOKUP($B22, 'Sheet1 - Table (1)'!$C$4:$AK$996, 'Adj Sheet1 - Table (1)'!E$2, FALSE)="", "", ((1+VLOOKUP($B22, 'Sheet1 - Table (1)'!$C$4:$AK$996, 'Adj Sheet1 - Table (1)'!E$2, FALSE)/100)*(1+IF($A22="Life",assumed_rebate_life,assumed_rebate))^(E$5/365)-1)*100) -> 0.41 | F22: =IF(VLOOKUP($B22, 'Sheet1 - Table (1)'!$C$4:$AK$996, 'Adj Sheet1 - Table (1)'!F$2, FALSE)="", "", ((1+VLOOKUP($B22, 'Sheet1 - Table (1)'!$C$4:$AK$996, 'Adj Sheet1 - Table (1)'!F$2, FALSE)/100)*(1+IF($A22="Life",assumed_rebate_life,assumed_rebate))^(F$5/365)-1)*100) -> 9.1 | G22: =IF(VLOOKUP($B22, 'Sheet1 - Table (1)'!$C$4:$AK$996, 'Adj Sheet1 - Table (1)'!G$2, FALSE)="", "", ((1+VLOOKUP($B22, 'Sheet1 - Table (1)'!$C$4:$AK$996, 'Adj Sheet1 - Table (1)'!G$2, FALSE)/100)*(1+IF($A22="Life",assumed_rebate_life,assumed_rebate))^(G$5/365)-1)*100) -> 3.3 | H22: =IF(VLOOKUP($B22, 'Sheet1 - Table (1)'!$C$4:$AK$996, 'Adj Sheet1 - Table (1)'!H$2, FALSE)="", "", ((1+VLOOKUP($B22, 'Sheet1 - Table (1)'!$C$4:$AK$996, 'Adj Sheet1 - Table (1)'!H$2, FALSE)/100)*(1+IF($A22="Life",assumed_rebate_life,assumed_rebate))^(H$5/365)-1)*100) -> 7.3 | I22: =IF(VLOOKUP($B22, 'Sheet1 - Table (1)'!$C$4:$AK$996, 'Adj Sheet1 - Table (1)'!I$2, FALSE)="", "", ((1+VLOOKUP($B22, 'Sheet1 - Table (1)'!$C$4:$AK$996, 'Adj Sheet1 - Table (1)'!I$2, FALSE)/100)*(1+IF($A22="Life",assumed_rebate_life,assumed_rebate))^(I$5/365)-1)*100) -> -8.06 | J22: =IF(VLOOKUP($B22, 'Sheet1 - Table (1)'!$C$4:$AK$996, 'Adj Sheet1 - Table (1)'!J$2, FALSE)="", "", ((1+VLOOKUP($B22, 'Sheet1 - Table (1)'!$C$4:$AK$996, 'Adj Sheet1 - Table (1)'!J$2, FALSE)/100)*(1+IF($A22="Life",assumed_rebate_life,assumed_rebate))^(J$5/365)-1)*100) -> 7.35 | K22: =IF(VLOOKUP($B22, 'Sheet1 - Table (1)'!$C$4:$AK$996, 'Adj Sheet1 - Table (1)'!K$2, FALSE)="", "", ((1+VLOOKUP($B22, 'Sheet1 - Table (1)'!$C$4:$AK$996, 'Adj Sheet1 - Table (1)'!K$2, FALSE)/100)*(1+IF($A22="Life",assumed_rebate_life,assumed_rebate))^(K$5/365)-1)*100) -> 6.53 | L22: =IF(VLOOKUP($B22, 'Sheet1 - Table (1)'!$C$4:$AK$996, 'Adj Sheet1 - Table (1)'!L$2, FALSE)="", "", ((1+VLOOKUP($B22, 'Sheet1 - Table (1)'!$C$4:$AK$996, 'Adj Sheet1 - Table (1)'!L$2, FALSE)/100)*(1+IF($A22="Life",assumed_rebate_life,assumed_rebate))^(L$5/365)-1)*100) -> 3.6 | M22: =IF(VLOOKUP($B22, 'Sheet1 - Table (1)'!$C$4:$AK$996, 'Adj Sheet1 - Table (1)'!M$2, FALSE)="", "", ((1+VLOOKUP($B22, 'Sheet1 - Table (1)'!$C$4:$AK$996, 'Adj Sheet1 - Table (1)'!M$2, FALSE)/100)*(1+IF($A22="Life",assumed_rebate_life,assumed_rebate))^(M$5/365)-1)*100) -> 4.31 | N22: =IF(VLOOKUP($B22, 'Sheet1 - Table (1)'!$C$4:$AK$996, 'Adj Sheet1 - Table (1)'!N$2, FALSE)="", "", ((1+VLOOKUP($B22, 'Sheet1 - Table (1)'!$C$4:$AK$996, 'Adj Sheet1 - Table (1)'!N$2, FALSE)/100)*(1+IF($A22="Life",assumed_rebate_life,assumed_rebate))^(N$5/365)-1)*100) ->  | O22: =IF(VLOOKUP($B22, 'Sheet1 - Table (1)'!$C$4:$AK$996, 'Adj Sheet1 - Table (1)'!O$2, FALSE)="", "", ((1+VLOOKUP($B22, 'Sheet1 - Table (1)'!$C$4:$AK$996, 'Adj Sheet1 - Table (1)'!O$2, FALSE)/100)*(1+IF($A22="Life",assumed_rebate_life,assumed_rebate))^(O$5/365)-1)*100) -> 0.25 | P22: =IF(VLOOKUP($B22, 'Sheet1 - Table (1)'!$C$4:$AK$996, 'Adj Sheet1 - Table (1)'!P$2, FALSE)="", "", ((1+VLOOKUP($B22, 'Sheet1 - Table (1)'!$C$4:$AK$996, 'Adj Sheet1 - Table (1)'!P$2, FALSE)/100)*(1+IF($A22="Life",assumed_rebate_life,assumed_rebate))^(P$5/365)-1)*100) -> 8.16 | Q22: =IF(VLOOKUP($B22, 'Sheet1 - Table (1)'!$C$4:$AK$996, 'Adj Sheet1 - Table (1)'!Q$2, FALSE)="", "", ((1+VLOOKUP($B22, 'Sheet1 - Table (1)'!$C$4:$AK$996, 'Adj Sheet1 - Table (1)'!Q$2, FALSE)/100)*(1+IF($A22="Life",assumed_rebate_life,assumed_rebate))^(Q$5/365)-1)*100) -> 3.94 | R22: =IF(VLOOKUP($B22, 'Sheet1 - Table (1)'!$C$4:$AK$996, 'Adj Sheet1 - Table (1)'!R$2, FALSE)="", "", ((1+VLOOKUP($B22, 'Sheet1 - Table (1)'!$C$4:$AK$996, 'Adj Sheet1 - Table (1)'!R$2, FALSE)/100)*(1+IF($A22="Life",assumed_rebate_life,assumed_rebate))^(R$5/365)-1)*100) -> 7.04 | S22: =IF(VLOOKUP($B22, 'Sheet1 - Table (1)'!$C$4:$AK$996, 'Adj Sheet1 - Table (1)'!S$2, FALSE)="", "", ((1+VLOOKUP($B22, 'Sheet1 - Table (1)'!$C$4:$AK$996, 'Adj Sheet1 - Table (1)'!S$2, FALSE)/100)*(1+IF($A22="Life",assumed_rebate_life,assumed_rebate))^(S$5/365)-1)*100) -> -7.5 | T22: =IF(VLOOKUP($B22, 'Sheet1 - Table (1)'!$C$4:$AK$996, 'Adj Sheet1 - Table (1)'!T$2, FALSE)="", "", ((1+VLOOKUP($B22, 'Sheet1 - Table (1)'!$C$4:$AK$996, 'Adj Sheet1 - Table (1)'!T$2, FALSE)/100)*(1+IF($A22="Life",assumed_rebate_life,assumed_rebate))^(T$5/365)-1)*100) -> 6.96 | U22: =IF(VLOOKUP($B22, 'Sheet1 - Table (1)'!$C$4:$AK$996, 'Adj Sheet1 - Table (1)'!U$2, FALSE)="", "", ((1+VLOOKUP($B22, 'Sheet1 - Table (1)'!$C$4:$AK$996, 'Adj Sheet1 - Table (1)'!U$2, FALSE)/100)*(1+IF($A22="Life",assumed_rebate_life,assumed_rebate))^(U$5/365)-1)*100) -> 6.36 | V22: =IF(VLOOKUP($B22, 'Sheet1 - Table (1)'!$C$4:$AK$996, 'Adj Sheet1 - Table (1)'!V$2, FALSE)="", "", ((1+VLOOKUP($B22, 'Sheet1 - Table (1)'!$C$4:$AK$996, 'Adj Sheet1 - Table (1)'!V$2, FALSE)/100)*(1+IF($A22="Life",assumed_rebate_life,assumed_rebate))^(V$5/365)-1)*100) -> 3.55 | W22: =IF(VLOOKUP($B22, 'Sheet1 - Table (1)'!$C$4:$AK$996, 'Adj Sheet1 - Table (1)'!W$2, FALSE)="", "", ((1+VLOOKUP($B22, 'Sheet1 - Table (1)'!$C$4:$AK$996, 'Adj Sheet1 - Table (1)'!W$2, FALSE)/100)*(1+IF($A22="Life",assumed_rebate_life,assumed_rebate))^(W$5/365)-1)*100) -> 4.29 | X22: =IF(VLOOKUP($B22, 'Sheet1 - Table (1)'!$C$4:$AK$996, 'Adj Sheet1 - Table (1)'!X$2, FALSE)="", "", ((1+VLOOKUP($B22, 'Sheet1 - Table (1)'!$C$4:$AK$996, 'Adj Sheet1 - Table (1)'!X$2, FALSE)/100)*(1+IF($A22="Life",assumed_rebate_life,assumed_rebate))^(X$5/365)-1)*100) ->  | Y22: =IF(VLOOKUP($B22, 'Sheet1 - Table (1)'!$C$4:$AK$996, 'Adj Sheet1 - Table (1)'!Y$2, FALSE)="", "", ((1+VLOOKUP($B22, 'Sheet1 - Table (1)'!$C$4:$AK$996, 'Adj Sheet1 - Table (1)'!Y$2, FALSE)/100)*(1+IF($A22="Life",assumed_rebate_life,assumed_rebate))^(Y$5/365)-1)*100) -> -0.08 | Z22: =IF(VLOOKUP($B22, 'Sheet1 - Table (1)'!$C$4:$AK$996, 'Adj Sheet1 - Table (1)'!Z$2, FALSE)="", "", ((1+VLOOKUP($B22, 'Sheet1 - Table (1)'!$C$4:$AK$996, 'Adj Sheet1 - Table (1)'!Z$2, FALSE)/100)*(1+IF($A22="Life",assumed_rebate_life,assumed_rebate))^(Z$5/365)-1)*100) -> 7.71 | AA22: =IF(VLOOKUP($B22, 'Sheet1 - Table (1)'!$C$4:$AK$996, 'Adj Sheet1 - Table (1)'!AA$2, FALSE)="", "", ((1+VLOOKUP($B22, 'Sheet1 - Table (1)'!$C$4:$AK$996, 'Adj Sheet1 - Table (1)'!AA$2, FALSE)/100)*(1+IF($A22="Life",assumed_rebate_life,assumed_rebate))^(AA$5/365)-1)*100) -> 4.12 | AB22: =IF(VLOOKUP($B22, 'Sheet1 - Table (1)'!$C$4:$AK$996, 'Adj Sheet1 - Table (1)'!AB$2, FALSE)="", "", ((1+VLOOKUP($B22, 'Sheet1 - Table (1)'!$C$4:$AK$996, 'Adj Sheet1 - Table (1)'!AB$2, FALSE)/100)*(1+IF($A22="Life",assumed_rebate_life,assumed_rebate))^(AB$5/365)-1)*100) -> 7.58 | AC22: =IF(VLOOKUP($B22, 'Sheet1 - Table (1)'!$C$4:$AK$996, 'Adj Sheet1 - Table (1)'!AC$2, FALSE)="", "", ((1+VLOOKUP($B22, 'Sheet1 - Table (1)'!$C$4:$AK$996, 'Adj Sheet1 - Table (1)'!AC$2, FALSE)/100)*(1+IF($A22="Life",assumed_rebate_life,assumed_rebate))^(AC$5/365)-1)*100) -> -8.02 | AD22: =IF(VLOOKUP($B22, 'Sheet1 - Table (1)'!$C$4:$AK$996, 'Adj Sheet1 - Table (1)'!AD$2, FALSE)="", "", ((1+VLOOKUP($B22, 'Sheet1 - Table (1)'!$C$4:$AK$996, 'Adj Sheet1 - Table (1)'!AD$2, FALSE)/100)*(1+IF($A22="Life",assumed_rebate_life,assumed_rebate))^(AD$5/365)-1)*100) -> 6.76 | AE22: =IF(VLOOKUP($B22, 'Sheet1 - Table (1)'!$C$4:$AK$996, 'Adj Sheet1 - Table (1)'!AE$2, FALSE)="", "", ((1+VLOOKUP($B22, 'Sheet1 - Table (1)'!$C$4:$AK$996, 'Adj Sheet1 - Table (1)'!AE$2, FALSE)/100)*(1+IF($A22="Life",assumed_rebate_life,assumed_rebate))^(AE$5/365)-1)*100) -> 6.46 | AF22: =IF(VLOOKUP($B22, 'Sheet1 - Table (1)'!$C$4:$AK$996, 'Adj Sheet1 - Table (1)'!AF$2, FALSE)="", "", ((1+VLOOKUP($B22, 'Sheet1 - Table (1)'!$C$4:$AK$996, 'Adj Sheet1 - Table (1)'!AF$2, FALSE)/100)*(1+IF($A22="Life",assumed_rebate_life,assumed_rebate))^(AF$5/365)-1)*100) -> 3.45 | AG22: =IF(VLOOKUP($B22, 'Sheet1 - Table (1)'!$C$4:$AK$996, 'Adj Sheet1 - Table (1)'!AG$2, FALSE)="", "", ((1+VLOOKUP($B22, 'Sheet1 - Table (1)'!$C$4:$AK$996, 'Adj Sheet1 - Table (1)'!AG$2, FALSE)/100)*(1+IF($A22="Life",assumed_rebate_life,assumed_rebate))^(AG$5/365)-1)*100) -> 4.3 | AH22: =IF(VLOOKUP($B22, 'Sheet1 - Table (1)'!$C$4:$AK$996, 'Adj Sheet1 - Table (1)'!AH$2, FALSE)="", "", ((1+VLOOKUP($B22, 'Sheet1 - Table (1)'!$C$4:$AK$996, 'Adj Sheet1 - Table (1)'!AH$2, FALSE)/100)*(1+IF($A22="Life",assumed_rebate_life,assumed_rebate))^(AH$5/365)-1)*100) ->  | AI22: =IF(VLOOKUP($B22, 'Sheet1 - Table (1)'!$C$4:$AK$996, 'Adj Sheet1 - Table (1)'!AI$2, FALSE)="", "", ((1+VLOOKUP($B22, 'Sheet1 - Table (1)'!$C$4:$AK$996, 'Adj Sheet1 - Table (1)'!AI$2, FALSE)/100)*(1+IF($A22="Life",assumed_rebate_life,assumed_rebate))^(AI$5/365)-1)*100) -> 4.83 | AJ22: =IF(VLOOKUP($B22, 'Sheet1 - Table (1)'!$C$4:$AK$996, 'Adj Sheet1 - Table (1)'!AJ$2, FALSE)="", "", ((1+VLOOKUP($B22, 'Sheet1 - Table (1)'!$C$4:$AK$996, 'Adj Sheet1 - Table (1)'!AJ$2, FALSE)/100)*(1+IF($A22="Life",assumed_rebate_life,assumed_rebate))^(AJ$5/365)-1)*100) -> 
A23: Pension | B23: ='Sheet1 - Table (1)'!C19 -> 1000290964 | C23: =_xlfn.XLOOKUP($B23,'Sheet1 - Table (1)'!$C$7:$C$1048576,'Sheet1 - Table (1)'!$D$7:$D$1048576,"N/A") -> Governed Portfolio Conservative (TLS-CA-6) | D23: =IF(VLOOKUP($B23, 'Sheet1 - Table (1)'!$C$4:$AK$996, 'Adj Sheet1 - Table (1)'!D$2, FALSE)="", "", VLOOKUP($B23, 'Sheet1 - Table (1)'!$C$4:$AK$996, 'Adj Sheet1 - Table (1)'!D$2, FALSE)) -> 4.5859 | E23: =IF(VLOOKUP($B23, 'Sheet1 - Table (1)'!$C$4:$AK$996, 'Adj Sheet1 - Table (1)'!E$2, FALSE)="", "", ((1+VLOOKUP($B23, 'Sheet1 - Table (1)'!$C$4:$AK$996, 'Adj Sheet1 - Table (1)'!E$2, FALSE)/100)*(1+IF($A23="Life",assumed_rebate_life,assumed_rebate))^(E$5/365)-1)*100) -> 0.41 | F23: =IF(VLOOKUP($B23, 'Sheet1 - Table (1)'!$C$4:$AK$996, 'Adj Sheet1 - Table (1)'!F$2, FALSE)="", "", ((1+VLOOKUP($B23, 'Sheet1 - Table (1)'!$C$4:$AK$996, 'Adj Sheet1 - Table (1)'!F$2, FALSE)/100)*(1+IF($A23="Life",assumed_rebate_life,assumed_rebate))^(F$5/365)-1)*100) -> 9.1 | G23: =IF(VLOOKUP($B23, 'Sheet1 - Table (1)'!$C$4:$AK$996, 'Adj Sheet1 - Table (1)'!G$2, FALSE)="", "", ((1+VLOOKUP($B23, 'Sheet1 - Table (1)'!$C$4:$AK$996, 'Adj Sheet1 - Table (1)'!G$2, FALSE)/100)*(1+IF($A23="Life",assumed_rebate_life,assumed_rebate))^(G$5/365)-1)*100) -> 3.28 | H23: =IF(VLOOKUP($B23, 'Sheet1 - Table (1)'!$C$4:$AK$996, 'Adj Sheet1 - Table (1)'!H$2, FALSE)="", "", ((1+VLOOKUP($B23, 'Sheet1 - Table (1)'!$C$4:$AK$996, 'Adj Sheet1 - Table (1)'!H$2, FALSE)/100)*(1+IF($A23="Life",assumed_rebate_life,assumed_rebate))^(H$5/365)-1)*100) -> 7.8 | I23: =IF(VLOOKUP($B23, 'Sheet1 - Table (1)'!$C$4:$AK$996, 'Adj Sheet1 - Table (1)'!I$2, FALSE)="", "", ((1+VLOOKUP($B23, 'Sheet1 - Table (1)'!$C$4:$AK$996, 'Adj Sheet1 - Table (1)'!I$2, FALSE)/100)*(1+IF($A23="Life",assumed_rebate_life,assumed_rebate))^(I$5/365)-1)*100) -> -4.55 | J23: =IF(VLOOKUP($B23, 'Sheet1 - Table (1)'!$C$4:$AK$996, 'Adj Sheet1 - Table (1)'!J$2, FALSE)="", "", ((1+VLOOKUP($B23, 'Sheet1 - Table (1)'!$C$4:$AK$996, 'Adj Sheet1 - Table (1)'!J$2, FALSE)/100)*(1+IF($A23="Life",assumed_rebate_life,assumed_rebate))^(J$5/365)-1)*100) -> 7.96 | K23: =IF(VLOOKUP($B23, 'Sheet1 - Table (1)'!$C$4:$AK$996, 'Adj Sheet1 - Table (1)'!K$2, FALSE)="", "", ((1+VLOOKUP($B23, 'Sheet1 - Table (1)'!$C$4:$AK$996, 'Adj Sheet1 - Table (1)'!K$2, FALSE)/100)*(1+IF($A23="Life",assumed_rebate_life,assumed_rebate))^(K$5/365)-1)*100) -> 6.69 | L23: =IF(VLOOKUP($B23, 'Sheet1 - Table (1)'!$C$4:$AK$996, 'Adj Sheet1 - Table (1)'!L$2, FALSE)="", "", ((1+VLOOKUP($B23, 'Sheet1 - Table (1)'!$C$4:$AK$996, 'Adj Sheet1 - Table (1)'!L$2, FALSE)/100)*(1+IF($A23="Life",assumed_rebate_life,assumed_rebate))^(L$5/365)-1)*100) -> 4.59 | M23: =IF(VLOOKUP($B23, 'Sheet1 - Table (1)'!$C$4:$AK$996, 'Adj Sheet1 - Table (1)'!M$2, FALSE)="", "", ((1+VLOOKUP($B23, 'Sheet1 - Table (1)'!$C$4:$AK$996, 'Adj Sheet1 - Table (1)'!M$2, FALSE)/100)*(1+IF($A23="Life",assumed_rebate_life,assumed_rebate))^(M$5/365)-1)*100) -> 4.5 | N23: =IF(VLOOKUP($B23, 'Sheet1 - Table (1)'!$C$4:$AK$996, 'Adj Sheet1 - Table (1)'!N$2, FALSE)="", "", ((1+VLOOKUP($B23, 'Sheet1 - Table (1)'!$C$4:$AK$996, 'Adj Sheet1 - Table (1)'!N$2, FALSE)/100)*(1+IF($A23="Life",assumed_rebate_life,assumed_rebate))^(N$5/365)-1)*100) -> 4.79 | O23: =IF(VLOOKUP($B23, 'Sheet1 - Table (1)'!$C$4:$AK$996, 'Adj Sheet1 - Table (1)'!O$2, FALSE)="", "", ((1+VLOOKUP($B23, 'Sheet1 - Table (1)'!$C$4:$AK$996, 'Adj Sheet1 - Table (1)'!O$2, FALSE)/100)*(1+IF($A23="Life",assumed_rebate_life,assumed_rebate))^(O$5/365)-1)*100) -> 0.25 | P23: =IF(VLOOKUP($B23, 'Sheet1 - Table (1)'!$C$4:$AK$996, 'Adj Sheet1 - Table (1)'!P$2, FALSE)="", "", ((1+VLOOKUP($B23, 'Sheet1 - Table (1)'!$C$4:$AK$996, 'Adj Sheet1 - Table (1)'!P$2, FALSE)/100)*(1+IF($A23="Life",assumed_rebate_life,assumed_rebate))^(P$5/365)-1)*100) -> 8.16 | Q23: =IF(VLOOKUP($B23, 'Sheet1 - Table (1)'!$C$4:$AK$996, 'Adj Sheet1 - Table (1)'!Q$2, FALSE)="", "", ((1+VLOOKUP($B23, 'Sheet1 - Table (1)'!$C$4:$AK$996, 'Adj Sheet1 - Table (1)'!Q$2, FALSE)/100)*(1+IF($A23="Life",assumed_rebate_life,assumed_rebate))^(Q$5/365)-1)*100) -> 3.93 | R23: =IF(VLOOKUP($B23, 'Sheet1 - Table (1)'!$C$4:$AK$996, 'Adj Sheet1 - Table (1)'!R$2, FALSE)="", "", ((1+VLOOKUP($B23, 'Sheet1 - Table (1)'!$C$4:$AK$996, 'Adj Sheet1 - Table (1)'!R$2, FALSE)/100)*(1+IF($A23="Life",assumed_rebate_life,assumed_rebate))^(R$5/365)-1)*100) -> 7.72 | S23: =IF(VLOOKUP($B23, 'Sheet1 - Table (1)'!$C$4:$AK$996, 'Adj Sheet1 - Table (1)'!S$2, FALSE)="", "", ((1+VLOOKUP($B23, 'Sheet1 - Table (1)'!$C$4:$AK$996, 'Adj Sheet1 - Table (1)'!S$2, FALSE)/100)*(1+IF($A23="Life",assumed_rebate_life,assumed_rebate))^(S$5/365)-1)*100) -> -4.24 | T23: =IF(VLOOKUP($B23, 'Sheet1 - Table (1)'!$C$4:$AK$996, 'Adj Sheet1 - Table (1)'!T$2, FALSE)="", "", ((1+VLOOKUP($B23, 'Sheet1 - Table (1)'!$C$4:$AK$996, 'Adj Sheet1 - Table (1)'!T$2, FALSE)/100)*(1+IF($A23="Life",assumed_rebate_life,assumed_rebate))^(T$5/365)-1)*100) -> 7.66 | U23: =IF(VLOOKUP($B23, 'Sheet1 - Table (1)'!$C$4:$AK$996, 'Adj Sheet1 - Table (1)'!U$2, FALSE)="", "", ((1+VLOOKUP($B23, 'Sheet1 - Table (1)'!$C$4:$AK$996, 'Adj Sheet1 - Table (1)'!U$2, FALSE)/100)*(1+IF($A23="Life",assumed_rebate_life,assumed_rebate))^(U$5/365)-1)*100) -> 6.58 | V23: =IF(VLOOKUP($B23, 'Sheet1 - Table (1)'!$C$4:$AK$996, 'Adj Sheet1 - Table (1)'!V$2, FALSE)="", "", ((1+VLOOKUP($B23, 'Sheet1 - Table (1)'!$C$4:$AK$996, 'Adj Sheet1 - Table (1)'!V$2, FALSE)/100)*(1+IF($A23="Life",assumed_rebate_life,assumed_rebate))^(V$5/365)-1)*100) -> 4.53 | W23: =IF(VLOOKUP($B23, 'Sheet1 - Table (1)'!$C$4:$AK$996, 'Adj Sheet1 - Table (1)'!W$2, FALSE)="", "", ((1+VLOOKUP($B23, 'Sheet1 - Table (1)'!$C$4:$AK$996, 'Adj Sheet1 - Table (1)'!W$2, FALSE)/100)*(1+IF($A23="Life",assumed_rebate_life,assumed_rebate))^(W$5/365)-1)*100) -> 4.47 | X23: =IF(VLOOKUP($B23, 'Sheet1 - Table (1)'!$C$4:$AK$996, 'Adj Sheet1 - Table (1)'!X$2, FALSE)="", "", ((1+VLOOKUP($B23, 'Sheet1 - Table (1)'!$C$4:$AK$996, 'Adj Sheet1 - Table (1)'!X$2, FALSE)/100)*(1+IF($A23="Life",assumed_rebate_life,assumed_rebate))^(X$5/365)-1)*100) -> 4.77 | Y23: =IF(VLOOKUP($B23, 'Sheet1 - Table (1)'!$C$4:$AK$996, 'Adj Sheet1 - Table (1)'!Y$2, FALSE)="", "", ((1+VLOOKUP($B23, 'Sheet1 - Table (1)'!$C$4:$AK$996, 'Adj Sheet1 - Table (1)'!Y$2, FALSE)/100)*(1+IF($A23="Life",assumed_rebate_life,assumed_rebate))^(Y$5/365)-1)*100) -> -0.08 | Z23: =IF(VLOOKUP($B23, 'Sheet1 - Table (1)'!$C$4:$AK$996, 'Adj Sheet1 - Table (1)'!Z$2, FALSE)="", "", ((1+VLOOKUP($B23, 'Sheet1 - Table (1)'!$C$4:$AK$996, 'Adj Sheet1 - Table (1)'!Z$2, FALSE)/100)*(1+IF($A23="Life",assumed_rebate_life,assumed_rebate))^(Z$5/365)-1)*100) -> 7.71 | AA23: =IF(VLOOKUP($B23, 'Sheet1 - Table (1)'!$C$4:$AK$996, 'Adj Sheet1 - Table (1)'!AA$2, FALSE)="", "", ((1+VLOOKUP($B23, 'Sheet1 - Table (1)'!$C$4:$AK$996, 'Adj Sheet1 - Table (1)'!AA$2, FALSE)/100)*(1+IF($A23="Life",assumed_rebate_life,assumed_rebate))^(AA$5/365)-1)*100) -> 4.11 | AB23: =IF(VLOOKUP($B23, 'Sheet1 - Table (1)'!$C$4:$AK$996, 'Adj Sheet1 - Table (1)'!AB$2, FALSE)="", "", ((1+VLOOKUP($B23, 'Sheet1 - Table (1)'!$C$4:$AK$996, 'Adj Sheet1 - Table (1)'!AB$2, FALSE)/100)*(1+IF($A23="Life",assumed_rebate_life,assumed_rebate))^(AB$5/365)-1)*100) -> 8.21 | AC23: =IF(VLOOKUP($B23, 'Sheet1 - Table (1)'!$C$4:$AK$996, 'Adj Sheet1 - Table (1)'!AC$2, FALSE)="", "", ((1+VLOOKUP($B23, 'Sheet1 - Table (1)'!$C$4:$AK$996, 'Adj Sheet1 - Table (1)'!AC$2, FALSE)/100)*(1+IF($A23="Life",assumed_rebate_life,assumed_rebate))^(AC$5/365)-1)*100) -> -4.72 | AD23: =IF(VLOOKUP($B23, 'Sheet1 - Table (1)'!$C$4:$AK$996, 'Adj Sheet1 - Table (1)'!AD$2, FALSE)="", "", ((1+VLOOKUP($B23, 'Sheet1 - Table (1)'!$C$4:$AK$996, 'Adj Sheet1 - Table (1)'!AD$2, FALSE)/100)*(1+IF($A23="Life",assumed_rebate_life,assumed_rebate))^(AD$5/365)-1)*100) -> 7.74 | AE23: =IF(VLOOKUP($B23, 'Sheet1 - Table (1)'!$C$4:$AK$996, 'Adj Sheet1 - Table (1)'!AE$2, FALSE)="", "", ((1+VLOOKUP($B23, 'Sheet1 - Table (1)'!$C$4:$AK$996, 'Adj Sheet1 - Table (1)'!AE$2, FALSE)/100)*(1+IF($A23="Life",assumed_rebate_life,assumed_rebate))^(AE$5/365)-1)*100) -> 6.66 | AF23: =IF(VLOOKUP($B23, 'Sheet1 - Table (1)'!$C$4:$AK$996, 'Adj Sheet1 - Table (1)'!AF$2, FALSE)="", "", ((1+VLOOKUP($B23, 'Sheet1 - Table (1)'!$C$4:$AK$996, 'Adj Sheet1 - Table (1)'!AF$2, FALSE)/100)*(1+IF($A23="Life",assumed_rebate_life,assumed_rebate))^(AF$5/365)-1)*100) -> 4.49 | AG23: =IF(VLOOKUP($B23, 'Sheet1 - Table (1)'!$C$4:$AK$996, 'Adj Sheet1 - Table (1)'!AG$2, FALSE)="", "", ((1+VLOOKUP($B23, 'Sheet1 - Table (1)'!$C$4:$AK$996, 'Adj Sheet1 - Table (1)'!AG$2, FALSE)/100)*(1+IF($A23="Life",assumed_rebate_life,assumed_rebate))^(AG$5/365)-1)*100) -> 4.48 | AH23: =IF(VLOOKUP($B23, 'Sheet1 - Table (1)'!$C$4:$AK$996, 'Adj Sheet1 - Table (1)'!AH$2, FALSE)="", "", ((1+VLOOKUP($B23, 'Sheet1 - Table (1)'!$C$4:$AK$996, 'Adj Sheet1 - Table (1)'!AH$2, FALSE)/100)*(1+IF($A23="Life",assumed_rebate_life,assumed_rebate))^(AH$5/365)-1)*100) -> 4.76 | AI23: =IF(VLOOKUP($B23, 'Sheet1 - Table (1)'!$C$4:$AK$996, 'Adj Sheet1 - Table (1)'!AI$2, FALSE)="", "", ((1+VLOOKUP($B23, 'Sheet1 - Table (1)'!$C$4:$AK$996, 'Adj Sheet1 - Table (1)'!AI$2, FALSE)/100)*(1+IF($A23="Life",assumed_rebate_life,assumed_rebate))^(AI$5/365)-1)*100) -> 4.82 | AJ23: =IF(VLOOKUP($B23, 'Sheet1 - Table (1)'!$C$4:$AK$996, 'Adj Sheet1 - Table (1)'!AJ$2, FALSE)="", "", ((1+VLOOKUP($B23, 'Sheet1 - Table (1)'!$C$4:$AK$996, 'Adj Sheet1 - Table (1)'!AJ$2, FALSE)/100)*(1+IF($A23="Life",assumed_rebate_life,assumed_rebate))^(AJ$5/365)-1)*100) -> 5.62
A24: Pension | B24: ='Sheet1 - Table (1)'!C20 -> 1000171373 | C24: =_xlfn.XLOOKUP($B24,'Sheet1 - Table (1)'!$C$7:$C$1048576,'Sheet1 - Table (1)'!$D$7:$D$1048576,"N/A") -> Governed Portfolio Conservative (TLS-DD-6) | D24: =IF(VLOOKUP($B24, 'Sheet1 - Table (1)'!$C$4:$AK$996, 'Adj Sheet1 - Table (1)'!D$2, FALSE)="", "", VLOOKUP($B24, 'Sheet1 - Table (1)'!$C$4:$AK$996, 'Adj Sheet1 - Table (1)'!D$2, FALSE)) -> 4.59721 | E24: =IF(VLOOKUP($B24, 'Sheet1 - Table (1)'!$C$4:$AK$996, 'Adj Sheet1 - Table (1)'!E$2, FALSE)="", "", ((1+VLOOKUP($B24, 'Sheet1 - Table (1)'!$C$4:$AK$996, 'Adj Sheet1 - Table (1)'!E$2, FALSE)/100)*(1+IF($A24="Life",assumed_rebate_life,assumed_rebate))^(E$5/365)-1)*100) -> 0.41 | F24: =IF(VLOOKUP($B24, 'Sheet1 - Table (1)'!$C$4:$AK$996, 'Adj Sheet1 - Table (1)'!F$2, FALSE)="", "", ((1+VLOOKUP($B24, 'Sheet1 - Table (1)'!$C$4:$AK$996, 'Adj Sheet1 - Table (1)'!F$2, FALSE)/100)*(1+IF($A24="Life",assumed_rebate_life,assumed_rebate))^(F$5/365)-1)*100) -> 9.1 | G24: =IF(VLOOKUP($B24, 'Sheet1 - Table (1)'!$C$4:$AK$996, 'Adj Sheet1 - Table (1)'!G$2, FALSE)="", "", ((1+VLOOKUP($B24, 'Sheet1 - Table (1)'!$C$4:$AK$996, 'Adj Sheet1 - Table (1)'!G$2, FALSE)/100)*(1+IF($A24="Life",assumed_rebate_life,assumed_rebate))^(G$5/365)-1)*100) -> 3.26 | H24: =IF(VLOOKUP($B24, 'Sheet1 - Table (1)'!$C$4:$AK$996, 'Adj Sheet1 - Table (1)'!H$2, FALSE)="", "", ((1+VLOOKUP($B24, 'Sheet1 - Table (1)'!$C$4:$AK$996, 'Adj Sheet1 - Table (1)'!H$2, FALSE)/100)*(1+IF($A24="Life",assumed_rebate_life,assumed_rebate))^(H$5/365)-1)*100) -> 7.3 | I24: =IF(VLOOKUP($B24, 'Sheet1 - Table (1)'!$C$4:$AK$996, 'Adj Sheet1 - Table (1)'!I$2, FALSE)="", "", ((1+VLOOKUP($B24, 'Sheet1 - Table (1)'!$C$4:$AK$996, 'Adj Sheet1 - Table (1)'!I$2, FALSE)/100)*(1+IF($A24="Life",assumed_rebate_life,assumed_rebate))^(I$5/365)-1)*100) -> -8.06 | J24: =IF(VLOOKUP($B24, 'Sheet1 - Table (1)'!$C$4:$AK$996, 'Adj Sheet1 - Table (1)'!J$2, FALSE)="", "", ((1+VLOOKUP($B24, 'Sheet1 - Table (1)'!$C$4:$AK$996, 'Adj Sheet1 - Table (1)'!J$2, FALSE)/100)*(1+IF($A24="Life",assumed_rebate_life,assumed_rebate))^(J$5/365)-1)*100) -> 7.35 | K24: =IF(VLOOKUP($B24, 'Sheet1 - Table (1)'!$C$4:$AK$996, 'Adj Sheet1 - Table (1)'!K$2, FALSE)="", "", ((1+VLOOKUP($B24, 'Sheet1 - Table (1)'!$C$4:$AK$996, 'Adj Sheet1 - Table (1)'!K$2, FALSE)/100)*(1+IF($A24="Life",assumed_rebate_life,assumed_rebate))^(K$5/365)-1)*100) -> 6.52 | L24: =IF(VLOOKUP($B24, 'Sheet1 - Table (1)'!$C$4:$AK$996, 'Adj Sheet1 - Table (1)'!L$2, FALSE)="", "", ((1+VLOOKUP($B24, 'Sheet1 - Table (1)'!$C$4:$AK$996, 'Adj Sheet1 - Table (1)'!L$2, FALSE)/100)*(1+IF($A24="Life",assumed_rebate_life,assumed_rebate))^(L$5/365)-1)*100) -> 3.59 | M24: =IF(VLOOKUP($B24, 'Sheet1 - Table (1)'!$C$4:$AK$996, 'Adj Sheet1 - Table (1)'!M$2, FALSE)="", "", ((1+VLOOKUP($B24, 'Sheet1 - Table (1)'!$C$4:$AK$996, 'Adj Sheet1 - Table (1)'!M$2, FALSE)/100)*(1+IF($A24="Life",assumed_rebate_life,assumed_rebate))^(M$5/365)-1)*100) -> 4.31 | N24: =IF(VLOOKUP($B24, 'Sheet1 - Table (1)'!$C$4:$AK$996, 'Adj Sheet1 - Table (1)'!N$2, FALSE)="", "", ((1+VLOOKUP($B24, 'Sheet1 - Table (1)'!$C$4:$AK$996, 'Adj Sheet1 - Table (1)'!N$2, FALSE)/100)*(1+IF($A24="Life",assumed_rebate_life,assumed_rebate))^(N$5/365)-1)*100) ->  | O24: =IF(VLOOKUP($B24, 'Sheet1 - Table (1)'!$C$4:$AK$996, 'Adj Sheet1 - Table (1)'!O$2, FALSE)="", "", ((1+VLOOKUP($B24, 'Sheet1 - Table (1)'!$C$4:$AK$996, 'Adj Sheet1 - Table (1)'!O$2, FALSE)/100)*(1+IF($A24="Life",assumed_rebate_life,assumed_rebate))^(O$5/365)-1)*100) -> 0.25 | P24: =IF(VLOOKUP($B24, 'Sheet1 - Table (1)'!$C$4:$AK$996, 'Adj Sheet1 - Table (1)'!P$2, FALSE)="", "", ((1+VLOOKUP($B24, 'Sheet1 - Table (1)'!$C$4:$AK$996, 'Adj Sheet1 - Table (1)'!P$2, FALSE)/100)*(1+IF($A24="Life",assumed_rebate_life,assumed_rebate))^(P$5/365)-1)*100) -> 8.16 | Q24: =IF(VLOOKUP($B24, 'Sheet1 - Table (1)'!$C$4:$AK$996, 'Adj Sheet1 - Table (1)'!Q$2, FALSE)="", "", ((1+VLOOKUP($B24, 'Sheet1 - Table (1)'!$C$4:$AK$996, 'Adj Sheet1 - Table (1)'!Q$2, FALSE)/100)*(1+IF($A24="Life",assumed_rebate_life,assumed_rebate))^(Q$5/365)-1)*100) -> 3.91 | R24: =IF(VLOOKUP($B24, 'Sheet1 - Table (1)'!$C$4:$AK$996, 'Adj Sheet1 - Table (1)'!R$2, FALSE)="", "", ((1+VLOOKUP($B24, 'Sheet1 - Table (1)'!$C$4:$AK$996, 'Adj Sheet1 - Table (1)'!R$2, FALSE)/100)*(1+IF($A24="Life",assumed_rebate_life,assumed_rebate))^(R$5/365)-1)*100) -> 7.04 | S24: =IF(VLOOKUP($B24, 'Sheet1 - Table (1)'!$C$4:$AK$996, 'Adj Sheet1 - Table (1)'!S$2, FALSE)="", "", ((1+VLOOKUP($B24, 'Sheet1 - Table (1)'!$C$4:$AK$996, 'Adj Sheet1 - Table (1)'!S$2, FALSE)/100)*(1+IF($A24="Life",assumed_rebate_life,assumed_rebate))^(S$5/365)-1)*100) -> -7.5 | T24: =IF(VLOOKUP($B24, 'Sheet1 - Table (1)'!$C$4:$AK$996, 'Adj Sheet1 - Table (1)'!T$2, FALSE)="", "", ((1+VLOOKUP($B24, 'Sheet1 - Table (1)'!$C$4:$AK$996, 'Adj Sheet1 - Table (1)'!T$2, FALSE)/100)*(1+IF($A24="Life",assumed_rebate_life,assumed_rebate))^(T$5/365)-1)*100) -> 6.96 | U24: =IF(VLOOKUP($B24, 'Sheet1 - Table (1)'!$C$4:$AK$996, 'Adj Sheet1 - Table (1)'!U$2, FALSE)="", "", ((1+VLOOKUP($B24, 'Sheet1 - Table (1)'!$C$4:$AK$996, 'Adj Sheet1 - Table (1)'!U$2, FALSE)/100)*(1+IF($A24="Life",assumed_rebate_life,assumed_rebate))^(U$5/365)-1)*100) -> 6.35 | V24: =IF(VLOOKUP($B24, 'Sheet1 - Table (1)'!$C$4:$AK$996, 'Adj Sheet1 - Table (1)'!V$2, FALSE)="", "", ((1+VLOOKUP($B24, 'Sheet1 - Table (1)'!$C$4:$AK$996, 'Adj Sheet1 - Table (1)'!V$2, FALSE)/100)*(1+IF($A24="Life",assumed_rebate_life,assumed_rebate))^(V$5/365)-1)*100) -> 3.54 | W24: =IF(VLOOKUP($B24, 'Sheet1 - Table (1)'!$C$4:$AK$996, 'Adj Sheet1 - Table (1)'!W$2, FALSE)="", "", ((1+VLOOKUP($B24, 'Sheet1 - Table (1)'!$C$4:$AK$996, 'Adj Sheet1 - Table (1)'!W$2, FALSE)/100)*(1+IF($A24="Life",assumed_rebate_life,assumed_rebate))^(W$5/365)-1)*100) -> 4.28 | X24: =IF(VLOOKUP($B24, 'Sheet1 - Table (1)'!$C$4:$AK$996, 'Adj Sheet1 - Table (1)'!X$2, FALSE)="", "", ((1+VLOOKUP($B24, 'Sheet1 - Table (1)'!$C$4:$AK$996, 'Adj Sheet1 - Table (1)'!X$2, FALSE)/100)*(1+IF($A24="Life",assumed_rebate_life,assumed_rebate))^(X$5/365)-1)*100) ->  | Y24: =IF(VLOOKUP($B24, 'Sheet1 - Table (1)'!$C$4:$AK$996, 'Adj Sheet1 - Table (1)'!Y$2, FALSE)="", "", ((1+VLOOKUP($B24, 'Sheet1 - Table (1)'!$C$4:$AK$996, 'Adj Sheet1 - Table (1)'!Y$2, FALSE)/100)*(1+IF($A24="Life",assumed_rebate_life,assumed_rebate))^(Y$5/365)-1)*100) -> -0.08 | Z24: =IF(VLOOKUP($B24, 'Sheet1 - Table (1)'!$C$4:$AK$996, 'Adj Sheet1 - Table (1)'!Z$2, FALSE)="", "", ((1+VLOOKUP($B24, 'Sheet1 - Table (1)'!$C$4:$AK$996, 'Adj Sheet1 - Table (1)'!Z$2, FALSE)/100)*(1+IF($A24="Life",assumed_rebate_life,assumed_rebate))^(Z$5/365)-1)*100) -> 7.71 | AA24: =IF(VLOOKUP($B24, 'Sheet1 - Table (1)'!$C$4:$AK$996, 'Adj Sheet1 - Table (1)'!AA$2, FALSE)="", "", ((1+VLOOKUP($B24, 'Sheet1 - Table (1)'!$C$4:$AK$996, 'Adj Sheet1 - Table (1)'!AA$2, FALSE)/100)*(1+IF($A24="Life",assumed_rebate_life,assumed_rebate))^(AA$5/365)-1)*100) -> 4.09 | AB24: =IF(VLOOKUP($B24, 'Sheet1 - Table (1)'!$C$4:$AK$996, 'Adj Sheet1 - Table (1)'!AB$2, FALSE)="", "", ((1+VLOOKUP($B24, 'Sheet1 - Table (1)'!$C$4:$AK$996, 'Adj Sheet1 - Table (1)'!AB$2, FALSE)/100)*(1+IF($A24="Life",assumed_rebate_life,assumed_rebate))^(AB$5/365)-1)*100) -> 7.58 | AC24: =IF(VLOOKUP($B24, 'Sheet1 - Table (1)'!$C$4:$AK$996, 'Adj Sheet1 - Table (1)'!AC$2, FALSE)="", "", ((1+VLOOKUP($B24, 'Sheet1 - Table (1)'!$C$4:$AK$996, 'Adj Sheet1 - Table (1)'!AC$2, FALSE)/100)*(1+IF($A24="Life",assumed_rebate_life,assumed_rebate))^(AC$5/365)-1)*100) -> -8.02 | AD24: =IF(VLOOKUP($B24, 'Sheet1 - Table (1)'!$C$4:$AK$996, 'Adj Sheet1 - Table (1)'!AD$2, FALSE)="", "", ((1+VLOOKUP($B24, 'Sheet1 - Table (1)'!$C$4:$AK$996, 'Adj Sheet1 - Table (1)'!AD$2, FALSE)/100)*(1+IF($A24="Life",assumed_rebate_life,assumed_rebate))^(AD$5/365)-1)*100) -> 6.76 | AE24: =IF(VLOOKUP($B24, 'Sheet1 - Table (1)'!$C$4:$AK$996, 'Adj Sheet1 - Table (1)'!AE$2, FALSE)="", "", ((1+VLOOKUP($B24, 'Sheet1 - Table (1)'!$C$4:$AK$996, 'Adj Sheet1 - Table (1)'!AE$2, FALSE)/100)*(1+IF($A24="Life",assumed_rebate_life,assumed_rebate))^(AE$5/365)-1)*100) -> 6.45 | AF24: =IF(VLOOKUP($B24, 'Sheet1 - Table (1)'!$C$4:$AK$996, 'Adj Sheet1 - Table (1)'!AF$2, FALSE)="", "", ((1+VLOOKUP($B24, 'Sheet1 - Table (1)'!$C$4:$AK$996, 'Adj Sheet1 - Table (1)'!AF$2, FALSE)/100)*(1+IF($A24="Life",assumed_rebate_life,assumed_rebate))^(AF$5/365)-1)*100) -> 3.44 | AG24: =IF(VLOOKUP($B24, 'Sheet1 - Table (1)'!$C$4:$AK$996, 'Adj Sheet1 - Table (1)'!AG$2, FALSE)="", "", ((1+VLOOKUP($B24, 'Sheet1 - Table (1)'!$C$4:$AK$996, 'Adj Sheet1 - Table (1)'!AG$2, FALSE)/100)*(1+IF($A24="Life",assumed_rebate_life,assumed_rebate))^(AG$5/365)-1)*100) -> 4.3 | AH24: =IF(VLOOKUP($B24, 'Sheet1 - Table (1)'!$C$4:$AK$996, 'Adj Sheet1 - Table (1)'!AH$2, FALSE)="", "", ((1+VLOOKUP($B24, 'Sheet1 - Table (1)'!$C$4:$AK$996, 'Adj Sheet1 - Table (1)'!AH$2, FALSE)/100)*(1+IF($A24="Life",assumed_rebate_life,assumed_rebate))^(AH$5/365)-1)*100) ->  | AI24: =IF(VLOOKUP($B24, 'Sheet1 - Table (1)'!$C$4:$AK$996, 'Adj Sheet1 - Table (1)'!AI$2, FALSE)="", "", ((1+VLOOKUP($B24, 'Sheet1 - Table (1)'!$C$4:$AK$996, 'Adj Sheet1 - Table (1)'!AI$2, FALSE)/100)*(1+IF($A24="Life",assumed_rebate_life,assumed_rebate))^(AI$5/365)-1)*100) -> 4.83 | AJ24: =IF(VLOOKUP($B24, 'Sheet1 - Table (1)'!$C$4:$AK$996, 'Adj Sheet1 - Table (1)'!AJ$2, FALSE)="", "", ((1+VLOOKUP($B24, 'Sheet1 - Table (1)'!$C$4:$AK$996, 'Adj Sheet1 - Table (1)'!AJ$2, FALSE)/100)*(1+IF($A24="Life",assumed_rebate_life,assumed_rebate))^(AJ$5/365)-1)*100) -> 
A25: Pension | B25: ='Sheet1 - Table (1)'!C21 -> 1000110742 | C25: =_xlfn.XLOOKUP($B25,'Sheet1 - Table (1)'!$C$7:$C$1048576,'Sheet1 - Table (1)'!$D$7:$D$1048576,"N/A") -> Governed Portfolio Conservative (Tracker) (TLS-6) | D25: =IF(VLOOKUP($B25, 'Sheet1 - Table (1)'!$C$4:$AK$996, 'Adj Sheet1 - Table (1)'!D$2, FALSE)="", "", VLOOKUP($B25, 'Sheet1 - Table (1)'!$C$4:$AK$996, 'Adj Sheet1 - Table (1)'!D$2, FALSE)) -> 4.67273 | E25: =IF(VLOOKUP($B25, 'Sheet1 - Table (1)'!$C$4:$AK$996, 'Adj Sheet1 - Table (1)'!E$2, FALSE)="", "", ((1+VLOOKUP($B25, 'Sheet1 - Table (1)'!$C$4:$AK$996, 'Adj Sheet1 - Table (1)'!E$2, FALSE)/100)*(1+IF($A25="Life",assumed_rebate_life,assumed_rebate))^(E$5/365)-1)*100) -> 0.27 | F25: =IF(VLOOKUP($B25, 'Sheet1 - Table (1)'!$C$4:$AK$996, 'Adj Sheet1 - Table (1)'!F$2, FALSE)="", "", ((1+VLOOKUP($B25, 'Sheet1 - Table (1)'!$C$4:$AK$996, 'Adj Sheet1 - Table (1)'!F$2, FALSE)/100)*(1+IF($A25="Life",assumed_rebate_life,assumed_rebate))^(F$5/365)-1)*100) -> 9.2 | G25: =IF(VLOOKUP($B25, 'Sheet1 - Table (1)'!$C$4:$AK$996, 'Adj Sheet1 - Table (1)'!G$2, FALSE)="", "", ((1+VLOOKUP($B25, 'Sheet1 - Table (1)'!$C$4:$AK$996, 'Adj Sheet1 - Table (1)'!G$2, FALSE)/100)*(1+IF($A25="Life",assumed_rebate_life,assumed_rebate))^(G$5/365)-1)*100) -> 3.58 | H25: =IF(VLOOKUP($B25, 'Sheet1 - Table (1)'!$C$4:$AK$996, 'Adj Sheet1 - Table (1)'!H$2, FALSE)="", "", ((1+VLOOKUP($B25, 'Sheet1 - Table (1)'!$C$4:$AK$996, 'Adj Sheet1 - Table (1)'!H$2, FALSE)/100)*(1+IF($A25="Life",assumed_rebate_life,assumed_rebate))^(H$5/365)-1)*100) -> 7.3 | I25: =IF(VLOOKUP($B25, 'Sheet1 - Table (1)'!$C$4:$AK$996, 'Adj Sheet1 - Table (1)'!I$2, FALSE)="", "", ((1+VLOOKUP($B25, 'Sheet1 - Table (1)'!$C$4:$AK$996, 'Adj Sheet1 - Table (1)'!I$2, FALSE)/100)*(1+IF($A25="Life",assumed_rebate_life,assumed_rebate))^(I$5/365)-1)*100) -> -4.74 | J25: =IF(VLOOKUP($B25, 'Sheet1 - Table (1)'!$C$4:$AK$996, 'Adj Sheet1 - Table (1)'!J$2, FALSE)="", "", ((1+VLOOKUP($B25, 'Sheet1 - Table (1)'!$C$4:$AK$996, 'Adj Sheet1 - Table (1)'!J$2, FALSE)/100)*(1+IF($A25="Life",assumed_rebate_life,assumed_rebate))^(J$5/365)-1)*100) -> 7.9 | K25: =IF(VLOOKUP($B25, 'Sheet1 - Table (1)'!$C$4:$AK$996, 'Adj Sheet1 - Table (1)'!K$2, FALSE)="", "", ((1+VLOOKUP($B25, 'Sheet1 - Table (1)'!$C$4:$AK$996, 'Adj Sheet1 - Table (1)'!K$2, FALSE)/100)*(1+IF($A25="Life",assumed_rebate_life,assumed_rebate))^(K$5/365)-1)*100) -> 6.66 | L25: =IF(VLOOKUP($B25, 'Sheet1 - Table (1)'!$C$4:$AK$996, 'Adj Sheet1 - Table (1)'!L$2, FALSE)="", "", ((1+VLOOKUP($B25, 'Sheet1 - Table (1)'!$C$4:$AK$996, 'Adj Sheet1 - Table (1)'!L$2, FALSE)/100)*(1+IF($A25="Life",assumed_rebate_life,assumed_rebate))^(L$5/365)-1)*100) -> 4.52 | M25: =IF(VLOOKUP($B25, 'Sheet1 - Table (1)'!$C$4:$AK$996, 'Adj Sheet1 - Table (1)'!M$2, FALSE)="", "", ((1+VLOOKUP($B25, 'Sheet1 - Table (1)'!$C$4:$AK$996, 'Adj Sheet1 - Table (1)'!M$2, FALSE)/100)*(1+IF($A25="Life",assumed_rebate_life,assumed_rebate))^(M$5/365)-1)*100) -> 4.51 | N25: =IF(VLOOKUP($B25, 'Sheet1 - Table (1)'!$C$4:$AK$996, 'Adj Sheet1 - Table (1)'!N$2, FALSE)="", "", ((1+VLOOKUP($B25, 'Sheet1 - Table (1)'!$C$4:$AK$996, 'Adj Sheet1 - Table (1)'!N$2, FALSE)/100)*(1+IF($A25="Life",assumed_rebate_life,assumed_rebate))^(N$5/365)-1)*100) -> 4.79 | O25: =IF(VLOOKUP($B25, 'Sheet1 - Table (1)'!$C$4:$AK$996, 'Adj Sheet1 - Table (1)'!O$2, FALSE)="", "", ((1+VLOOKUP($B25, 'Sheet1 - Table (1)'!$C$4:$AK$996, 'Adj Sheet1 - Table (1)'!O$2, FALSE)/100)*(1+IF($A25="Life",assumed_rebate_life,assumed_rebate))^(O$5/365)-1)*100) -> 0.14 | P25: =IF(VLOOKUP($B25, 'Sheet1 - Table (1)'!$C$4:$AK$996, 'Adj Sheet1 - Table (1)'!P$2, FALSE)="", "", ((1+VLOOKUP($B25, 'Sheet1 - Table (1)'!$C$4:$AK$996, 'Adj Sheet1 - Table (1)'!P$2, FALSE)/100)*(1+IF($A25="Life",assumed_rebate_life,assumed_rebate))^(P$5/365)-1)*100) -> 8.24 | Q25: =IF(VLOOKUP($B25, 'Sheet1 - Table (1)'!$C$4:$AK$996, 'Adj Sheet1 - Table (1)'!Q$2, FALSE)="", "", ((1+VLOOKUP($B25, 'Sheet1 - Table (1)'!$C$4:$AK$996, 'Adj Sheet1 - Table (1)'!Q$2, FALSE)/100)*(1+IF($A25="Life",assumed_rebate_life,assumed_rebate))^(Q$5/365)-1)*100) -> 4.29 | R25: =IF(VLOOKUP($B25, 'Sheet1 - Table (1)'!$C$4:$AK$996, 'Adj Sheet1 - Table (1)'!R$2, FALSE)="", "", ((1+VLOOKUP($B25, 'Sheet1 - Table (1)'!$C$4:$AK$996, 'Adj Sheet1 - Table (1)'!R$2, FALSE)/100)*(1+IF($A25="Life",assumed_rebate_life,assumed_rebate))^(R$5/365)-1)*100) -> 7.21 | S25: =IF(VLOOKUP($B25, 'Sheet1 - Table (1)'!$C$4:$AK$996, 'Adj Sheet1 - Table (1)'!S$2, FALSE)="", "", ((1+VLOOKUP($B25, 'Sheet1 - Table (1)'!$C$4:$AK$996, 'Adj Sheet1 - Table (1)'!S$2, FALSE)/100)*(1+IF($A25="Life",assumed_rebate_life,assumed_rebate))^(S$5/365)-1)*100) -> -4.49 | T25: =IF(VLOOKUP($B25, 'Sheet1 - Table (1)'!$C$4:$AK$996, 'Adj Sheet1 - Table (1)'!T$2, FALSE)="", "", ((1+VLOOKUP($B25, 'Sheet1 - Table (1)'!$C$4:$AK$996, 'Adj Sheet1 - Table (1)'!T$2, FALSE)/100)*(1+IF($A25="Life",assumed_rebate_life,assumed_rebate))^(T$5/365)-1)*100) -> 7.65 | U25: =IF(VLOOKUP($B25, 'Sheet1 - Table (1)'!$C$4:$AK$996, 'Adj Sheet1 - Table (1)'!U$2, FALSE)="", "", ((1+VLOOKUP($B25, 'Sheet1 - Table (1)'!$C$4:$AK$996, 'Adj Sheet1 - Table (1)'!U$2, FALSE)/100)*(1+IF($A25="Life",assumed_rebate_life,assumed_rebate))^(U$5/365)-1)*100) -> 6.56 | V25: =IF(VLOOKUP($B25, 'Sheet1 - Table (1)'!$C$4:$AK$996, 'Adj Sheet1 - Table (1)'!V$2, FALSE)="", "", ((1+VLOOKUP($B25, 'Sheet1 - Table (1)'!$C$4:$AK$996, 'Adj Sheet1 - Table (1)'!V$2, FALSE)/100)*(1+IF($A25="Life",assumed_rebate_life,assumed_rebate))^(V$5/365)-1)*100) -> 4.46 | W25: =IF(VLOOKUP($B25, 'Sheet1 - Table (1)'!$C$4:$AK$996, 'Adj Sheet1 - Table (1)'!W$2, FALSE)="", "", ((1+VLOOKUP($B25, 'Sheet1 - Table (1)'!$C$4:$AK$996, 'Adj Sheet1 - Table (1)'!W$2, FALSE)/100)*(1+IF($A25="Life",assumed_rebate_life,assumed_rebate))^(W$5/365)-1)*100) -> 4.51 | X25: =IF(VLOOKUP($B25, 'Sheet1 - Table (1)'!$C$4:$AK$996, 'Adj Sheet1 - Table (1)'!X$2, FALSE)="", "", ((1+VLOOKUP($B25, 'Sheet1 - Table (1)'!$C$4:$AK$996, 'Adj Sheet1 - Table (1)'!X$2, FALSE)/100)*(1+IF($A25="Life",assumed_rebate_life,assumed_rebate))^(X$5/365)-1)*100) -> 4.79 | Y25: =IF(VLOOKUP($B25, 'Sheet1 - Table (1)'!$C$4:$AK$996, 'Adj Sheet1 - Table (1)'!Y$2, FALSE)="", "", ((1+VLOOKUP($B25, 'Sheet1 - Table (1)'!$C$4:$AK$996, 'Adj Sheet1 - Table (1)'!Y$2, FALSE)/100)*(1+IF($A25="Life",assumed_rebate_life,assumed_rebate))^(Y$5/365)-1)*100) -> -0.18 | Z25: =IF(VLOOKUP($B25, 'Sheet1 - Table (1)'!$C$4:$AK$996, 'Adj Sheet1 - Table (1)'!Z$2, FALSE)="", "", ((1+VLOOKUP($B25, 'Sheet1 - Table (1)'!$C$4:$AK$996, 'Adj Sheet1 - Table (1)'!Z$2, FALSE)/100)*(1+IF($A25="Life",assumed_rebate_life,assumed_rebate))^(Z$5/365)-1)*100) -> 7.9 | AA25: =IF(VLOOKUP($B25, 'Sheet1 - Table (1)'!$C$4:$AK$996, 'Adj Sheet1 - Table (1)'!AA$2, FALSE)="", "", ((1+VLOOKUP($B25, 'Sheet1 - Table (1)'!$C$4:$AK$996, 'Adj Sheet1 - Table (1)'!AA$2, FALSE)/100)*(1+IF($A25="Life",assumed_rebate_life,assumed_rebate))^(AA$5/365)-1)*100) -> 4.48 | AB25: =IF(VLOOKUP($B25, 'Sheet1 - Table (1)'!$C$4:$AK$996, 'Adj Sheet1 - Table (1)'!AB$2, FALSE)="", "", ((1+VLOOKUP($B25, 'Sheet1 - Table (1)'!$C$4:$AK$996, 'Adj Sheet1 - Table (1)'!AB$2, FALSE)/100)*(1+IF($A25="Life",assumed_rebate_life,assumed_rebate))^(AB$5/365)-1)*100) -> 7.61 | AC25: =IF(VLOOKUP($B25, 'Sheet1 - Table (1)'!$C$4:$AK$996, 'Adj Sheet1 - Table (1)'!AC$2, FALSE)="", "", ((1+VLOOKUP($B25, 'Sheet1 - Table (1)'!$C$4:$AK$996, 'Adj Sheet1 - Table (1)'!AC$2, FALSE)/100)*(1+IF($A25="Life",assumed_rebate_life,assumed_rebate))^(AC$5/365)-1)*100) -> -4.9 | AD25: =IF(VLOOKUP($B25, 'Sheet1 - Table (1)'!$C$4:$AK$996, 'Adj Sheet1 - Table (1)'!AD$2, FALSE)="", "", ((1+VLOOKUP($B25, 'Sheet1 - Table (1)'!$C$4:$AK$996, 'Adj Sheet1 - Table (1)'!AD$2, FALSE)/100)*(1+IF($A25="Life",assumed_rebate_life,assumed_rebate))^(AD$5/365)-1)*100) -> 7.54 | AE25: =IF(VLOOKUP($B25, 'Sheet1 - Table (1)'!$C$4:$AK$996, 'Adj Sheet1 - Table (1)'!AE$2, FALSE)="", "", ((1+VLOOKUP($B25, 'Sheet1 - Table (1)'!$C$4:$AK$996, 'Adj Sheet1 - Table (1)'!AE$2, FALSE)/100)*(1+IF($A25="Life",assumed_rebate_life,assumed_rebate))^(AE$5/365)-1)*100) -> 6.65 | AF25: =IF(VLOOKUP($B25, 'Sheet1 - Table (1)'!$C$4:$AK$996, 'Adj Sheet1 - Table (1)'!AF$2, FALSE)="", "", ((1+VLOOKUP($B25, 'Sheet1 - Table (1)'!$C$4:$AK$996, 'Adj Sheet1 - Table (1)'!AF$2, FALSE)/100)*(1+IF($A25="Life",assumed_rebate_life,assumed_rebate))^(AF$5/365)-1)*100) -> 4.41 | AG25: =IF(VLOOKUP($B25, 'Sheet1 - Table (1)'!$C$4:$AK$996, 'Adj Sheet1 - Table (1)'!AG$2, FALSE)="", "", ((1+VLOOKUP($B25, 'Sheet1 - Table (1)'!$C$4:$AK$996, 'Adj Sheet1 - Table (1)'!AG$2, FALSE)/100)*(1+IF($A25="Life",assumed_rebate_life,assumed_rebate))^(AG$5/365)-1)*100) -> 4.49 | AH25: =IF(VLOOKUP($B25, 'Sheet1 - Table (1)'!$C$4:$AK$996, 'Adj Sheet1 - Table (1)'!AH$2, FALSE)="", "", ((1+VLOOKUP($B25, 'Sheet1 - Table (1)'!$C$4:$AK$996, 'Adj Sheet1 - Table (1)'!AH$2, FALSE)/100)*(1+IF($A25="Life",assumed_rebate_life,assumed_rebate))^(AH$5/365)-1)*100) -> 4.77 | AI25: =IF(VLOOKUP($B25, 'Sheet1 - Table (1)'!$C$4:$AK$996, 'Adj Sheet1 - Table (1)'!AI$2, FALSE)="", "", ((1+VLOOKUP($B25, 'Sheet1 - Table (1)'!$C$4:$AK$996, 'Adj Sheet1 - Table (1)'!AI$2, FALSE)/100)*(1+IF($A25="Life",assumed_rebate_life,assumed_rebate))^(AI$5/365)-1)*100) -> 4.81 | AJ25: =IF(VLOOKUP($B25, 'Sheet1 - Table (1)'!$C$4:$AK$996, 'Adj Sheet1 - Table (1)'!AJ$2, FALSE)="", "", ((1+VLOOKUP($B25, 'Sheet1 - Table (1)'!$C$4:$AK$996, 'Adj Sheet1 - Table (1)'!AJ$2, FALSE)/100)*(1+IF($A25="Life",assumed_rebate_life,assumed_rebate))^(AJ$5/365)-1)*100) -> 5.73
